{"text_format":"1","workbook":"xlsx","n_sheets":21,"sheets":["identificacion","ghost","Instrucciones","Consulta de caducidades","CAJON 1","CAJON 2","CAJON 3","CAJON 4","CAJON 5","CAJON 6","CAJON 7","CAJON 8","CAJON 9","CAJON 10","CAJON 11","CAJON 12","CAJON 13","CAJON 14","CAJON 15","FUERA CAJONES","Sit"],"not_rendered":{"charts":0,"images":6,"macros":1,"external_links":0,"defined_names":51,"comments":0,"pivot_tables":0},"unopened":[],"bounds":{"document_bytes":16777216,"sheet_cells":100000,"rows_first":2000,"rows_last":500,"rows_between":2000,"halvings":0,"cell_chars":16384,"cell_head_chars":4096},"cells_cut":0,"cells_raw":0,"read":"whole","date_system":"1900"}

{"sheet":"identificacion","index":0,"n_rows":24,"n_cols":9,"rows_kept":24,"cut":false,"hidden":false,"merged":[[13,2,13,9],[3,7,3,10],[4,5,4,10],[23,8,23,9],[23,2,23,3],[9,3,9,4],[9,5,9,6],[7,7,7,10],[10,3,10,5],[7,1,7,6],[0,1,0,10],[6,7,6,10],[6,1,6,6],[1,1,1,10],[5,1,5,2],[3,3,3,5],[2,1,2,2],[4,1,4,4],[2,3,2,10],[5,3,5,10],[3,1,3,2]]}
[null,"CONTROL DEL CONTENIDO DEL BOTIQUÍN TIPO A"]
[null,"DATOS IDENTIFICATIVOS DEL BUQUE"]
[null,"Nombre del Buque"]
[null,"Matrícula",null,null,null,null,"N.I.B."]
[null,"Nombre del propietario o empresa armadora"]
[null,"Puerto base"]
[null,"Nombre y apellidos del Responsable Sanitario a Bordo (RSB)"]
[null,"D.N.I./N.I.E./Pasaporte del Responsable Sanitario a Bordo (RSB)"]
[]
[null,null,null,"fecha del control:"]
[null,null,null,"número de tripulantes a bordo:"]
[]
[]
[null,null,"Observaciones del responsable de la revisión (ISM)"]
[]
[]
[]
[]
[]
[]
[]
[]
[]
[null,null,"Firma del responsable sanitario a bordo (RSB)",null,null,null,null,null,"Firma y Sello del responsable de la revisión"]

{"sheet":"ghost","index":1,"n_rows":174,"n_cols":23,"rows_kept":174,"cut":false,"hidden":true,"merged":[]}
["CAJON","CÓDIGO ATC","PRINCIPIO ACTIVO;PRESENTACIÓN","ce_15","ce_15_20","ce_20","cab_15","cab_15_20","cab_20","CADUCIDAD","Control","ce_menos_cab","Estado de la dotación","ce","ce_ud","cab","ud_rep","f_cadu","orden","codigo","PA_MS","Presenta","observa"]
[1,{"$f":"+'CAJON 1'!A9","v":"C01CA24"},{"$f":"CONCATENATE(+'CAJON 1'!B9,\" - \",+'CAJON 1'!C9)","v":"EPINEFRINA - 1 mg. jeringa precargada 1ml."},{"$f":"+'CAJON 1'!D9","v":2},{"$f":"+'CAJON 1'!F9","v":3},{"$f":"+'CAJON 1'!H9","v":4},{"$f":"+'CAJON 1'!J9","v":0},{"$f":"+'CAJON 1'!K9","v":0},{"$f":"+'CAJON 1'!L9","v":0},{"$f":"IF('CAJON 1'!M9<>\"\",'CAJON 1'!M9,\"\")","v":""},{"$f":"IF(+J2=\"\",Sit!$B$1,IF(TODAY()>=ghost!J2,+Sit!$B$2,IF(TODAY()>=ghost!J2-30,Sit!$B$3,Sit!$B$4)))","v":"sin fecha de caducidad"},{"$f":"IF(identificacion!$G$11=\"\",\"\",IF(identificacion!$G$11<15,+ghost!D2-ROUND(ghost!G2,0),IF(identificacion!$G$11>20,ghost!F2-ROUND(ghost!I2,0),ghost!E2-ROUND(ghost!H2,0))))","v":""},{"$f":"IF(L2=\"\",\"No procede: falta nº de tripulantes\",IF(L2=0,\"cantidad exigida\",IF(L2=1,CONCATENATE(\"falta \"& +L2 & \" unidad\"),IF(L2>1,CONCATENATE(\"faltan \"&+L2& \" unidades\"),IF(L2<0,\"dotación con excedentes\",\"Comprobar introducción de datos\")))))","v":"No procede: falta nº de tripulantes"},{"$f":"IF(identificacion!$G$11=\"\",\"\",IF(identificacion!$G$11<15,+ghost!D2,IF(identificacion!$G$11>20,ghost!F2,ghost!E2)))","v":""},"unidades",{"$f":"IF(identificacion!$G$11=\"\",\"\",IF(identificacion!$G$11<15,ROUND(ghost!G2,0),IF(identificacion!$G$11>20,ROUND(ghost!I2,0),ROUND(ghost!H2,0))))","v":""},{"$f":"+'Consulta de caducidades'!G7","v":0},{"$f":"+J2","v":""},"1","C01CA24","EPINEFRINA ","1 mg jeringa precargada 1ml"]
[1,{"$f":"+'CAJON 1'!A10","v":"C01DA"},{"$f":"CONCATENATE(+'CAJON 1'!B10,\" - \",+'CAJON 1'!C10)","v":"NITROGLICERINA - 0,8 mg. 30 comp."},{"$f":"+'CAJON 1'!D10","v":1},{"$f":"+'CAJON 1'!F10","v":1},{"$f":"+'CAJON 1'!H10","v":1},{"$f":"+'CAJON 1'!J10","v":0},{"$f":"+'CAJON 1'!K10","v":0},{"$f":"+'CAJON 1'!L10","v":0},{"$f":"IF('CAJON 1'!M10<>\"\",'CAJON 1'!M10,\"\")","v":""},{"$f":"IF(+J3=\"\",Sit!$B$1,IF(TODAY()>=ghost!J3,+Sit!$B$2,IF(TODAY()>=ghost!J3-30,Sit!$B$3,Sit!$B$4)))","v":"sin fecha de caducidad"},{"$f":"IF(identificacion!$G$11=\"\",\"\",IF(identificacion!$G$11<15,+ghost!D3-ROUND(ghost!G3,0),IF(identificacion!$G$11>20,ghost!F3-ROUND(ghost!I3,0),ghost!E3-ROUND(ghost!H3,0))))","v":""},"No procede: falta nº de tripulantes",{"$f":"IF(identificacion!$G$11=\"\",\"\",IF(identificacion!$G$11<15,+ghost!D3,IF(identificacion!$G$11>20,ghost!F3,ghost!E3)))","v":""},"caja",{"$f":"IF(identificacion!$G$11=\"\",\"\",IF(identificacion!$G$11<15,ROUND(ghost!G3,0),IF(identificacion!$G$11>20,ROUND(ghost!I3,0),ROUND(ghost!H3,0))))","v":""},{"$f":"+'Consulta de caducidades'!G8","v":0},{"$f":"+J3","v":""},"2","C01DA","NITROGLICERINA ","0,8 mg 30 comp"]
[1,{"$f":"+'CAJON 1'!A11","v":"C03CA01"},{"$f":"CONCATENATE(+'CAJON 1'!B11,\" - \",+'CAJON 1'!C11)","v":"FUROSEMIDA - 20 mg. 5 ampollas 2 ml."},{"$f":"+'CAJON 1'!D11","v":1},{"$f":"+'CAJON 1'!F11","v":1},{"$f":"+'CAJON 1'!H11","v":1},{"$f":"+'CAJON 1'!J11","v":0},{"$f":"+'CAJON 1'!K11","v":0},{"$f":"+'CAJON 1'!L11","v":0},{"$f":"IF('CAJON 1'!M11<>\"\",'CAJON 1'!M11,\"\")","v":""},{"$f":"IF(+J4=\"\",Sit!$B$1,IF(TODAY()>=ghost!J4,+Sit!$B$2,IF(TODAY()>=ghost!J4-30,Sit!$B$3,Sit!$B$4)))","v":"sin fecha de caducidad"},{"$f":"IF(identificacion!$G$11=\"\",\"\",IF(identificacion!$G$11<15,+ghost!D4-ROUND(ghost!G4,0),IF(identificacion!$G$11>20,ghost!F4-ROUND(ghost!I4,0),ghost!E4-ROUND(ghost!H4,0))))","v":""},"No procede: falta nº de tripulantes",{"$f":"IF(identificacion!$G$11=\"\",\"\",IF(identificacion!$G$11<15,+ghost!D4,IF(identificacion!$G$11>20,ghost!F4,ghost!E4)))","v":""},"caja",{"$f":"IF(identificacion!$G$11=\"\",\"\",IF(identificacion!$G$11<15,ROUND(ghost!G4,0),IF(identificacion!$G$11>20,ROUND(ghost!I4,0),ROUND(ghost!H4,0))))","v":""},{"$f":"+'Consulta de caducidades'!G9","v":0},"","3","C03CA01","FUROSEMIDA ","20 mg 5 ampollas 2 ml"]
[1,{"$f":"+'CAJON 1'!A12","v":"C03AA03"},{"$f":"CONCATENATE(+'CAJON 1'!B12,\" - \",+'CAJON 1'!C12)","v":"HIDROCLOROTIAZIDA - 50 mg. 20 comp."},{"$f":"+'CAJON 1'!D12","v":1},{"$f":"+'CAJON 1'!F12","v":2},{"$f":"+'CAJON 1'!H12","v":2},{"$f":"+'CAJON 1'!J12","v":0},{"$f":"+'CAJON 1'!K12","v":0},{"$f":"+'CAJON 1'!L12","v":0},{"$f":"IF('CAJON 1'!M12<>\"\",'CAJON 1'!M12,\"\")","v":""},{"$f":"IF(+J5=\"\",Sit!$B$1,IF(TODAY()>=ghost!J5,+Sit!$B$2,IF(TODAY()>=ghost!J5-30,Sit!$B$3,Sit!$B$4)))","v":"sin fecha de caducidad"},{"$f":"IF(identificacion!$G$11=\"\",\"\",IF(identificacion!$G$11<15,+ghost!D5-ROUND(ghost!G5,0),IF(identificacion!$G$11>20,ghost!F5-ROUND(ghost!I5,0),ghost!E5-ROUND(ghost!H5,0))))","v":""},"No procede: falta nº de tripulantes",{"$f":"IF(identificacion!$G$11=\"\",\"\",IF(identificacion!$G$11<15,+ghost!D5,IF(identificacion!$G$11>20,ghost!F5,ghost!E5)))","v":""},"caja",{"$f":"IF(identificacion!$G$11=\"\",\"\",IF(identificacion!$G$11<15,ROUND(ghost!G5,0),IF(identificacion!$G$11>20,ROUND(ghost!I5,0),ROUND(ghost!H5,0))))","v":""},{"$f":"+'Consulta de caducidades'!G10","v":0},"","4","C03AA03","HIDROCLOROTIAZIDA ","50 mg. 20 comp."]
[1,{"$f":"+'CAJON 1'!A13","v":"B01AB05"},{"$f":"CONCATENATE(+'CAJON 1'!B13,\" - \",+'CAJON 1'!C13)","v":"ENOXAPARINA - 80 mg. 2 jeringas precargadas 0,8 ml."},{"$f":"+'CAJON 1'!D13","v":3},{"$f":"+'CAJON 1'!F13","v":4},{"$f":"+'CAJON 1'!H13","v":4},{"$f":"+'CAJON 1'!J13","v":0},{"$f":"+'CAJON 1'!K13","v":0},{"$f":"+'CAJON 1'!L13","v":0},{"$f":"IF('CAJON 1'!M13<>\"\",'CAJON 1'!M13,\"\")","v":""},{"$f":"IF(+J6=\"\",Sit!$B$1,IF(TODAY()>=ghost!J6,+Sit!$B$2,IF(TODAY()>=ghost!J6-30,Sit!$B$3,Sit!$B$4)))","v":"sin fecha de caducidad"},{"$f":"IF(identificacion!$G$11=\"\",\"\",IF(identificacion!$G$11<15,+ghost!D6-ROUND(ghost!G6,0),IF(identificacion!$G$11>20,ghost!F6-ROUND(ghost!I6,0),ghost!E6-ROUND(ghost!H6,0))))","v":""},"No procede: falta nº de tripulantes",{"$f":"IF(identificacion!$G$11=\"\",\"\",IF(identificacion!$G$11<15,+ghost!D6,IF(identificacion!$G$11>20,ghost!F6,ghost!E6)))","v":""},"envases",{"$f":"IF(identificacion!$G$11=\"\",\"\",IF(identificacion!$G$11<15,ROUND(ghost!G6,0),IF(identificacion!$G$11>20,ROUND(ghost!I6,0),ROUND(ghost!H6,0))))","v":""},{"$f":"+'Consulta de caducidades'!G11","v":0},"","5","B01AB05","ENOXAPARINA ","80 mg. 2 jeringas precargadas 0,8 ml."]
[1,{"$f":"+'CAJON 1'!A14","v":"G02AB01"},{"$f":"CONCATENATE(+'CAJON 1'!B14,\" - \",+'CAJON 1'!C14)","v":"METILERGOMETRINA (a) - 0,2 mg. 3 ampollas 1 ml."},{"$f":"+'CAJON 1'!D14","v":1},{"$f":"+'CAJON 1'!F14","v":1},{"$f":"+'CAJON 1'!H14","v":1},{"$f":"+'CAJON 1'!J14","v":0},{"$f":"+'CAJON 1'!K14","v":0},{"$f":"+'CAJON 1'!L14","v":0},{"$f":"IF('CAJON 1'!M14<>\"\",'CAJON 1'!M14,\"\")","v":""},{"$f":"IF(+J7=\"\",Sit!$B$1,IF(TODAY()>=ghost!J7,+Sit!$B$2,IF(TODAY()>=ghost!J7-30,Sit!$B$3,Sit!$B$4)))","v":"sin fecha de caducidad"},{"$f":"IF(identificacion!$G$11=\"\",\"\",IF(identificacion!$G$11<15,+ghost!D7-ROUND(ghost!G7,0),IF(identificacion!$G$11>20,ghost!F7-ROUND(ghost!I7,0),ghost!E7-ROUND(ghost!H7,0))))","v":""},"No procede: falta nº de tripulantes",{"$f":"IF(identificacion!$G$11=\"\",\"\",IF(identificacion!$G$11<15,+ghost!D7,IF(identificacion!$G$11>20,ghost!F7,ghost!E7)))","v":""},"caja",{"$f":"IF(identificacion!$G$11=\"\",\"\",IF(identificacion!$G$11<15,ROUND(ghost!G7,0),IF(identificacion!$G$11>20,ROUND(ghost!I7,0),ROUND(ghost!H7,0))))","v":""},{"$f":"+'Consulta de caducidades'!G12","v":0},"","6","G02AB01","METILERGOMETRINA (a) ","0,2 mg 3 ampollas 1 ml","(a) Solo obligatorio si van mujeres a bordo "]
[1,{"$f":"+'CAJON 1'!A15","v":"B05AA"},{"$f":"CONCATENATE(+'CAJON 1'!B15,\" - \",+'CAJON 1'!C15)","v":"GELATINA HEMOSTÁTICA - 10 esponjas 200 x 70 x 0,5 mm."},{"$f":"+'CAJON 1'!D15","v":1},{"$f":"+'CAJON 1'!F15","v":2},{"$f":"+'CAJON 1'!H15","v":2},{"$f":"+'CAJON 1'!J15","v":0},{"$f":"+'CAJON 1'!K15","v":0},{"$f":"+'CAJON 1'!L15","v":0},{"$f":"IF('CAJON 1'!M15<>\"\",'CAJON 1'!M15,\"\")","v":""},{"$f":"IF(+J8=\"\",Sit!$B$1,IF(TODAY()>=ghost!J8,+Sit!$B$2,IF(TODAY()>=ghost!J8-30,Sit!$B$3,Sit!$B$4)))","v":"sin fecha de caducidad"},{"$f":"IF(identificacion!$G$11=\"\",\"\",IF(identificacion!$G$11<15,+ghost!D8-ROUND(ghost!G8,0),IF(identificacion!$G$11>20,ghost!F8-ROUND(ghost!I8,0),ghost!E8-ROUND(ghost!H8,0))))","v":""},"No procede: falta nº de tripulantes",{"$f":"IF(identificacion!$G$11=\"\",\"\",IF(identificacion!$G$11<15,+ghost!D8,IF(identificacion!$G$11>20,ghost!F8,ghost!E8)))","v":""},"caja",{"$f":"IF(identificacion!$G$11=\"\",\"\",IF(identificacion!$G$11<15,ROUND(ghost!G8,0),IF(identificacion!$G$11>20,ROUND(ghost!I8,0),ROUND(ghost!H8,0))))","v":""},{"$f":"+'Consulta de caducidades'!G13","v":0},"","7","B05AA","GELATINA HEMOSTÁTICA ","10 esponjas 200x70x0,5 mm."]
[1,{"$f":"+'CAJON 1'!A16","v":"C07AB03"},{"$f":"CONCATENATE(+'CAJON 1'!B16,\" - \",+'CAJON 1'!C16)","v":"ATENOLOL - 50 mg. 30 comp."},{"$f":"+'CAJON 1'!D16","v":1},{"$f":"+'CAJON 1'!F16","v":2},{"$f":"+'CAJON 1'!H16","v":2},{"$f":"+'CAJON 1'!J16","v":0},{"$f":"+'CAJON 1'!K16","v":0},{"$f":"+'CAJON 1'!L16","v":0},{"$f":"IF('CAJON 1'!M16<>\"\",'CAJON 1'!M16,\"\")","v":""},{"$f":"IF(+J9=\"\",Sit!$B$1,IF(TODAY()>=ghost!J9,+Sit!$B$2,IF(TODAY()>=ghost!J9-30,Sit!$B$3,Sit!$B$4)))","v":"sin fecha de caducidad"},{"$f":"IF(identificacion!$G$11=\"\",\"\",IF(identificacion!$G$11<15,+ghost!D9-ROUND(ghost!G9,0),IF(identificacion!$G$11>20,ghost!F9-ROUND(ghost!I9,0),ghost!E9-ROUND(ghost!H9,0))))","v":""},"No procede: falta nº de tripulantes",{"$f":"IF(identificacion!$G$11=\"\",\"\",IF(identificacion!$G$11<15,+ghost!D9,IF(identificacion!$G$11>20,ghost!F9,ghost!E9)))","v":""},"caja",{"$f":"IF(identificacion!$G$11=\"\",\"\",IF(identificacion!$G$11<15,ROUND(ghost!G9,0),IF(identificacion!$G$11>20,ROUND(ghost!I9,0),ROUND(ghost!H9,0))))","v":""},{"$f":"+'Consulta de caducidades'!G14","v":0},"","8","C07AB03","ATENOLOL ","50 mg. 30 comp."]
[1,{"$f":"+'CAJON 1'!A17","v":"C09AA01"},{"$f":"CONCATENATE(+'CAJON 1'!B17,\" - \",+'CAJON 1'!C17)","v":"CAPTOPRIL - 25 mg.  60 comp."},{"$f":"+'CAJON 1'!D17","v":1},{"$f":"+'CAJON 1'!F17","v":1},{"$f":"+'CAJON 1'!H17","v":1},{"$f":"+'CAJON 1'!J17","v":0},{"$f":"+'CAJON 1'!K17","v":0},{"$f":"+'CAJON 1'!L17","v":0},{"$f":"IF('CAJON 1'!M17<>\"\",'CAJON 1'!M17,\"\")","v":""},{"$f":"IF(+J10=\"\",Sit!$B$1,IF(TODAY()>=ghost!J10,+Sit!$B$2,IF(TODAY()>=ghost!J10-30,Sit!$B$3,Sit!$B$4)))","v":"sin fecha de caducidad"},{"$f":"IF(identificacion!$G$11=\"\",\"\",IF(identificacion!$G$11<15,+ghost!D10-ROUND(ghost!G10,0),IF(identificacion!$G$11>20,ghost!F10-ROUND(ghost!I10,0),ghost!E10-ROUND(ghost!H10,0))))","v":""},"No procede: falta nº de tripulantes",{"$f":"IF(identificacion!$G$11=\"\",\"\",IF(identificacion!$G$11<15,+ghost!D10,IF(identificacion!$G$11>20,ghost!F10,ghost!E10)))","v":""},"caja",{"$f":"IF(identificacion!$G$11=\"\",\"\",IF(identificacion!$G$11<15,ROUND(ghost!G10,0),IF(identificacion!$G$11>20,ROUND(ghost!I10,0),ROUND(ghost!H10,0))))","v":""},{"$f":"+'Consulta de caducidades'!G15","v":0},"","9","C09AA01","CAPTOPRIL ","25 mg.  60 comp."]
[2,{"$f":"+'CAJON 2'!A9","v":"A02AD01"},{"$f":"CONCATENATE(+'CAJON 2'!B9,\" - \",+'CAJON 2'!C9)","v":"ALGELDRATO + \nHIDRÓXIDO DE MAGNESIO - 600/300 mg. 40 comp."},{"$f":"+'CAJON 2'!D9","v":3},{"$f":"+'CAJON 2'!F9","v":4},{"$f":"+'CAJON 2'!H9","v":4},{"$f":"+'CAJON 2'!J9","v":0},{"$f":"+'CAJON 2'!K9","v":0},{"$f":"+'CAJON 2'!L9","v":0},{"$f":"IF('CAJON 2'!M9<>\"\",'CAJON 2'!M9,\"\")","v":""},{"$f":"IF(+J11=\"\",Sit!$B$1,IF(TODAY()>=ghost!J11,+Sit!$B$2,IF(TODAY()>=ghost!J11-30,Sit!$B$3,Sit!$B$4)))","v":"sin fecha de caducidad"},{"$f":"IF(identificacion!$G$11=\"\",\"\",IF(identificacion!$G$11<15,+ghost!D11-ROUND(ghost!G11,0),IF(identificacion!$G$11>20,ghost!F11-ROUND(ghost!I11,0),ghost!E11-ROUND(ghost!H11,0))))","v":""},"No procede: falta nº de tripulantes",{"$f":"IF(identificacion!$G$11=\"\",\"\",IF(identificacion!$G$11<15,+ghost!D11,IF(identificacion!$G$11>20,ghost!F11,ghost!E11)))","v":""},"cajas",{"$f":"IF(identificacion!$G$11=\"\",\"\",IF(identificacion!$G$11<15,ROUND(ghost!G11,0),IF(identificacion!$G$11>20,ROUND(ghost!I11,0),ROUND(ghost!H11,0))))","v":""},{"$f":"+'Consulta de caducidades'!G16","v":0},"","10","A02AD01","ALGEDRATO+HIDRÓXIDO DE MAGNESIO ","600/300 mg. 40 compr."]
[2,{"$f":"+'CAJON 2'!A10","v":"A02BC01"},{"$f":"CONCATENATE(+'CAJON 2'!B10,\" - \",+'CAJON 2'!C10)","v":"OMEPRAZOL - 20 mg.  28 cápsulas"},{"$f":"+'CAJON 2'!D10","v":2},{"$f":"+'CAJON 2'!F10","v":3},{"$f":"+'CAJON 2'!H10","v":3},{"$f":"+'CAJON 2'!J10","v":0},{"$f":"+'CAJON 2'!K10","v":0},{"$f":"+'CAJON 2'!L10","v":0},{"$f":"IF('CAJON 2'!M10<>\"\",'CAJON 2'!M10,\"\")","v":""},{"$f":"IF(+J12=\"\",Sit!$B$1,IF(TODAY()>=ghost!J12,+Sit!$B$2,IF(TODAY()>=ghost!J12-30,Sit!$B$3,Sit!$B$4)))","v":"sin fecha de caducidad"},{"$f":"IF(identificacion!$G$11=\"\",\"\",IF(identificacion!$G$11<15,+ghost!D12-ROUND(ghost!G12,0),IF(identificacion!$G$11>20,ghost!F12-ROUND(ghost!I12,0),ghost!E12-ROUND(ghost!H12,0))))","v":""},"No procede: falta nº de tripulantes",{"$f":"IF(identificacion!$G$11=\"\",\"\",IF(identificacion!$G$11<15,+ghost!D12,IF(identificacion!$G$11>20,ghost!F12,ghost!E12)))","v":""},"cajas",{"$f":"IF(identificacion!$G$11=\"\",\"\",IF(identificacion!$G$11<15,ROUND(ghost!G12,0),IF(identificacion!$G$11>20,ROUND(ghost!I12,0),ROUND(ghost!H12,0))))","v":""},{"$f":"+'Consulta de caducidades'!G17","v":0},"","11","A02BC01","OMEPRAZOL ","20 mg.  28 cápsulas"]
[2,{"$f":"+'CAJON 2'!A11","v":"A02BA02"},{"$f":"CONCATENATE(+'CAJON 2'!B11,\" - \",+'CAJON 2'!C11)","v":"RANITIDINA - 50 mg.  5 ampollas de 5 ml."},{"$f":"+'CAJON 2'!D11","v":1},{"$f":"+'CAJON 2'!F11","v":1},{"$f":"+'CAJON 2'!H11","v":1},{"$f":"+'CAJON 2'!J11","v":0},{"$f":"+'CAJON 2'!K11","v":0},{"$f":"+'CAJON 2'!L11","v":0},{"$f":"IF('CAJON 2'!M11<>\"\",'CAJON 2'!M11,\"\")","v":""},{"$f":"IF(+J13=\"\",Sit!$B$1,IF(TODAY()>=ghost!J13,+Sit!$B$2,IF(TODAY()>=ghost!J13-30,Sit!$B$3,Sit!$B$4)))","v":"sin fecha de caducidad"},{"$f":"IF(identificacion!$G$11=\"\",\"\",IF(identificacion!$G$11<15,+ghost!D13-ROUND(ghost!G13,0),IF(identificacion!$G$11>20,ghost!F13-ROUND(ghost!I13,0),ghost!E13-ROUND(ghost!H13,0))))","v":""},"No procede: falta nº de tripulantes",{"$f":"IF(identificacion!$G$11=\"\",\"\",IF(identificacion!$G$11<15,+ghost!D13,IF(identificacion!$G$11>20,ghost!F13,ghost!E13)))","v":""},"caja",{"$f":"IF(identificacion!$G$11=\"\",\"\",IF(identificacion!$G$11<15,ROUND(ghost!G13,0),IF(identificacion!$G$11>20,ROUND(ghost!I13,0),ROUND(ghost!H13,0))))","v":""},{"$f":"+'Consulta de caducidades'!G18","v":0},"","12","A02BA02","RANITIDINA ","50 mg 5 ampollas de 5 ml."]
[2,{"$f":"+'CAJON 2'!A12","v":"A03FA01"},{"$f":"CONCATENATE(+'CAJON 2'!B12,\" - \",+'CAJON 2'!C12)","v":"METOCLOPRAMIDA - 10 mg.  30 comp. "},{"$f":"+'CAJON 2'!D12","v":1},{"$f":"+'CAJON 2'!F12","v":1},{"$f":"+'CAJON 2'!H12","v":2},{"$f":"+'CAJON 2'!J12","v":0},{"$f":"+'CAJON 2'!K12","v":0},{"$f":"+'CAJON 2'!L12","v":0},{"$f":"IF('CAJON 2'!M12<>\"\",'CAJON 2'!M12,\"\")","v":""},{"$f":"IF(+J14=\"\",Sit!$B$1,IF(TODAY()>=ghost!J14,+Sit!$B$2,IF(TODAY()>=ghost!J14-30,Sit!$B$3,Sit!$B$4)))","v":"sin fecha de caducidad"},{"$f":"IF(identificacion!$G$11=\"\",\"\",IF(identificacion!$G$11<15,+ghost!D14-ROUND(ghost!G14,0),IF(identificacion!$G$11>20,ghost!F14-ROUND(ghost!I14,0),ghost!E14-ROUND(ghost!H14,0))))","v":""},"No procede: falta nº de tripulantes",{"$f":"IF(identificacion!$G$11=\"\",\"\",IF(identificacion!$G$11<15,+ghost!D14,IF(identificacion!$G$11>20,ghost!F14,ghost!E14)))","v":""},"caja",{"$f":"IF(identificacion!$G$11=\"\",\"\",IF(identificacion!$G$11<15,ROUND(ghost!G14,0),IF(identificacion!$G$11>20,ROUND(ghost!I14,0),ROUND(ghost!H14,0))))","v":""},{"$f":"+'Consulta de caducidades'!G19","v":0},"","13","A03FA01","METOCLOPRAMIDA ","10 mg.  30 compr. "]
[2,{"$f":"+B14","v":"A03FA01"},{"$f":"CONCATENATE(+'CAJON 2'!B12,\" - \",+'CAJON 2'!C13)","v":"METOCLOPRAMIDA - 10 mg. 12 ampollas 2 ml."},{"$f":"+'CAJON 2'!D13","v":1},{"$f":"+'CAJON 2'!F13","v":1},{"$f":"+'CAJON 2'!H13","v":1},{"$f":"+'CAJON 2'!J13","v":0},{"$f":"+'CAJON 2'!K13","v":0},{"$f":"+'CAJON 2'!L13","v":0},{"$f":"IF('CAJON 2'!M13<>\"\",'CAJON 2'!M13,\"\")","v":""},{"$f":"IF(+J15=\"\",Sit!$B$1,IF(TODAY()>=ghost!J15,+Sit!$B$2,IF(TODAY()>=ghost!J15-30,Sit!$B$3,Sit!$B$4)))","v":"sin fecha de caducidad"},{"$f":"IF(identificacion!$G$11=\"\",\"\",IF(identificacion!$G$11<15,+ghost!D15-ROUND(ghost!G15,0),IF(identificacion!$G$11>20,ghost!F15-ROUND(ghost!I15,0),ghost!E15-ROUND(ghost!H15,0))))","v":""},"No procede: falta nº de tripulantes",{"$f":"IF(identificacion!$G$11=\"\",\"\",IF(identificacion!$G$11<15,+ghost!D15,IF(identificacion!$G$11>20,ghost!F15,ghost!E15)))","v":""},"caja",{"$f":"IF(identificacion!$G$11=\"\",\"\",IF(identificacion!$G$11<15,ROUND(ghost!G15,0),IF(identificacion!$G$11>20,ROUND(ghost!I15,0),ROUND(ghost!H15,0))))","v":""},{"$f":"+'Consulta de caducidades'!G20","v":0},"","14","A03FA01","METOCLOPRAMIDA ","10 mg 12 ampollas 2 ml."]
[2,{"$f":"+'CAJON 2'!A14","v":"A06AD11"},{"$f":"CONCATENATE(+'CAJON 2'!B14,\" - \",+'CAJON 2'!C14)","v":"LACTULOSA - 3,33 g. / 5ml soluc. 200 ml."},{"$f":"+'CAJON 2'!D14","v":1},{"$f":"+'CAJON 2'!F14","v":1},{"$f":"+'CAJON 2'!H14","v":2},{"$f":"+'CAJON 2'!J14","v":0},{"$f":"+'CAJON 2'!K14","v":0},{"$f":"+'CAJON 2'!L14","v":0},{"$f":"IF('CAJON 2'!M14<>\"\",'CAJON 2'!M14,\"\")","v":""},{"$f":"IF(+J16=\"\",Sit!$B$1,IF(TODAY()>=ghost!J16,+Sit!$B$2,IF(TODAY()>=ghost!J16-30,Sit!$B$3,Sit!$B$4)))","v":"sin fecha de caducidad"},{"$f":"IF(identificacion!$G$11=\"\",\"\",IF(identificacion!$G$11<15,+ghost!D16-ROUND(ghost!G16,0),IF(identificacion!$G$11>20,ghost!F16-ROUND(ghost!I16,0),ghost!E16-ROUND(ghost!H16,0))))","v":""},"No procede: falta nº de tripulantes",{"$f":"IF(identificacion!$G$11=\"\",\"\",IF(identificacion!$G$11<15,+ghost!D16,IF(identificacion!$G$11>20,ghost!F16,ghost!E16)))","v":""},"envase",{"$f":"IF(identificacion!$G$11=\"\",\"\",IF(identificacion!$G$11<15,ROUND(ghost!G16,0),IF(identificacion!$G$11>20,ROUND(ghost!I16,0),ROUND(ghost!H16,0))))","v":""},{"$f":"+'Consulta de caducidades'!G21","v":0},"","15","A06AD11","LACTULOSA ","3,33 g / 5ml soluc. 200 ml."]
[2,{"$f":"+'CAJON 2'!A15","v":"A06AG"},{"$f":"CONCATENATE(+'CAJON 2'!B15,\" - \",+'CAJON 2'!C15)","v":"LAURILSULFATO SÓDICO, ACETATO + SODIO, CITRATO, DIHIDRATO - 4 canuletas rectales 5 ml."},{"$f":"+'CAJON 2'!D15","v":1},{"$f":"+'CAJON 2'!F15","v":1},{"$f":"+'CAJON 2'!H15","v":2},{"$f":"+'CAJON 2'!J15","v":0},{"$f":"+'CAJON 2'!K15","v":0},{"$f":"+'CAJON 2'!L15","v":0},{"$f":"IF('CAJON 2'!M15<>\"\",'CAJON 2'!M15,\"\")","v":""},{"$f":"IF(+J17=\"\",Sit!$B$1,IF(TODAY()>=ghost!J17,+Sit!$B$2,IF(TODAY()>=ghost!J17-30,Sit!$B$3,Sit!$B$4)))","v":"sin fecha de caducidad"},{"$f":"IF(identificacion!$G$11=\"\",\"\",IF(identificacion!$G$11<15,+ghost!D17-ROUND(ghost!G17,0),IF(identificacion!$G$11>20,ghost!F17-ROUND(ghost!I17,0),ghost!E17-ROUND(ghost!H17,0))))","v":""},"No procede: falta nº de tripulantes",{"$f":"IF(identificacion!$G$11=\"\",\"\",IF(identificacion!$G$11<15,+ghost!D17,IF(identificacion!$G$11>20,ghost!F17,ghost!E17)))","v":""},"caja",{"$f":"IF(identificacion!$G$11=\"\",\"\",IF(identificacion!$G$11<15,ROUND(ghost!G17,0),IF(identificacion!$G$11>20,ROUND(ghost!I17,0),ROUND(ghost!H17,0))))","v":""},{"$f":"+'Consulta de caducidades'!G22","v":0},"","16","A06AG","LAURILSULFATO SÓDICO, ACETATO + SODIO, CITRATO, DIHIDRATO ","4 canuletas rectales 5 ml."]
[2,{"$f":"+'CAJON 2'!A16","v":"A07DA03"},{"$f":"CONCATENATE(+'CAJON 2'!B16,\" - \",+'CAJON 2'!C16)","v":"LOPERAMIDA - 2 mg. 20 cápsulas"},{"$f":"+'CAJON 2'!D16","v":1},{"$f":"+'CAJON 2'!F16","v":1},{"$f":"+'CAJON 2'!H16","v":2},{"$f":"+'CAJON 2'!J16","v":0},{"$f":"+'CAJON 2'!K16","v":0},{"$f":"+'CAJON 2'!L16","v":0},{"$f":"IF('CAJON 2'!M16<>\"\",'CAJON 2'!M16,\"\")","v":""},{"$f":"IF(+J18=\"\",Sit!$B$1,IF(TODAY()>=ghost!J18,+Sit!$B$2,IF(TODAY()>=ghost!J18-30,Sit!$B$3,Sit!$B$4)))","v":"sin fecha de caducidad"},{"$f":"IF(identificacion!$G$11=\"\",\"\",IF(identificacion!$G$11<15,+ghost!D18-ROUND(ghost!G18,0),IF(identificacion!$G$11>20,ghost!F18-ROUND(ghost!I18,0),ghost!E18-ROUND(ghost!H18,0))))","v":""},"No procede: falta nº de tripulantes",{"$f":"IF(identificacion!$G$11=\"\",\"\",IF(identificacion!$G$11<15,+ghost!D18,IF(identificacion!$G$11>20,ghost!F18,ghost!E18)))","v":""},"caja",{"$f":"IF(identificacion!$G$11=\"\",\"\",IF(identificacion!$G$11<15,ROUND(ghost!G18,0),IF(identificacion!$G$11>20,ROUND(ghost!I18,0),ROUND(ghost!H18,0))))","v":""},{"$f":"+'Consulta de caducidades'!G23","v":0},"","17","A07DA03","LOPERAMIDA ","2 mg. 20 cápsulas"]
[2,{"$f":"+'CAJON 2'!A17","v":"A03AX13"},{"$f":"CONCATENATE(+'CAJON 2'!B17,\" - \",+'CAJON 2'!C17)","v":"SIMETICONA - 120 mg.  40 comp. ó cápsulas"},{"$f":"+'CAJON 2'!D17","v":1},{"$f":"+'CAJON 2'!F17","v":1},{"$f":"+'CAJON 2'!H17","v":2},{"$f":"+'CAJON 2'!J17","v":0},{"$f":"+'CAJON 2'!K17","v":0},{"$f":"+'CAJON 2'!L17","v":0},{"$f":"IF('CAJON 2'!M17<>\"\",'CAJON 2'!M17,\"\")","v":""},{"$f":"IF(+J19=\"\",Sit!$B$1,IF(TODAY()>=ghost!J19,+Sit!$B$2,IF(TODAY()>=ghost!J19-30,Sit!$B$3,Sit!$B$4)))","v":"sin fecha de caducidad"},{"$f":"IF(identificacion!$G$11=\"\",\"\",IF(identificacion!$G$11<15,+ghost!D19-ROUND(ghost!G19,0),IF(identificacion!$G$11>20,ghost!F19-ROUND(ghost!I19,0),ghost!E19-ROUND(ghost!H19,0))))","v":""},"No procede: falta nº de tripulantes",{"$f":"IF(identificacion!$G$11=\"\",\"\",IF(identificacion!$G$11<15,+ghost!D19,IF(identificacion!$G$11>20,ghost!F19,ghost!E19)))","v":""},"caja",{"$f":"IF(identificacion!$G$11=\"\",\"\",IF(identificacion!$G$11<15,ROUND(ghost!G19,0),IF(identificacion!$G$11>20,ROUND(ghost!I19,0),ROUND(ghost!H19,0))))","v":""},{"$f":"+'Consulta de caducidades'!G24","v":0},"","18","A03AX13","SIMETICONA ","120 mg.  40 comp. ó cápsulas"]
[2,{"$f":"+'CAJON 2'!A18","v":"C05AX"},{"$f":"CONCATENATE(+'CAJON 2'!B18,\" - \",+'CAJON 2'!C18)","v":"RUSCOGENINA + TRIMEBUTINA - Pomada rectal 30 g."},{"$f":"+'CAJON 2'!D18","v":2},{"$f":"+'CAJON 2'!F18","v":2},{"$f":"+'CAJON 2'!H18","v":3},{"$f":"+'CAJON 2'!J18","v":0},{"$f":"+'CAJON 2'!K18","v":0},{"$f":"+'CAJON 2'!L18","v":0},{"$f":"IF('CAJON 2'!M18<>\"\",'CAJON 2'!M18,\"\")","v":""},{"$f":"IF(+J20=\"\",Sit!$B$1,IF(TODAY()>=ghost!J20,+Sit!$B$2,IF(TODAY()>=ghost!J20-30,Sit!$B$3,Sit!$B$4)))","v":"sin fecha de caducidad"},{"$f":"IF(identificacion!$G$11=\"\",\"\",IF(identificacion!$G$11<15,+ghost!D20-ROUND(ghost!G20,0),IF(identificacion!$G$11>20,ghost!F20-ROUND(ghost!I20,0),ghost!E20-ROUND(ghost!H20,0))))","v":""},"No procede: falta nº de tripulantes",{"$f":"IF(identificacion!$G$11=\"\",\"\",IF(identificacion!$G$11<15,+ghost!D20,IF(identificacion!$G$11>20,ghost!F20,ghost!E20)))","v":""},"tubos",{"$f":"IF(identificacion!$G$11=\"\",\"\",IF(identificacion!$G$11<15,ROUND(ghost!G20,0),IF(identificacion!$G$11>20,ROUND(ghost!I20,0),ROUND(ghost!H20,0))))","v":""},{"$f":"+'Consulta de caducidades'!G25","v":0},"","19","C05AX","RUSCOGENINA + TRIMEBUTINA ","Pomada rectal 30 g."]
[2,{"$f":"+'CAJON 2'!A19","v":"A07BA01"},{"$f":"CONCATENATE(+'CAJON 2'!B19,\" - \",+'CAJON 2'!C19)","v":"CARBON ACTIVADO - Granulado 25 g."},{"$f":"+'CAJON 2'!D19","v":3},{"$f":"+'CAJON 2'!F19","v":4},{"$f":"+'CAJON 2'!H19","v":5},{"$f":"+'CAJON 2'!J19","v":0},{"$f":"+'CAJON 2'!K19","v":0},{"$f":"+'CAJON 2'!L19","v":0},{"$f":"IF('CAJON 2'!M19<>\"\",'CAJON 2'!M19,\"\")","v":""},{"$f":"IF(+J21=\"\",Sit!$B$1,IF(TODAY()>=ghost!J21,+Sit!$B$2,IF(TODAY()>=ghost!J21-30,Sit!$B$3,Sit!$B$4)))","v":"sin fecha de caducidad"},{"$f":"IF(identificacion!$G$11=\"\",\"\",IF(identificacion!$G$11<15,+ghost!D21-ROUND(ghost!G21,0),IF(identificacion!$G$11>20,ghost!F21-ROUND(ghost!I21,0),ghost!E21-ROUND(ghost!H21,0))))","v":""},"No procede: falta nº de tripulantes",{"$f":"IF(identificacion!$G$11=\"\",\"\",IF(identificacion!$G$11<15,+ghost!D21,IF(identificacion!$G$11>20,ghost!F21,ghost!E21)))","v":""},"envases",{"$f":"IF(identificacion!$G$11=\"\",\"\",IF(identificacion!$G$11<15,ROUND(ghost!G21,0),IF(identificacion!$G$11>20,ROUND(ghost!I21,0),ROUND(ghost!H21,0))))","v":""},{"$f":"+'Consulta de caducidades'!G26","v":0},"","20","A07BA01","CARBON ACTIVADO ","Granulado 25 g."]
[3,{"$f":"+'CAJON 3'!A9","v":"N02BE01"},{"$f":"CONCATENATE(+'CAJON 3'!B9,\" - \",+'CAJON 3'!C9)","v":"PARACETAMOL - 1 g.  40 comp."},{"$f":"+'CAJON 3'!D9","v":2},{"$f":"+'CAJON 3'!F9","v":3},{"$f":"+'CAJON 3'!H9","v":3},{"$f":"+'CAJON 3'!J9","v":0},{"$f":"+'CAJON 3'!K9","v":0},{"$f":"+'CAJON 3'!L9","v":0},{"$f":"IF('CAJON 3'!M9<>\"\",'CAJON 3'!M9,\"\")","v":""},{"$f":"IF(+J22=\"\",Sit!$B$1,IF(TODAY()>=ghost!J22,+Sit!$B$2,IF(TODAY()>=ghost!J22-30,Sit!$B$3,Sit!$B$4)))","v":"sin fecha de caducidad"},{"$f":"IF(identificacion!$G$11=\"\",\"\",IF(identificacion!$G$11<15,+ghost!D22-ROUND(ghost!G22,0),IF(identificacion!$G$11>20,ghost!F22-ROUND(ghost!I22,0),ghost!E22-ROUND(ghost!H22,0))))","v":""},"No procede: falta nº de tripulantes",{"$f":"IF(identificacion!$G$11=\"\",\"\",IF(identificacion!$G$11<15,+ghost!D22,IF(identificacion!$G$11>20,ghost!F22,ghost!E22)))","v":""},"cajas",{"$f":"IF(identificacion!$G$11=\"\",\"\",IF(identificacion!$G$11<15,ROUND(ghost!G22,0),IF(identificacion!$G$11>20,ROUND(ghost!I22,0),ROUND(ghost!H22,0))))","v":""},{"$f":"+'Consulta de caducidades'!G27","v":0},"","21","N02BE01","PARACETAMOL ","1 g.  40 comp."]
[3,{"$f":"+'CAJON 3'!A10","v":"N02BA01"},{"$f":"CONCATENATE(+'CAJON 3'!B10,\" - \",+'CAJON 3'!C10)","v":"ÁCIDO ACETILSALICÍTICO - 100 mg.  30 comp."},{"$f":"+'CAJON 3'!D10","v":1},{"$f":"+'CAJON 3'!F10","v":1},{"$f":"+'CAJON 3'!H10","v":1},{"$f":"+'CAJON 3'!J10","v":0},{"$f":"+'CAJON 3'!K10","v":0},{"$f":"+'CAJON 3'!L10","v":0},{"$f":"IF('CAJON 3'!M10<>\"\",'CAJON 3'!M10,\"\")","v":""},{"$f":"IF(+J23=\"\",Sit!$B$1,IF(TODAY()>=ghost!J23,+Sit!$B$2,IF(TODAY()>=ghost!J23-30,Sit!$B$3,Sit!$B$4)))","v":"sin fecha de caducidad"},{"$f":"IF(identificacion!$G$11=\"\",\"\",IF(identificacion!$G$11<15,+ghost!D23-ROUND(ghost!G23,0),IF(identificacion!$G$11>20,ghost!F23-ROUND(ghost!I23,0),ghost!E23-ROUND(ghost!H23,0))))","v":""},"No procede: falta nº de tripulantes",{"$f":"IF(identificacion!$G$11=\"\",\"\",IF(identificacion!$G$11<15,+ghost!D23,IF(identificacion!$G$11>20,ghost!F23,ghost!E23)))","v":""},"caja",{"$f":"IF(identificacion!$G$11=\"\",\"\",IF(identificacion!$G$11<15,ROUND(ghost!G23,0),IF(identificacion!$G$11>20,ROUND(ghost!I23,0),ROUND(ghost!H23,0))))","v":""},{"$f":"+'Consulta de caducidades'!G28","v":0},"","22","N02BA01","ÁCIDO ACETILSALICÍTICO ","100 mg.  30 comp."]
[3,{"$f":"+'CAJON 3'!A11","v":"M01AE01"},{"$f":"CONCATENATE(+'CAJON 3'!B11,\" - \",+'CAJON 3'!C11)","v":"IBUPROFENO - 600 mg.  40 comp."},{"$f":"+'CAJON 3'!D11","v":2},{"$f":"+'CAJON 3'!F11","v":2},{"$f":"+'CAJON 3'!H11","v":3},{"$f":"+'CAJON 3'!J11","v":0},{"$f":"+'CAJON 3'!K11","v":0},{"$f":"+'CAJON 3'!L11","v":0},{"$f":"IF('CAJON 3'!M11<>\"\",'CAJON 3'!M11,\"\")","v":""},{"$f":"IF(+J24=\"\",Sit!$B$1,IF(TODAY()>=ghost!J24,+Sit!$B$2,IF(TODAY()>=ghost!J24-30,Sit!$B$3,Sit!$B$4)))","v":"sin fecha de caducidad"},{"$f":"IF(identificacion!$G$11=\"\",\"\",IF(identificacion!$G$11<15,+ghost!D24-ROUND(ghost!G24,0),IF(identificacion!$G$11>20,ghost!F24-ROUND(ghost!I24,0),ghost!E24-ROUND(ghost!H24,0))))","v":""},"No procede: falta nº de tripulantes",{"$f":"IF(identificacion!$G$11=\"\",\"\",IF(identificacion!$G$11<15,+ghost!D24,IF(identificacion!$G$11>20,ghost!F24,ghost!E24)))","v":""},"cajas",{"$f":"IF(identificacion!$G$11=\"\",\"\",IF(identificacion!$G$11<15,ROUND(ghost!G24,0),IF(identificacion!$G$11>20,ROUND(ghost!I24,0),ROUND(ghost!H24,0))))","v":""},{"$f":"+'Consulta de caducidades'!G29","v":0},"","23","M01AE01","IBUPROFENO ","600 mg.  40 comp."]
[3,{"$f":"+'CAJON 3'!A12","v":"M01AB05"},{"$f":"CONCATENATE(+'CAJON 3'!B12,\" - \",+'CAJON 3'!C12)","v":"DICLOFENACO SÓDICO - 50 mg. 40 comp."},{"$f":"+'CAJON 3'!D12","v":1},{"$f":"+'CAJON 3'!F12","v":1},{"$f":"+'CAJON 3'!H12","v":2},{"$f":"+'CAJON 3'!J12","v":0},{"$f":"+'CAJON 3'!K12","v":0},{"$f":"+'CAJON 3'!L12","v":0},{"$f":"IF('CAJON 3'!M12<>\"\",'CAJON 3'!M12,\"\")","v":""},{"$f":"IF(+J25=\"\",Sit!$B$1,IF(TODAY()>=ghost!J25,+Sit!$B$2,IF(TODAY()>=ghost!J25-30,Sit!$B$3,Sit!$B$4)))","v":"sin fecha de caducidad"},{"$f":"IF(identificacion!$G$11=\"\",\"\",IF(identificacion!$G$11<15,+ghost!D25-ROUND(ghost!G25,0),IF(identificacion!$G$11>20,ghost!F25-ROUND(ghost!I25,0),ghost!E25-ROUND(ghost!H25,0))))","v":""},"No procede: falta nº de tripulantes",{"$f":"IF(identificacion!$G$11=\"\",\"\",IF(identificacion!$G$11<15,+ghost!D25,IF(identificacion!$G$11>20,ghost!F25,ghost!E25)))","v":""},"caja",{"$f":"IF(identificacion!$G$11=\"\",\"\",IF(identificacion!$G$11<15,ROUND(ghost!G25,0),IF(identificacion!$G$11>20,ROUND(ghost!I25,0),ROUND(ghost!H25,0))))","v":""},{"$f":"+'Consulta de caducidades'!G30","v":0},"","24","M01AB05","DICLOFENACO SÓDICO ","50 mg. 40 comp."]
[3,{"$f":"+B25","v":"M01AB05"},{"$f":"CONCATENATE(+'CAJON 3'!B12,\" - \",+'CAJON 3'!C13)","v":"DICLOFENACO SÓDICO - 75 mg.  6 ampollas"},{"$f":"+'CAJON 3'!D13","v":2},{"$f":"+'CAJON 3'!F13","v":2},{"$f":"+'CAJON 3'!H13","v":2},{"$f":"+'CAJON 3'!J13","v":0},{"$f":"+'CAJON 3'!K13","v":0},{"$f":"+'CAJON 3'!L13","v":0},{"$f":"IF('CAJON 3'!M13<>\"\",'CAJON 3'!M13,\"\")","v":""},{"$f":"IF(+J26=\"\",Sit!$B$1,IF(TODAY()>=ghost!J26,+Sit!$B$2,IF(TODAY()>=ghost!J26-30,Sit!$B$3,Sit!$B$4)))","v":"sin fecha de caducidad"},{"$f":"IF(identificacion!$G$11=\"\",\"\",IF(identificacion!$G$11<15,+ghost!D26-ROUND(ghost!G26,0),IF(identificacion!$G$11>20,ghost!F26-ROUND(ghost!I26,0),ghost!E26-ROUND(ghost!H26,0))))","v":""},"No procede: falta nº de tripulantes",{"$f":"IF(identificacion!$G$11=\"\",\"\",IF(identificacion!$G$11<15,+ghost!D26,IF(identificacion!$G$11>20,ghost!F26,ghost!E26)))","v":""},"cajas",{"$f":"IF(identificacion!$G$11=\"\",\"\",IF(identificacion!$G$11<15,ROUND(ghost!G26,0),IF(identificacion!$G$11>20,ROUND(ghost!I26,0),ROUND(ghost!H26,0))))","v":""},{"$f":"+'Consulta de caducidades'!G31","v":0},"","25","M01AB05","DICLOFENACO SÓDICO ","75 mg.  6 ampollas"]
[3,{"$f":"+B26","v":"M01AB05"},{"$f":"CONCATENATE(+'CAJON 3'!B12,\" - \",+'CAJON 3'!C14)","v":"DICLOFENACO SÓDICO - 1% gel tópico  60 g."},{"$f":"+'CAJON 3'!D14","v":1},{"$f":"+'CAJON 3'!F14","v":2},{"$f":"+'CAJON 3'!H14","v":2},{"$f":"+'CAJON 3'!J14","v":0},{"$f":"+'CAJON 3'!K14","v":0},{"$f":"+'CAJON 3'!L14","v":0},{"$f":"IF('CAJON 3'!M14<>\"\",'CAJON 3'!M14,\"\")","v":""},{"$f":"IF(+J27=\"\",Sit!$B$1,IF(TODAY()>=ghost!J27,+Sit!$B$2,IF(TODAY()>=ghost!J27-30,Sit!$B$3,Sit!$B$4)))","v":"sin fecha de caducidad"},{"$f":"IF(identificacion!$G$11=\"\",\"\",IF(identificacion!$G$11<15,+ghost!D27-ROUND(ghost!G27,0),IF(identificacion!$G$11>20,ghost!F27-ROUND(ghost!I27,0),ghost!E27-ROUND(ghost!H27,0))))","v":""},{"$f":"IF(L27=\"\",\"No procede: falta nº de tripulantes\",IF(L27=0,\"cantidad exigida\",IF(L27=1,CONCATENATE(\"falta \"& +L27 & \" unidad\"),IF(L27>1,CONCATENATE(\"faltan \"&+L27& \" unidades\"),IF(L27<0,\"dotación con excedentes\",\"Comprobar introducción de datos\")))))","v":"No procede: falta nº de tripulantes"},{"$f":"IF(identificacion!$G$11=\"\",\"\",IF(identificacion!$G$11<15,+ghost!D27,IF(identificacion!$G$11>20,ghost!F27,ghost!E27)))","v":""},"envase",{"$f":"IF(identificacion!$G$11=\"\",\"\",IF(identificacion!$G$11<15,ROUND(ghost!G27,0),IF(identificacion!$G$11>20,ROUND(ghost!I27,0),ROUND(ghost!H27,0))))","v":""},{"$f":"+'Consulta de caducidades'!G32","v":0},"","26","M01AB05","DICLOFENACO SÓDICO ","1% gel tópico  60 g."]
[3,{"$f":"+'CAJON 3'!A15","v":"N02BB02"},{"$f":"CONCATENATE(+'CAJON 3'!B15,\" - \",+'CAJON 3'!C15)","v":"METAMIZOL - 575 mg.  20 cápsulas"},{"$f":"+'CAJON 3'!D15","v":1},{"$f":"+'CAJON 3'!F15","v":2},{"$f":"+'CAJON 3'!H15","v":2},{"$f":"+'CAJON 3'!J15","v":0},{"$f":"+'CAJON 3'!K15","v":0},{"$f":"+'CAJON 3'!L15","v":0},{"$f":"IF('CAJON 3'!M15<>\"\",'CAJON 3'!M15,\"\")","v":""},{"$f":"IF(+J28=\"\",Sit!$B$1,IF(TODAY()>=ghost!J28,+Sit!$B$2,IF(TODAY()>=ghost!J28-30,Sit!$B$3,Sit!$B$4)))","v":"sin fecha de caducidad"},{"$f":"IF(identificacion!$G$11=\"\",\"\",IF(identificacion!$G$11<15,+ghost!D28-ROUND(ghost!G28,0),IF(identificacion!$G$11>20,ghost!F28-ROUND(ghost!I28,0),ghost!E28-ROUND(ghost!H28,0))))","v":""},"No procede: falta nº de tripulantes",{"$f":"IF(identificacion!$G$11=\"\",\"\",IF(identificacion!$G$11<15,+ghost!D28,IF(identificacion!$G$11>20,ghost!F28,ghost!E28)))","v":""},"caja",{"$f":"IF(identificacion!$G$11=\"\",\"\",IF(identificacion!$G$11<15,ROUND(ghost!G28,0),IF(identificacion!$G$11>20,ROUND(ghost!I28,0),ROUND(ghost!H28,0))))","v":""},{"$f":"+'Consulta de caducidades'!G33","v":0},"","27","N02BB02","METAMIZOL ","575 mg.  20 cápsulas"]
[3,{"$f":"+B28","v":"N02BB02"},{"$f":"CONCATENATE(+'CAJON 3'!B15,\" - \",+'CAJON 3'!C16)","v":"METAMIZOL - 2 g.  5 ampollas "},{"$f":"+'CAJON 3'!D16","v":1},{"$f":"+'CAJON 3'!F16","v":1},{"$f":"+'CAJON 3'!H16","v":1},{"$f":"+'CAJON 3'!J16","v":0},{"$f":"+'CAJON 3'!K16","v":0},{"$f":"+'CAJON 3'!L16","v":0},{"$f":"IF('CAJON 3'!M16<>\"\",'CAJON 3'!M16,\"\")","v":""},{"$f":"IF(+J29=\"\",Sit!$B$1,IF(TODAY()>=ghost!J29,+Sit!$B$2,IF(TODAY()>=ghost!J29-30,Sit!$B$3,Sit!$B$4)))","v":"sin fecha de caducidad"},{"$f":"IF(identificacion!$G$11=\"\",\"\",IF(identificacion!$G$11<15,+ghost!D29-ROUND(ghost!G29,0),IF(identificacion!$G$11>20,ghost!F29-ROUND(ghost!I29,0),ghost!E29-ROUND(ghost!H29,0))))","v":""},"No procede: falta nº de tripulantes",{"$f":"IF(identificacion!$G$11=\"\",\"\",IF(identificacion!$G$11<15,+ghost!D29,IF(identificacion!$G$11>20,ghost!F29,ghost!E29)))","v":""},"caja",{"$f":"IF(identificacion!$G$11=\"\",\"\",IF(identificacion!$G$11<15,ROUND(ghost!G29,0),IF(identificacion!$G$11>20,ROUND(ghost!I29,0),ROUND(ghost!H29,0))))","v":""},{"$f":"+'Consulta de caducidades'!G34","v":0},"","28","N02BB02","METAMIZOL ","2 g.  5 ampollas "]
[3,{"$f":"+'CAJON 3'!A17","v":"N02AA01"},{"$f":"CONCATENATE(+'CAJON 3'!B17,\" - \",+'CAJON 3'!C17)","v":"CLORURO MÓRFICO (b) - 1% ampollas 10 mg"},{"$f":"+'CAJON 3'!D17","v":2},{"$f":"+'CAJON 3'!F17","v":3},{"$f":"+'CAJON 3'!H17","v":4},{"$f":"+'CAJON 3'!J17","v":0},{"$f":"+'CAJON 3'!K17","v":0},{"$f":"+'CAJON 3'!L17","v":0},{"$f":"IF('CAJON 3'!M17<>\"\",'CAJON 3'!M17,\"\")","v":""},{"$f":"IF(+J30=\"\",Sit!$B$1,IF(TODAY()>=ghost!J30,+Sit!$B$2,IF(TODAY()>=ghost!J30-30,Sit!$B$3,Sit!$B$4)))","v":"sin fecha de caducidad"},{"$f":"IF(identificacion!$G$11=\"\",\"\",IF(identificacion!$G$11<15,+ghost!D30-ROUND(ghost!G30,0),IF(identificacion!$G$11>20,ghost!F30-ROUND(ghost!I30,0),ghost!E30-ROUND(ghost!H30,0))))","v":""},"No procede: falta nº de tripulantes",{"$f":"IF(identificacion!$G$11=\"\",\"\",IF(identificacion!$G$11<15,+ghost!D30,IF(identificacion!$G$11>20,ghost!F30,ghost!E30)))","v":""},"ampollas",{"$f":"IF(identificacion!$G$11=\"\",\"\",IF(identificacion!$G$11<15,ROUND(ghost!G30,0),IF(identificacion!$G$11>20,ROUND(ghost!I30,0),ROUND(ghost!H30,0))))","v":""},{"$f":"+'Consulta de caducidades'!G35","v":0},"","29","N02AA01","CLORURO MÓRFICO (b) ","1% ampollas 10 mg","(b) Este medicamento debe conservarse bajo custodia del capitán o responsable de botiquín"]
[3,{"$f":"+'CAJON 3'!A18","v":"N02AX02"},{"$f":"CONCATENATE(+'CAJON 3'!B18,\" - \",+'CAJON 3'!C18)","v":"TRAMADOL CLORHIDRATO - 50 mg.  20 cápsulas "},{"$f":"+'CAJON 3'!D18","v":1},{"$f":"+'CAJON 3'!F18","v":2},{"$f":"+'CAJON 3'!H18","v":2},{"$f":"+'CAJON 3'!J18","v":0},{"$f":"+'CAJON 3'!K18","v":0},{"$f":"+'CAJON 3'!L18","v":0},{"$f":"IF('CAJON 3'!M18<>\"\",'CAJON 3'!M18,\"\")","v":""},{"$f":"IF(+J31=\"\",Sit!$B$1,IF(TODAY()>=ghost!J31,+Sit!$B$2,IF(TODAY()>=ghost!J31-30,Sit!$B$3,Sit!$B$4)))","v":"sin fecha de caducidad"},{"$f":"IF(identificacion!$G$11=\"\",\"\",IF(identificacion!$G$11<15,+ghost!D31-ROUND(ghost!G31,0),IF(identificacion!$G$11>20,ghost!F31-ROUND(ghost!I31,0),ghost!E31-ROUND(ghost!H31,0))))","v":""},"No procede: falta nº de tripulantes",{"$f":"IF(identificacion!$G$11=\"\",\"\",IF(identificacion!$G$11<15,+ghost!D31,IF(identificacion!$G$11>20,ghost!F31,ghost!E31)))","v":""},"envase",{"$f":"IF(identificacion!$G$11=\"\",\"\",IF(identificacion!$G$11<15,ROUND(ghost!G31,0),IF(identificacion!$G$11>20,ROUND(ghost!I31,0),ROUND(ghost!H31,0))))","v":""},{"$f":"+'Consulta de caducidades'!G36","v":0},"","30","N02AX02","TRAMADOL CLORHIDRATO ","50 mg.  20 cápsulas "]
[3,{"$f":"+B31","v":"N02AX02"},{"$f":"CONCATENATE(+'CAJON 3'!B18,\" - \",+'CAJON 3'!C19)","v":"TRAMADOL CLORHIDRATO - 100 mg.  5 ampollas"},{"$f":"+'CAJON 3'!D19","v":1},{"$f":"+'CAJON 3'!F19","v":2},{"$f":"+'CAJON 3'!H19","v":2},{"$f":"+'CAJON 3'!J19","v":0},{"$f":"+'CAJON 3'!K19","v":0},{"$f":"+'CAJON 3'!L19","v":0},{"$f":"IF('CAJON 3'!M19<>\"\",'CAJON 3'!M19,\"\")","v":""},{"$f":"IF(+J32=\"\",Sit!$B$1,IF(TODAY()>=ghost!J32,+Sit!$B$2,IF(TODAY()>=ghost!J32-30,Sit!$B$3,Sit!$B$4)))","v":"sin fecha de caducidad"},{"$f":"IF(identificacion!$G$11=\"\",\"\",IF(identificacion!$G$11<15,+ghost!D32-ROUND(ghost!G32,0),IF(identificacion!$G$11>20,ghost!F32-ROUND(ghost!I32,0),ghost!E32-ROUND(ghost!H32,0))))","v":""},"No procede: falta nº de tripulantes",{"$f":"IF(identificacion!$G$11=\"\",\"\",IF(identificacion!$G$11<15,+ghost!D32,IF(identificacion!$G$11>20,ghost!F32,ghost!E32)))","v":""},"caja",{"$f":"IF(identificacion!$G$11=\"\",\"\",IF(identificacion!$G$11<15,ROUND(ghost!G32,0),IF(identificacion!$G$11>20,ROUND(ghost!I32,0),ROUND(ghost!H32,0))))","v":""},{"$f":"+'Consulta de caducidades'!G37","v":0},"","31","N02AX02","TRAMADOL CLORHIDRATO ","100 mg.  5 ampollas"]
[3,{"$f":"+'CAJON 3'!A20","v":"A03BB"},{"$f":"CONCATENATE(+'CAJON 3'!B20,\" - \",+'CAJON 3'!C20)","v":"BUTILESCOPOLAMINA, BROMURO - 10 mg.  60 comp. "},{"$f":"+'CAJON 3'!D20","v":1},{"$f":"+'CAJON 3'!F20","v":2},{"$f":"+'CAJON 3'!H20","v":3},{"$f":"+'CAJON 3'!J20","v":0},{"$f":"+'CAJON 3'!K20","v":0},{"$f":"+'CAJON 3'!L20","v":0},{"$f":"IF('CAJON 3'!M20<>\"\",'CAJON 3'!M20,\"\")","v":""},{"$f":"IF(+J33=\"\",Sit!$B$1,IF(TODAY()>=ghost!J33,+Sit!$B$2,IF(TODAY()>=ghost!J33-30,Sit!$B$3,Sit!$B$4)))","v":"sin fecha de caducidad"},{"$f":"IF(identificacion!$G$11=\"\",\"\",IF(identificacion!$G$11<15,+ghost!D33-ROUND(ghost!G33,0),IF(identificacion!$G$11>20,ghost!F33-ROUND(ghost!I33,0),ghost!E33-ROUND(ghost!H33,0))))","v":""},"No procede: falta nº de tripulantes",{"$f":"IF(identificacion!$G$11=\"\",\"\",IF(identificacion!$G$11<15,+ghost!D33,IF(identificacion!$G$11>20,ghost!F33,ghost!E33)))","v":""},"caja",{"$f":"IF(identificacion!$G$11=\"\",\"\",IF(identificacion!$G$11<15,ROUND(ghost!G33,0),IF(identificacion!$G$11>20,ROUND(ghost!I33,0),ROUND(ghost!H33,0))))","v":""},{"$f":"+'Consulta de caducidades'!G38","v":0},"","32","A03BB","BUTILESCOPOLAMINA, BROMURO ","10 mg.  60 compr. "]
[3,{"$f":"+B33","v":"A03BB"},{"$f":"CONCATENATE(+'CAJON 3'!B20,\" - \",+'CAJON 3'!C21)","v":"BUTILESCOPOLAMINA, BROMURO - 20 mg.  6 ampollas  1 ml."},{"$f":"+'CAJON 3'!D21","v":1},{"$f":"+'CAJON 3'!F21","v":2},{"$f":"+'CAJON 3'!H21","v":3},{"$f":"+'CAJON 3'!J21","v":0},{"$f":"+'CAJON 3'!K21","v":0},{"$f":"+'CAJON 3'!L21","v":0},{"$f":"IF('CAJON 3'!M21<>\"\",'CAJON 3'!M21,\"\")","v":""},{"$f":"IF(+J34=\"\",Sit!$B$1,IF(TODAY()>=ghost!J34,+Sit!$B$2,IF(TODAY()>=ghost!J34-30,Sit!$B$3,Sit!$B$4)))","v":"sin fecha de caducidad"},{"$f":"IF(identificacion!$G$11=\"\",\"\",IF(identificacion!$G$11<15,+ghost!D34-ROUND(ghost!G34,0),IF(identificacion!$G$11>20,ghost!F34-ROUND(ghost!I34,0),ghost!E34-ROUND(ghost!H34,0))))","v":""},{"$f":"IF(L34=\"\",\"No procede: falta nº de tripulantes\",IF(L34=0,\"cantidad exigida\",IF(L34=1,CONCATENATE(\"falta \"& +L34 & \" unidad\"),IF(L34>1,CONCATENATE(\"faltan \"&+L34& \" unidades\"),IF(L34<0,\"dotación con excedentes\",\"Comprobar introducción de datos\")))))","v":"No procede: falta nº de tripulantes"},{"$f":"IF(identificacion!$G$11=\"\",\"\",IF(identificacion!$G$11<15,+ghost!D34,IF(identificacion!$G$11>20,ghost!F34,ghost!E34)))","v":""},"caja",{"$f":"IF(identificacion!$G$11=\"\",\"\",IF(identificacion!$G$11<15,ROUND(ghost!G34,0),IF(identificacion!$G$11>20,ROUND(ghost!I34,0),ROUND(ghost!H34,0))))","v":""},{"$f":"+'Consulta de caducidades'!G39","v":0},"","33","A03BB","BUTILESCOPOLAMINA, BROMURO ","20 mg.  6 ampollas  1 ml."]
[3,{"$f":"+'CAJON 3'!A22","v":"V03AB15"},{"$f":"CONCATENATE(+'CAJON 3'!B22,\" - \",+'CAJON 3'!C22)","v":"NALOXONA - 0,4 mg.  10 ampollas"},{"$f":"+'CAJON 3'!D22","v":1},{"$f":"+'CAJON 3'!F22","v":1},{"$f":"+'CAJON 3'!H22","v":1},{"$f":"+'CAJON 3'!J22","v":0},{"$f":"+'CAJON 3'!K22","v":0},{"$f":"+'CAJON 3'!L22","v":0},{"$f":"IF('CAJON 3'!M22<>\"\",'CAJON 3'!M22,\"\")","v":""},{"$f":"IF(+J35=\"\",Sit!$B$1,IF(TODAY()>=ghost!J35,+Sit!$B$2,IF(TODAY()>=ghost!J35-30,Sit!$B$3,Sit!$B$4)))","v":"sin fecha de caducidad"},{"$f":"IF(identificacion!$G$11=\"\",\"\",IF(identificacion!$G$11<15,+ghost!D35-ROUND(ghost!G35,0),IF(identificacion!$G$11>20,ghost!F35-ROUND(ghost!I35,0),ghost!E35-ROUND(ghost!H35,0))))","v":""},"No procede: falta nº de tripulantes",{"$f":"IF(identificacion!$G$11=\"\",\"\",IF(identificacion!$G$11<15,+ghost!D35,IF(identificacion!$G$11>20,ghost!F35,ghost!E35)))","v":""},"caja",{"$f":"IF(identificacion!$G$11=\"\",\"\",IF(identificacion!$G$11<15,ROUND(ghost!G35,0),IF(identificacion!$G$11>20,ROUND(ghost!I35,0),ROUND(ghost!H35,0))))","v":""},{"$f":"+'Consulta de caducidades'!G40","v":0},"","34","V03AB15","NALOXONA ","0,4 mg.  10 ampollas"]
[4,{"$f":"+'CAJON 4'!A9","v":"N05BA06"},{"$f":"CONCATENATE(+'CAJON 4'!B9,\" - \",+'CAJON 4'!C9)","v":"LORAZEPAM - 1 mg.  25 comp."},{"$f":"+'CAJON 4'!D9","v":1},{"$f":"+'CAJON 4'!F9","v":2},{"$f":"+'CAJON 4'!H9","v":2},{"$f":"+'CAJON 4'!J9","v":0},{"$f":"+'CAJON 4'!K9","v":0},{"$f":"+'CAJON 4'!L9","v":0},{"$f":"IF('CAJON 4'!M9<>\"\",'CAJON 4'!M9,\"\")","v":""},{"$f":"IF(+J36=\"\",Sit!$B$1,IF(TODAY()>=ghost!J36,+Sit!$B$2,IF(TODAY()>=ghost!J36-30,Sit!$B$3,Sit!$B$4)))","v":"sin fecha de caducidad"},{"$f":"IF(identificacion!$G$11=\"\",\"\",IF(identificacion!$G$11<15,+ghost!D36-ROUND(ghost!G36,0),IF(identificacion!$G$11>20,ghost!F36-ROUND(ghost!I36,0),ghost!E36-ROUND(ghost!H36,0))))","v":""},"No procede: falta nº de tripulantes",{"$f":"IF(identificacion!$G$11=\"\",\"\",IF(identificacion!$G$11<15,+ghost!D36,IF(identificacion!$G$11>20,ghost!F36,ghost!E36)))","v":""},"caja",{"$f":"IF(identificacion!$G$11=\"\",\"\",IF(identificacion!$G$11<15,ROUND(ghost!G36,0),IF(identificacion!$G$11>20,ROUND(ghost!I36,0),ROUND(ghost!H36,0))))","v":""},{"$f":"+'Consulta de caducidades'!G41","v":0},"","35","N05BA06","LORAZEPAM ","1 mg.  25 comp."]
[4,{"$f":"+'CAJON 4'!A10","v":"N05BA01"},{"$f":"CONCATENATE(+'CAJON 4'!B10,\" - \",+'CAJON 4'!C10)","v":"DIAZEPAM - 10 mg.  25 comp."},{"$f":"+'CAJON 4'!D10","v":1},{"$f":"+'CAJON 4'!F10","v":1},{"$f":"+'CAJON 4'!H10","v":2},{"$f":"+'CAJON 4'!J10","v":0},{"$f":"+'CAJON 4'!K10","v":0},{"$f":"+'CAJON 4'!L10","v":0},{"$f":"IF('CAJON 4'!M10<>\"\",'CAJON 4'!M10,\"\")","v":""},{"$f":"IF(+J37=\"\",Sit!$B$1,IF(TODAY()>=ghost!J37,+Sit!$B$2,IF(TODAY()>=ghost!J37-30,Sit!$B$3,Sit!$B$4)))","v":"sin fecha de caducidad"},{"$f":"IF(identificacion!$G$11=\"\",\"\",IF(identificacion!$G$11<15,+ghost!D37-ROUND(ghost!G37,0),IF(identificacion!$G$11>20,ghost!F37-ROUND(ghost!I37,0),ghost!E37-ROUND(ghost!H37,0))))","v":""},"No procede: falta nº de tripulantes",{"$f":"IF(identificacion!$G$11=\"\",\"\",IF(identificacion!$G$11<15,+ghost!D37,IF(identificacion!$G$11>20,ghost!F37,ghost!E37)))","v":""},"caja",{"$f":"IF(identificacion!$G$11=\"\",\"\",IF(identificacion!$G$11<15,ROUND(ghost!G37,0),IF(identificacion!$G$11>20,ROUND(ghost!I37,0),ROUND(ghost!H37,0))))","v":""},{"$f":"+'Consulta de caducidades'!G42","v":0},"","36","N05BA01","DIAZEPAM ","10 mg.  25 comp."]
[4,{"$f":"+B37","v":"N05BA01"},{"$f":"CONCATENATE(+'CAJON 4'!B10,\" - \",+'CAJON 4'!C11)","v":"DIAZEPAM - 10 mg.  6 ampollas"},{"$f":"+'CAJON 4'!D11","v":1},{"$f":"+'CAJON 4'!F11","v":1},{"$f":"+'CAJON 4'!H11","v":1},{"$f":"+'CAJON 4'!J11","v":0},{"$f":"+'CAJON 4'!K11","v":0},{"$f":"+'CAJON 4'!L11","v":0},{"$f":"IF('CAJON 4'!M11<>\"\",'CAJON 4'!M11,\"\")","v":""},{"$f":"IF(+J38=\"\",Sit!$B$1,IF(TODAY()>=ghost!J38,+Sit!$B$2,IF(TODAY()>=ghost!J38-30,Sit!$B$3,Sit!$B$4)))","v":"sin fecha de caducidad"},{"$f":"IF(identificacion!$G$11=\"\",\"\",IF(identificacion!$G$11<15,+ghost!D38-ROUND(ghost!G38,0),IF(identificacion!$G$11>20,ghost!F38-ROUND(ghost!I38,0),ghost!E38-ROUND(ghost!H38,0))))","v":""},"No procede: falta nº de tripulantes",{"$f":"IF(identificacion!$G$11=\"\",\"\",IF(identificacion!$G$11<15,+ghost!D38,IF(identificacion!$G$11>20,ghost!F38,ghost!E38)))","v":""},"caja",{"$f":"IF(identificacion!$G$11=\"\",\"\",IF(identificacion!$G$11<15,ROUND(ghost!G38,0),IF(identificacion!$G$11>20,ROUND(ghost!I38,0),ROUND(ghost!H38,0))))","v":""},{"$f":"+'Consulta de caducidades'!G43","v":0},"","37","N05BA01","DIAZEPAM ","10 mg.  6 ampollas"]
[4,{"$f":"+'CAJON 4'!A12","v":"N05AD01"},{"$f":"CONCATENATE(+'CAJON 4'!B12,\" - \",+'CAJON 4'!C12)","v":"HALOPERIDOL - 2 mg/ml gotas 30 ml"},{"$f":"+'CAJON 4'!D12","v":1},{"$f":"+'CAJON 4'!F12","v":1},{"$f":"+'CAJON 4'!H12","v":1},{"$f":"+'CAJON 4'!J12","v":0},{"$f":"+'CAJON 4'!K12","v":0},{"$f":"+'CAJON 4'!L12","v":0},{"$f":"IF('CAJON 4'!M12<>\"\",'CAJON 4'!M12,\"\")","v":""},{"$f":"IF(+J39=\"\",Sit!$B$1,IF(TODAY()>=ghost!J39,+Sit!$B$2,IF(TODAY()>=ghost!J39-30,Sit!$B$3,Sit!$B$4)))","v":"sin fecha de caducidad"},{"$f":"IF(identificacion!$G$11=\"\",\"\",IF(identificacion!$G$11<15,+ghost!D39-ROUND(ghost!G39,0),IF(identificacion!$G$11>20,ghost!F39-ROUND(ghost!I39,0),ghost!E39-ROUND(ghost!H39,0))))","v":""},"No procede: falta nº de tripulantes",{"$f":"IF(identificacion!$G$11=\"\",\"\",IF(identificacion!$G$11<15,+ghost!D39,IF(identificacion!$G$11>20,ghost!F39,ghost!E39)))","v":""},"caja",{"$f":"IF(identificacion!$G$11=\"\",\"\",IF(identificacion!$G$11<15,ROUND(ghost!G39,0),IF(identificacion!$G$11>20,ROUND(ghost!I39,0),ROUND(ghost!H39,0))))","v":""},{"$f":"+'Consulta de caducidades'!G44","v":0},"","38","N05AD01","HALOPERIDOL ","2 mg/ml gotas 30 ml"]
[4,{"$f":"+B39","v":"N05AD01"},{"$f":"CONCATENATE(+'CAJON 4'!B12,\" - \",+'CAJON 4'!C13)","v":"HALOPERIDOL - 5 mg.  5 ampollas"},{"$f":"+'CAJON 4'!D13","v":1},{"$f":"+'CAJON 4'!F13","v":1},{"$f":"+'CAJON 4'!H13","v":1},{"$f":"+'CAJON 4'!J13","v":0},{"$f":"+'CAJON 4'!K13","v":0},{"$f":"+'CAJON 4'!L13","v":0},{"$f":"IF('CAJON 4'!M13<>\"\",'CAJON 4'!M13,\"\")","v":""},{"$f":"IF(+J40=\"\",Sit!$B$1,IF(TODAY()>=ghost!J40,+Sit!$B$2,IF(TODAY()>=ghost!J40-30,Sit!$B$3,Sit!$B$4)))","v":"sin fecha de caducidad"},{"$f":"IF(identificacion!$G$11=\"\",\"\",IF(identificacion!$G$11<15,+ghost!D40-ROUND(ghost!G40,0),IF(identificacion!$G$11>20,ghost!F40-ROUND(ghost!I40,0),ghost!E40-ROUND(ghost!H40,0))))","v":""},"No procede: falta nº de tripulantes",{"$f":"IF(identificacion!$G$11=\"\",\"\",IF(identificacion!$G$11<15,+ghost!D40,IF(identificacion!$G$11>20,ghost!F40,ghost!E40)))","v":""},"caja",{"$f":"IF(identificacion!$G$11=\"\",\"\",IF(identificacion!$G$11<15,ROUND(ghost!G40,0),IF(identificacion!$G$11>20,ROUND(ghost!I40,0),ROUND(ghost!H40,0))))","v":""},{"$f":"+'Consulta de caducidades'!G45","v":0},"","39","N05AD01","HALOPERIDOL ","5 mg.  5 ampollas"]
[4,{"$f":"+'CAJON 4'!A14","v":"N05AL01"},{"$f":"CONCATENATE(+'CAJON 4'!B14,\" - \",+'CAJON 4'!C14)","v":"SULPIRIDA - 50 mg.  30 cápsulas"},{"$f":"+'CAJON 4'!D14","v":1},{"$f":"+'CAJON 4'!F14","v":1},{"$f":"+'CAJON 4'!H14","v":1},{"$f":"+'CAJON 4'!J14","v":0},{"$f":"+'CAJON 4'!K14","v":0},{"$f":"+'CAJON 4'!L14","v":0},{"$f":"IF('CAJON 4'!M14<>\"\",'CAJON 4'!M14,\"\")","v":""},{"$f":"IF(+J41=\"\",Sit!$B$1,IF(TODAY()>=ghost!J41,+Sit!$B$2,IF(TODAY()>=ghost!J41-30,Sit!$B$3,Sit!$B$4)))","v":"sin fecha de caducidad"},{"$f":"IF(identificacion!$G$11=\"\",\"\",IF(identificacion!$G$11<15,+ghost!D41-ROUND(ghost!G41,0),IF(identificacion!$G$11>20,ghost!F41-ROUND(ghost!I41,0),ghost!E41-ROUND(ghost!H41,0))))","v":""},{"$f":"IF(L41=\"\",\"No procede: falta nº de tripulantes\",IF(L41=0,\"cantidad exigida\",IF(L41=1,CONCATENATE(\"falta \"& +L41 & \" unidad\"),IF(L41>1,CONCATENATE(\"faltan \"&+L41& \" unidades\"),IF(L41<0,\"dotación con excedentes\",\"Comprobar introducción de datos\")))))","v":"No procede: falta nº de tripulantes"},{"$f":"IF(identificacion!$G$11=\"\",\"\",IF(identificacion!$G$11<15,+ghost!D41,IF(identificacion!$G$11>20,ghost!F41,ghost!E41)))","v":""},"caja",{"$f":"IF(identificacion!$G$11=\"\",\"\",IF(identificacion!$G$11<15,ROUND(ghost!G41,0),IF(identificacion!$G$11>20,ROUND(ghost!I41,0),ROUND(ghost!H41,0))))","v":""},{"$f":"+'Consulta de caducidades'!G46","v":0},"","40","N05AL01","SULPIRIDA ","50 mg.  30 cápsulas"]
[4,{"$f":"+B41","v":"N05AL01"},{"$f":"CONCATENATE(+'CAJON 4'!B14,\" - \",+'CAJON 4'!C15)","v":"SULPIRIDA - 100 mg.  12 ampollas de 2 ml."},{"$f":"+'CAJON 4'!D15","v":1},{"$f":"+'CAJON 4'!F15","v":1},{"$f":"+'CAJON 4'!H15","v":1},{"$f":"+'CAJON 4'!J15","v":0},{"$f":"+'CAJON 4'!K15","v":0},{"$f":"+'CAJON 4'!L15","v":0},{"$f":"IF('CAJON 4'!M15<>\"\",'CAJON 4'!M15,\"\")","v":""},{"$f":"IF(+J42=\"\",Sit!$B$1,IF(TODAY()>=ghost!J42,+Sit!$B$2,IF(TODAY()>=ghost!J42-30,Sit!$B$3,Sit!$B$4)))","v":"sin fecha de caducidad"},{"$f":"IF(identificacion!$G$11=\"\",\"\",IF(identificacion!$G$11<15,+ghost!D42-ROUND(ghost!G42,0),IF(identificacion!$G$11>20,ghost!F42-ROUND(ghost!I42,0),ghost!E42-ROUND(ghost!H42,0))))","v":""},"No procede: falta nº de tripulantes",{"$f":"IF(identificacion!$G$11=\"\",\"\",IF(identificacion!$G$11<15,+ghost!D42,IF(identificacion!$G$11>20,ghost!F42,ghost!E42)))","v":""},"caja",{"$f":"IF(identificacion!$G$11=\"\",\"\",IF(identificacion!$G$11<15,ROUND(ghost!G42,0),IF(identificacion!$G$11>20,ROUND(ghost!I42,0),ROUND(ghost!H42,0))))","v":""},{"$f":"+'Consulta de caducidades'!G47","v":0},"","41","N05AL01","SULPIRIDA ","100 mg.  12 ampollas de 2 ml."]
[4,{"$f":"+'CAJON 4'!A16","v":"R06AA"},{"$f":"CONCATENATE(+'CAJON 4'!B16,\" - \",+'CAJON 4'!C16)","v":"DIMENHIDRINATO - 50 mg. 12 comp."},{"$f":"+'CAJON 4'!D16","v":2},{"$f":"+'CAJON 4'!F16","v":2},{"$f":"+'CAJON 4'!H16","v":3},{"$f":"+'CAJON 4'!J16","v":0},{"$f":"+'CAJON 4'!K16","v":0},{"$f":"+'CAJON 4'!L16","v":0},{"$f":"IF('CAJON 4'!M16<>\"\",'CAJON 4'!M16,\"\")","v":""},{"$f":"IF(+J43=\"\",Sit!$B$1,IF(TODAY()>=ghost!J43,+Sit!$B$2,IF(TODAY()>=ghost!J43-30,Sit!$B$3,Sit!$B$4)))","v":"sin fecha de caducidad"},{"$f":"IF(identificacion!$G$11=\"\",\"\",IF(identificacion!$G$11<15,+ghost!D43-ROUND(ghost!G43,0),IF(identificacion!$G$11>20,ghost!F43-ROUND(ghost!I43,0),ghost!E43-ROUND(ghost!H43,0))))","v":""},"No procede: falta nº de tripulantes",{"$f":"IF(identificacion!$G$11=\"\",\"\",IF(identificacion!$G$11<15,+ghost!D43,IF(identificacion!$G$11>20,ghost!F43,ghost!E43)))","v":""},"cajas",{"$f":"IF(identificacion!$G$11=\"\",\"\",IF(identificacion!$G$11<15,ROUND(ghost!G43,0),IF(identificacion!$G$11>20,ROUND(ghost!I43,0),ROUND(ghost!H43,0))))","v":""},{"$f":"+'Consulta de caducidades'!G48","v":0},"","42","R06AA","DIMENHIDRINATO ","50 mg. 12 comp."]
[4,{"$f":"+'CAJON 4'!A17","v":"N04AA02"},{"$f":"CONCATENATE(+'CAJON 4'!B17,\" - \",+'CAJON 4'!C17)","v":"BIPERIDENO - 5 mg.  5 ampollas"},{"$f":"+'CAJON 4'!D17","v":1},{"$f":"+'CAJON 4'!F17","v":1},{"$f":"+'CAJON 4'!H17","v":1},{"$f":"+'CAJON 4'!J17","v":0},{"$f":"+'CAJON 4'!K17","v":0},{"$f":"+'CAJON 4'!L17","v":0},{"$f":"IF('CAJON 4'!M17<>\"\",'CAJON 4'!M17,\"\")","v":""},{"$f":"IF(+J44=\"\",Sit!$B$1,IF(TODAY()>=ghost!J44,+Sit!$B$2,IF(TODAY()>=ghost!J44-30,Sit!$B$3,Sit!$B$4)))","v":"sin fecha de caducidad"},{"$f":"IF(identificacion!$G$11=\"\",\"\",IF(identificacion!$G$11<15,+ghost!D44-ROUND(ghost!G44,0),IF(identificacion!$G$11>20,ghost!F44-ROUND(ghost!I44,0),ghost!E44-ROUND(ghost!H44,0))))","v":""},"No procede: falta nº de tripulantes",{"$f":"IF(identificacion!$G$11=\"\",\"\",IF(identificacion!$G$11<15,+ghost!D44,IF(identificacion!$G$11>20,ghost!F44,ghost!E44)))","v":""},"caja",{"$f":"IF(identificacion!$G$11=\"\",\"\",IF(identificacion!$G$11<15,ROUND(ghost!G44,0),IF(identificacion!$G$11>20,ROUND(ghost!I44,0),ROUND(ghost!H44,0))))","v":""},{"$f":"+'Consulta de caducidades'!G49","v":0},"","43","N04AA02","BIPERIDENO ","5 mg.  5 ampollas"]
[5,{"$f":"+'CAJON 5'!A9","v":"R06AE07"},{"$f":"CONCATENATE(+'CAJON 5'!B9,\" - \",+'CAJON 5'!C9)","v":"CETIRIZINA - 10 mg.  20 comp."},{"$f":"+'CAJON 5'!D9","v":1},{"$f":"+'CAJON 5'!F9","v":1},{"$f":"+'CAJON 5'!H9","v":2},{"$f":"+'CAJON 5'!J9","v":0},{"$f":"+'CAJON 5'!K9","v":0},{"$f":"+'CAJON 5'!L9","v":0},{"$f":"IF('CAJON 5'!M9<>\"\",'CAJON 5'!M9,\"\")","v":""},{"$f":"IF(+J45=\"\",Sit!$B$1,IF(TODAY()>=ghost!J45,+Sit!$B$2,IF(TODAY()>=ghost!J45-30,Sit!$B$3,Sit!$B$4)))","v":"sin fecha de caducidad"},{"$f":"IF(identificacion!$G$11=\"\",\"\",IF(identificacion!$G$11<15,+ghost!D45-ROUND(ghost!G45,0),IF(identificacion!$G$11>20,ghost!F45-ROUND(ghost!I45,0),ghost!E45-ROUND(ghost!H45,0))))","v":""},"No procede: falta nº de tripulantes",{"$f":"IF(identificacion!$G$11=\"\",\"\",IF(identificacion!$G$11<15,+ghost!D45,IF(identificacion!$G$11>20,ghost!F45,ghost!E45)))","v":""},"caja",{"$f":"IF(identificacion!$G$11=\"\",\"\",IF(identificacion!$G$11<15,ROUND(ghost!G45,0),IF(identificacion!$G$11>20,ROUND(ghost!I45,0),ROUND(ghost!H45,0))))","v":""},{"$f":"+'Consulta de caducidades'!G50","v":0},"","44","R06AE07","CETIRIZINA ","10 mg.  20 comp."]
[5,{"$f":"+'CAJON 5'!A10","v":"R06AB02"},{"$f":"CONCATENATE(+'CAJON 5'!B10,\" - \",+'CAJON 5'!C10)","v":"DEXCLORFENIRAMINA - 5 mg.  5 ampollas  1 ml."},{"$f":"+'CAJON 5'!D10","v":1},{"$f":"+'CAJON 5'!F10","v":1},{"$f":"+'CAJON 5'!H10","v":2},{"$f":"+'CAJON 5'!J10","v":0},{"$f":"+'CAJON 5'!K10","v":0},{"$f":"+'CAJON 5'!L10","v":0},{"$f":"IF('CAJON 5'!M10<>\"\",'CAJON 5'!M10,\"\")","v":""},{"$f":"IF(+J46=\"\",Sit!$B$1,IF(TODAY()>=ghost!J46,+Sit!$B$2,IF(TODAY()>=ghost!J46-30,Sit!$B$3,Sit!$B$4)))","v":"sin fecha de caducidad"},{"$f":"IF(identificacion!$G$11=\"\",\"\",IF(identificacion!$G$11<15,+ghost!D46-ROUND(ghost!G46,0),IF(identificacion!$G$11>20,ghost!F46-ROUND(ghost!I46,0),ghost!E46-ROUND(ghost!H46,0))))","v":""},{"$f":"IF(L46=\"\",\"No procede: falta nº de tripulantes\",IF(L46=0,\"cantidad exigida\",IF(L46=1,CONCATENATE(\"falta \"& +L46 & \" unidad\"),IF(L46>1,CONCATENATE(\"faltan \"&+L46& \" unidades\"),IF(L46<0,\"dotación con excedentes\",\"Comprobar introducción de datos\")))))","v":"No procede: falta nº de tripulantes"},{"$f":"IF(identificacion!$G$11=\"\",\"\",IF(identificacion!$G$11<15,+ghost!D46,IF(identificacion!$G$11>20,ghost!F46,ghost!E46)))","v":""},"envase",{"$f":"IF(identificacion!$G$11=\"\",\"\",IF(identificacion!$G$11<15,ROUND(ghost!G46,0),IF(identificacion!$G$11>20,ROUND(ghost!I46,0),ROUND(ghost!H46,0))))","v":""},{"$f":"+'Consulta de caducidades'!G51","v":0},"","45","R06AB02","DEXCLORFENIRAMINA ","5 mg.  5 ampollas  1 ml."]
[5,{"$f":"+'CAJON 5'!A11","v":"H02AB04"},{"$f":"CONCATENATE(+'CAJON 5'!B11,\" - \",+'CAJON 5'!C11)","v":"METILPREDNISOLONA - 16 mg.  30 comp."},{"$f":"+'CAJON 5'!D11","v":2},{"$f":"+'CAJON 5'!F11","v":2},{"$f":"+'CAJON 5'!H11","v":2},{"$f":"+'CAJON 5'!J11","v":0},{"$f":"+'CAJON 5'!K11","v":0},{"$f":"+'CAJON 5'!L11","v":0},{"$f":"IF('CAJON 5'!M11<>\"\",'CAJON 5'!M11,\"\")","v":""},{"$f":"IF(+J47=\"\",Sit!$B$1,IF(TODAY()>=ghost!J47,+Sit!$B$2,IF(TODAY()>=ghost!J47-30,Sit!$B$3,Sit!$B$4)))","v":"sin fecha de caducidad"},{"$f":"IF(identificacion!$G$11=\"\",\"\",IF(identificacion!$G$11<15,+ghost!D47-ROUND(ghost!G47,0),IF(identificacion!$G$11>20,ghost!F47-ROUND(ghost!I47,0),ghost!E47-ROUND(ghost!H47,0))))","v":""},"No procede: falta nº de tripulantes",{"$f":"IF(identificacion!$G$11=\"\",\"\",IF(identificacion!$G$11<15,+ghost!D47,IF(identificacion!$G$11>20,ghost!F47,ghost!E47)))","v":""},"cajas",{"$f":"IF(identificacion!$G$11=\"\",\"\",IF(identificacion!$G$11<15,ROUND(ghost!G47,0),IF(identificacion!$G$11>20,ROUND(ghost!I47,0),ROUND(ghost!H47,0))))","v":""},{"$f":"+'Consulta de caducidades'!G52","v":0},"","46","H02AB04","METILPREDNISOLONA ","16 mg.  30 comp."]
[5,{"$f":"+B47","v":"H02AB04"},{"$f":"CONCATENATE(+'CAJON 5'!B11,\" - \",+'CAJON 5'!C12)","v":"METILPREDNISOLONA - 40 mg.  3 ampollas"},{"$f":"+'CAJON 5'!D12","v":1},{"$f":"+'CAJON 5'!F12","v":1},{"$f":"+'CAJON 5'!H12","v":2},{"$f":"+'CAJON 5'!J12","v":0},{"$f":"+'CAJON 5'!K12","v":0},{"$f":"+'CAJON 5'!L12","v":0},{"$f":"IF('CAJON 5'!M12<>\"\",'CAJON 5'!M12,\"\")","v":""},{"$f":"IF(+J48=\"\",Sit!$B$1,IF(TODAY()>=ghost!J48,+Sit!$B$2,IF(TODAY()>=ghost!J48-30,Sit!$B$3,Sit!$B$4)))","v":"sin fecha de caducidad"},{"$f":"IF(identificacion!$G$11=\"\",\"\",IF(identificacion!$G$11<15,+ghost!D48-ROUND(ghost!G48,0),IF(identificacion!$G$11>20,ghost!F48-ROUND(ghost!I48,0),ghost!E48-ROUND(ghost!H48,0))))","v":""},"No procede: falta nº de tripulantes",{"$f":"IF(identificacion!$G$11=\"\",\"\",IF(identificacion!$G$11<15,+ghost!D48,IF(identificacion!$G$11>20,ghost!F48,ghost!E48)))","v":""},"caja",{"$f":"IF(identificacion!$G$11=\"\",\"\",IF(identificacion!$G$11<15,ROUND(ghost!G48,0),IF(identificacion!$G$11>20,ROUND(ghost!I48,0),ROUND(ghost!H48,0))))","v":""},{"$f":"+'Consulta de caducidades'!G53","v":0},"","47","H02AB04","METILPREDNISOLONA ","40 mg.  3 ampollas"]
[6,{"$f":"+'CAJON 6'!A9","v":"R03CC02"},{"$f":"CONCATENATE(+'CAJON 6'!B9,\" - \",+'CAJON 6'!C9)","v":"SALBUTAMOL - 100 MCG/ puls. 20 AERO 200"},{"$f":"+'CAJON 6'!D9","v":1},{"$f":"+'CAJON 6'!F9","v":1},{"$f":"+'CAJON 6'!H9","v":2},{"$f":"+'CAJON 6'!J9","v":0},{"$f":"+'CAJON 6'!K9","v":0},{"$f":"+'CAJON 6'!L9","v":0},{"$f":"IF('CAJON 6'!M9<>\"\",'CAJON 6'!M9,\"\")","v":""},{"$f":"IF(+J49=\"\",Sit!$B$1,IF(TODAY()>=ghost!J49,+Sit!$B$2,IF(TODAY()>=ghost!J49-30,Sit!$B$3,Sit!$B$4)))","v":"sin fecha de caducidad"},{"$f":"IF(identificacion!$G$11=\"\",\"\",IF(identificacion!$G$11<15,+ghost!D49-ROUND(ghost!G49,0),IF(identificacion!$G$11>20,ghost!F49-ROUND(ghost!I49,0),ghost!E49-ROUND(ghost!H49,0))))","v":""},"No procede: falta nº de tripulantes",{"$f":"IF(identificacion!$G$11=\"\",\"\",IF(identificacion!$G$11<15,+ghost!D49,IF(identificacion!$G$11>20,ghost!F49,ghost!E49)))","v":""},"envase",{"$f":"IF(identificacion!$G$11=\"\",\"\",IF(identificacion!$G$11<15,ROUND(ghost!G49,0),IF(identificacion!$G$11>20,ROUND(ghost!I49,0),ROUND(ghost!H49,0))))","v":""},{"$f":"+'Consulta de caducidades'!G54","v":0},"","48","R03CC02","SALBUTAMOL ","100 MCG/ puls. 20 AERO 200"]
[6,{"$f":"+'CAJON 6'!A10","v":"R05DA09"},{"$f":"CONCATENATE(+'CAJON 6'!B10,\" - \",+'CAJON 6'!C10)","v":"DEXTROMETORFANO BROMHIDRATO - 15 mg.  20 comp."},{"$f":"+'CAJON 6'!D10","v":1},{"$f":"+'CAJON 6'!F10","v":2},{"$f":"+'CAJON 6'!H10","v":2},{"$f":"+'CAJON 6'!J10","v":0},{"$f":"+'CAJON 6'!K10","v":0},{"$f":"+'CAJON 6'!L10","v":0},{"$f":"IF('CAJON 6'!M10<>\"\",'CAJON 6'!M10,\"\")","v":""},{"$f":"IF(+J50=\"\",Sit!$B$1,IF(TODAY()>=ghost!J50,+Sit!$B$2,IF(TODAY()>=ghost!J50-30,Sit!$B$3,Sit!$B$4)))","v":"sin fecha de caducidad"},{"$f":"IF(identificacion!$G$11=\"\",\"\",IF(identificacion!$G$11<15,+ghost!D50-ROUND(ghost!G50,0),IF(identificacion!$G$11>20,ghost!F50-ROUND(ghost!I50,0),ghost!E50-ROUND(ghost!H50,0))))","v":""},"No procede: falta nº de tripulantes",{"$f":"IF(identificacion!$G$11=\"\",\"\",IF(identificacion!$G$11<15,+ghost!D50,IF(identificacion!$G$11>20,ghost!F50,ghost!E50)))","v":""},"caja",{"$f":"IF(identificacion!$G$11=\"\",\"\",IF(identificacion!$G$11<15,ROUND(ghost!G50,0),IF(identificacion!$G$11>20,ROUND(ghost!I50,0),ROUND(ghost!H50,0))))","v":""},{"$f":"+'Consulta de caducidades'!G55","v":0},"","49","R05DA09","DEXTROMETORFANO BROMHIDRATO ","15 mg.  20 comp."]
[6,{"$f":"+'CAJON 6'!A11","v":"R05CB01"},{"$f":"CONCATENATE(+'CAJON 6'!B11,\" - \",+'CAJON 6'!C11)","v":"ACETILCISTEÍNA - 600 mg.  30 sobres"},{"$f":"+'CAJON 6'!D11","v":1},{"$f":"+'CAJON 6'!F11","v":1},{"$f":"+'CAJON 6'!H11","v":2},{"$f":"+'CAJON 6'!J11","v":0},{"$f":"+'CAJON 6'!K11","v":0},{"$f":"+'CAJON 6'!L11","v":0},{"$f":"IF('CAJON 6'!M11<>\"\",'CAJON 6'!M11,\"\")","v":""},{"$f":"IF(+J51=\"\",Sit!$B$1,IF(TODAY()>=ghost!J51,+Sit!$B$2,IF(TODAY()>=ghost!J51-30,Sit!$B$3,Sit!$B$4)))","v":"sin fecha de caducidad"},{"$f":"IF(identificacion!$G$11=\"\",\"\",IF(identificacion!$G$11<15,+ghost!D51-ROUND(ghost!G51,0),IF(identificacion!$G$11>20,ghost!F51-ROUND(ghost!I51,0),ghost!E51-ROUND(ghost!H51,0))))","v":""},"No procede: falta nº de tripulantes",{"$f":"IF(identificacion!$G$11=\"\",\"\",IF(identificacion!$G$11<15,+ghost!D51,IF(identificacion!$G$11>20,ghost!F51,ghost!E51)))","v":""},"caja",{"$f":"IF(identificacion!$G$11=\"\",\"\",IF(identificacion!$G$11<15,ROUND(ghost!G51,0),IF(identificacion!$G$11>20,ROUND(ghost!I51,0),ROUND(ghost!H51,0))))","v":""},{"$f":"+'Consulta de caducidades'!G56","v":0},"","50","R05CB01","ACETILCISTEÍNA ","600 mg.  30 sobres"]
[7,{"$f":"+'CAJON 7'!A9","v":"S01AA12"},{"$f":"CONCATENATE(+'CAJON 7'!B9,\" - \",+'CAJON 7'!C9)","v":"TOBRAMICINA - 0,3% colirio 5 ml."},{"$f":"+'CAJON 7'!D9","v":2},{"$f":"+'CAJON 7'!F9","v":2},{"$f":"+'CAJON 7'!H9","v":2},{"$f":"+'CAJON 7'!J9","v":0},{"$f":"+'CAJON 7'!K9","v":0},{"$f":"+'CAJON 7'!L9","v":0},{"$f":"IF('CAJON 7'!M9<>\"\",'CAJON 7'!M9,\"\")","v":""},{"$f":"IF(+J52=\"\",Sit!$B$1,IF(TODAY()>=ghost!J52,+Sit!$B$2,IF(TODAY()>=ghost!J52-30,Sit!$B$3,Sit!$B$4)))","v":"sin fecha de caducidad"},{"$f":"IF(identificacion!$G$11=\"\",\"\",IF(identificacion!$G$11<15,+ghost!D52-ROUND(ghost!G52,0),IF(identificacion!$G$11>20,ghost!F52-ROUND(ghost!I52,0),ghost!E52-ROUND(ghost!H52,0))))","v":""},"No procede: falta nº de tripulantes",{"$f":"IF(identificacion!$G$11=\"\",\"\",IF(identificacion!$G$11<15,+ghost!D52,IF(identificacion!$G$11>20,ghost!F52,ghost!E52)))","v":""},"envases",{"$f":"IF(identificacion!$G$11=\"\",\"\",IF(identificacion!$G$11<15,ROUND(ghost!G52,0),IF(identificacion!$G$11>20,ROUND(ghost!I52,0),ROUND(ghost!H52,0))))","v":""},{"$f":"+'Consulta de caducidades'!G57","v":0},"","51","S01AA12","TOBRAMICINA ","0,3% colirio 5 ml."]
[7,{"$f":"+B52","v":"S01AA12"},{"$f":"CONCATENATE(+'CAJON 7'!B9,\" - \",+'CAJON 7'!C10)","v":"TOBRAMICINA - 0,3% ungüento 3,5 g."},{"$f":"+'CAJON 7'!D10","v":2},{"$f":"+'CAJON 7'!F10","v":2},{"$f":"+'CAJON 7'!H10","v":2},{"$f":"+'CAJON 7'!J10","v":0},{"$f":"+'CAJON 7'!K10","v":0},{"$f":"+'CAJON 7'!L10","v":0},{"$f":"IF('CAJON 7'!M10<>\"\",'CAJON 7'!M10,\"\")","v":""},{"$f":"IF(+J53=\"\",Sit!$B$1,IF(TODAY()>=ghost!J53,+Sit!$B$2,IF(TODAY()>=ghost!J53-30,Sit!$B$3,Sit!$B$4)))","v":"sin fecha de caducidad"},{"$f":"IF(identificacion!$G$11=\"\",\"\",IF(identificacion!$G$11<15,+ghost!D53-ROUND(ghost!G53,0),IF(identificacion!$G$11>20,ghost!F53-ROUND(ghost!I53,0),ghost!E53-ROUND(ghost!H53,0))))","v":""},"No procede: falta nº de tripulantes",{"$f":"IF(identificacion!$G$11=\"\",\"\",IF(identificacion!$G$11<15,+ghost!D53,IF(identificacion!$G$11>20,ghost!F53,ghost!E53)))","v":""},"envases",{"$f":"IF(identificacion!$G$11=\"\",\"\",IF(identificacion!$G$11<15,ROUND(ghost!G53,0),IF(identificacion!$G$11>20,ROUND(ghost!I53,0),ROUND(ghost!H53,0))))","v":""},{"$f":"+'Consulta de caducidades'!G58","v":0},"","52","S01AA12","TOBRAMICINA ","0,3% ungüento 3,5 g."]
[7,{"$f":"+'CAJON 7'!A11","v":"S01BC03"},{"$f":"CONCATENATE(+'CAJON 7'!B11,\" - \",+'CAJON 7'!C11)","v":"DICLOFENACO SÓDICO - 0,1% colirio  30 monodosis, 0,3 ml."},{"$f":"+'CAJON 7'!D11","v":2},{"$f":"+'CAJON 7'!F11","v":2},{"$f":"+'CAJON 7'!H11","v":2},{"$f":"+'CAJON 7'!J11","v":0},{"$f":"+'CAJON 7'!K11","v":0},{"$f":"+'CAJON 7'!L11","v":0},{"$f":"IF('CAJON 7'!M11<>\"\",'CAJON 7'!M11,\"\")","v":""},{"$f":"IF(+J54=\"\",Sit!$B$1,IF(TODAY()>=ghost!J54,+Sit!$B$2,IF(TODAY()>=ghost!J54-30,Sit!$B$3,Sit!$B$4)))","v":"sin fecha de caducidad"},{"$f":"IF(identificacion!$G$11=\"\",\"\",IF(identificacion!$G$11<15,+ghost!D54-ROUND(ghost!G54,0),IF(identificacion!$G$11>20,ghost!F54-ROUND(ghost!I54,0),ghost!E54-ROUND(ghost!H54,0))))","v":""},"No procede: falta nº de tripulantes",{"$f":"IF(identificacion!$G$11=\"\",\"\",IF(identificacion!$G$11<15,+ghost!D54,IF(identificacion!$G$11>20,ghost!F54,ghost!E54)))","v":""},"envases",{"$f":"IF(identificacion!$G$11=\"\",\"\",IF(identificacion!$G$11<15,ROUND(ghost!G54,0),IF(identificacion!$G$11>20,ROUND(ghost!I54,0),ROUND(ghost!H54,0))))","v":""},{"$f":"+'Consulta de caducidades'!G59","v":0},"","53","S01BC03","DICLOFENACO SÓDICO ","0,1% colirio  30 monodosis, 0,3 ml."]
[7,{"$f":"+'CAJON 7'!A12","v":"S01JA"},{"$f":"CONCATENATE(+'CAJON 7'!B12,\" - \",+'CAJON 7'!C12)","v":"OXIBUPROCAÍNA - 0,2% colirio  10 ml."},{"$f":"+'CAJON 7'!D12","v":2},{"$f":"+'CAJON 7'!F12","v":2},{"$f":"+'CAJON 7'!H12","v":2},{"$f":"+'CAJON 7'!J12","v":0},{"$f":"+'CAJON 7'!K12","v":0},{"$f":"+'CAJON 7'!L12","v":0},{"$f":"IF('CAJON 7'!M12<>\"\",'CAJON 7'!M12,\"\")","v":""},{"$f":"IF(+J55=\"\",Sit!$B$1,IF(TODAY()>=ghost!J55,+Sit!$B$2,IF(TODAY()>=ghost!J55-30,Sit!$B$3,Sit!$B$4)))","v":"sin fecha de caducidad"},{"$f":"IF(identificacion!$G$11=\"\",\"\",IF(identificacion!$G$11<15,+ghost!D55-ROUND(ghost!G55,0),IF(identificacion!$G$11>20,ghost!F55-ROUND(ghost!I55,0),ghost!E55-ROUND(ghost!H55,0))))","v":""},"No procede: falta nº de tripulantes",{"$f":"IF(identificacion!$G$11=\"\",\"\",IF(identificacion!$G$11<15,+ghost!D55,IF(identificacion!$G$11>20,ghost!F55,ghost!E55)))","v":""},"envases",{"$f":"IF(identificacion!$G$11=\"\",\"\",IF(identificacion!$G$11<15,ROUND(ghost!G55,0),IF(identificacion!$G$11>20,ROUND(ghost!I55,0),ROUND(ghost!H55,0))))","v":""},{"$f":"+'Consulta de caducidades'!G60","v":0},"","54","S01JA","OXIBUPROCAÍNA ","0,2% colirio  10 ml."]
[7,{"$f":"+'CAJON 7'!A13","v":"S01JA01"},{"$f":"CONCATENATE(+'CAJON 7'!B13,\" - \",+'CAJON 7'!C13)","v":"FLUORESCEÍNA 2% - 2% colirio  1 frasco  10 ml."},{"$f":"+'CAJON 7'!D13","v":2},{"$f":"+'CAJON 7'!F13","v":2},{"$f":"+'CAJON 7'!H13","v":2},{"$f":"+'CAJON 7'!J13","v":0},{"$f":"+'CAJON 7'!K13","v":0},{"$f":"+'CAJON 7'!L13","v":0},{"$f":"IF('CAJON 7'!M13<>\"\",'CAJON 7'!M13,\"\")","v":""},{"$f":"IF(+J56=\"\",Sit!$B$1,IF(TODAY()>=ghost!J56,+Sit!$B$2,IF(TODAY()>=ghost!J56-30,Sit!$B$3,Sit!$B$4)))","v":"sin fecha de caducidad"},{"$f":"IF(identificacion!$G$11=\"\",\"\",IF(identificacion!$G$11<15,+ghost!D56-ROUND(ghost!G56,0),IF(identificacion!$G$11>20,ghost!F56-ROUND(ghost!I56,0),ghost!E56-ROUND(ghost!H56,0))))","v":""},"No procede: falta nº de tripulantes",{"$f":"IF(identificacion!$G$11=\"\",\"\",IF(identificacion!$G$11<15,+ghost!D56,IF(identificacion!$G$11>20,ghost!F56,ghost!E56)))","v":""},"envases",{"$f":"IF(identificacion!$G$11=\"\",\"\",IF(identificacion!$G$11<15,ROUND(ghost!G56,0),IF(identificacion!$G$11>20,ROUND(ghost!I56,0),ROUND(ghost!H56,0))))","v":""},{"$f":"+'Consulta de caducidades'!G61","v":0},"","55","S01JA01","FLUORESCEÍNA 2% ","2% colirio  1 frasco  10 ml."]
[7,{"$f":"+'CAJON 7'!A14","v":"S01ED01"},{"$f":"CONCATENATE(+'CAJON 7'!B14,\" - \",+'CAJON 7'!C14)","v":"TIMOLOL - 0,25% colirio 3 ml."},{"$f":"+'CAJON 7'!D14","v":1},{"$f":"+'CAJON 7'!F14","v":1},{"$f":"+'CAJON 7'!H14","v":1},{"$f":"+'CAJON 7'!J14","v":0},{"$f":"+'CAJON 7'!K14","v":0},{"$f":"+'CAJON 7'!L14","v":0},{"$f":"IF('CAJON 7'!M14<>\"\",'CAJON 7'!M14,\"\")","v":""},{"$f":"IF(+J57=\"\",Sit!$B$1,IF(TODAY()>=ghost!J57,+Sit!$B$2,IF(TODAY()>=ghost!J57-30,Sit!$B$3,Sit!$B$4)))","v":"sin fecha de caducidad"},{"$f":"IF(identificacion!$G$11=\"\",\"\",IF(identificacion!$G$11<15,+ghost!D57-ROUND(ghost!G57,0),IF(identificacion!$G$11>20,ghost!F57-ROUND(ghost!I57,0),ghost!E57-ROUND(ghost!H57,0))))","v":""},"No procede: falta nº de tripulantes",{"$f":"IF(identificacion!$G$11=\"\",\"\",IF(identificacion!$G$11<15,+ghost!D57,IF(identificacion!$G$11>20,ghost!F57,ghost!E57)))","v":""},"envase",{"$f":"IF(identificacion!$G$11=\"\",\"\",IF(identificacion!$G$11<15,ROUND(ghost!G57,0),IF(identificacion!$G$11>20,ROUND(ghost!I57,0),ROUND(ghost!H57,0))))","v":""},{"$f":"+'Consulta de caducidades'!G62","v":0},"","56","S01ED01","TIMOLOL ","0,25% colirio 3 ml."]
[7,{"$f":"+'CAJON 7'!A15","v":"S01FA"},{"$f":"CONCATENATE(+'CAJON 7'!B15,\" - \",+'CAJON 7'!C15)","v":"CICLOPENTOLATO - 1% colirio 5 ml."},{"$f":"+'CAJON 7'!D15","v":1},{"$f":"+'CAJON 7'!F15","v":1},{"$f":"+'CAJON 7'!H15","v":1},{"$f":"+'CAJON 7'!J15","v":0},{"$f":"+'CAJON 7'!K15","v":0},{"$f":"+'CAJON 7'!L15","v":0},{"$f":"IF('CAJON 7'!M15<>\"\",'CAJON 7'!M15,\"\")","v":""},{"$f":"IF(+J58=\"\",Sit!$B$1,IF(TODAY()>=ghost!J58,+Sit!$B$2,IF(TODAY()>=ghost!J58-30,Sit!$B$3,Sit!$B$4)))","v":"sin fecha de caducidad"},{"$f":"IF(identificacion!$G$11=\"\",\"\",IF(identificacion!$G$11<15,+ghost!D58-ROUND(ghost!G58,0),IF(identificacion!$G$11>20,ghost!F58-ROUND(ghost!I58,0),ghost!E58-ROUND(ghost!H58,0))))","v":""},"No procede: falta nº de tripulantes",{"$f":"IF(identificacion!$G$11=\"\",\"\",IF(identificacion!$G$11<15,+ghost!D58,IF(identificacion!$G$11>20,ghost!F58,ghost!E58)))","v":""},"envase",{"$f":"IF(identificacion!$G$11=\"\",\"\",IF(identificacion!$G$11<15,ROUND(ghost!G58,0),IF(identificacion!$G$11>20,ROUND(ghost!I58,0),ROUND(ghost!H58,0))))","v":""},{"$f":"+'Consulta de caducidades'!G63","v":0},"","57","S01FA","CICLOPENTOLATO ","1% colirio 5 ml."]
[7,{"$f":"+'CAJON 7'!A16","v":"S01GA"},{"$f":"CONCATENATE(+'CAJON 7'!B16,\" - \",+'CAJON 7'!C16)","v":"HIDROCLORURO FENILEFRINA - Colirio 1,25 mg.  10 ml."},{"$f":"+'CAJON 7'!D16","v":1},{"$f":"+'CAJON 7'!F16","v":1},{"$f":"+'CAJON 7'!H16","v":1},{"$f":"+'CAJON 7'!J16","v":0},{"$f":"+'CAJON 7'!K16","v":0},{"$f":"+'CAJON 7'!L16","v":0},{"$f":"IF('CAJON 7'!M16<>\"\",'CAJON 7'!M16,\"\")","v":""},{"$f":"IF(+J59=\"\",Sit!$B$1,IF(TODAY()>=ghost!J59,+Sit!$B$2,IF(TODAY()>=ghost!J59-30,Sit!$B$3,Sit!$B$4)))","v":"sin fecha de caducidad"},{"$f":"IF(identificacion!$G$11=\"\",\"\",IF(identificacion!$G$11<15,+ghost!D59-ROUND(ghost!G59,0),IF(identificacion!$G$11>20,ghost!F59-ROUND(ghost!I59,0),ghost!E59-ROUND(ghost!H59,0))))","v":""},"No procede: falta nº de tripulantes",{"$f":"IF(identificacion!$G$11=\"\",\"\",IF(identificacion!$G$11<15,+ghost!D59,IF(identificacion!$G$11>20,ghost!F59,ghost!E59)))","v":""},"envase",{"$f":"IF(identificacion!$G$11=\"\",\"\",IF(identificacion!$G$11<15,ROUND(ghost!G59,0),IF(identificacion!$G$11>20,ROUND(ghost!I59,0),ROUND(ghost!H59,0))))","v":""},{"$f":"+'Consulta de caducidades'!G64","v":0},"","58","S01GA","HIDROCLORURO FENILEFRINA ","Colirio 1,25 mg.  10 ml."]
[7,{"$f":"+'CAJON 7'!A17","v":"S02CA"},{"$f":"CONCATENATE(+'CAJON 7'!B17,\" - \",+'CAJON 7'!C17)","v":"NEOMICINA      +\nPOLIMIXINA B   +\nFLUOCINOLONA - Gotas oído 10 ml. Por 1 ml.: Neomicina Sulfato 3,5 mg. Polimixina B Sulfato 10.000 UI y Fluocinolona. Acetónido 0,25 mg."},{"$f":"+'CAJON 7'!D17","v":1},{"$f":"+'CAJON 7'!F17","v":1},{"$f":"+'CAJON 7'!H17","v":2},{"$f":"+'CAJON 7'!J17","v":0},{"$f":"+'CAJON 7'!K17","v":0},{"$f":"+'CAJON 7'!L17","v":0},{"$f":"IF('CAJON 7'!M17<>\"\",'CAJON 7'!M17,\"\")","v":""},{"$f":"IF(+J60=\"\",Sit!$B$1,IF(TODAY()>=ghost!J60,+Sit!$B$2,IF(TODAY()>=ghost!J60-30,Sit!$B$3,Sit!$B$4)))","v":"sin fecha de caducidad"},{"$f":"IF(identificacion!$G$11=\"\",\"\",IF(identificacion!$G$11<15,+ghost!D60-ROUND(ghost!G60,0),IF(identificacion!$G$11>20,ghost!F60-ROUND(ghost!I60,0),ghost!E60-ROUND(ghost!H60,0))))","v":""},"No procede: falta nº de tripulantes",{"$f":"IF(identificacion!$G$11=\"\",\"\",IF(identificacion!$G$11<15,+ghost!D60,IF(identificacion!$G$11>20,ghost!F60,ghost!E60)))","v":""},"envase",{"$f":"IF(identificacion!$G$11=\"\",\"\",IF(identificacion!$G$11<15,ROUND(ghost!G60,0),IF(identificacion!$G$11>20,ROUND(ghost!I60,0),ROUND(ghost!H60,0))))","v":""},{"$f":"+'Consulta de caducidades'!G65","v":0},"","59","S02CA","NEOMICINA + POLIMIXINA B + FLUOCINOLONA ","Gotas oído 10 ml. Por 1 ml.: Neomicina Sulfato 3,5 mg. Polimixina B Sulfato 10.000 UI y Fluocinolona. Acetónido 0,25 mg."]
[7,{"$f":"+'CAJON 7'!A18","v":"A01AB"},{"$f":"CONCATENATE(+'CAJON 7'!B18,\" - \",+'CAJON 7'!C18)","v":"HEXETIDINA - 0,1% solución 200 ml."},{"$f":"+'CAJON 7'!D18","v":2},{"$f":"+'CAJON 7'!F18","v":3},{"$f":"+'CAJON 7'!H18","v":4},{"$f":"+'CAJON 7'!J18","v":0},{"$f":"+'CAJON 7'!K18","v":0},{"$f":"+'CAJON 7'!L18","v":0},{"$f":"IF('CAJON 7'!M18<>\"\",'CAJON 7'!M18,\"\")","v":""},{"$f":"IF(+J61=\"\",Sit!$B$1,IF(TODAY()>=ghost!J61,+Sit!$B$2,IF(TODAY()>=ghost!J61-30,Sit!$B$3,Sit!$B$4)))","v":"sin fecha de caducidad"},{"$f":"IF(identificacion!$G$11=\"\",\"\",IF(identificacion!$G$11<15,+ghost!D61-ROUND(ghost!G61,0),IF(identificacion!$G$11>20,ghost!F61-ROUND(ghost!I61,0),ghost!E61-ROUND(ghost!H61,0))))","v":""},"No procede: falta nº de tripulantes",{"$f":"IF(identificacion!$G$11=\"\",\"\",IF(identificacion!$G$11<15,+ghost!D61,IF(identificacion!$G$11>20,ghost!F61,ghost!E61)))","v":""},"envases",{"$f":"IF(identificacion!$G$11=\"\",\"\",IF(identificacion!$G$11<15,ROUND(ghost!G61,0),IF(identificacion!$G$11>20,ROUND(ghost!I61,0),ROUND(ghost!H61,0))))","v":""},{"$f":"+'Consulta de caducidades'!G66","v":0},"","60","A01AB","HEXETIDINA ","0,1% solución 200 ml."]
[8,{"$f":"+'CAJON 8'!A9","v":"J01CA04"},{"$f":"CONCATENATE(+'CAJON 8'!B9,\" - \",+'CAJON 8'!C9)","v":"AMOXICILINA - 1 g. 30 comp. ranurados"},{"$f":"+'CAJON 8'!D9","v":3},{"$f":"+'CAJON 8'!F9","v":4},{"$f":"+'CAJON 8'!H9","v":5},{"$f":"+'CAJON 8'!J9","v":0},{"$f":"+'CAJON 8'!K9","v":0},{"$f":"+'CAJON 8'!L9","v":0},{"$f":"IF('CAJON 8'!M9<>\"\",'CAJON 8'!M9,\"\")","v":""},{"$f":"IF(+J62=\"\",Sit!$B$1,IF(TODAY()>=ghost!J62,+Sit!$B$2,IF(TODAY()>=ghost!J62-30,Sit!$B$3,Sit!$B$4)))","v":"sin fecha de caducidad"},{"$f":"IF(identificacion!$G$11=\"\",\"\",IF(identificacion!$G$11<15,+ghost!D62-ROUND(ghost!G62,0),IF(identificacion!$G$11>20,ghost!F62-ROUND(ghost!I62,0),ghost!E62-ROUND(ghost!H62,0))))","v":""},"No procede: falta nº de tripulantes",{"$f":"IF(identificacion!$G$11=\"\",\"\",IF(identificacion!$G$11<15,+ghost!D62,IF(identificacion!$G$11>20,ghost!F62,ghost!E62)))","v":""},"cajas",{"$f":"IF(identificacion!$G$11=\"\",\"\",IF(identificacion!$G$11<15,ROUND(ghost!G62,0),IF(identificacion!$G$11>20,ROUND(ghost!I62,0),ROUND(ghost!H62,0))))","v":""},{"$f":"+'Consulta de caducidades'!G67","v":0},"","61","J01CA04","AMOXICILINA ","1 g. 30 comp. ranurados"]
[8,{"$f":"+'CAJON 8'!A10","v":"J01CR"},{"$f":"CONCATENATE(+'CAJON 8'!B10,\" - \",+'CAJON 8'!C10)","v":"AMOXICILINA + CLAVULÁNICO - 875/125 mg.  30 sobres ó comp."},{"$f":"+'CAJON 8'!D10","v":3},{"$f":"+'CAJON 8'!F10","v":3},{"$f":"+'CAJON 8'!H10","v":4},{"$f":"+'CAJON 8'!J10","v":0},{"$f":"+'CAJON 8'!K10","v":0},{"$f":"+'CAJON 8'!L10","v":0},{"$f":"IF('CAJON 8'!M10<>\"\",'CAJON 8'!M10,\"\")","v":""},{"$f":"IF(+J63=\"\",Sit!$B$1,IF(TODAY()>=ghost!J63,+Sit!$B$2,IF(TODAY()>=ghost!J63-30,Sit!$B$3,Sit!$B$4)))","v":"sin fecha de caducidad"},{"$f":"IF(identificacion!$G$11=\"\",\"\",IF(identificacion!$G$11<15,+ghost!D63-ROUND(ghost!G63,0),IF(identificacion!$G$11>20,ghost!F63-ROUND(ghost!I63,0),ghost!E63-ROUND(ghost!H63,0))))","v":""},"No procede: falta nº de tripulantes",{"$f":"IF(identificacion!$G$11=\"\",\"\",IF(identificacion!$G$11<15,+ghost!D63,IF(identificacion!$G$11>20,ghost!F63,ghost!E63)))","v":""},"cajas",{"$f":"IF(identificacion!$G$11=\"\",\"\",IF(identificacion!$G$11<15,ROUND(ghost!G63,0),IF(identificacion!$G$11>20,ROUND(ghost!I63,0),ROUND(ghost!H63,0))))","v":""},{"$f":"+'Consulta de caducidades'!G68","v":0},"","62","J01CR","AMOXICILINA + CLAVULÁNICO ","875/125 mg.  30 sobres ó comp."]
[8,{"$f":"+'CAJON 8'!A11","v":"J01AA02"},{"$f":"CONCATENATE(+'CAJON 8'!B11,\" - \",+'CAJON 8'!C11)","v":"DOXICICLINA - 100 mg.  30 cápsulas"},{"$f":"+'CAJON 8'!D11","v":1},{"$f":"+'CAJON 8'!F11","v":2},{"$f":"+'CAJON 8'!H11","v":2},{"$f":"+'CAJON 8'!J11","v":0},{"$f":"+'CAJON 8'!K11","v":0},{"$f":"+'CAJON 8'!L11","v":0},{"$f":"IF('CAJON 8'!M11<>\"\",'CAJON 8'!M11,\"\")","v":""},{"$f":"IF(+J64=\"\",Sit!$B$1,IF(TODAY()>=ghost!J64,+Sit!$B$2,IF(TODAY()>=ghost!J64-30,Sit!$B$3,Sit!$B$4)))","v":"sin fecha de caducidad"},{"$f":"IF(identificacion!$G$11=\"\",\"\",IF(identificacion!$G$11<15,+ghost!D64-ROUND(ghost!G64,0),IF(identificacion!$G$11>20,ghost!F64-ROUND(ghost!I64,0),ghost!E64-ROUND(ghost!H64,0))))","v":""},{"$f":"IF(L64=\"\",\"No procede: falta nº de tripulantes\",IF(L64=0,\"cantidad exigida\",IF(L64=1,CONCATENATE(\"falta \"& +L64 & \" unidad\"),IF(L64>1,CONCATENATE(\"faltan \"&+L64& \" unidades\"),IF(L64<0,\"dotación con excedentes\",\"Comprobar introducción de datos\")))))","v":"No procede: falta nº de tripulantes"},{"$f":"IF(identificacion!$G$11=\"\",\"\",IF(identificacion!$G$11<15,+ghost!D64,IF(identificacion!$G$11>20,ghost!F64,ghost!E64)))","v":""},"caja",{"$f":"IF(identificacion!$G$11=\"\",\"\",IF(identificacion!$G$11<15,ROUND(ghost!G64,0),IF(identificacion!$G$11>20,ROUND(ghost!I64,0),ROUND(ghost!H64,0))))","v":""},{"$f":"+'Consulta de caducidades'!G69","v":0},"","63","J01AA02","DOXICICLINA ","100 mg.  30 cápsulas"]
[8,{"$f":"+'CAJON 8'!A12","v":"J01FA10"},{"$f":"CONCATENATE(+'CAJON 8'!B12,\" - \",+'CAJON 8'!C12)","v":"AZITROMICINA - 500 mg.  3 comp."},{"$f":"+'CAJON 8'!D12","v":5},{"$f":"+'CAJON 8'!F12","v":5},{"$f":"+'CAJON 8'!H12","v":5},{"$f":"+'CAJON 8'!J12","v":0},{"$f":"+'CAJON 8'!K12","v":0},{"$f":"+'CAJON 8'!L12","v":0},{"$f":"IF('CAJON 8'!M12<>\"\",'CAJON 8'!M12,\"\")","v":""},{"$f":"IF(+J65=\"\",Sit!$B$1,IF(TODAY()>=ghost!J65,+Sit!$B$2,IF(TODAY()>=ghost!J65-30,Sit!$B$3,Sit!$B$4)))","v":"sin fecha de caducidad"},{"$f":"IF(identificacion!$G$11=\"\",\"\",IF(identificacion!$G$11<15,+ghost!D65-ROUND(ghost!G65,0),IF(identificacion!$G$11>20,ghost!F65-ROUND(ghost!I65,0),ghost!E65-ROUND(ghost!H65,0))))","v":""},"No procede: falta nº de tripulantes",{"$f":"IF(identificacion!$G$11=\"\",\"\",IF(identificacion!$G$11<15,+ghost!D65,IF(identificacion!$G$11>20,ghost!F65,ghost!E65)))","v":""},"cajas",{"$f":"IF(identificacion!$G$11=\"\",\"\",IF(identificacion!$G$11<15,ROUND(ghost!G65,0),IF(identificacion!$G$11>20,ROUND(ghost!I65,0),ROUND(ghost!H65,0))))","v":""},{"$f":"+'Consulta de caducidades'!G70","v":0},"","64","J01FA10","AZITROMICINA ","500 mg.  3 comp."]
[8,{"$f":"+'CAJON 8'!A13","v":"J01DD04"},{"$f":"CONCATENATE(+'CAJON 8'!B13,\" - \",+'CAJON 8'!C13)","v":"CEFTRIAXONA - Vial de 1 g."},{"$f":"+'CAJON 8'!D13","v":5},{"$f":"+'CAJON 8'!F13","v":5},{"$f":"+'CAJON 8'!H13","v":5},{"$f":"+'CAJON 8'!J13","v":0},{"$f":"+'CAJON 8'!K13","v":0},{"$f":"+'CAJON 8'!L13","v":0},{"$f":"IF('CAJON 8'!M13<>\"\",'CAJON 8'!M13,\"\")","v":""},{"$f":"IF(+J66=\"\",Sit!$B$1,IF(TODAY()>=ghost!J66,+Sit!$B$2,IF(TODAY()>=ghost!J66-30,Sit!$B$3,Sit!$B$4)))","v":"sin fecha de caducidad"},{"$f":"IF(identificacion!$G$11=\"\",\"\",IF(identificacion!$G$11<15,+ghost!D66-ROUND(ghost!G66,0),IF(identificacion!$G$11>20,ghost!F66-ROUND(ghost!I66,0),ghost!E66-ROUND(ghost!H66,0))))","v":""},"No procede: falta nº de tripulantes",{"$f":"IF(identificacion!$G$11=\"\",\"\",IF(identificacion!$G$11<15,+ghost!D66,IF(identificacion!$G$11>20,ghost!F66,ghost!E66)))","v":""},"viales",{"$f":"IF(identificacion!$G$11=\"\",\"\",IF(identificacion!$G$11<15,ROUND(ghost!G66,0),IF(identificacion!$G$11>20,ROUND(ghost!I66,0),ROUND(ghost!H66,0))))","v":""},{"$f":"+'Consulta de caducidades'!G71","v":0},"","65","J01DD04","CEFTRIAXONA ","Vial de 1 g."]
[8,{"$f":"+'CAJON 8'!A14","v":"J01GB03"},{"$f":"CONCATENATE(+'CAJON 8'!B14,\" - \",+'CAJON 8'!C14)","v":"GENTAMICINA - Vial de 240 mg."},{"$f":"+'CAJON 8'!D14","v":4},{"$f":"+'CAJON 8'!F14","v":4},{"$f":"+'CAJON 8'!H14","v":4},{"$f":"+'CAJON 8'!J14","v":0},{"$f":"+'CAJON 8'!K14","v":0},{"$f":"+'CAJON 8'!L14","v":0},{"$f":"IF('CAJON 8'!M14<>\"\",'CAJON 8'!M14,\"\")","v":""},{"$f":"IF(+J67=\"\",Sit!$B$1,IF(TODAY()>=ghost!J67,+Sit!$B$2,IF(TODAY()>=ghost!J67-30,Sit!$B$3,Sit!$B$4)))","v":"sin fecha de caducidad"},{"$f":"IF(identificacion!$G$11=\"\",\"\",IF(identificacion!$G$11<15,+ghost!D67-ROUND(ghost!G67,0),IF(identificacion!$G$11>20,ghost!F67-ROUND(ghost!I67,0),ghost!E67-ROUND(ghost!H67,0))))","v":""},"No procede: falta nº de tripulantes",{"$f":"IF(identificacion!$G$11=\"\",\"\",IF(identificacion!$G$11<15,+ghost!D67,IF(identificacion!$G$11>20,ghost!F67,ghost!E67)))","v":""},"viales",{"$f":"IF(identificacion!$G$11=\"\",\"\",IF(identificacion!$G$11<15,ROUND(ghost!G67,0),IF(identificacion!$G$11>20,ROUND(ghost!I67,0),ROUND(ghost!H67,0))))","v":""},{"$f":"+'Consulta de caducidades'!G72","v":0},{"$f":"+J67","v":""},"66","J01GB03","GENTAMICINA ","Vial de 240 mg"]
[8,{"$f":"+'CAJON 8'!A15","v":"J01XD01"},{"$f":"CONCATENATE(+'CAJON 8'!B15,\" - \",+'CAJON 8'!C15)","v":"METRONIDAZOL - 250 mg.  20 comp."},{"$f":"+'CAJON 8'!D15","v":1},{"$f":"+'CAJON 8'!F15","v":1},{"$f":"+'CAJON 8'!H15","v":1},{"$f":"+'CAJON 8'!J15","v":0},{"$f":"+'CAJON 8'!K15","v":0},{"$f":"+'CAJON 8'!L15","v":0},{"$f":"IF('CAJON 8'!M15<>\"\",'CAJON 8'!M15,\"\")","v":""},{"$f":"IF(+J68=\"\",Sit!$B$1,IF(TODAY()>=ghost!J68,+Sit!$B$2,IF(TODAY()>=ghost!J68-30,Sit!$B$3,Sit!$B$4)))","v":"sin fecha de caducidad"},{"$f":"IF(identificacion!$G$11=\"\",\"\",IF(identificacion!$G$11<15,+ghost!D68-ROUND(ghost!G68,0),IF(identificacion!$G$11>20,ghost!F68-ROUND(ghost!I68,0),ghost!E68-ROUND(ghost!H68,0))))","v":""},"No procede: falta nº de tripulantes",{"$f":"IF(identificacion!$G$11=\"\",\"\",IF(identificacion!$G$11<15,+ghost!D68,IF(identificacion!$G$11>20,ghost!F68,ghost!E68)))","v":""},"caja",{"$f":"IF(identificacion!$G$11=\"\",\"\",IF(identificacion!$G$11<15,ROUND(ghost!G68,0),IF(identificacion!$G$11>20,ROUND(ghost!I68,0),ROUND(ghost!H68,0))))","v":""},{"$f":"+'Consulta de caducidades'!G73","v":0},"","67","J01XD01","METRONIDAZOL ","250 mg.  20 comp."]
[8,{"$f":"+'CAJON 8'!A16","v":"P02CA01"},{"$f":"CONCATENATE(+'CAJON 8'!B16,\" - \",+'CAJON 8'!C16)","v":"MEBENDAZOL - 100 mg.  6 comp."},{"$f":"+'CAJON 8'!D16","v":1},{"$f":"+'CAJON 8'!F16","v":2},{"$f":"+'CAJON 8'!H16","v":4},{"$f":"+'CAJON 8'!J16","v":0},{"$f":"+'CAJON 8'!K16","v":0},{"$f":"+'CAJON 8'!L16","v":0},{"$f":"IF('CAJON 8'!M16<>\"\",'CAJON 8'!M16,\"\")","v":""},{"$f":"IF(+J69=\"\",Sit!$B$1,IF(TODAY()>=ghost!J69,+Sit!$B$2,IF(TODAY()>=ghost!J69-30,Sit!$B$3,Sit!$B$4)))","v":"sin fecha de caducidad"},{"$f":"IF(identificacion!$G$11=\"\",\"\",IF(identificacion!$G$11<15,+ghost!D69-ROUND(ghost!G69,0),IF(identificacion!$G$11>20,ghost!F69-ROUND(ghost!I69,0),ghost!E69-ROUND(ghost!H69,0))))","v":""},"No procede: falta nº de tripulantes",{"$f":"IF(identificacion!$G$11=\"\",\"\",IF(identificacion!$G$11<15,+ghost!D69,IF(identificacion!$G$11>20,ghost!F69,ghost!E69)))","v":""},"caja",{"$f":"IF(identificacion!$G$11=\"\",\"\",IF(identificacion!$G$11<15,ROUND(ghost!G69,0),IF(identificacion!$G$11>20,ROUND(ghost!I69,0),ROUND(ghost!H69,0))))","v":""},{"$f":"+'Consulta de caducidades'!G74","v":0},"","68","P02CA01","MEBENDAZOL ","100 mg.  6 comp."]
[8,{"$f":"+'CAJON 8'!A17","v":"J01MA02"},{"$f":"CONCATENATE(+'CAJON 8'!B17,\" - \",+'CAJON 8'!C17)","v":"CIPROFLOXACINO - 500 mg.  20 comp."},{"$f":"+'CAJON 8'!D17","v":1},{"$f":"+'CAJON 8'!F17","v":1},{"$f":"+'CAJON 8'!H17","v":1},{"$f":"+'CAJON 8'!J17","v":0},{"$f":"+'CAJON 8'!K17","v":0},{"$f":"+'CAJON 8'!L17","v":0},{"$f":"IF('CAJON 8'!M17<>\"\",'CAJON 8'!M17,\"\")","v":""},{"$f":"IF(+J70=\"\",Sit!$B$1,IF(TODAY()>=ghost!J70,+Sit!$B$2,IF(TODAY()>=ghost!J70-30,Sit!$B$3,Sit!$B$4)))","v":"sin fecha de caducidad"},{"$f":"IF(identificacion!$G$11=\"\",\"\",IF(identificacion!$G$11<15,+ghost!D70-ROUND(ghost!G70,0),IF(identificacion!$G$11>20,ghost!F70-ROUND(ghost!I70,0),ghost!E70-ROUND(ghost!H70,0))))","v":""},"No procede: falta nº de tripulantes",{"$f":"IF(identificacion!$G$11=\"\",\"\",IF(identificacion!$G$11<15,+ghost!D70,IF(identificacion!$G$11>20,ghost!F70,ghost!E70)))","v":""},"caja",{"$f":"IF(identificacion!$G$11=\"\",\"\",IF(identificacion!$G$11<15,ROUND(ghost!G70,0),IF(identificacion!$G$11>20,ROUND(ghost!I70,0),ROUND(ghost!H70,0))))","v":""},{"$f":"+'Consulta de caducidades'!G75","v":0},"","69","J01MA02","CIPROFLOXACINO ","500 mg.  20 comp"]
[8,{"$f":"+'CAJON 8'!A18","v":"J07AM01"},{"$f":"CONCATENATE(+'CAJON 8'!B18,\" - \",+'CAJON 8'!C18)","v":"TOXOIDE TETÁNICO +\nTOXOIDE DIFTÉRICO  (c) - 20/2 UI, jeringa precargada 0,5 ml."},{"$f":"+'CAJON 8'!D18","v":5},{"$f":"+'CAJON 8'!F18","v":6},{"$f":"+'CAJON 8'!H18","v":7},{"$f":"+'CAJON 8'!J18","v":0},{"$f":"+'CAJON 8'!K18","v":0},{"$f":"+'CAJON 8'!L18","v":0},{"$f":"IF('CAJON 8'!M18<>\"\",'CAJON 8'!M18,\"\")","v":""},{"$f":"IF(+J71=\"\",Sit!$B$1,IF(TODAY()>=ghost!J71,+Sit!$B$2,IF(TODAY()>=ghost!J71-30,Sit!$B$3,Sit!$B$4)))","v":"sin fecha de caducidad"},{"$f":"IF(identificacion!$G$11=\"\",\"\",IF(identificacion!$G$11<15,+ghost!D71-ROUND(ghost!G71,0),IF(identificacion!$G$11>20,ghost!F71-ROUND(ghost!I71,0),ghost!E71-ROUND(ghost!H71,0))))","v":""},"No procede: falta nº de tripulantes",{"$f":"IF(identificacion!$G$11=\"\",\"\",IF(identificacion!$G$11<15,+ghost!D71,IF(identificacion!$G$11>20,ghost!F71,ghost!E71)))","v":""},"unidades",{"$f":"IF(identificacion!$G$11=\"\",\"\",IF(identificacion!$G$11<15,ROUND(ghost!G71,0),IF(identificacion!$G$11>20,ROUND(ghost!I71,0),ROUND(ghost!H71,0))))","v":""},{"$f":"+'Consulta de caducidades'!G76","v":0},"","70","J07AM01","TOXOIDE TETÁNICO + TOXOIDE DIFTÉRICO (c) ","20/2 UI, jeringa precargada 0,5 ml.","(c) Precisa conservación en nevera."]
[8,{"$f":"+'CAJON 8'!A19","v":"J06BB02"},{"$f":"CONCATENATE(+'CAJON 8'!B19,\" - \",+'CAJON 8'!C19)","v":"GAMMAGLOBULINA ANTITETÁNICA (c) - 500 UI. (jeringa precargada) 2ml."},{"$f":"+'CAJON 8'!D19","v":5},{"$f":"+'CAJON 8'!F19","v":6},{"$f":"+'CAJON 8'!H19","v":7},{"$f":"+'CAJON 8'!J19","v":0},{"$f":"+'CAJON 8'!K19","v":0},{"$f":"+'CAJON 8'!L19","v":0},{"$f":"IF('CAJON 8'!M19<>\"\",'CAJON 8'!M19,\"\")","v":""},{"$f":"IF(+J72=\"\",Sit!$B$1,IF(TODAY()>=ghost!J72,+Sit!$B$2,IF(TODAY()>=ghost!J72-30,Sit!$B$3,Sit!$B$4)))","v":"sin fecha de caducidad"},{"$f":"IF(identificacion!$G$11=\"\",\"\",IF(identificacion!$G$11<15,+ghost!D72-ROUND(ghost!G72,0),IF(identificacion!$G$11>20,ghost!F72-ROUND(ghost!I72,0),ghost!E72-ROUND(ghost!H72,0))))","v":""},"No procede: falta nº de tripulantes",{"$f":"IF(identificacion!$G$11=\"\",\"\",IF(identificacion!$G$11<15,+ghost!D72,IF(identificacion!$G$11>20,ghost!F72,ghost!E72)))","v":""},"viales",{"$f":"IF(identificacion!$G$11=\"\",\"\",IF(identificacion!$G$11<15,ROUND(ghost!G72,0),IF(identificacion!$G$11>20,ROUND(ghost!I72,0),ROUND(ghost!H72,0))))","v":""},{"$f":"+'Consulta de caducidades'!G77","v":0},"","71","J06BB02","GAMMAGLOBULINA ANTITETÁNICA (c) ","500 UI. (jeringa precargada) 2 ml.","(c) Precisa conservación en nevera."]
[8,{"$f":"+'CAJON 8'!A20","v":"P01BE03"},{"$f":"CONCATENATE(+'CAJON 8'!B20,\" - \",+'CAJON 8'!C20)","v":"ARTESUNATO  (d) - ampollas"},{"$f":"+'CAJON 8'!D20","v":950},{"$f":"+'CAJON 8'!F20","v":950},{"$f":"+'CAJON 8'!H20","v":950},{"$f":"+'CAJON 8'!J20","v":0},{"$f":"+'CAJON 8'!K20","v":0},{"$f":"+'CAJON 8'!L20","v":0},{"$f":"IF('CAJON 8'!M20<>\"\",'CAJON 8'!M20,\"\")","v":""},{"$f":"IF(+J73=\"\",Sit!$B$1,IF(TODAY()>=ghost!J73,+Sit!$B$2,IF(TODAY()>=ghost!J73-30,Sit!$B$3,Sit!$B$4)))","v":"sin fecha de caducidad"},{"$f":"IF(identificacion!$G$11=\"\",\"\",IF(identificacion!$G$11<15,+ghost!D73-ROUND(ghost!G73,0),IF(identificacion!$G$11>20,ghost!F73-ROUND(ghost!I73,0),ghost!E73-ROUND(ghost!H73,0))))","v":""},"No procede: falta nº de tripulantes",{"$f":"IF(identificacion!$G$11=\"\",\"\",IF(identificacion!$G$11<15,+ghost!D73,IF(identificacion!$G$11>20,ghost!F73,ghost!E73)))","v":""},"hasta completar",{"$f":"IF(identificacion!$G$11=\"\",\"\",IF(identificacion!$G$11<15,ROUND(ghost!G73,0),IF(identificacion!$G$11>20,ROUND(ghost!I73,0),ROUND(ghost!H73,0))))","v":""},{"$f":"+'Consulta de caducidades'!G78","v":0},"","72","P01BE03","ARTESUNATO (d) ","ampollas","(d) Solo deben llevarlo los buques que frecuenten o faenen en zonas palúdicas.    (e) Hasta completar dosis mínima de 950 mg."]
[8,{"$f":"+'CAJON 8'!A21","v":"P01BF"},{"$f":"CONCATENATE(+'CAJON 8'!B21,\" - \",+'CAJON 8'!C21)","v":"DIHIDROARTEMISININA + PIPERAQUINA    (d) - 320/40 mg.  12 comp."},{"$f":"+'CAJON 8'!D21","v":2},{"$f":"+'CAJON 8'!F21","v":3},{"$f":"+'CAJON 8'!H21","v":3},{"$f":"+'CAJON 8'!J21","v":0},{"$f":"+'CAJON 8'!K21","v":0},{"$f":"+'CAJON 8'!L21","v":0},{"$f":"IF('CAJON 8'!M21<>\"\",'CAJON 8'!M21,\"\")","v":""},{"$f":"IF(+J74=\"\",Sit!$B$1,IF(TODAY()>=ghost!J74,+Sit!$B$2,IF(TODAY()>=ghost!J74-30,Sit!$B$3,Sit!$B$4)))","v":"sin fecha de caducidad"},{"$f":"IF(identificacion!$G$11=\"\",\"\",IF(identificacion!$G$11<15,+ghost!D74-ROUND(ghost!G74,0),IF(identificacion!$G$11>20,ghost!F74-ROUND(ghost!I74,0),ghost!E74-ROUND(ghost!H74,0))))","v":""},"No procede: falta nº de tripulantes",{"$f":"IF(identificacion!$G$11=\"\",\"\",IF(identificacion!$G$11<15,+ghost!D74,IF(identificacion!$G$11>20,ghost!F74,ghost!E74)))","v":""},"cajas",{"$f":"IF(identificacion!$G$11=\"\",\"\",IF(identificacion!$G$11<15,ROUND(ghost!G74,0),IF(identificacion!$G$11>20,ROUND(ghost!I74,0),ROUND(ghost!H74,0))))","v":""},{"$f":"+'Consulta de caducidades'!G79","v":0},"","73","P01BF","DIHIDROARTEMISININA + PIPERAQUINA (d) ","320/40 mg.  12 comp.","(d) Solo deben llevarlo los buques que frecuenten o faenen en zonas palúdicas.    (e) Hasta completar dosis mínima de 950 mg."]
[9,{"$f":"+'CAJON 9'!A9","v":"N01BX01"},{"$f":"CONCATENATE(+'CAJON 9'!B9,\" - \",+'CAJON 9'!C9)","v":"CLORURO DE ETILO - 100% aerosol 100 g."},{"$f":"+'CAJON 9'!D9","v":1},{"$f":"+'CAJON 9'!F9","v":1},{"$f":"+'CAJON 9'!H9","v":2},{"$f":"+'CAJON 9'!J9","v":0},{"$f":"+'CAJON 9'!K9","v":0},{"$f":"+'CAJON 9'!L9","v":0},{"$f":"IF('CAJON 9'!M9<>\"\",'CAJON 9'!M9,\"\")","v":""},{"$f":"IF(+J75=\"\",Sit!$B$1,IF(TODAY()>=ghost!J75,+Sit!$B$2,IF(TODAY()>=ghost!J75-30,Sit!$B$3,Sit!$B$4)))","v":"sin fecha de caducidad"},{"$f":"IF(identificacion!$G$11=\"\",\"\",IF(identificacion!$G$11<15,+ghost!D75-ROUND(ghost!G75,0),IF(identificacion!$G$11>20,ghost!F75-ROUND(ghost!I75,0),ghost!E75-ROUND(ghost!H75,0))))","v":""},"No procede: falta nº de tripulantes",{"$f":"IF(identificacion!$G$11=\"\",\"\",IF(identificacion!$G$11<15,+ghost!D75,IF(identificacion!$G$11>20,ghost!F75,ghost!E75)))","v":""},"envase",{"$f":"IF(identificacion!$G$11=\"\",\"\",IF(identificacion!$G$11<15,ROUND(ghost!G75,0),IF(identificacion!$G$11>20,ROUND(ghost!I75,0),ROUND(ghost!H75,0))))","v":""},{"$f":"+'Consulta de caducidades'!G80","v":0},"","74","N01BX01","CLORURO DE ETILO ","100% aerosol 100 g"]
[9,{"$f":"+'CAJON 9'!A10","v":"N01BB02"},{"$f":"CONCATENATE(+'CAJON 9'!B10,\" - \",+'CAJON 9'!C10)","v":"LIDOCAÍNA - 2% miniplasco de 10 ml."},{"$f":"+'CAJON 9'!D10","v":3},{"$f":"+'CAJON 9'!F10","v":4},{"$f":"+'CAJON 9'!H10","v":5},{"$f":"+'CAJON 9'!J10","v":0},{"$f":"+'CAJON 9'!K10","v":0},{"$f":"+'CAJON 9'!L10","v":0},{"$f":"IF('CAJON 9'!M10<>\"\",'CAJON 9'!M10,\"\")","v":""},{"$f":"IF(+J76=\"\",Sit!$B$1,IF(TODAY()>=ghost!J76,+Sit!$B$2,IF(TODAY()>=ghost!J76-30,Sit!$B$3,Sit!$B$4)))","v":"sin fecha de caducidad"},{"$f":"IF(identificacion!$G$11=\"\",\"\",IF(identificacion!$G$11<15,+ghost!D76-ROUND(ghost!G76,0),IF(identificacion!$G$11>20,ghost!F76-ROUND(ghost!I76,0),ghost!E76-ROUND(ghost!H76,0))))","v":""},"No procede: falta nº de tripulantes",{"$f":"IF(identificacion!$G$11=\"\",\"\",IF(identificacion!$G$11<15,+ghost!D76,IF(identificacion!$G$11>20,ghost!F76,ghost!E76)))","v":""},"viales",{"$f":"IF(identificacion!$G$11=\"\",\"\",IF(identificacion!$G$11<15,ROUND(ghost!G76,0),IF(identificacion!$G$11>20,ROUND(ghost!I76,0),ROUND(ghost!H76,0))))","v":""},{"$f":"+'Consulta de caducidades'!G81","v":0},"","75","N01BB02","LIDOCAÍNA ","2% miniplasco de 10 ml"]
[10,{"$f":"+'CAJON 10'!A9","v":"D06AX09"},{"$f":"CONCATENATE(+'CAJON 10'!B9,\" - \",+'CAJON 10'!C9)","v":"MUPIROCINA - 2% crema  30 g."},{"$f":"+'CAJON 10'!D9","v":4},{"$f":"+'CAJON 10'!F9","v":6},{"$f":"+'CAJON 10'!H9","v":8},{"$f":"+'CAJON 10'!J9","v":0},{"$f":"+'CAJON 10'!K9","v":0},{"$f":"+'CAJON 10'!L9","v":0},{"$f":"IF('CAJON 10'!M9<>\"\",'CAJON 10'!M9,\"\")","v":""},{"$f":"IF(+J77=\"\",Sit!$B$1,IF(TODAY()>=ghost!J77,+Sit!$B$2,IF(TODAY()>=ghost!J77-30,Sit!$B$3,Sit!$B$4)))","v":"sin fecha de caducidad"},{"$f":"IF(identificacion!$G$11=\"\",\"\",IF(identificacion!$G$11<15,+ghost!D77-ROUND(ghost!G77,0),IF(identificacion!$G$11>20,ghost!F77-ROUND(ghost!I77,0),ghost!E77-ROUND(ghost!H77,0))))","v":""},"No procede: falta nº de tripulantes",{"$f":"IF(identificacion!$G$11=\"\",\"\",IF(identificacion!$G$11<15,+ghost!D77,IF(identificacion!$G$11>20,ghost!F77,ghost!E77)))","v":""},"envases",{"$f":"IF(identificacion!$G$11=\"\",\"\",IF(identificacion!$G$11<15,ROUND(ghost!G77,0),IF(identificacion!$G$11>20,ROUND(ghost!I77,0),ROUND(ghost!H77,0))))","v":""},{"$f":"+'Consulta de caducidades'!G82","v":0},"","76","D06AX09","MUPIROCINA ","2% crema  30 g."]
[10,{"$f":"+'CAJON 10'!A10","v":"D07AB"},{"$f":"CONCATENATE(+'CAJON 10'!B10,\" - \",+'CAJON 10'!C10)","v":"CLOBETASONA - 0,05% crema  30 g."},{"$f":"+'CAJON 10'!D10","v":2},{"$f":"+'CAJON 10'!F10","v":3},{"$f":"+'CAJON 10'!H10","v":4},{"$f":"+'CAJON 10'!J10","v":0},{"$f":"+'CAJON 10'!K10","v":0},{"$f":"+'CAJON 10'!L10","v":0},{"$f":"IF('CAJON 10'!M10<>\"\",'CAJON 10'!M10,\"\")","v":""},{"$f":"IF(+J78=\"\",Sit!$B$1,IF(TODAY()>=ghost!J78,+Sit!$B$2,IF(TODAY()>=ghost!J78-30,Sit!$B$3,Sit!$B$4)))","v":"sin fecha de caducidad"},{"$f":"IF(identificacion!$G$11=\"\",\"\",IF(identificacion!$G$11<15,+ghost!D78-ROUND(ghost!G78,0),IF(identificacion!$G$11>20,ghost!F78-ROUND(ghost!I78,0),ghost!E78-ROUND(ghost!H78,0))))","v":""},"No procede: falta nº de tripulantes",{"$f":"IF(identificacion!$G$11=\"\",\"\",IF(identificacion!$G$11<15,+ghost!D78,IF(identificacion!$G$11>20,ghost!F78,ghost!E78)))","v":""},"envases",{"$f":"IF(identificacion!$G$11=\"\",\"\",IF(identificacion!$G$11<15,ROUND(ghost!G78,0),IF(identificacion!$G$11>20,ROUND(ghost!I78,0),ROUND(ghost!H78,0))))","v":""},{"$f":"+'Consulta de caducidades'!G83","v":0},"","77","D07AB","CLOBETASONA ","0,05% crema  30 g."]
[10,{"$f":"+'CAJON 10'!A11","v":"D01AC08"},{"$f":"CONCATENATE(+'CAJON 10'!B11,\" - \",+'CAJON 10'!C11)","v":"KETOCONAZOL - 2% crema.  Tubo 30 g."},{"$f":"+'CAJON 10'!D11","v":2},{"$f":"+'CAJON 10'!F11","v":3},{"$f":"+'CAJON 10'!H11","v":4},{"$f":"+'CAJON 10'!J11","v":0},{"$f":"+'CAJON 10'!K11","v":0},{"$f":"+'CAJON 10'!L11","v":0},{"$f":"IF('CAJON 10'!M11<>\"\",'CAJON 10'!M11,\"\")","v":""},{"$f":"IF(+J79=\"\",Sit!$B$1,IF(TODAY()>=ghost!J79,+Sit!$B$2,IF(TODAY()>=ghost!J79-30,Sit!$B$3,Sit!$B$4)))","v":"sin fecha de caducidad"},{"$f":"IF(identificacion!$G$11=\"\",\"\",IF(identificacion!$G$11<15,+ghost!D79-ROUND(ghost!G79,0),IF(identificacion!$G$11>20,ghost!F79-ROUND(ghost!I79,0),ghost!E79-ROUND(ghost!H79,0))))","v":""},"No procede: falta nº de tripulantes",{"$f":"IF(identificacion!$G$11=\"\",\"\",IF(identificacion!$G$11<15,+ghost!D79,IF(identificacion!$G$11>20,ghost!F79,ghost!E79)))","v":""},"envases",{"$f":"IF(identificacion!$G$11=\"\",\"\",IF(identificacion!$G$11<15,ROUND(ghost!G79,0),IF(identificacion!$G$11>20,ROUND(ghost!I79,0),ROUND(ghost!H79,0))))","v":""},{"$f":"+'Consulta de caducidades'!G84","v":0},"","78","D01AC08","KETOCONAZOL ","2% crema.  Tubo 30 g."]
[10,{"$f":"+'CAJON 10'!A12","v":"D06BA"},{"$f":"CONCATENATE(+'CAJON 10'!B12,\" - \",+'CAJON 10'!C12)","v":"SULFADIAZINA ARGÉNTICA - 1% crema. Tubo 50 g."},{"$f":"+'CAJON 10'!D12","v":2},{"$f":"+'CAJON 10'!F12","v":3},{"$f":"+'CAJON 10'!H12","v":4},{"$f":"+'CAJON 10'!J12","v":0},{"$f":"+'CAJON 10'!K12","v":0},{"$f":"+'CAJON 10'!L12","v":0},{"$f":"IF('CAJON 10'!M12<>\"\",'CAJON 10'!M12,\"\")","v":""},{"$f":"IF(+J80=\"\",Sit!$B$1,IF(TODAY()>=ghost!J80,+Sit!$B$2,IF(TODAY()>=ghost!J80-30,Sit!$B$3,Sit!$B$4)))","v":"sin fecha de caducidad"},{"$f":"IF(identificacion!$G$11=\"\",\"\",IF(identificacion!$G$11<15,+ghost!D80-ROUND(ghost!G80,0),IF(identificacion!$G$11>20,ghost!F80-ROUND(ghost!I80,0),ghost!E80-ROUND(ghost!H80,0))))","v":""},{"$f":"IF(L80=\"\",\"No procede: falta nº de tripulantes\",IF(L80=0,\"cantidad exigida\",IF(L80=1,CONCATENATE(\"falta \"& +L80 & \" unidad\"),IF(L80>1,CONCATENATE(\"faltan \"&+L80& \" unidades\"),IF(L80<0,\"dotación con excedentes\",\"Comprobar introducción de datos\")))))","v":"No procede: falta nº de tripulantes"},{"$f":"IF(identificacion!$G$11=\"\",\"\",IF(identificacion!$G$11<15,+ghost!D80,IF(identificacion!$G$11>20,ghost!F80,ghost!E80)))","v":""},"envases",{"$f":"IF(identificacion!$G$11=\"\",\"\",IF(identificacion!$G$11<15,ROUND(ghost!G80,0),IF(identificacion!$G$11>20,ROUND(ghost!I80,0),ROUND(ghost!H80,0))))","v":""},{"$f":"+'Consulta de caducidades'!G85","v":0},"","79","D06BA","SULFADIAZINA ARGÉNTICA ","1% crema. Tubo 50 g."]
[10,{"$f":"+'CAJON 10'!A13","v":"P03AC04"},{"$f":"CONCATENATE(+'CAJON 10'!B13,\" - \",+'CAJON 10'!C13)","v":"PERMETRINA -  Gel - loción al 1,5% 125 ml."},{"$f":"+'CAJON 10'!D13","v":2},{"$f":"+'CAJON 10'!F13","v":3},{"$f":"+'CAJON 10'!H13","v":4},{"$f":"+'CAJON 10'!J13","v":0},{"$f":"+'CAJON 10'!K13","v":0},{"$f":"+'CAJON 10'!L13","v":0},{"$f":"IF('CAJON 10'!M13<>\"\",'CAJON 10'!M13,\"\")","v":""},{"$f":"IF(+J81=\"\",Sit!$B$1,IF(TODAY()>=ghost!J81,+Sit!$B$2,IF(TODAY()>=ghost!J81-30,Sit!$B$3,Sit!$B$4)))","v":"sin fecha de caducidad"},{"$f":"IF(identificacion!$G$11=\"\",\"\",IF(identificacion!$G$11<15,+ghost!D81-ROUND(ghost!G81,0),IF(identificacion!$G$11>20,ghost!F81-ROUND(ghost!I81,0),ghost!E81-ROUND(ghost!H81,0))))","v":""},"No procede: falta nº de tripulantes",{"$f":"IF(identificacion!$G$11=\"\",\"\",IF(identificacion!$G$11<15,+ghost!D81,IF(identificacion!$G$11>20,ghost!F81,ghost!E81)))","v":""},"envases",{"$f":"IF(identificacion!$G$11=\"\",\"\",IF(identificacion!$G$11<15,ROUND(ghost!G81,0),IF(identificacion!$G$11>20,ROUND(ghost!I81,0),ROUND(ghost!H81,0))))","v":""},{"$f":"+'Consulta de caducidades'!G86","v":0},"","80","P03AC04","PERMETRINA "," Gel - loción al 1,5% 125 ml."]
[10,{"$f":"+'CAJON 10'!A14","v":"D02AC91"},{"$f":"CONCATENATE(+'CAJON 10'!B14,\" - \",+'CAJON 10'!C14)","v":"VASELINA - Pomada 25 g."},{"$f":"+'CAJON 10'!D14","v":1},{"$f":"+'CAJON 10'!F14","v":1},{"$f":"+'CAJON 10'!H14","v":1},{"$f":"+'CAJON 10'!J14","v":0},{"$f":"+'CAJON 10'!K14","v":0},{"$f":"+'CAJON 10'!L14","v":0},{"$f":"IF('CAJON 10'!M14<>\"\",'CAJON 10'!M14,\"\")","v":""},{"$f":"IF(+J82=\"\",Sit!$B$1,IF(TODAY()>=ghost!J82,+Sit!$B$2,IF(TODAY()>=ghost!J82-30,Sit!$B$3,Sit!$B$4)))","v":"sin fecha de caducidad"},{"$f":"IF(identificacion!$G$11=\"\",\"\",IF(identificacion!$G$11<15,+ghost!D82-ROUND(ghost!G82,0),IF(identificacion!$G$11>20,ghost!F82-ROUND(ghost!I82,0),ghost!E82-ROUND(ghost!H82,0))))","v":""},{"$f":"IF(L82=\"\",\"No procede: falta nº de tripulantes\",IF(L82=0,\"cantidad exigida\",IF(L82=1,CONCATENATE(\"falta \"& +L82 & \" unidad\"),IF(L82>1,CONCATENATE(\"faltan \"&+L82& \" unidades\"),IF(L82<0,\"dotación con excedentes\",\"Comprobar introducción de datos\")))))","v":"No procede: falta nº de tripulantes"},{"$f":"IF(identificacion!$G$11=\"\",\"\",IF(identificacion!$G$11<15,+ghost!D82,IF(identificacion!$G$11>20,ghost!F82,ghost!E82)))","v":""},"envase",{"$f":"IF(identificacion!$G$11=\"\",\"\",IF(identificacion!$G$11<15,ROUND(ghost!G82,0),IF(identificacion!$G$11>20,ROUND(ghost!I82,0),ROUND(ghost!H82,0))))","v":""},{"$f":"+'Consulta de caducidades'!G87","v":0},"","81","D02AC91","VASELINA ","Pomada 25 g."]
[11,null,{"$f":"+'CAJON 11'!A9","v":"-ESTETOSCOPIO"},{"$f":"+'CAJON 11'!D9","v":1},{"$f":"+'CAJON 11'!F9","v":1},{"$f":"+'CAJON 11'!H9","v":1},{"$f":"+'CAJON 11'!J9","v":0},{"$f":"+'CAJON 11'!K9","v":0},{"$f":"+'CAJON 11'!L9","v":0},{"$f":"IF('CAJON 11'!M9<>\"\",'CAJON 11'!M9,\"\")","v":""},{"$f":"IF(+J83=\"\",Sit!$B$1,IF(TODAY()>=ghost!J83,+Sit!$B$2,IF(TODAY()>=ghost!J83-30,Sit!$B$3,Sit!$B$4)))","v":"sin fecha de caducidad"},{"$f":"IF(identificacion!$G$11=\"\",\"\",IF(identificacion!$G$11<15,+ghost!D83-ROUND(ghost!G83,0),IF(identificacion!$G$11>20,ghost!F83-ROUND(ghost!I83,0),ghost!E83-ROUND(ghost!H83,0))))","v":""},"No procede: falta nº de tripulantes",{"$f":"IF(identificacion!$G$11=\"\",\"\",IF(identificacion!$G$11<15,+ghost!D83,IF(identificacion!$G$11>20,ghost!F83,ghost!E83)))","v":""},"unidad",{"$f":"IF(identificacion!$G$11=\"\",\"\",IF(identificacion!$G$11<15,ROUND(ghost!G83,0),IF(identificacion!$G$11>20,ROUND(ghost!I83,0),ROUND(ghost!H83,0))))","v":""},{"$f":"+'Consulta de caducidades'!G88","v":0},"","82",null,"ESTETOSCOPIO"]
[11,null,{"$f":"+'CAJON 11'!A10","v":"-TENSIÓMETRO DIGITAL HOMOLOGADO"},{"$f":"+'CAJON 11'!D10","v":1},{"$f":"+'CAJON 11'!F10","v":1},{"$f":"+'CAJON 11'!H10","v":1},{"$f":"+'CAJON 11'!J10","v":0},{"$f":"+'CAJON 11'!K10","v":0},{"$f":"+'CAJON 11'!L10","v":0},{"$f":"IF('CAJON 11'!M10<>\"\",'CAJON 11'!M10,\"\")","v":""},{"$f":"IF(+J84=\"\",Sit!$B$1,IF(TODAY()>=ghost!J84,+Sit!$B$2,IF(TODAY()>=ghost!J84-30,Sit!$B$3,Sit!$B$4)))","v":"sin fecha de caducidad"},{"$f":"IF(identificacion!$G$11=\"\",\"\",IF(identificacion!$G$11<15,+ghost!D84-ROUND(ghost!G84,0),IF(identificacion!$G$11>20,ghost!F84-ROUND(ghost!I84,0),ghost!E84-ROUND(ghost!H84,0))))","v":""},"No procede: falta nº de tripulantes",{"$f":"IF(identificacion!$G$11=\"\",\"\",IF(identificacion!$G$11<15,+ghost!D84,IF(identificacion!$G$11>20,ghost!F84,ghost!E84)))","v":""},"unidad",{"$f":"IF(identificacion!$G$11=\"\",\"\",IF(identificacion!$G$11<15,ROUND(ghost!G84,0),IF(identificacion!$G$11>20,ROUND(ghost!I84,0),ROUND(ghost!H84,0))))","v":""},{"$f":"+'Consulta de caducidades'!G89","v":0},"","83",null,"TENSIÓMETRO DIGITAL HOMOLOGADO"]
[11,null,{"$f":"+'CAJON 11'!A11","v":"-PULSIOXIMETRO con pilas"},{"$f":"+'CAJON 11'!D11","v":1},{"$f":"+'CAJON 11'!F11","v":1},{"$f":"+'CAJON 11'!H11","v":1},{"$f":"+'CAJON 11'!J11","v":0},{"$f":"+'CAJON 11'!K11","v":0},{"$f":"+'CAJON 11'!L11","v":0},{"$f":"IF('CAJON 11'!M11<>\"\",'CAJON 11'!M11,\"\")","v":""},{"$f":"IF(+J85=\"\",Sit!$B$1,IF(TODAY()>=ghost!J85,+Sit!$B$2,IF(TODAY()>=ghost!J85-30,Sit!$B$3,Sit!$B$4)))","v":"sin fecha de caducidad"},{"$f":"IF(identificacion!$G$11=\"\",\"\",IF(identificacion!$G$11<15,+ghost!D85-ROUND(ghost!G85,0),IF(identificacion!$G$11>20,ghost!F85-ROUND(ghost!I85,0),ghost!E85-ROUND(ghost!H85,0))))","v":""},"No procede: falta nº de tripulantes",{"$f":"IF(identificacion!$G$11=\"\",\"\",IF(identificacion!$G$11<15,+ghost!D85,IF(identificacion!$G$11>20,ghost!F85,ghost!E85)))","v":""},"unidad",{"$f":"IF(identificacion!$G$11=\"\",\"\",IF(identificacion!$G$11<15,ROUND(ghost!G85,0),IF(identificacion!$G$11>20,ROUND(ghost!I85,0),ROUND(ghost!H85,0))))","v":""},{"$f":"+'Consulta de caducidades'!G90","v":0},"","84",null,"PULSIOXIMETRO con pilas"]
[11,null,{"$f":"+'CAJON 11'!A12","v":"-TERMÓMETRO CLÍNICO DIGITAL"},{"$f":"+'CAJON 11'!D12","v":2},{"$f":"+'CAJON 11'!F12","v":2},{"$f":"+'CAJON 11'!H12","v":2},{"$f":"+'CAJON 11'!J12","v":0},{"$f":"+'CAJON 11'!K12","v":0},{"$f":"+'CAJON 11'!L12","v":0},{"$f":"IF('CAJON 11'!M12<>\"\",'CAJON 11'!M12,\"\")","v":""},{"$f":"IF(+J86=\"\",Sit!$B$1,IF(TODAY()>=ghost!J86,+Sit!$B$2,IF(TODAY()>=ghost!J86-30,Sit!$B$3,Sit!$B$4)))","v":"sin fecha de caducidad"},{"$f":"IF(identificacion!$G$11=\"\",\"\",IF(identificacion!$G$11<15,+ghost!D86-ROUND(ghost!G86,0),IF(identificacion!$G$11>20,ghost!F86-ROUND(ghost!I86,0),ghost!E86-ROUND(ghost!H86,0))))","v":""},"No procede: falta nº de tripulantes",{"$f":"IF(identificacion!$G$11=\"\",\"\",IF(identificacion!$G$11<15,+ghost!D86,IF(identificacion!$G$11>20,ghost!F86,ghost!E86)))","v":""},"unidades",{"$f":"IF(identificacion!$G$11=\"\",\"\",IF(identificacion!$G$11<15,ROUND(ghost!G86,0),IF(identificacion!$G$11>20,ROUND(ghost!I86,0),ROUND(ghost!H86,0))))","v":""},{"$f":"+'Consulta de caducidades'!G91","v":0},"","85",null,"TERMÓMETRO CLÍNICO DIGITAL"]
[11,null,{"$f":"+'CAJON 11'!A13","v":"-HOJAS DE TEMPERATURA"},{"$f":"+'CAJON 11'!D13","v":25},{"$f":"+'CAJON 11'!F13","v":25},{"$f":"+'CAJON 11'!H13","v":25},{"$f":"+'CAJON 11'!J13","v":0},{"$f":"+'CAJON 11'!K13","v":0},{"$f":"+'CAJON 11'!L13","v":0},{"$f":"IF('CAJON 11'!M13<>\"\",'CAJON 11'!M13,\"\")","v":""},{"$f":"IF(+J87=\"\",Sit!$B$1,IF(TODAY()>=ghost!J87,+Sit!$B$2,IF(TODAY()>=ghost!J87-30,Sit!$B$3,Sit!$B$4)))","v":"sin fecha de caducidad"},{"$f":"IF(identificacion!$G$11=\"\",\"\",IF(identificacion!$G$11<15,+ghost!D87-ROUND(ghost!G87,0),IF(identificacion!$G$11>20,ghost!F87-ROUND(ghost!I87,0),ghost!E87-ROUND(ghost!H87,0))))","v":""},"No procede: falta nº de tripulantes",{"$f":"IF(identificacion!$G$11=\"\",\"\",IF(identificacion!$G$11<15,+ghost!D87,IF(identificacion!$G$11>20,ghost!F87,ghost!E87)))","v":""},"hojas",{"$f":"IF(identificacion!$G$11=\"\",\"\",IF(identificacion!$G$11<15,ROUND(ghost!G87,0),IF(identificacion!$G$11>20,ROUND(ghost!I87,0),ROUND(ghost!H87,0))))","v":""},{"$f":"+'Consulta de caducidades'!G92","v":0},"","86",null,"HOJAS DE TEMPERATURA"]
[11,null,{"$f":"+'CAJON 11'!A14","v":"-FICHAS MÉDICAS DE EVACUACIÓN"},{"$f":"+'CAJON 11'!D14","v":15},{"$f":"+'CAJON 11'!F14","v":15},{"$f":"+'CAJON 11'!H14","v":15},{"$f":"+'CAJON 11'!J14","v":0},{"$f":"+'CAJON 11'!K14","v":0},{"$f":"+'CAJON 11'!L14","v":0},{"$f":"IF('CAJON 11'!M14<>\"\",'CAJON 11'!M14,\"\")","v":""},{"$f":"IF(+J88=\"\",Sit!$B$1,IF(TODAY()>=ghost!J88,+Sit!$B$2,IF(TODAY()>=ghost!J88-30,Sit!$B$3,Sit!$B$4)))","v":"sin fecha de caducidad"},{"$f":"IF(identificacion!$G$11=\"\",\"\",IF(identificacion!$G$11<15,+ghost!D88-ROUND(ghost!G88,0),IF(identificacion!$G$11>20,ghost!F88-ROUND(ghost!I88,0),ghost!E88-ROUND(ghost!H88,0))))","v":""},"No procede: falta nº de tripulantes",{"$f":"IF(identificacion!$G$11=\"\",\"\",IF(identificacion!$G$11<15,+ghost!D88,IF(identificacion!$G$11>20,ghost!F88,ghost!E88)))","v":""},"fichas",{"$f":"IF(identificacion!$G$11=\"\",\"\",IF(identificacion!$G$11<15,ROUND(ghost!G88,0),IF(identificacion!$G$11>20,ROUND(ghost!I88,0),ROUND(ghost!H88,0))))","v":""},{"$f":"+'Consulta de caducidades'!G93","v":0},"","87",null,"FICHAS MÉDICAS DE EVACUACIÓN"]
[11,null,{"$f":"+'CAJON 11'!A15","v":"-ETIQUETAS INFORMATIVAS PARA EVACUACIÓN DE ENFERMOS"},{"$f":"+'CAJON 11'!D15","v":15},{"$f":"+'CAJON 11'!F15","v":15},{"$f":"+'CAJON 11'!H15","v":15},{"$f":"+'CAJON 11'!J15","v":0},{"$f":"+'CAJON 11'!K15","v":0},{"$f":"+'CAJON 11'!L15","v":0},{"$f":"IF('CAJON 11'!M15<>\"\",'CAJON 11'!M15,\"\")","v":""},{"$f":"IF(+J89=\"\",Sit!$B$1,IF(TODAY()>=ghost!J89,+Sit!$B$2,IF(TODAY()>=ghost!J89-30,Sit!$B$3,Sit!$B$4)))","v":"sin fecha de caducidad"},{"$f":"IF(identificacion!$G$11=\"\",\"\",IF(identificacion!$G$11<15,+ghost!D89-ROUND(ghost!G89,0),IF(identificacion!$G$11>20,ghost!F89-ROUND(ghost!I89,0),ghost!E89-ROUND(ghost!H89,0))))","v":""},"No procede: falta nº de tripulantes",{"$f":"IF(identificacion!$G$11=\"\",\"\",IF(identificacion!$G$11<15,+ghost!D89,IF(identificacion!$G$11>20,ghost!F89,ghost!E89)))","v":""},"etiquetas",{"$f":"IF(identificacion!$G$11=\"\",\"\",IF(identificacion!$G$11<15,ROUND(ghost!G89,0),IF(identificacion!$G$11>20,ROUND(ghost!I89,0),ROUND(ghost!H89,0))))","v":""},{"$f":"+'Consulta de caducidades'!G94","v":0},"","88",null,"ETIQUETAS INFORMATIVAS PARA EVACUACIÓN DE ENFERMOS"]
[11,null,{"$f":"+'CAJON 11'!A16","v":"-SOBRES PARA INFORMACIÓN MÉDICA CONFIDENCIAL"},{"$f":"+'CAJON 11'!D16","v":15},{"$f":"+'CAJON 11'!F16","v":15},{"$f":"+'CAJON 11'!H16","v":15},{"$f":"+'CAJON 11'!J16","v":0},{"$f":"+'CAJON 11'!K16","v":0},{"$f":"+'CAJON 11'!L16","v":0},{"$f":"IF('CAJON 11'!M16<>\"\",'CAJON 11'!M16,\"\")","v":""},{"$f":"IF(+J90=\"\",Sit!$B$1,IF(TODAY()>=ghost!J90,+Sit!$B$2,IF(TODAY()>=ghost!J90-30,Sit!$B$3,Sit!$B$4)))","v":"sin fecha de caducidad"},{"$f":"IF(identificacion!$G$11=\"\",\"\",IF(identificacion!$G$11<15,+ghost!D90-ROUND(ghost!G90,0),IF(identificacion!$G$11>20,ghost!F90-ROUND(ghost!I90,0),ghost!E90-ROUND(ghost!H90,0))))","v":""},{"$f":"IF(L90=\"\",\"No procede: falta nº de tripulantes\",IF(L90=0,\"cantidad exigida\",IF(L90=1,CONCATENATE(\"falta \"& +L90 & \" unidad\"),IF(L90>1,CONCATENATE(\"faltan \"&+L90& \" unidades\"),IF(L90<0,\"dotación con excedentes\",\"Comprobar introducción de datos\")))))","v":"No procede: falta nº de tripulantes"},{"$f":"IF(identificacion!$G$11=\"\",\"\",IF(identificacion!$G$11<15,+ghost!D90,IF(identificacion!$G$11>20,ghost!F90,ghost!E90)))","v":""},"sobres",{"$f":"IF(identificacion!$G$11=\"\",\"\",IF(identificacion!$G$11<15,ROUND(ghost!G90,0),IF(identificacion!$G$11>20,ROUND(ghost!I90,0),ROUND(ghost!H90,0))))","v":""},{"$f":"+'Consulta de caducidades'!G95","v":0},"","89",null,"SOBRES PARA INFORMACIÓN MÉDICA CONFIDENCIAL"]
[11,null,{"$f":"+'CAJON 11'!A17","v":"-HOJA DE REGISTRO DE ADMINISTRACIÓN DE FÁRMACOS A BORDO"},{"$f":"+'CAJON 11'!D17","v":1},{"$f":"+'CAJON 11'!F17","v":1},{"$f":"+'CAJON 11'!H17","v":1},{"$f":"+'CAJON 11'!J17","v":0},{"$f":"+'CAJON 11'!K17","v":0},{"$f":"+'CAJON 11'!L17","v":0},{"$f":"IF('CAJON 11'!M17<>\"\",'CAJON 11'!M17,\"\")","v":""},{"$f":"IF(+J91=\"\",Sit!$B$1,IF(TODAY()>=ghost!J91,+Sit!$B$2,IF(TODAY()>=ghost!J91-30,Sit!$B$3,Sit!$B$4)))","v":"sin fecha de caducidad"},{"$f":"IF(identificacion!$G$11=\"\",\"\",IF(identificacion!$G$11<15,+ghost!D91-ROUND(ghost!G91,0),IF(identificacion!$G$11>20,ghost!F91-ROUND(ghost!I91,0),ghost!E91-ROUND(ghost!H91,0))))","v":""},"No procede: falta nº de tripulantes",{"$f":"IF(identificacion!$G$11=\"\",\"\",IF(identificacion!$G$11<15,+ghost!D91,IF(identificacion!$G$11>20,ghost!F91,ghost!E91)))","v":""},"unidad",{"$f":"IF(identificacion!$G$11=\"\",\"\",IF(identificacion!$G$11<15,ROUND(ghost!G91,0),IF(identificacion!$G$11>20,ROUND(ghost!I91,0),ROUND(ghost!H91,0))))","v":""},{"$f":"+'Consulta de caducidades'!G96","v":0},"","90",null,"HOJA DE REGISTRO DE ADMINISTRACIÓN DE FÁRMACOS A BORDO"]
[11,null,{"$f":"+'CAJON 11'!A18","v":"-GUÍA SANITARIA A BORDO"},{"$f":"+'CAJON 11'!D18","v":1},{"$f":"+'CAJON 11'!F18","v":1},{"$f":"+'CAJON 11'!H18","v":1},{"$f":"+'CAJON 11'!J18","v":0},{"$f":"+'CAJON 11'!K18","v":0},{"$f":"+'CAJON 11'!L18","v":0},{"$f":"IF('CAJON 11'!M18<>\"\",'CAJON 11'!M18,\"\")","v":""},{"$f":"IF(+J92=\"\",Sit!$B$1,IF(TODAY()>=ghost!J92,+Sit!$B$2,IF(TODAY()>=ghost!J92-30,Sit!$B$3,Sit!$B$4)))","v":"sin fecha de caducidad"},{"$f":"IF(identificacion!$G$11=\"\",\"\",IF(identificacion!$G$11<15,+ghost!D92-ROUND(ghost!G92,0),IF(identificacion!$G$11>20,ghost!F92-ROUND(ghost!I92,0),ghost!E92-ROUND(ghost!H92,0))))","v":""},"No procede: falta nº de tripulantes",{"$f":"IF(identificacion!$G$11=\"\",\"\",IF(identificacion!$G$11<15,+ghost!D92,IF(identificacion!$G$11>20,ghost!F92,ghost!E92)))","v":""},"unidad",{"$f":"IF(identificacion!$G$11=\"\",\"\",IF(identificacion!$G$11<15,ROUND(ghost!G92,0),IF(identificacion!$G$11>20,ROUND(ghost!I92,0),ROUND(ghost!H92,0))))","v":""},{"$f":"+'Consulta de caducidades'!G97","v":0},"","91",null,"GUÍA SANITARIA A BORDO"]
[11,null,{"$f":"+'CAJON 11'!A19","v":"-LINTERNA DE BOLSILLO CON FILTRO AZUL Y CON PILAS DE REPUESTO"},{"$f":"+'CAJON 11'!D19","v":1},{"$f":"+'CAJON 11'!F19","v":1},{"$f":"+'CAJON 11'!H19","v":1},{"$f":"+'CAJON 11'!J19","v":0},{"$f":"+'CAJON 11'!K19","v":0},{"$f":"+'CAJON 11'!L19","v":0},{"$f":"IF('CAJON 11'!M19<>\"\",'CAJON 11'!M19,\"\")","v":""},{"$f":"IF(+J93=\"\",Sit!$B$1,IF(TODAY()>=ghost!J93,+Sit!$B$2,IF(TODAY()>=ghost!J93-30,Sit!$B$3,Sit!$B$4)))","v":"sin fecha de caducidad"},{"$f":"IF(identificacion!$G$11=\"\",\"\",IF(identificacion!$G$11<15,+ghost!D93-ROUND(ghost!G93,0),IF(identificacion!$G$11>20,ghost!F93-ROUND(ghost!I93,0),ghost!E93-ROUND(ghost!H93,0))))","v":""},"No procede: falta nº de tripulantes",{"$f":"IF(identificacion!$G$11=\"\",\"\",IF(identificacion!$G$11<15,+ghost!D93,IF(identificacion!$G$11>20,ghost!F93,ghost!E93)))","v":""},"unidad",{"$f":"IF(identificacion!$G$11=\"\",\"\",IF(identificacion!$G$11<15,ROUND(ghost!G93,0),IF(identificacion!$G$11>20,ROUND(ghost!I93,0),ROUND(ghost!H93,0))))","v":""},{"$f":"+'Consulta de caducidades'!G98","v":0},"","92",null,"LINTERNA DE BOLSILLO CON FILTRO AZUL Y CON PILAS DE REPUESTO"]
[11,null,{"$f":"+'CAJON 11'!A20","v":"-LENTE DE AUMENTO IRROMPIBLE CON MANGO"},{"$f":"+'CAJON 11'!D20","v":1},{"$f":"+'CAJON 11'!F20","v":1},{"$f":"+'CAJON 11'!H20","v":1},{"$f":"+'CAJON 11'!J20","v":0},{"$f":"+'CAJON 11'!K20","v":0},{"$f":"+'CAJON 11'!L20","v":0},{"$f":"IF('CAJON 11'!M20<>\"\",'CAJON 11'!M20,\"\")","v":""},{"$f":"IF(+J94=\"\",Sit!$B$1,IF(TODAY()>=ghost!J94,+Sit!$B$2,IF(TODAY()>=ghost!J94-30,Sit!$B$3,Sit!$B$4)))","v":"sin fecha de caducidad"},{"$f":"IF(identificacion!$G$11=\"\",\"\",IF(identificacion!$G$11<15,+ghost!D94-ROUND(ghost!G94,0),IF(identificacion!$G$11>20,ghost!F94-ROUND(ghost!I94,0),ghost!E94-ROUND(ghost!H94,0))))","v":""},"No procede: falta nº de tripulantes",{"$f":"IF(identificacion!$G$11=\"\",\"\",IF(identificacion!$G$11<15,+ghost!D94,IF(identificacion!$G$11>20,ghost!F94,ghost!E94)))","v":""},"unidad",{"$f":"IF(identificacion!$G$11=\"\",\"\",IF(identificacion!$G$11<15,ROUND(ghost!G94,0),IF(identificacion!$G$11>20,ROUND(ghost!I94,0),ROUND(ghost!H94,0))))","v":""},{"$f":"+'Consulta de caducidades'!G99","v":0},"","93",null,"LENTE DE AUMENTO IRROMPIBLE CON MANGO"]
[11,null,{"$f":"+'CAJON 11'!A21","v":"-TIRAS DE ORINA COLORIMÉTRICAS MULTITEST 8 PARÁMETROS MINIMO. Caja 100 uds."},{"$f":"+'CAJON 11'!D21","v":1},{"$f":"+'CAJON 11'!F21","v":1},{"$f":"+'CAJON 11'!H21","v":1},{"$f":"+'CAJON 11'!J21","v":0},{"$f":"+'CAJON 11'!K21","v":0},{"$f":"+'CAJON 11'!L21","v":0},{"$f":"IF('CAJON 11'!M21<>\"\",'CAJON 11'!M21,\"\")","v":""},{"$f":"IF(+J95=\"\",Sit!$B$1,IF(TODAY()>=ghost!J95,+Sit!$B$2,IF(TODAY()>=ghost!J95-30,Sit!$B$3,Sit!$B$4)))","v":"sin fecha de caducidad"},{"$f":"IF(identificacion!$G$11=\"\",\"\",IF(identificacion!$G$11<15,+ghost!D95-ROUND(ghost!G95,0),IF(identificacion!$G$11>20,ghost!F95-ROUND(ghost!I95,0),ghost!E95-ROUND(ghost!H95,0))))","v":""},"No procede: falta nº de tripulantes",{"$f":"IF(identificacion!$G$11=\"\",\"\",IF(identificacion!$G$11<15,+ghost!D95,IF(identificacion!$G$11>20,ghost!F95,ghost!E95)))","v":""},"caja",{"$f":"IF(identificacion!$G$11=\"\",\"\",IF(identificacion!$G$11<15,ROUND(ghost!G95,0),IF(identificacion!$G$11>20,ROUND(ghost!I95,0),ROUND(ghost!H95,0))))","v":""},{"$f":"+'Consulta de caducidades'!G100","v":0},"","94",null,"TIRAS DE ORINA COLORIMÉTRICAS MULTITEST 8 PARÁMETROS MINIMO. Caja 100 U"]
[11,null,{"$f":"+'CAJON 11'!A22","v":"-TIRAS REACTIVAS PARA ANÁLISIS DE GLUCOSA EN SANGRE. Caja con 50 tiras"},{"$f":"+'CAJON 11'!D22","v":1},{"$f":"+'CAJON 11'!F22","v":1},{"$f":"+'CAJON 11'!H22","v":1},{"$f":"+'CAJON 11'!J22","v":0},{"$f":"+'CAJON 11'!K22","v":0},{"$f":"+'CAJON 11'!L22","v":0},{"$f":"IF('CAJON 11'!M22<>\"\",'CAJON 11'!M22,\"\")","v":""},{"$f":"IF(+J96=\"\",Sit!$B$1,IF(TODAY()>=ghost!J96,+Sit!$B$2,IF(TODAY()>=ghost!J96-30,Sit!$B$3,Sit!$B$4)))","v":"sin fecha de caducidad"},{"$f":"IF(identificacion!$G$11=\"\",\"\",IF(identificacion!$G$11<15,+ghost!D96-ROUND(ghost!G96,0),IF(identificacion!$G$11>20,ghost!F96-ROUND(ghost!I96,0),ghost!E96-ROUND(ghost!H96,0))))","v":""},"No procede: falta nº de tripulantes",{"$f":"IF(identificacion!$G$11=\"\",\"\",IF(identificacion!$G$11<15,+ghost!D96,IF(identificacion!$G$11>20,ghost!F96,ghost!E96)))","v":""},"unidad",{"$f":"IF(identificacion!$G$11=\"\",\"\",IF(identificacion!$G$11<15,ROUND(ghost!G96,0),IF(identificacion!$G$11>20,ROUND(ghost!I96,0),ROUND(ghost!H96,0))))","v":""},{"$f":"+'Consulta de caducidades'!G101","v":0},"","95",null,"TIRAS REACTIVAS PARA ANÁLISIS DE GLUCOSA EN SANGRE. Caja con 50 tiras"]
[11,null,{"$f":"+'CAJON 11'!A23","v":"-RECIPIENTE ESTÉRIL PARA MUESTRAS DE ORINA"},{"$f":"+'CAJON 11'!D23","v":2},{"$f":"+'CAJON 11'!F23","v":3},{"$f":"+'CAJON 11'!H23","v":4},{"$f":"+'CAJON 11'!J23","v":0},{"$f":"+'CAJON 11'!K23","v":0},{"$f":"+'CAJON 11'!L23","v":0},{"$f":"IF('CAJON 11'!M23<>\"\",'CAJON 11'!M23,\"\")","v":""},{"$f":"IF(+J97=\"\",Sit!$B$1,IF(TODAY()>=ghost!J97,+Sit!$B$2,IF(TODAY()>=ghost!J97-30,Sit!$B$3,Sit!$B$4)))","v":"sin fecha de caducidad"},{"$f":"IF(identificacion!$G$11=\"\",\"\",IF(identificacion!$G$11<15,+ghost!D97-ROUND(ghost!G97,0),IF(identificacion!$G$11>20,ghost!F97-ROUND(ghost!I97,0),ghost!E97-ROUND(ghost!H97,0))))","v":""},{"$f":"IF(L97=\"\",\"No procede: falta nº de tripulantes\",IF(L97=0,\"cantidad exigida\",IF(L97=1,CONCATENATE(\"falta \"& +L97 & \" unidad\"),IF(L97>1,CONCATENATE(\"faltan \"&+L97& \" unidades\"),IF(L97<0,\"dotación con excedentes\",\"Comprobar introducción de datos\")))))","v":"No procede: falta nº de tripulantes"},{"$f":"IF(identificacion!$G$11=\"\",\"\",IF(identificacion!$G$11<15,+ghost!D97,IF(identificacion!$G$11>20,ghost!F97,ghost!E97)))","v":""},"unidades",{"$f":"IF(identificacion!$G$11=\"\",\"\",IF(identificacion!$G$11<15,ROUND(ghost!G97,0),IF(identificacion!$G$11>20,ROUND(ghost!I97,0),ROUND(ghost!H97,0))))","v":""},{"$f":"+'Consulta de caducidades'!G102","v":0},"","96",null,"RECIPIENTE ESTÉRIL PARA MUESTRAS DE ORINA"]
[11,null,{"$f":"+'CAJON 11'!A24","v":"-TEST RÁPIDO PARA PALUDISMO (d)"},{"$f":"+'CAJON 11'!D24","v":20},{"$f":"+'CAJON 11'!F24","v":20},{"$f":"+'CAJON 11'!H24","v":20},{"$f":"+'CAJON 11'!J24","v":0},{"$f":"+'CAJON 11'!K24","v":0},{"$f":"+'CAJON 11'!L24","v":0},{"$f":"IF('CAJON 11'!M24<>\"\",'CAJON 11'!M24,\"\")","v":""},{"$f":"IF(+J98=\"\",Sit!$B$1,IF(TODAY()>=ghost!J98,+Sit!$B$2,IF(TODAY()>=ghost!J98-30,Sit!$B$3,Sit!$B$4)))","v":"sin fecha de caducidad"},{"$f":"IF(identificacion!$G$11=\"\",\"\",IF(identificacion!$G$11<15,+ghost!D98-ROUND(ghost!G98,0),IF(identificacion!$G$11>20,ghost!F98-ROUND(ghost!I98,0),ghost!E98-ROUND(ghost!H98,0))))","v":""},{"$f":"IF(L98=\"\",\"No procede: falta nº de tripulantes\",IF(L98=0,\"cantidad exigida\",IF(L98=1,CONCATENATE(\"falta \"& +L98 & \" unidad\"),IF(L98>1,CONCATENATE(\"faltan \"&+L98& \" unidades\"),IF(L98<0,\"dotación con excedentes\",\"Comprobar introducción de datos\")))))","v":"No procede: falta nº de tripulantes"},{"$f":"IF(identificacion!$G$11=\"\",\"\",IF(identificacion!$G$11<15,+ghost!D98,IF(identificacion!$G$11>20,ghost!F98,ghost!E98)))","v":""},"unidades",{"$f":"IF(identificacion!$G$11=\"\",\"\",IF(identificacion!$G$11<15,ROUND(ghost!G98,0),IF(identificacion!$G$11>20,ROUND(ghost!I98,0),ROUND(ghost!H98,0))))","v":""},{"$f":"+'Consulta de caducidades'!G103","v":0},"","97",null,"TEST RÁPIDO PARA PALUDISMO (d)",null,"(d) Solo deben llevarlo los buques que frecuenten o faenen en zonas palúdicas"]
[11,null,{"$f":"+'CAJON 11'!A25","v":"-GAFAS INTEGRALES DE PROTECCIÓN FRENTE A RIESGO BIOLÓGICO"},{"$f":"+'CAJON 11'!D25","v":2},{"$f":"+'CAJON 11'!F25","v":2},{"$f":"+'CAJON 11'!H25","v":2},{"$f":"+'CAJON 11'!J25","v":0},{"$f":"+'CAJON 11'!K25","v":0},{"$f":"+'CAJON 11'!L25","v":0},{"$f":"IF('CAJON 11'!M25<>\"\",'CAJON 11'!M25,\"\")","v":""},{"$f":"IF(+J99=\"\",Sit!$B$1,IF(TODAY()>=ghost!J99,+Sit!$B$2,IF(TODAY()>=ghost!J99-30,Sit!$B$3,Sit!$B$4)))","v":"sin fecha de caducidad"},{"$f":"IF(identificacion!$G$11=\"\",\"\",IF(identificacion!$G$11<15,+ghost!D99-ROUND(ghost!G99,0),IF(identificacion!$G$11>20,ghost!F99-ROUND(ghost!I99,0),ghost!E99-ROUND(ghost!H99,0))))","v":""},"No procede: falta nº de tripulantes",{"$f":"IF(identificacion!$G$11=\"\",\"\",IF(identificacion!$G$11<15,+ghost!D99,IF(identificacion!$G$11>20,ghost!F99,ghost!E99)))","v":""},"unidades",{"$f":"IF(identificacion!$G$11=\"\",\"\",IF(identificacion!$G$11<15,ROUND(ghost!G99,0),IF(identificacion!$G$11>20,ROUND(ghost!I99,0),ROUND(ghost!H99,0))))","v":""},{"$f":"+'Consulta de caducidades'!G104","v":0},"","98",null,"GAFAS INTEGRALES DE PROTECCIÓN FRENTE A RIESGO BIOLÓGICO"]
[11,null,{"$f":"+'CAJON 11'!A26","v":"-MASCARILLAS DE PROTECCIÓN FRENTE A RIESGO BIOLÓGICO tipo FFP2"},{"$f":"+'CAJON 11'!D26","v":10},{"$f":"+'CAJON 11'!F26","v":10},{"$f":"+'CAJON 11'!H26","v":10},{"$f":"+'CAJON 11'!J26","v":0},{"$f":"+'CAJON 11'!K26","v":0},{"$f":"+'CAJON 11'!L26","v":0},{"$f":"IF('CAJON 11'!M26<>\"\",'CAJON 11'!M26,\"\")","v":""},{"$f":"IF(+J100=\"\",Sit!$B$1,IF(TODAY()>=ghost!J100,+Sit!$B$2,IF(TODAY()>=ghost!J100-30,Sit!$B$3,Sit!$B$4)))","v":"sin fecha de caducidad"},{"$f":"IF(identificacion!$G$11=\"\",\"\",IF(identificacion!$G$11<15,+ghost!D100-ROUND(ghost!G100,0),IF(identificacion!$G$11>20,ghost!F100-ROUND(ghost!I100,0),ghost!E100-ROUND(ghost!H100,0))))","v":""},"No procede: falta nº de tripulantes",{"$f":"IF(identificacion!$G$11=\"\",\"\",IF(identificacion!$G$11<15,+ghost!D100,IF(identificacion!$G$11>20,ghost!F100,ghost!E100)))","v":""},"unidades",{"$f":"IF(identificacion!$G$11=\"\",\"\",IF(identificacion!$G$11<15,ROUND(ghost!G100,0),IF(identificacion!$G$11>20,ROUND(ghost!I100,0),ROUND(ghost!H100,0))))","v":""},{"$f":"+'Consulta de caducidades'!G105","v":0},"","99",null,"MASCARILLAS DE PROTECCIÓN FRENTE A RIESGO BIOLÓGICO tipo FFP2"]
[12,null,{"$f":"+'CAJON 12'!A9","v":"-GRAPADORAS DESECHABLES PARA SUTURA. Caja con 12 grapadoras de 5 grapas."},{"$f":"+'CAJON 12'!D9","v":1},{"$f":"+'CAJON 12'!F9","v":1},{"$f":"+'CAJON 12'!H9","v":1},{"$f":"+'CAJON 12'!J9","v":0},{"$f":"+'CAJON 12'!K9","v":0},{"$f":"+'CAJON 12'!L9","v":0},{"$f":"IF('CAJON 12'!M9<>\"\",'CAJON 12'!M9,\"\")","v":""},{"$f":"IF(+J101=\"\",Sit!$B$1,IF(TODAY()>=ghost!J101,+Sit!$B$2,IF(TODAY()>=ghost!J101-30,Sit!$B$3,Sit!$B$4)))","v":"sin fecha de caducidad"},{"$f":"IF(identificacion!$G$11=\"\",\"\",IF(identificacion!$G$11<15,+ghost!D101-ROUND(ghost!G101,0),IF(identificacion!$G$11>20,ghost!F101-ROUND(ghost!I101,0),ghost!E101-ROUND(ghost!H101,0))))","v":""},"No procede: falta nº de tripulantes",{"$f":"IF(identificacion!$G$11=\"\",\"\",IF(identificacion!$G$11<15,+ghost!D101,IF(identificacion!$G$11>20,ghost!F101,ghost!E101)))","v":""},"caja",{"$f":"IF(identificacion!$G$11=\"\",\"\",IF(identificacion!$G$11<15,ROUND(ghost!G101,0),IF(identificacion!$G$11>20,ROUND(ghost!I101,0),ROUND(ghost!H101,0))))","v":""},{"$f":"+'Consulta de caducidades'!G106","v":0},"","100",null,"GRAPADORAS DESECHABLES PARA SUTURA. Caja con 12 grapadoras de 5 grapas."]
[12,null,{"$f":"+'CAJON 12'!A10","v":"-TIJERAS QUITA-GRAPAS"},{"$f":"+'CAJON 12'!D10","v":2},{"$f":"+'CAJON 12'!F10","v":3},{"$f":"+'CAJON 12'!H10","v":3},{"$f":"+'CAJON 12'!J10","v":0},{"$f":"+'CAJON 12'!K10","v":0},{"$f":"+'CAJON 12'!L10","v":0},{"$f":"IF('CAJON 12'!M10<>\"\",'CAJON 12'!M10,\"\")","v":""},{"$f":"IF(+J102=\"\",Sit!$B$1,IF(TODAY()>=ghost!J102,+Sit!$B$2,IF(TODAY()>=ghost!J102-30,Sit!$B$3,Sit!$B$4)))","v":"sin fecha de caducidad"},{"$f":"IF(identificacion!$G$11=\"\",\"\",IF(identificacion!$G$11<15,+ghost!D102-ROUND(ghost!G102,0),IF(identificacion!$G$11>20,ghost!F102-ROUND(ghost!I102,0),ghost!E102-ROUND(ghost!H102,0))))","v":""},"No procede: falta nº de tripulantes",{"$f":"IF(identificacion!$G$11=\"\",\"\",IF(identificacion!$G$11<15,+ghost!D102,IF(identificacion!$G$11>20,ghost!F102,ghost!E102)))","v":""},"unidades",{"$f":"IF(identificacion!$G$11=\"\",\"\",IF(identificacion!$G$11<15,ROUND(ghost!G102,0),IF(identificacion!$G$11>20,ROUND(ghost!I102,0),ROUND(ghost!H102,0))))","v":""},{"$f":"+'Consulta de caducidades'!G107","v":0},"","101",null,"TIJERAS QUITA-GRAPAS"]
[12,null,{"$f":"+'CAJON 12'!A11","v":"-SUTURAS CUTÁNEAS ESTÉRILES 6mm x 102 mm, 5U/paquete"},{"$f":"+'CAJON 12'!D11","v":2},{"$f":"+'CAJON 12'!F11","v":3},{"$f":"+'CAJON 12'!H11","v":4},{"$f":"+'CAJON 12'!J11","v":0},{"$f":"+'CAJON 12'!K11","v":0},{"$f":"+'CAJON 12'!L11","v":0},{"$f":"IF('CAJON 12'!M11<>\"\",'CAJON 12'!M11,\"\")","v":""},{"$f":"IF(+J103=\"\",Sit!$B$1,IF(TODAY()>=ghost!J103,+Sit!$B$2,IF(TODAY()>=ghost!J103-30,Sit!$B$3,Sit!$B$4)))","v":"sin fecha de caducidad"},{"$f":"IF(identificacion!$G$11=\"\",\"\",IF(identificacion!$G$11<15,+ghost!D103-ROUND(ghost!G103,0),IF(identificacion!$G$11>20,ghost!F103-ROUND(ghost!I103,0),ghost!E103-ROUND(ghost!H103,0))))","v":""},"No procede: falta nº de tripulantes",{"$f":"IF(identificacion!$G$11=\"\",\"\",IF(identificacion!$G$11<15,+ghost!D103,IF(identificacion!$G$11>20,ghost!F103,ghost!E103)))","v":""},"paquetes",{"$f":"IF(identificacion!$G$11=\"\",\"\",IF(identificacion!$G$11<15,ROUND(ghost!G103,0),IF(identificacion!$G$11>20,ROUND(ghost!I103,0),ROUND(ghost!H103,0))))","v":""},{"$f":"+'Consulta de caducidades'!G108","v":0},"","102",null,"SUTURAS CUTÁNEAS ESTÉRILES 6mm x 102 mm, 5U/paquete"]
[12,null,{"$f":"+'CAJON 12'!A12","v":"-SUTURAS NO ABSORBIBLE de 3 CEROS (000), CON AGUJA. Paquete individual"},{"$f":"+'CAJON 12'!D12","v":3},{"$f":"+'CAJON 12'!F12","v":4},{"$f":"+'CAJON 12'!H12","v":5},{"$f":"+'CAJON 12'!J12","v":0},{"$f":"+'CAJON 12'!K12","v":0},{"$f":"+'CAJON 12'!L12","v":0},{"$f":"IF('CAJON 12'!M12<>\"\",'CAJON 12'!M12,\"\")","v":""},{"$f":"IF(+J104=\"\",Sit!$B$1,IF(TODAY()>=ghost!J104,+Sit!$B$2,IF(TODAY()>=ghost!J104-30,Sit!$B$3,Sit!$B$4)))","v":"sin fecha de caducidad"},{"$f":"IF(identificacion!$G$11=\"\",\"\",IF(identificacion!$G$11<15,+ghost!D104-ROUND(ghost!G104,0),IF(identificacion!$G$11>20,ghost!F104-ROUND(ghost!I104,0),ghost!E104-ROUND(ghost!H104,0))))","v":""},"No procede: falta nº de tripulantes",{"$f":"IF(identificacion!$G$11=\"\",\"\",IF(identificacion!$G$11<15,+ghost!D104,IF(identificacion!$G$11>20,ghost!F104,ghost!E104)))","v":""},"unidades",{"$f":"IF(identificacion!$G$11=\"\",\"\",IF(identificacion!$G$11<15,ROUND(ghost!G104,0),IF(identificacion!$G$11>20,ROUND(ghost!I104,0),ROUND(ghost!H104,0))))","v":""},{"$f":"+'Consulta de caducidades'!G109","v":0},"","103",null,"SUTURAS NO ABSORBIBLE de 3 CEROS (000), CON AGUJA. Paquete individual"]
[12,null,{"$f":"+'CAJON 12'!A13","v":"-BANDA ELÁSTICA DE VELCRO O COMPRESOR DE GOMA ELÁSTICA"},{"$f":"+'CAJON 12'!D13","v":1},{"$f":"+'CAJON 12'!F13","v":1},{"$f":"+'CAJON 12'!H13","v":1},{"$f":"+'CAJON 12'!J13","v":0},{"$f":"+'CAJON 12'!K13","v":0},{"$f":"+'CAJON 12'!L13","v":0},{"$f":"IF('CAJON 12'!M13<>\"\",'CAJON 12'!M13,\"\")","v":""},{"$f":"IF(+J105=\"\",Sit!$B$1,IF(TODAY()>=ghost!J105,+Sit!$B$2,IF(TODAY()>=ghost!J105-30,Sit!$B$3,Sit!$B$4)))","v":"sin fecha de caducidad"},{"$f":"IF(identificacion!$G$11=\"\",\"\",IF(identificacion!$G$11<15,+ghost!D105-ROUND(ghost!G105,0),IF(identificacion!$G$11>20,ghost!F105-ROUND(ghost!I105,0),ghost!E105-ROUND(ghost!H105,0))))","v":""},"No procede: falta nº de tripulantes",{"$f":"IF(identificacion!$G$11=\"\",\"\",IF(identificacion!$G$11<15,+ghost!D105,IF(identificacion!$G$11>20,ghost!F105,ghost!E105)))","v":""},"unidad",{"$f":"IF(identificacion!$G$11=\"\",\"\",IF(identificacion!$G$11<15,ROUND(ghost!G105,0),IF(identificacion!$G$11>20,ROUND(ghost!I105,0),ROUND(ghost!H105,0))))","v":""},{"$f":"+'Consulta de caducidades'!G110","v":0},"","104",null,"BANDA ELÁSTICA DE VELCRO O COMPRESOR DE GOMA ELÁSTICA"]
[12,null,{"$f":"+'CAJON 12'!A14","v":"-BISTURÍES DESECHABLES CON MANGO del Núm. 15 Paquetes individuales estériles"},{"$f":"+'CAJON 12'!D14","v":5},{"$f":"+'CAJON 12'!F14","v":7},{"$f":"+'CAJON 12'!H14","v":10},{"$f":"+'CAJON 12'!J14","v":0},{"$f":"+'CAJON 12'!K14","v":0},{"$f":"+'CAJON 12'!L14","v":0},{"$f":"IF('CAJON 12'!M14<>\"\",'CAJON 12'!M14,\"\")","v":""},{"$f":"IF(+J106=\"\",Sit!$B$1,IF(TODAY()>=ghost!J106,+Sit!$B$2,IF(TODAY()>=ghost!J106-30,Sit!$B$3,Sit!$B$4)))","v":"sin fecha de caducidad"},{"$f":"IF(identificacion!$G$11=\"\",\"\",IF(identificacion!$G$11<15,+ghost!D106-ROUND(ghost!G106,0),IF(identificacion!$G$11>20,ghost!F106-ROUND(ghost!I106,0),ghost!E106-ROUND(ghost!H106,0))))","v":""},"No procede: falta nº de tripulantes",{"$f":"IF(identificacion!$G$11=\"\",\"\",IF(identificacion!$G$11<15,+ghost!D106,IF(identificacion!$G$11>20,ghost!F106,ghost!E106)))","v":""},"unidades",{"$f":"IF(identificacion!$G$11=\"\",\"\",IF(identificacion!$G$11<15,ROUND(ghost!G106,0),IF(identificacion!$G$11>20,ROUND(ghost!I106,0),ROUND(ghost!H106,0))))","v":""},{"$f":"+'Consulta de caducidades'!G111","v":0},"","105",null,"BISTURÍES DESECHABLES CON MANGO del Núm. 15 Paquetes individuales estériles"]
[12,null,{"$f":"+'CAJON 12'!A15","v":"-CAJA PARA INSTRUMENTAL DE ACERO INOXIDABLE de 20x10x5 cm. (aprox.)"},{"$f":"+'CAJON 12'!D15","v":1},{"$f":"+'CAJON 12'!F15","v":1},{"$f":"+'CAJON 12'!H15","v":1},{"$f":"+'CAJON 12'!J15","v":0},{"$f":"+'CAJON 12'!K15","v":0},{"$f":"+'CAJON 12'!L15","v":0},{"$f":"IF('CAJON 12'!M15<>\"\",'CAJON 12'!M15,\"\")","v":""},{"$f":"IF(+J107=\"\",Sit!$B$1,IF(TODAY()>=ghost!J107,+Sit!$B$2,IF(TODAY()>=ghost!J107-30,Sit!$B$3,Sit!$B$4)))","v":"sin fecha de caducidad"},{"$f":"IF(identificacion!$G$11=\"\",\"\",IF(identificacion!$G$11<15,+ghost!D107-ROUND(ghost!G107,0),IF(identificacion!$G$11>20,ghost!F107-ROUND(ghost!I107,0),ghost!E107-ROUND(ghost!H107,0))))","v":""},"No procede: falta nº de tripulantes",{"$f":"IF(identificacion!$G$11=\"\",\"\",IF(identificacion!$G$11<15,+ghost!D107,IF(identificacion!$G$11>20,ghost!F107,ghost!E107)))","v":""},"unidad",{"$f":"IF(identificacion!$G$11=\"\",\"\",IF(identificacion!$G$11<15,ROUND(ghost!G107,0),IF(identificacion!$G$11>20,ROUND(ghost!I107,0),ROUND(ghost!H107,0))))","v":""},{"$f":"+'Consulta de caducidades'!G112","v":0},"","106",null,"CAJA PARA INSTRUMENTAL DE ACERO INOXIDABLE de 20x10x5 cm. (aprox.)"]
[12,null,{"$f":"+'CAJON 12'!A16","v":"-TIJERA RECTA AGUDA"},{"$f":"+'CAJON 12'!D16","v":1},{"$f":"+'CAJON 12'!F16","v":1},{"$f":"+'CAJON 12'!H16","v":1},{"$f":"+'CAJON 12'!J16","v":0},{"$f":"+'CAJON 12'!K16","v":0},{"$f":"+'CAJON 12'!L16","v":0},{"$f":"IF('CAJON 12'!M16<>\"\",'CAJON 12'!M16,\"\")","v":""},{"$f":"IF(+J108=\"\",Sit!$B$1,IF(TODAY()>=ghost!J108,+Sit!$B$2,IF(TODAY()>=ghost!J108-30,Sit!$B$3,Sit!$B$4)))","v":"sin fecha de caducidad"},{"$f":"IF(identificacion!$G$11=\"\",\"\",IF(identificacion!$G$11<15,+ghost!D108-ROUND(ghost!G108,0),IF(identificacion!$G$11>20,ghost!F108-ROUND(ghost!I108,0),ghost!E108-ROUND(ghost!H108,0))))","v":""},"No procede: falta nº de tripulantes",{"$f":"IF(identificacion!$G$11=\"\",\"\",IF(identificacion!$G$11<15,+ghost!D108,IF(identificacion!$G$11>20,ghost!F108,ghost!E108)))","v":""},"unidad",{"$f":"IF(identificacion!$G$11=\"\",\"\",IF(identificacion!$G$11<15,ROUND(ghost!G108,0),IF(identificacion!$G$11>20,ROUND(ghost!I108,0),ROUND(ghost!H108,0))))","v":""},{"$f":"+'Consulta de caducidades'!G113","v":0},"","107",null,"TIJERA RECTA AGUDA"]
[12,null,{"$f":"+'CAJON 12'!A17","v":"-TIJERA RECTA ROMA"},{"$f":"+'CAJON 12'!D17","v":1},{"$f":"+'CAJON 12'!F17","v":1},{"$f":"+'CAJON 12'!H17","v":1},{"$f":"+'CAJON 12'!J17","v":0},{"$f":"+'CAJON 12'!K17","v":0},{"$f":"+'CAJON 12'!L17","v":0},{"$f":"IF('CAJON 12'!M17<>\"\",'CAJON 12'!M17,\"\")","v":""},{"$f":"IF(+J109=\"\",Sit!$B$1,IF(TODAY()>=ghost!J109,+Sit!$B$2,IF(TODAY()>=ghost!J109-30,Sit!$B$3,Sit!$B$4)))","v":"sin fecha de caducidad"},{"$f":"IF(identificacion!$G$11=\"\",\"\",IF(identificacion!$G$11<15,+ghost!D109-ROUND(ghost!G109,0),IF(identificacion!$G$11>20,ghost!F109-ROUND(ghost!I109,0),ghost!E109-ROUND(ghost!H109,0))))","v":""},"No procede: falta nº de tripulantes",{"$f":"IF(identificacion!$G$11=\"\",\"\",IF(identificacion!$G$11<15,+ghost!D109,IF(identificacion!$G$11>20,ghost!F109,ghost!E109)))","v":""},"unidad",{"$f":"IF(identificacion!$G$11=\"\",\"\",IF(identificacion!$G$11<15,ROUND(ghost!G109,0),IF(identificacion!$G$11>20,ROUND(ghost!I109,0),ROUND(ghost!H109,0))))","v":""},{"$f":"+'Consulta de caducidades'!G114","v":0},"","108",null,"TIJERA RECTA ROMA"]
[12,null,{"$f":"+'CAJON 12'!A18","v":"-PINZAS DE DISECCIÓN RECTAS SIN DIENTES"},{"$f":"+'CAJON 12'!D18","v":1},{"$f":"+'CAJON 12'!F18","v":1},{"$f":"+'CAJON 12'!H18","v":1},{"$f":"+'CAJON 12'!J18","v":0},{"$f":"+'CAJON 12'!K18","v":0},{"$f":"+'CAJON 12'!L18","v":0},{"$f":"IF('CAJON 12'!M18<>\"\",'CAJON 12'!M18,\"\")","v":""},{"$f":"IF(+J110=\"\",Sit!$B$1,IF(TODAY()>=ghost!J110,+Sit!$B$2,IF(TODAY()>=ghost!J110-30,Sit!$B$3,Sit!$B$4)))","v":"sin fecha de caducidad"},{"$f":"IF(identificacion!$G$11=\"\",\"\",IF(identificacion!$G$11<15,+ghost!D110-ROUND(ghost!G110,0),IF(identificacion!$G$11>20,ghost!F110-ROUND(ghost!I110,0),ghost!E110-ROUND(ghost!H110,0))))","v":""},"No procede: falta nº de tripulantes",{"$f":"IF(identificacion!$G$11=\"\",\"\",IF(identificacion!$G$11<15,+ghost!D110,IF(identificacion!$G$11>20,ghost!F110,ghost!E110)))","v":""},"unidad",{"$f":"IF(identificacion!$G$11=\"\",\"\",IF(identificacion!$G$11<15,ROUND(ghost!G110,0),IF(identificacion!$G$11>20,ROUND(ghost!I110,0),ROUND(ghost!H110,0))))","v":""},{"$f":"+'Consulta de caducidades'!G115","v":0},"","109",null,"PINZAS DE DISECCIÓN RECTAS SIN DIENTES"]
[12,null,{"$f":"+'CAJON 12'!A19","v":"-PINZAS HEMOSTÁTICAS RECTAS CON DIENTES"},{"$f":"+'CAJON 12'!D19","v":1},{"$f":"+'CAJON 12'!F19","v":1},{"$f":"+'CAJON 12'!H19","v":1},{"$f":"+'CAJON 12'!J19","v":0},{"$f":"+'CAJON 12'!K19","v":0},{"$f":"+'CAJON 12'!L19","v":0},{"$f":"IF('CAJON 12'!M19<>\"\",'CAJON 12'!M19,\"\")","v":""},{"$f":"IF(+J111=\"\",Sit!$B$1,IF(TODAY()>=ghost!J111,+Sit!$B$2,IF(TODAY()>=ghost!J111-30,Sit!$B$3,Sit!$B$4)))","v":"sin fecha de caducidad"},{"$f":"IF(identificacion!$G$11=\"\",\"\",IF(identificacion!$G$11<15,+ghost!D111-ROUND(ghost!G111,0),IF(identificacion!$G$11>20,ghost!F111-ROUND(ghost!I111,0),ghost!E111-ROUND(ghost!H111,0))))","v":""},"No procede: falta nº de tripulantes",{"$f":"IF(identificacion!$G$11=\"\",\"\",IF(identificacion!$G$11<15,+ghost!D111,IF(identificacion!$G$11>20,ghost!F111,ghost!E111)))","v":""},"unidad",{"$f":"IF(identificacion!$G$11=\"\",\"\",IF(identificacion!$G$11<15,ROUND(ghost!G111,0),IF(identificacion!$G$11>20,ROUND(ghost!I111,0),ROUND(ghost!H111,0))))","v":""},{"$f":"+'Consulta de caducidades'!G116","v":0},"","110",null,"PINZAS HEMOSTÁTICAS RECTAS CON DIENTES"]
[12,null,{"$f":"+'CAJON 12'!A20","v":"-PINZAS PORTAAGUJAS DE SUTURA Tipo «MAYO»"},{"$f":"+'CAJON 12'!D20","v":1},{"$f":"+'CAJON 12'!F20","v":1},{"$f":"+'CAJON 12'!H20","v":1},{"$f":"+'CAJON 12'!J20","v":0},{"$f":"+'CAJON 12'!K20","v":0},{"$f":"+'CAJON 12'!L20","v":0},{"$f":"IF('CAJON 12'!M20<>\"\",'CAJON 12'!M20,\"\")","v":""},{"$f":"IF(+J112=\"\",Sit!$B$1,IF(TODAY()>=ghost!J112,+Sit!$B$2,IF(TODAY()>=ghost!J112-30,Sit!$B$3,Sit!$B$4)))","v":"sin fecha de caducidad"},{"$f":"IF(identificacion!$G$11=\"\",\"\",IF(identificacion!$G$11<15,+ghost!D112-ROUND(ghost!G112,0),IF(identificacion!$G$11>20,ghost!F112-ROUND(ghost!I112,0),ghost!E112-ROUND(ghost!H112,0))))","v":""},"No procede: falta nº de tripulantes",{"$f":"IF(identificacion!$G$11=\"\",\"\",IF(identificacion!$G$11<15,+ghost!D112,IF(identificacion!$G$11>20,ghost!F112,ghost!E112)))","v":""},"unidad",{"$f":"IF(identificacion!$G$11=\"\",\"\",IF(identificacion!$G$11<15,ROUND(ghost!G112,0),IF(identificacion!$G$11>20,ROUND(ghost!I112,0),ROUND(ghost!H112,0))))","v":""},{"$f":"+'Consulta de caducidades'!G117","v":0},"","111",null,"PINZAS PORTAAGUJAS DE SUTURA Tipo «MAYO»"]
[12,null,{"$f":"+'CAJON 12'!A21","v":"-ESTUCHE PARA INFUSIÓN RECTAL"},{"$f":"+'CAJON 12'!D21","v":1},{"$f":"+'CAJON 12'!F21","v":1},{"$f":"+'CAJON 12'!H21","v":1},{"$f":"+'CAJON 12'!J21","v":0},{"$f":"+'CAJON 12'!K21","v":0},{"$f":"+'CAJON 12'!L21","v":0},{"$f":"IF('CAJON 12'!M21<>\"\",'CAJON 12'!M21,\"\")","v":""},{"$f":"IF(+J113=\"\",Sit!$B$1,IF(TODAY()>=ghost!J113,+Sit!$B$2,IF(TODAY()>=ghost!J113-30,Sit!$B$3,Sit!$B$4)))","v":"sin fecha de caducidad"},{"$f":"IF(identificacion!$G$11=\"\",\"\",IF(identificacion!$G$11<15,+ghost!D113-ROUND(ghost!G113,0),IF(identificacion!$G$11>20,ghost!F113-ROUND(ghost!I113,0),ghost!E113-ROUND(ghost!H113,0))))","v":""},"No procede: falta nº de tripulantes",{"$f":"IF(identificacion!$G$11=\"\",\"\",IF(identificacion!$G$11<15,+ghost!D113,IF(identificacion!$G$11>20,ghost!F113,ghost!E113)))","v":""},"unidad",{"$f":"IF(identificacion!$G$11=\"\",\"\",IF(identificacion!$G$11<15,ROUND(ghost!G113,0),IF(identificacion!$G$11>20,ROUND(ghost!I113,0),ROUND(ghost!H113,0))))","v":""},{"$f":"+'Consulta de caducidades'!G118","v":0},"","112",null,"ESTUCHE PARA INFUSIÓN RECTAL"]
[12,null,{"$f":"+'CAJON 12'!A22","v":"-SONDA URINARIA núm. 16"},{"$f":"+'CAJON 12'!D22","v":1},{"$f":"+'CAJON 12'!F22","v":1},{"$f":"+'CAJON 12'!H22","v":1},{"$f":"+'CAJON 12'!J22","v":0},{"$f":"+'CAJON 12'!K22","v":0},{"$f":"+'CAJON 12'!L22","v":0},{"$f":"IF('CAJON 12'!M22<>\"\",'CAJON 12'!M22,\"\")","v":""},{"$f":"IF(+J114=\"\",Sit!$B$1,IF(TODAY()>=ghost!J114,+Sit!$B$2,IF(TODAY()>=ghost!J114-30,Sit!$B$3,Sit!$B$4)))","v":"sin fecha de caducidad"},{"$f":"IF(identificacion!$G$11=\"\",\"\",IF(identificacion!$G$11<15,+ghost!D114-ROUND(ghost!G114,0),IF(identificacion!$G$11>20,ghost!F114-ROUND(ghost!I114,0),ghost!E114-ROUND(ghost!H114,0))))","v":""},"No procede: falta nº de tripulantes",{"$f":"IF(identificacion!$G$11=\"\",\"\",IF(identificacion!$G$11<15,+ghost!D114,IF(identificacion!$G$11>20,ghost!F114,ghost!E114)))","v":""},"unidad",{"$f":"IF(identificacion!$G$11=\"\",\"\",IF(identificacion!$G$11<15,ROUND(ghost!G114,0),IF(identificacion!$G$11>20,ROUND(ghost!I114,0),ROUND(ghost!H114,0))))","v":""},{"$f":"+'Consulta de caducidades'!G119","v":0},"","113",null,"SONDA URINARIA núm. 16"]
[12,null,{"$f":"+'CAJON 12'!A23","v":"-LUBRICANTE UROLÓGICO"},{"$f":"+'CAJON 12'!D23","v":1},{"$f":"+'CAJON 12'!F23","v":1},{"$f":"+'CAJON 12'!H23","v":1},{"$f":"+'CAJON 12'!J23","v":0},{"$f":"+'CAJON 12'!K23","v":0},{"$f":"+'CAJON 12'!L23","v":0},{"$f":"IF('CAJON 12'!M23<>\"\",'CAJON 12'!M23,\"\")","v":""},{"$f":"IF(+J115=\"\",Sit!$B$1,IF(TODAY()>=ghost!J115,+Sit!$B$2,IF(TODAY()>=ghost!J115-30,Sit!$B$3,Sit!$B$4)))","v":"sin fecha de caducidad"},{"$f":"IF(identificacion!$G$11=\"\",\"\",IF(identificacion!$G$11<15,+ghost!D115-ROUND(ghost!G115,0),IF(identificacion!$G$11>20,ghost!F115-ROUND(ghost!I115,0),ghost!E115-ROUND(ghost!H115,0))))","v":""},{"$f":"IF(L115=\"\",\"No procede: falta nº de tripulantes\",IF(L115=0,\"cantidad exigida\",IF(L115=1,CONCATENATE(\"falta \"& +L115 & \" unidad\"),IF(L115>1,CONCATENATE(\"faltan \"&+L115& \" unidades\"),IF(L115<0,\"dotación con excedentes\",\"Comprobar introducción de datos\")))))","v":"No procede: falta nº de tripulantes"},{"$f":"IF(identificacion!$G$11=\"\",\"\",IF(identificacion!$G$11<15,+ghost!D115,IF(identificacion!$G$11>20,ghost!F115,ghost!E115)))","v":""},"envase",{"$f":"IF(identificacion!$G$11=\"\",\"\",IF(identificacion!$G$11<15,ROUND(ghost!G115,0),IF(identificacion!$G$11>20,ROUND(ghost!I115,0),ROUND(ghost!H115,0))))","v":""},{"$f":"+'Consulta de caducidades'!G120","v":0},"","114",null,"LUBRICANTE UROLÓGICO"]
[12,null,{"$f":"+'CAJON 12'!A24","v":"-MAQUINILLAS DE AFEITAR DESECHABLES"},{"$f":"+'CAJON 12'!D24","v":5},{"$f":"+'CAJON 12'!F24","v":7},{"$f":"+'CAJON 12'!H24","v":10},{"$f":"+'CAJON 12'!J24","v":0},{"$f":"+'CAJON 12'!K24","v":0},{"$f":"+'CAJON 12'!L24","v":0},{"$f":"IF('CAJON 12'!M24<>\"\",'CAJON 12'!M24,\"\")","v":""},{"$f":"IF(+J116=\"\",Sit!$B$1,IF(TODAY()>=ghost!J116,+Sit!$B$2,IF(TODAY()>=ghost!J116-30,Sit!$B$3,Sit!$B$4)))","v":"sin fecha de caducidad"},{"$f":"IF(identificacion!$G$11=\"\",\"\",IF(identificacion!$G$11<15,+ghost!D116-ROUND(ghost!G116,0),IF(identificacion!$G$11>20,ghost!F116-ROUND(ghost!I116,0),ghost!E116-ROUND(ghost!H116,0))))","v":""},"No procede: falta nº de tripulantes",{"$f":"IF(identificacion!$G$11=\"\",\"\",IF(identificacion!$G$11<15,+ghost!D116,IF(identificacion!$G$11>20,ghost!F116,ghost!E116)))","v":""},"unidades",{"$f":"IF(identificacion!$G$11=\"\",\"\",IF(identificacion!$G$11<15,ROUND(ghost!G116,0),IF(identificacion!$G$11>20,ROUND(ghost!I116,0),ROUND(ghost!H116,0))))","v":""},{"$f":"+'Consulta de caducidades'!G121","v":0},"","115",null,"MAQUINILLAS DE AFEITAR DESECHABLES"]
[12,null,{"$f":"+'CAJON 12'!A25","v":"-BATEA ARRIÑONADA CON SOLAPA DE ACERO INOXIDABLE de 25 cm."},{"$f":"+'CAJON 12'!D25","v":1},{"$f":"+'CAJON 12'!F25","v":1},{"$f":"+'CAJON 12'!H25","v":1},{"$f":"+'CAJON 12'!J25","v":0},{"$f":"+'CAJON 12'!K25","v":0},{"$f":"+'CAJON 12'!L25","v":0},{"$f":"IF('CAJON 12'!M25<>\"\",'CAJON 12'!M25,\"\")","v":""},{"$f":"IF(+J117=\"\",Sit!$B$1,IF(TODAY()>=ghost!J117,+Sit!$B$2,IF(TODAY()>=ghost!J117-30,Sit!$B$3,Sit!$B$4)))","v":"sin fecha de caducidad"},{"$f":"IF(identificacion!$G$11=\"\",\"\",IF(identificacion!$G$11<15,+ghost!D117-ROUND(ghost!G117,0),IF(identificacion!$G$11>20,ghost!F117-ROUND(ghost!I117,0),ghost!E117-ROUND(ghost!H117,0))))","v":""},"No procede: falta nº de tripulantes",{"$f":"IF(identificacion!$G$11=\"\",\"\",IF(identificacion!$G$11<15,+ghost!D117,IF(identificacion!$G$11>20,ghost!F117,ghost!E117)))","v":""},"unidad",{"$f":"IF(identificacion!$G$11=\"\",\"\",IF(identificacion!$G$11<15,ROUND(ghost!G117,0),IF(identificacion!$G$11>20,ROUND(ghost!I117,0),ROUND(ghost!H117,0))))","v":""},{"$f":"+'Consulta de caducidades'!G122","v":0},"","116",null,"BATEA ARRIÑONADA CON SOLAPA DE ACERO INOXIDABLE de 25 cm."]
[12,null,{"$f":"+'CAJON 12'!A26","v":"-IMPERDIBLES DE SEGURIDAD DE ACERO INOXIDABLE. Varios tamaños"},{"$f":"+'CAJON 12'!D26","v":10},{"$f":"+'CAJON 12'!F26","v":10},{"$f":"+'CAJON 12'!H26","v":10},{"$f":"+'CAJON 12'!J26","v":0},{"$f":"+'CAJON 12'!K26","v":0},{"$f":"+'CAJON 12'!L26","v":0},{"$f":"IF('CAJON 12'!M26<>\"\",'CAJON 12'!M26,\"\")","v":""},{"$f":"IF(+J118=\"\",Sit!$B$1,IF(TODAY()>=ghost!J118,+Sit!$B$2,IF(TODAY()>=ghost!J118-30,Sit!$B$3,Sit!$B$4)))","v":"sin fecha de caducidad"},{"$f":"IF(identificacion!$G$11=\"\",\"\",IF(identificacion!$G$11<15,+ghost!D118-ROUND(ghost!G118,0),IF(identificacion!$G$11>20,ghost!F118-ROUND(ghost!I118,0),ghost!E118-ROUND(ghost!H118,0))))","v":""},"No procede: falta nº de tripulantes",{"$f":"IF(identificacion!$G$11=\"\",\"\",IF(identificacion!$G$11<15,+ghost!D118,IF(identificacion!$G$11>20,ghost!F118,ghost!E118)))","v":""},"unidades",{"$f":"IF(identificacion!$G$11=\"\",\"\",IF(identificacion!$G$11<15,ROUND(ghost!G118,0),IF(identificacion!$G$11>20,ROUND(ghost!I118,0),ROUND(ghost!H118,0))))","v":""},{"$f":"+'Consulta de caducidades'!G123","v":0},"","117",null,"IMPERDIBLES DE SEGURIDAD DE ACERO INOXIDABLE. Varios tamaños"]
[12,null,{"$f":"+'CAJON 12'!A27","v":"-LANCETAS. Caja con 50 unidades"},{"$f":"+'CAJON 12'!D27","v":1},{"$f":"+'CAJON 12'!F27","v":1},{"$f":"+'CAJON 12'!H27","v":1},{"$f":"+'CAJON 12'!J27","v":0},{"$f":"+'CAJON 12'!K27","v":0},{"$f":"+'CAJON 12'!L27","v":0},{"$f":"IF('CAJON 12'!M27<>\"\",'CAJON 12'!M27,\"\")","v":""},{"$f":"IF(+J119=\"\",Sit!$B$1,IF(TODAY()>=ghost!J119,+Sit!$B$2,IF(TODAY()>=ghost!J119-30,Sit!$B$3,Sit!$B$4)))","v":"sin fecha de caducidad"},{"$f":"IF(identificacion!$G$11=\"\",\"\",IF(identificacion!$G$11<15,+ghost!D119-ROUND(ghost!G119,0),IF(identificacion!$G$11>20,ghost!F119-ROUND(ghost!I119,0),ghost!E119-ROUND(ghost!H119,0))))","v":""},"No procede: falta nº de tripulantes",{"$f":"IF(identificacion!$G$11=\"\",\"\",IF(identificacion!$G$11<15,+ghost!D119,IF(identificacion!$G$11>20,ghost!F119,ghost!E119)))","v":""},"caja",{"$f":"IF(identificacion!$G$11=\"\",\"\",IF(identificacion!$G$11<15,ROUND(ghost!G119,0),IF(identificacion!$G$11>20,ROUND(ghost!I119,0),ROUND(ghost!H119,0))))","v":""},{"$f":"+'Consulta de caducidades'!G124","v":0},"","118",null,"LANCETAS. Caja con 50 unidades"]
[12,null,{"$f":"+'CAJON 12'!A28","v":"-BASTONCILLOS CON TORUNDA DE ALGODÓN PARA LIMPIEZA"},{"$f":"+'CAJON 12'!D28","v":1},{"$f":"+'CAJON 12'!F28","v":1},{"$f":"+'CAJON 12'!H28","v":1},{"$f":"+'CAJON 12'!J28","v":0},{"$f":"+'CAJON 12'!K28","v":0},{"$f":"+'CAJON 12'!L28","v":0},{"$f":"IF('CAJON 12'!M28<>\"\",'CAJON 12'!M28,\"\")","v":""},{"$f":"IF(+J120=\"\",Sit!$B$1,IF(TODAY()>=ghost!J120,+Sit!$B$2,IF(TODAY()>=ghost!J120-30,Sit!$B$3,Sit!$B$4)))","v":"sin fecha de caducidad"},{"$f":"IF(identificacion!$G$11=\"\",\"\",IF(identificacion!$G$11<15,+ghost!D120-ROUND(ghost!G120,0),IF(identificacion!$G$11>20,ghost!F120-ROUND(ghost!I120,0),ghost!E120-ROUND(ghost!H120,0))))","v":""},"No procede: falta nº de tripulantes",{"$f":"IF(identificacion!$G$11=\"\",\"\",IF(identificacion!$G$11<15,+ghost!D120,IF(identificacion!$G$11>20,ghost!F120,ghost!E120)))","v":""},"caja",{"$f":"IF(identificacion!$G$11=\"\",\"\",IF(identificacion!$G$11<15,ROUND(ghost!G120,0),IF(identificacion!$G$11>20,ROUND(ghost!I120,0),ROUND(ghost!H120,0))))","v":""},{"$f":"+'Consulta de caducidades'!G125","v":0},"","119",null,"BASTONCILLOS CON TORUNDA DE ALGODÓN PARA LIMPIEZA"]
[12,null,{"$f":"CONCATENATE(+'CAJON 12'!A29,\" \",+'CAJON 12'!C29)","v":"-JERINGAS CON AGUJAS DESHECHABLES PARA INYECCIÓN INTRAMUSCULAR -De 5 cc"},{"$f":"+'CAJON 12'!D29","v":10},{"$f":"+'CAJON 12'!F29","v":15},{"$f":"+'CAJON 12'!H29","v":20},{"$f":"+'CAJON 12'!J29","v":0},{"$f":"+'CAJON 12'!K29","v":0},{"$f":"+'CAJON 12'!L29","v":0},{"$f":"IF('CAJON 12'!M29<>\"\",'CAJON 12'!M29,\"\")","v":""},{"$f":"IF(+J121=\"\",Sit!$B$1,IF(TODAY()>=ghost!J121,+Sit!$B$2,IF(TODAY()>=ghost!J121-30,Sit!$B$3,Sit!$B$4)))","v":"sin fecha de caducidad"},{"$f":"IF(identificacion!$G$11=\"\",\"\",IF(identificacion!$G$11<15,+ghost!D121-ROUND(ghost!G121,0),IF(identificacion!$G$11>20,ghost!F121-ROUND(ghost!I121,0),ghost!E121-ROUND(ghost!H121,0))))","v":""},"No procede: falta nº de tripulantes",{"$f":"IF(identificacion!$G$11=\"\",\"\",IF(identificacion!$G$11<15,+ghost!D121,IF(identificacion!$G$11>20,ghost!F121,ghost!E121)))","v":""},"unidades",{"$f":"IF(identificacion!$G$11=\"\",\"\",IF(identificacion!$G$11<15,ROUND(ghost!G121,0),IF(identificacion!$G$11>20,ROUND(ghost!I121,0),ROUND(ghost!H121,0))))","v":""},{"$f":"+'Consulta de caducidades'!G126","v":0},"","120",null,"JERINGAS CON AGUJAS DESHECHABLES PARA INYECCIÓN INTRAMUSCULAR -De 5 cc"]
[12,null,{"$f":"CONCATENATE(+'CAJON 12'!A29,\" \",+'CAJON 12'!C30)","v":"-JERINGAS CON AGUJAS DESHECHABLES PARA INYECCIÓN INTRAMUSCULAR -De 10 cc"},{"$f":"+'CAJON 12'!D30","v":3},{"$f":"+'CAJON 12'!F30","v":4},{"$f":"+'CAJON 12'!H30","v":5},{"$f":"+'CAJON 12'!J30","v":0},{"$f":"+'CAJON 12'!K30","v":0},{"$f":"+'CAJON 12'!L30","v":0},{"$f":"IF('CAJON 12'!M30<>\"\",'CAJON 12'!M30,\"\")","v":""},{"$f":"IF(+J122=\"\",Sit!$B$1,IF(TODAY()>=ghost!J122,+Sit!$B$2,IF(TODAY()>=ghost!J122-30,Sit!$B$3,Sit!$B$4)))","v":"sin fecha de caducidad"},{"$f":"IF(identificacion!$G$11=\"\",\"\",IF(identificacion!$G$11<15,+ghost!D122-ROUND(ghost!G122,0),IF(identificacion!$G$11>20,ghost!F122-ROUND(ghost!I122,0),ghost!E122-ROUND(ghost!H122,0))))","v":""},"No procede: falta nº de tripulantes",{"$f":"IF(identificacion!$G$11=\"\",\"\",IF(identificacion!$G$11<15,+ghost!D122,IF(identificacion!$G$11>20,ghost!F122,ghost!E122)))","v":""},"unidades",{"$f":"IF(identificacion!$G$11=\"\",\"\",IF(identificacion!$G$11<15,ROUND(ghost!G122,0),IF(identificacion!$G$11>20,ROUND(ghost!I122,0),ROUND(ghost!H122,0))))","v":""},{"$f":"+'Consulta de caducidades'!G127","v":0},"","121",null,"JERINGAS CON AGUJAS DESHECHABLES PARA INYECCIÓN INTRAMUSCULAR -De 10 cc"]
[12,null,{"$f":"CONCATENATE(+'CAJON 12'!A31,\" \",+'CAJON 12'!C31)","v":"-AGUJAS PARA INYECTABLES -Intramuscular (largas)"},{"$f":"+'CAJON 12'!D31","v":5},{"$f":"+'CAJON 12'!F31","v":8},{"$f":"+'CAJON 12'!H31","v":10},{"$f":"+'CAJON 12'!J31","v":0},{"$f":"+'CAJON 12'!K31","v":0},{"$f":"+'CAJON 12'!L31","v":0},{"$f":"IF('CAJON 12'!M31<>\"\",'CAJON 12'!M31,\"\")","v":""},{"$f":"IF(+J123=\"\",Sit!$B$1,IF(TODAY()>=ghost!J123,+Sit!$B$2,IF(TODAY()>=ghost!J123-30,Sit!$B$3,Sit!$B$4)))","v":"sin fecha de caducidad"},{"$f":"IF(identificacion!$G$11=\"\",\"\",IF(identificacion!$G$11<15,+ghost!D123-ROUND(ghost!G123,0),IF(identificacion!$G$11>20,ghost!F123-ROUND(ghost!I123,0),ghost!E123-ROUND(ghost!H123,0))))","v":""},{"$f":"IF(L123=\"\",\"No procede: falta nº de tripulantes\",IF(L123=0,\"cantidad exigida\",IF(L123=1,CONCATENATE(\"falta \"& +L123 & \" unidad\"),IF(L123>1,CONCATENATE(\"faltan \"&+L123& \" unidades\"),IF(L123<0,\"dotación con excedentes\",\"Comprobar introducción de datos\")))))","v":"No procede: falta nº de tripulantes"},{"$f":"IF(identificacion!$G$11=\"\",\"\",IF(identificacion!$G$11<15,+ghost!D123,IF(identificacion!$G$11>20,ghost!F123,ghost!E123)))","v":""},"unidades",{"$f":"IF(identificacion!$G$11=\"\",\"\",IF(identificacion!$G$11<15,ROUND(ghost!G123,0),IF(identificacion!$G$11>20,ROUND(ghost!I123,0),ROUND(ghost!H123,0))))","v":""},{"$f":"+'Consulta de caducidades'!G128","v":0},"","122",null,"AGUJAS PARA INYECTABLES -Intramuscular (largas)"]
[13,{"$f":"+'CAJON 13'!A9","v":"B05ZB"},{"$f":"CONCATENATE(+'CAJON 13'!B9,\" - \",+'CAJON 13'!C9)","v":"CL. SÓDICO + CL. POTÁSICO + GLUCOSA + BICARBONATO SÓDICO - 5 sobres para disolución. Por sobre:\nCL Sódico 3,5 g., CL Potásico 1,5 g.,\nGlucosa 20 g., Bicarbonato Sódico 2,5 g."},{"$f":"+'CAJON 13'!D9","v":1},{"$f":"+'CAJON 13'!F9","v":2},{"$f":"+'CAJON 13'!H9","v":2},{"$f":"+'CAJON 13'!J9","v":0},{"$f":"+'CAJON 13'!K9","v":0},{"$f":"+'CAJON 13'!L9","v":0},{"$f":"IF('CAJON 13'!M9<>\"\",'CAJON 13'!M9,\"\")","v":""},{"$f":"IF(+J124=\"\",Sit!$B$1,IF(TODAY()>=ghost!J124,+Sit!$B$2,IF(TODAY()>=ghost!J124-30,Sit!$B$3,Sit!$B$4)))","v":"sin fecha de caducidad"},{"$f":"IF(identificacion!$G$11=\"\",\"\",IF(identificacion!$G$11<15,+ghost!D124-ROUND(ghost!G124,0),IF(identificacion!$G$11>20,ghost!F124-ROUND(ghost!I124,0),ghost!E124-ROUND(ghost!H124,0))))","v":""},"No procede: falta nº de tripulantes",{"$f":"IF(identificacion!$G$11=\"\",\"\",IF(identificacion!$G$11<15,+ghost!D124,IF(identificacion!$G$11>20,ghost!F124,ghost!E124)))","v":""},"caja",{"$f":"IF(identificacion!$G$11=\"\",\"\",IF(identificacion!$G$11<15,ROUND(ghost!G124,0),IF(identificacion!$G$11>20,ROUND(ghost!I124,0),ROUND(ghost!H124,0))))","v":""},{"$f":"+'Consulta de caducidades'!G129","v":0},"","123","B05ZB","CL. SÓDICO + CL. POTÁSICO + GLUCOSA + BICARBONATO SÓDICO ","5 sobres para disolución.Por sobre:CL Sódico 3,5 g, CL Potásico 1,5 g, Glucosa 20 g y Bicarbonato Sódico 2,5 g"]
[13,{"$f":"+'CAJON 13'!A10","v":"B05XA03"},{"$f":"CONCATENATE(+'CAJON 13'!B10,\" - \",+'CAJON 13'!C10)","v":"SUERO SALINO FISIOLÓGICO al 0,9% - Solución 500 ml."},{"$f":"+'CAJON 13'!D10","v":10},{"$f":"+'CAJON 13'!F10","v":10},{"$f":"+'CAJON 13'!H10","v":10},{"$f":"+'CAJON 13'!J10","v":0},{"$f":"+'CAJON 13'!K10","v":0},{"$f":"+'CAJON 13'!L10","v":0},{"$f":"IF('CAJON 13'!M10<>\"\",'CAJON 13'!M10,\"\")","v":""},{"$f":"IF(+J125=\"\",Sit!$B$1,IF(TODAY()>=ghost!J125,+Sit!$B$2,IF(TODAY()>=ghost!J125-30,Sit!$B$3,Sit!$B$4)))","v":"sin fecha de caducidad"},{"$f":"IF(identificacion!$G$11=\"\",\"\",IF(identificacion!$G$11<15,+ghost!D125-ROUND(ghost!G125,0),IF(identificacion!$G$11>20,ghost!F125-ROUND(ghost!I125,0),ghost!E125-ROUND(ghost!H125,0))))","v":""},"No procede: falta nº de tripulantes",{"$f":"IF(identificacion!$G$11=\"\",\"\",IF(identificacion!$G$11<15,+ghost!D125,IF(identificacion!$G$11>20,ghost!F125,ghost!E125)))","v":""},"frascos",{"$f":"IF(identificacion!$G$11=\"\",\"\",IF(identificacion!$G$11<15,ROUND(ghost!G125,0),IF(identificacion!$G$11>20,ROUND(ghost!I125,0),ROUND(ghost!H125,0))))","v":""},{"$f":"+'Consulta de caducidades'!G130","v":0},"","124","B05XA03","SUERO SALINO FISIOLÓGICO al 0,9% ","Solución 500 ml"]
[13,{"$f":"+'CAJON 13'!A11","v":"A11EB"},{"$f":"CONCATENATE(+'CAJON 13'!B11,\" - \",+'CAJON 13'!C11)","v":"COMPLEJO VITAMÍNICO B - 10 ampollas 2 ml."},{"$f":"+'CAJON 13'!D11","v":1},{"$f":"+'CAJON 13'!F11","v":2},{"$f":"+'CAJON 13'!H11","v":2},{"$f":"+'CAJON 13'!J11","v":0},{"$f":"+'CAJON 13'!K11","v":0},{"$f":"+'CAJON 13'!L11","v":0},{"$f":"IF('CAJON 13'!M11<>\"\",'CAJON 13'!M11,\"\")","v":""},{"$f":"IF(+J126=\"\",Sit!$B$1,IF(TODAY()>=ghost!J126,+Sit!$B$2,IF(TODAY()>=ghost!J126-30,Sit!$B$3,Sit!$B$4)))","v":"sin fecha de caducidad"},{"$f":"IF(identificacion!$G$11=\"\",\"\",IF(identificacion!$G$11<15,+ghost!D126-ROUND(ghost!G126,0),IF(identificacion!$G$11>20,ghost!F126-ROUND(ghost!I126,0),ghost!E126-ROUND(ghost!H126,0))))","v":""},"No procede: falta nº de tripulantes",{"$f":"IF(identificacion!$G$11=\"\",\"\",IF(identificacion!$G$11<15,+ghost!D126,IF(identificacion!$G$11>20,ghost!F126,ghost!E126)))","v":""},"caja",{"$f":"IF(identificacion!$G$11=\"\",\"\",IF(identificacion!$G$11<15,ROUND(ghost!G126,0),IF(identificacion!$G$11>20,ROUND(ghost!I126,0),ROUND(ghost!H126,0))))","v":""},{"$f":"+'Consulta de caducidades'!G131","v":0},"","125","A11EB","COMPLEJO VITAMÍNICO B ","10 ampollas 2 ml"]
[13,{"$f":"+'CAJON 13'!A12","v":"A11DA"},{"$f":"CONCATENATE(+'CAJON 13'!B12,\" - \",+'CAJON 13'!C12)","v":"TIAMINA (VITAMINA B1) - 100 mg.  6 ampollas  1 ml."},{"$f":"+'CAJON 13'!D12","v":2},{"$f":"+'CAJON 13'!F12","v":3},{"$f":"+'CAJON 13'!H12","v":4},{"$f":"+'CAJON 13'!J12","v":0},{"$f":"+'CAJON 13'!K12","v":0},{"$f":"+'CAJON 13'!L12","v":0},{"$f":"IF('CAJON 13'!M12<>\"\",'CAJON 13'!M12,\"\")","v":""},{"$f":"IF(+J127=\"\",Sit!$B$1,IF(TODAY()>=ghost!J127,+Sit!$B$2,IF(TODAY()>=ghost!J127-30,Sit!$B$3,Sit!$B$4)))","v":"sin fecha de caducidad"},{"$f":"IF(identificacion!$G$11=\"\",\"\",IF(identificacion!$G$11<15,+ghost!D127-ROUND(ghost!G127,0),IF(identificacion!$G$11>20,ghost!F127-ROUND(ghost!I127,0),ghost!E127-ROUND(ghost!H127,0))))","v":""},"No procede: falta nº de tripulantes",{"$f":"IF(identificacion!$G$11=\"\",\"\",IF(identificacion!$G$11<15,+ghost!D127,IF(identificacion!$G$11>20,ghost!F127,ghost!E127)))","v":""},"cajas",{"$f":"IF(identificacion!$G$11=\"\",\"\",IF(identificacion!$G$11<15,ROUND(ghost!G127,0),IF(identificacion!$G$11>20,ROUND(ghost!I127,0),ROUND(ghost!H127,0))))","v":""},{"$f":"+'Consulta de caducidades'!G132","v":0},"","126","A11DA","TIAMINA (VITAMINA B1) ","100 mg.  6 ampollas  1 ml."]
[13,null,{"$f":"+'CAJON 13'!A13","v":"SISTEMA DE PERFUSIÓN ESTÉRIL DESECHABLE CON CÁMARA DE GOTEO"},{"$f":"+'CAJON 13'!D13","v":10},{"$f":"+'CAJON 13'!F13","v":10},{"$f":"+'CAJON 13'!H13","v":10},{"$f":"+'CAJON 13'!J13","v":0},{"$f":"+'CAJON 13'!K13","v":0},{"$f":"+'CAJON 13'!L13","v":0},{"$f":"IF('CAJON 13'!M13<>\"\",'CAJON 13'!M13,\"\")","v":""},{"$f":"IF(+J128=\"\",Sit!$B$1,IF(TODAY()>=ghost!J128,+Sit!$B$2,IF(TODAY()>=ghost!J128-30,Sit!$B$3,Sit!$B$4)))","v":"sin fecha de caducidad"},{"$f":"IF(identificacion!$G$11=\"\",\"\",IF(identificacion!$G$11<15,+ghost!D128-ROUND(ghost!G128,0),IF(identificacion!$G$11>20,ghost!F128-ROUND(ghost!I128,0),ghost!E128-ROUND(ghost!H128,0))))","v":""},"No procede: falta nº de tripulantes",{"$f":"IF(identificacion!$G$11=\"\",\"\",IF(identificacion!$G$11<15,+ghost!D128,IF(identificacion!$G$11>20,ghost!F128,ghost!E128)))","v":""},"unidades",{"$f":"IF(identificacion!$G$11=\"\",\"\",IF(identificacion!$G$11<15,ROUND(ghost!G128,0),IF(identificacion!$G$11>20,ROUND(ghost!I128,0),ROUND(ghost!H128,0))))","v":""},{"$f":"+'Consulta de caducidades'!G133","v":0},"","127",null,"SISTEMA DE PERFUSIÓN ESTÉRIL DESECHABLE CON CÁMARA DE GOTEO"]
[13,null,{"$f":"+'CAJON 13'!A14","v":"AGUJAS PARA PERFUSIÓN"},{"$f":"+'CAJON 13'!D14","v":10},{"$f":"+'CAJON 13'!F14","v":10},{"$f":"+'CAJON 13'!H14","v":10},{"$f":"+'CAJON 13'!J14","v":0},{"$f":"+'CAJON 13'!K14","v":0},{"$f":"+'CAJON 13'!L14","v":0},{"$f":"IF('CAJON 13'!M14<>\"\",'CAJON 13'!M14,\"\")","v":""},{"$f":"IF(+J129=\"\",Sit!$B$1,IF(TODAY()>=ghost!J129,+Sit!$B$2,IF(TODAY()>=ghost!J129-30,Sit!$B$3,Sit!$B$4)))","v":"sin fecha de caducidad"},{"$f":"IF(identificacion!$G$11=\"\",\"\",IF(identificacion!$G$11<15,+ghost!D129-ROUND(ghost!G129,0),IF(identificacion!$G$11>20,ghost!F129-ROUND(ghost!I129,0),ghost!E129-ROUND(ghost!H129,0))))","v":""},{"$f":"IF(L129=\"\",\"No procede: falta nº de tripulantes\",IF(L129=0,\"cantidad exigida\",IF(L129=1,CONCATENATE(\"falta \"& +L129 & \" unidad\"),IF(L129>1,CONCATENATE(\"faltan \"&+L129& \" unidades\"),IF(L129<0,\"dotación con excedentes\",\"Comprobar introducción de datos\")))))","v":"No procede: falta nº de tripulantes"},{"$f":"IF(identificacion!$G$11=\"\",\"\",IF(identificacion!$G$11<15,+ghost!D129,IF(identificacion!$G$11>20,ghost!F129,ghost!E129)))","v":""},"unidades",{"$f":"IF(identificacion!$G$11=\"\",\"\",IF(identificacion!$G$11<15,ROUND(ghost!G129,0),IF(identificacion!$G$11>20,ROUND(ghost!I129,0),ROUND(ghost!H129,0))))","v":""},{"$f":"+'Consulta de caducidades'!G134","v":0},"","128",null,"AGUJAS PARA PERFUSIÓN"]
[13,null,{"$f":"+'CAJON 13'!A15","v":"PISTOLA DE INYECCIÓN INTRAÓSEA PARA ADULTOS. Sistema BIG, color azul, calibre 15G"},{"$f":"+'CAJON 13'!D15","v":1},{"$f":"+'CAJON 13'!F15","v":2},{"$f":"+'CAJON 13'!H15","v":2},{"$f":"+'CAJON 13'!J15","v":0},{"$f":"+'CAJON 13'!K15","v":0},{"$f":"+'CAJON 13'!L15","v":0},{"$f":"IF('CAJON 13'!M15<>\"\",'CAJON 13'!M15,\"\")","v":""},{"$f":"IF(+J130=\"\",Sit!$B$1,IF(TODAY()>=ghost!J130,+Sit!$B$2,IF(TODAY()>=ghost!J130-30,Sit!$B$3,Sit!$B$4)))","v":"sin fecha de caducidad"},{"$f":"IF(identificacion!$G$11=\"\",\"\",IF(identificacion!$G$11<15,+ghost!D130-ROUND(ghost!G130,0),IF(identificacion!$G$11>20,ghost!F130-ROUND(ghost!I130,0),ghost!E130-ROUND(ghost!H130,0))))","v":""},"No procede: falta nº de tripulantes",{"$f":"IF(identificacion!$G$11=\"\",\"\",IF(identificacion!$G$11<15,+ghost!D130,IF(identificacion!$G$11>20,ghost!F130,ghost!E130)))","v":""},"unidad",{"$f":"IF(identificacion!$G$11=\"\",\"\",IF(identificacion!$G$11<15,ROUND(ghost!G130,0),IF(identificacion!$G$11>20,ROUND(ghost!I130,0),ROUND(ghost!H130,0))))","v":""},{"$f":"+'Consulta de caducidades'!G135","v":0},"","129",null,"PISTOLA DE INYECCIÓN INTRAÓSEA PARA ADULTOS. Sistema BIG, color azul, calibre 15G"]
[14,{"$f":"+'CAJON 14'!A9","v":"D08AG02"},{"$f":"+'CAJON 14'!B9","v":"-POVIDONA 10%  10 unidosis  5 ml."},{"$f":"+'CAJON 14'!D9","v":5},{"$f":"+'CAJON 14'!F9","v":6},{"$f":"+'CAJON 14'!H9","v":7},{"$f":"+'CAJON 14'!J9","v":0},{"$f":"+'CAJON 14'!K9","v":0},{"$f":"+'CAJON 14'!L9","v":0},{"$f":"IF('CAJON 14'!M9<>\"\",'CAJON 14'!M9,\"\")","v":""},{"$f":"IF(+J131=\"\",Sit!$B$1,IF(TODAY()>=ghost!J131,+Sit!$B$2,IF(TODAY()>=ghost!J131-30,Sit!$B$3,Sit!$B$4)))","v":"sin fecha de caducidad"},{"$f":"IF(identificacion!$G$11=\"\",\"\",IF(identificacion!$G$11<15,+ghost!D131-ROUND(ghost!G131,0),IF(identificacion!$G$11>20,ghost!F131-ROUND(ghost!I131,0),ghost!E131-ROUND(ghost!H131,0))))","v":""},"No procede: falta nº de tripulantes",{"$f":"IF(identificacion!$G$11=\"\",\"\",IF(identificacion!$G$11<15,+ghost!D131,IF(identificacion!$G$11>20,ghost!F131,ghost!E131)))","v":""},"envases",{"$f":"IF(identificacion!$G$11=\"\",\"\",IF(identificacion!$G$11<15,ROUND(ghost!G131,0),IF(identificacion!$G$11>20,ROUND(ghost!I131,0),ROUND(ghost!H131,0))))","v":""},{"$f":"+'Consulta de caducidades'!G136","v":0},{"$f":"+J131","v":""},"130","D08AG02","POVIDONA 10%  10 unidosis  5 ml."]
[14,{"$f":"+'CAJON 14'!A10","v":"D08AC"},{"$f":"+'CAJON 14'!B10","v":"-CLORHEXIDINA AL 5 %. Solución 500 ml"},{"$f":"+'CAJON 14'!D10","v":1},{"$f":"+'CAJON 14'!F10","v":1},{"$f":"+'CAJON 14'!H10","v":1},{"$f":"+'CAJON 14'!J10","v":0},{"$f":"+'CAJON 14'!K10","v":0},{"$f":"+'CAJON 14'!L10","v":0},{"$f":"IF('CAJON 14'!M10<>\"\",'CAJON 14'!M10,\"\")","v":""},{"$f":"IF(+J132=\"\",Sit!$B$1,IF(TODAY()>=ghost!J132,+Sit!$B$2,IF(TODAY()>=ghost!J132-30,Sit!$B$3,Sit!$B$4)))","v":"sin fecha de caducidad"},{"$f":"IF(identificacion!$G$11=\"\",\"\",IF(identificacion!$G$11<15,+ghost!D132-ROUND(ghost!G132,0),IF(identificacion!$G$11>20,ghost!F132-ROUND(ghost!I132,0),ghost!E132-ROUND(ghost!H132,0))))","v":""},{"$f":"IF(L132=\"\",\"No procede: falta nº de tripulantes\",IF(L132=0,\"cantidad exigida\",IF(L132=1,CONCATENATE(\"falta \"& +L132 & \" unidad\"),IF(L132>1,CONCATENATE(\"faltan \"&+L132& \" unidades\"),IF(L132<0,\"dotación con excedentes\",\"Comprobar introducción de datos\")))))","v":"No procede: falta nº de tripulantes"},{"$f":"IF(identificacion!$G$11=\"\",\"\",IF(identificacion!$G$11<15,+ghost!D132,IF(identificacion!$G$11>20,ghost!F132,ghost!E132)))","v":""},"envase",{"$f":"IF(identificacion!$G$11=\"\",\"\",IF(identificacion!$G$11<15,ROUND(ghost!G132,0),IF(identificacion!$G$11>20,ROUND(ghost!I132,0),ROUND(ghost!H132,0))))","v":""},{"$f":"+'Consulta de caducidades'!G137","v":0},"","131","D08AC","CLORHEXIDINA AL 5 %. Solución 500 ml"]
[14,{"$f":"+'CAJON 14'!A11","v":"D08AJ"},{"$f":"+'CAJON 14'!B11","v":"-ALCOHOL DE 70°. Solución 250 ml"},{"$f":"+'CAJON 14'!D11","v":1},{"$f":"+'CAJON 14'!F11","v":2},{"$f":"+'CAJON 14'!H11","v":2},{"$f":"+'CAJON 14'!J11","v":0},{"$f":"+'CAJON 14'!K11","v":0},{"$f":"+'CAJON 14'!L11","v":0},{"$f":"IF('CAJON 14'!M11<>\"\",'CAJON 14'!M11,\"\")","v":""},{"$f":"IF(+J133=\"\",Sit!$B$1,IF(TODAY()>=ghost!J133,+Sit!$B$2,IF(TODAY()>=ghost!J133-30,Sit!$B$3,Sit!$B$4)))","v":"sin fecha de caducidad"},{"$f":"IF(identificacion!$G$11=\"\",\"\",IF(identificacion!$G$11<15,+ghost!D133-ROUND(ghost!G133,0),IF(identificacion!$G$11>20,ghost!F133-ROUND(ghost!I133,0),ghost!E133-ROUND(ghost!H133,0))))","v":""},"No procede: falta nº de tripulantes",{"$f":"IF(identificacion!$G$11=\"\",\"\",IF(identificacion!$G$11<15,+ghost!D133,IF(identificacion!$G$11>20,ghost!F133,ghost!E133)))","v":""},"envase",{"$f":"IF(identificacion!$G$11=\"\",\"\",IF(identificacion!$G$11<15,ROUND(ghost!G133,0),IF(identificacion!$G$11>20,ROUND(ghost!I133,0),ROUND(ghost!H133,0))))","v":""},{"$f":"+'Consulta de caducidades'!G138","v":0},"","132","D08AJ","ALCOHOL DE 70°. Solución 250 ml"]
[14,{"$f":"+'CAJON 14'!A12","v":"D08AX"},{"$f":"+'CAJON 14'!B12","v":"-AGUA OXIGENADA. Solución de 10 volúmenes 500 ml"},{"$f":"+'CAJON 14'!D12","v":1},{"$f":"+'CAJON 14'!F12","v":2},{"$f":"+'CAJON 14'!H12","v":2},{"$f":"+'CAJON 14'!J12","v":0},{"$f":"+'CAJON 14'!K12","v":0},{"$f":"+'CAJON 14'!L12","v":0},{"$f":"IF('CAJON 14'!M12<>\"\",'CAJON 14'!M12,\"\")","v":""},{"$f":"IF(+J134=\"\",Sit!$B$1,IF(TODAY()>=ghost!J134,+Sit!$B$2,IF(TODAY()>=ghost!J134-30,Sit!$B$3,Sit!$B$4)))","v":"sin fecha de caducidad"},{"$f":"IF(identificacion!$G$11=\"\",\"\",IF(identificacion!$G$11<15,+ghost!D134-ROUND(ghost!G134,0),IF(identificacion!$G$11>20,ghost!F134-ROUND(ghost!I134,0),ghost!E134-ROUND(ghost!H134,0))))","v":""},"No procede: falta nº de tripulantes",{"$f":"IF(identificacion!$G$11=\"\",\"\",IF(identificacion!$G$11<15,+ghost!D134,IF(identificacion!$G$11>20,ghost!F134,ghost!E134)))","v":""},"envase",{"$f":"IF(identificacion!$G$11=\"\",\"\",IF(identificacion!$G$11<15,ROUND(ghost!G134,0),IF(identificacion!$G$11>20,ROUND(ghost!I134,0),ROUND(ghost!H134,0))))","v":""},{"$f":"+'Consulta de caducidades'!G139","v":0},"","133","D08AX","AGUA OXIGENADA. Solución de 10 volúmenes 500 ml"]
[14,null,{"$f":"CONCATENATE('CAJON 14'!A13,\" \",'CAJON 14'!C13)","v":"-SOLUCIÓN ANTISÉPTICA para higiene de manos Frasco 50 ml."},{"$f":"+'CAJON 14'!D13","v":2},{"$f":"+'CAJON 14'!F13","v":2},{"$f":"+'CAJON 14'!H13","v":2},{"$f":"+'CAJON 14'!J13","v":0},{"$f":"+'CAJON 14'!K13","v":0},{"$f":"+'CAJON 14'!L13","v":0},{"$f":"IF('CAJON 14'!M13<>\"\",'CAJON 14'!M13,\"\")","v":""},{"$f":"IF(+J135=\"\",Sit!$B$1,IF(TODAY()>=ghost!J135,+Sit!$B$2,IF(TODAY()>=ghost!J135-30,Sit!$B$3,Sit!$B$4)))","v":"sin fecha de caducidad"},{"$f":"IF(identificacion!$G$11=\"\",\"\",IF(identificacion!$G$11<15,+ghost!D135-ROUND(ghost!G135,0),IF(identificacion!$G$11>20,ghost!F135-ROUND(ghost!I135,0),ghost!E135-ROUND(ghost!H135,0))))","v":""},"No procede: falta nº de tripulantes",{"$f":"IF(identificacion!$G$11=\"\",\"\",IF(identificacion!$G$11<15,+ghost!D135,IF(identificacion!$G$11>20,ghost!F135,ghost!E135)))","v":""},"envases",{"$f":"IF(identificacion!$G$11=\"\",\"\",IF(identificacion!$G$11<15,ROUND(ghost!G135,0),IF(identificacion!$G$11>20,ROUND(ghost!I135,0),ROUND(ghost!H135,0))))","v":""},{"$f":"+'Consulta de caducidades'!G140","v":0},"","134",null,"SOLUCIÓN ANTISÉPTICA para higiene de manos Frasco 50 ml."]
[14,null,{"$f":"CONCATENATE('CAJON 14'!A14,\" \",'CAJON 14'!C14)","v":"-VENDAS ELÁSTICAS -De 5 cm. x 4 m."},{"$f":"+'CAJON 14'!D14","v":5},{"$f":"+'CAJON 14'!F14","v":6},{"$f":"+'CAJON 14'!H14","v":7},{"$f":"+'CAJON 14'!J14","v":0},{"$f":"+'CAJON 14'!K14","v":0},{"$f":"+'CAJON 14'!L14","v":0},{"$f":"IF('CAJON 14'!M14<>\"\",'CAJON 14'!M14,\"\")","v":""},{"$f":"IF(+J136=\"\",Sit!$B$1,IF(TODAY()>=ghost!J136,+Sit!$B$2,IF(TODAY()>=ghost!J136-30,Sit!$B$3,Sit!$B$4)))","v":"sin fecha de caducidad"},{"$f":"IF(identificacion!$G$11=\"\",\"\",IF(identificacion!$G$11<15,+ghost!D136-ROUND(ghost!G136,0),IF(identificacion!$G$11>20,ghost!F136-ROUND(ghost!I136,0),ghost!E136-ROUND(ghost!H136,0))))","v":""},"No procede: falta nº de tripulantes",{"$f":"IF(identificacion!$G$11=\"\",\"\",IF(identificacion!$G$11<15,+ghost!D136,IF(identificacion!$G$11>20,ghost!F136,ghost!E136)))","v":""},"unidades",{"$f":"IF(identificacion!$G$11=\"\",\"\",IF(identificacion!$G$11<15,ROUND(ghost!G136,0),IF(identificacion!$G$11>20,ROUND(ghost!I136,0),ROUND(ghost!H136,0))))","v":""},{"$f":"+'Consulta de caducidades'!G141","v":0},"","135",null,"VENDAS ELÁSTICAS -De 5 cm. x 4 m."]
[14,null,{"$f":"CONCATENATE('CAJON 14'!A14,\" \",'CAJON 14'!C15)","v":"-VENDAS ELÁSTICAS -De 7 cm. x 4 m."},{"$f":"+'CAJON 14'!D15","v":5},{"$f":"+'CAJON 14'!F15","v":6},{"$f":"+'CAJON 14'!H15","v":7},{"$f":"+'CAJON 14'!J15","v":0},{"$f":"+'CAJON 14'!K15","v":0},{"$f":"+'CAJON 14'!L15","v":0},{"$f":"IF('CAJON 14'!M15<>\"\",'CAJON 14'!M15,\"\")","v":""},{"$f":"IF(+J137=\"\",Sit!$B$1,IF(TODAY()>=ghost!J137,+Sit!$B$2,IF(TODAY()>=ghost!J137-30,Sit!$B$3,Sit!$B$4)))","v":"sin fecha de caducidad"},{"$f":"IF(identificacion!$G$11=\"\",\"\",IF(identificacion!$G$11<15,+ghost!D137-ROUND(ghost!G137,0),IF(identificacion!$G$11>20,ghost!F137-ROUND(ghost!I137,0),ghost!E137-ROUND(ghost!H137,0))))","v":""},"No procede: falta nº de tripulantes",{"$f":"IF(identificacion!$G$11=\"\",\"\",IF(identificacion!$G$11<15,+ghost!D137,IF(identificacion!$G$11>20,ghost!F137,ghost!E137)))","v":""},"unidades",{"$f":"IF(identificacion!$G$11=\"\",\"\",IF(identificacion!$G$11<15,ROUND(ghost!G137,0),IF(identificacion!$G$11>20,ROUND(ghost!I137,0),ROUND(ghost!H137,0))))","v":""},{"$f":"+'Consulta de caducidades'!G142","v":0},"","136",null,"VENDAS ELÁSTICAS -De 7 cm. x 4 m."]
[14,null,{"$f":"CONCATENATE('CAJON 14'!A14,\" \",'CAJON 14'!C16)","v":"-VENDAS ELÁSTICAS -De 10 cm. x 4 m."},{"$f":"+'CAJON 14'!D16","v":3},{"$f":"+'CAJON 14'!F16","v":4},{"$f":"+'CAJON 14'!H16","v":5},{"$f":"+'CAJON 14'!J16","v":0},{"$f":"+'CAJON 14'!K16","v":0},{"$f":"+'CAJON 14'!L16","v":0},{"$f":"IF('CAJON 14'!M16<>\"\",'CAJON 14'!M16,\"\")","v":""},{"$f":"IF(+J138=\"\",Sit!$B$1,IF(TODAY()>=ghost!J138,+Sit!$B$2,IF(TODAY()>=ghost!J138-30,Sit!$B$3,Sit!$B$4)))","v":"sin fecha de caducidad"},{"$f":"IF(identificacion!$G$11=\"\",\"\",IF(identificacion!$G$11<15,+ghost!D138-ROUND(ghost!G138,0),IF(identificacion!$G$11>20,ghost!F138-ROUND(ghost!I138,0),ghost!E138-ROUND(ghost!H138,0))))","v":""},"No procede: falta nº de tripulantes",{"$f":"IF(identificacion!$G$11=\"\",\"\",IF(identificacion!$G$11<15,+ghost!D138,IF(identificacion!$G$11>20,ghost!F138,ghost!E138)))","v":""},"unidades",{"$f":"IF(identificacion!$G$11=\"\",\"\",IF(identificacion!$G$11<15,ROUND(ghost!G138,0),IF(identificacion!$G$11>20,ROUND(ghost!I138,0),ROUND(ghost!H138,0))))","v":""},{"$f":"+'Consulta de caducidades'!G143","v":0},"","137",null,"VENDAS ELÁSTICAS -De 10 cm. x 4 m."]
[14,null,{"$f":"+'CAJON 14'!A17","v":"-VENDAS DE GASA TUBULARES PARA DEDOS CON APLICADOR. (Rollo)"},{"$f":"+'CAJON 14'!D17","v":1},{"$f":"+'CAJON 14'!F17","v":1},{"$f":"+'CAJON 14'!H17","v":1},{"$f":"+'CAJON 14'!J17","v":0},{"$f":"+'CAJON 14'!K17","v":0},{"$f":"+'CAJON 14'!L17","v":0},{"$f":"IF('CAJON 14'!M17<>\"\",'CAJON 14'!M17,\"\")","v":""},{"$f":"IF(+J139=\"\",Sit!$B$1,IF(TODAY()>=ghost!J139,+Sit!$B$2,IF(TODAY()>=ghost!J139-30,Sit!$B$3,Sit!$B$4)))","v":"sin fecha de caducidad"},{"$f":"IF(identificacion!$G$11=\"\",\"\",IF(identificacion!$G$11<15,+ghost!D139-ROUND(ghost!G139,0),IF(identificacion!$G$11>20,ghost!F139-ROUND(ghost!I139,0),ghost!E139-ROUND(ghost!H139,0))))","v":""},"No procede: falta nº de tripulantes",{"$f":"IF(identificacion!$G$11=\"\",\"\",IF(identificacion!$G$11<15,+ghost!D139,IF(identificacion!$G$11>20,ghost!F139,ghost!E139)))","v":""},"caja",{"$f":"IF(identificacion!$G$11=\"\",\"\",IF(identificacion!$G$11<15,ROUND(ghost!G139,0),IF(identificacion!$G$11>20,ROUND(ghost!I139,0),ROUND(ghost!H139,0))))","v":""},{"$f":"+'Consulta de caducidades'!G144","v":0},"","138",null,"VENDAS DE GASA TUBULARES PARA DEDOS CON APLICADOR. (Rollo)"]
[14,null,{"$f":"+'CAJON 14'!A18","v":"-GASAS ESTÉRILES de 20 cm. x 20 cm. caja con 100 unidades"},{"$f":"+'CAJON 14'!D18","v":2},{"$f":"+'CAJON 14'!F18","v":2},{"$f":"+'CAJON 14'!H18","v":3},{"$f":"+'CAJON 14'!J18","v":0},{"$f":"+'CAJON 14'!K18","v":0},{"$f":"+'CAJON 14'!L18","v":0},{"$f":"IF('CAJON 14'!M18<>\"\",'CAJON 14'!M18,\"\")","v":""},{"$f":"IF(+J140=\"\",Sit!$B$1,IF(TODAY()>=ghost!J140,+Sit!$B$2,IF(TODAY()>=ghost!J140-30,Sit!$B$3,Sit!$B$4)))","v":"sin fecha de caducidad"},{"$f":"IF(identificacion!$G$11=\"\",\"\",IF(identificacion!$G$11<15,+ghost!D140-ROUND(ghost!G140,0),IF(identificacion!$G$11>20,ghost!F140-ROUND(ghost!I140,0),ghost!E140-ROUND(ghost!H140,0))))","v":""},"No procede: falta nº de tripulantes",{"$f":"IF(identificacion!$G$11=\"\",\"\",IF(identificacion!$G$11<15,+ghost!D140,IF(identificacion!$G$11>20,ghost!F140,ghost!E140)))","v":""},"cajas",{"$f":"IF(identificacion!$G$11=\"\",\"\",IF(identificacion!$G$11<15,ROUND(ghost!G140,0),IF(identificacion!$G$11>20,ROUND(ghost!I140,0),ROUND(ghost!H140,0))))","v":""},{"$f":"+'Consulta de caducidades'!G145","v":0},"","139",null,"GASAS ESTÉRILES de 20 cm. x 20 cm. caja con 100 unidades"]
[14,null,{"$f":"+'CAJON 14'!A19","v":"-ALGODÓN HIDRÓFILO. Paquete de 500 g"},{"$f":"+'CAJON 14'!D19","v":1},{"$f":"+'CAJON 14'!F19","v":1},{"$f":"+'CAJON 14'!H19","v":2},{"$f":"+'CAJON 14'!J19","v":0},{"$f":"+'CAJON 14'!K19","v":0},{"$f":"+'CAJON 14'!L19","v":0},{"$f":"IF('CAJON 14'!M19<>\"\",'CAJON 14'!M19,\"\")","v":""},{"$f":"IF(+J141=\"\",Sit!$B$1,IF(TODAY()>=ghost!J141,+Sit!$B$2,IF(TODAY()>=ghost!J141-30,Sit!$B$3,Sit!$B$4)))","v":"sin fecha de caducidad"},{"$f":"IF(identificacion!$G$11=\"\",\"\",IF(identificacion!$G$11<15,+ghost!D141-ROUND(ghost!G141,0),IF(identificacion!$G$11>20,ghost!F141-ROUND(ghost!I141,0),ghost!E141-ROUND(ghost!H141,0))))","v":""},"No procede: falta nº de tripulantes",{"$f":"IF(identificacion!$G$11=\"\",\"\",IF(identificacion!$G$11<15,+ghost!D141,IF(identificacion!$G$11>20,ghost!F141,ghost!E141)))","v":""},"paquete",{"$f":"IF(identificacion!$G$11=\"\",\"\",IF(identificacion!$G$11<15,ROUND(ghost!G141,0),IF(identificacion!$G$11>20,ROUND(ghost!I141,0),ROUND(ghost!H141,0))))","v":""},{"$f":"+'Consulta de caducidades'!G146","v":0},"","140",null,"ALGODÓN HIDRÓFILO. Paquete de 500 g"]
[14,null,{"$f":"+'CAJON 14'!A20","v":"-CABESTRILLO O VENDA TRIANGULAR"},{"$f":"+'CAJON 14'!D20","v":1},{"$f":"+'CAJON 14'!F20","v":1},{"$f":"+'CAJON 14'!H20","v":1},{"$f":"+'CAJON 14'!J20","v":0},{"$f":"+'CAJON 14'!K20","v":0},{"$f":"+'CAJON 14'!L20","v":0},{"$f":"IF('CAJON 14'!M20<>\"\",'CAJON 14'!M20,\"\")","v":""},{"$f":"IF(+J142=\"\",Sit!$B$1,IF(TODAY()>=ghost!J142,+Sit!$B$2,IF(TODAY()>=ghost!J142-30,Sit!$B$3,Sit!$B$4)))","v":"sin fecha de caducidad"},{"$f":"IF(identificacion!$G$11=\"\",\"\",IF(identificacion!$G$11<15,+ghost!D142-ROUND(ghost!G142,0),IF(identificacion!$G$11>20,ghost!F142-ROUND(ghost!I142,0),ghost!E142-ROUND(ghost!H142,0))))","v":""},"No procede: falta nº de tripulantes",{"$f":"IF(identificacion!$G$11=\"\",\"\",IF(identificacion!$G$11<15,+ghost!D142,IF(identificacion!$G$11>20,ghost!F142,ghost!E142)))","v":""},"unidad",{"$f":"IF(identificacion!$G$11=\"\",\"\",IF(identificacion!$G$11<15,ROUND(ghost!G142,0),IF(identificacion!$G$11>20,ROUND(ghost!I142,0),ROUND(ghost!H142,0))))","v":""},{"$f":"+'Consulta de caducidades'!G147","v":0},"","141",null,"CABESTRILLO O VENDA TRIANGULAR"]
[14,null,{"$f":"CONCATENATE('CAJON 14'!A21,\" \",'CAJON 14'!C21)","v":"-ESPARADRAPO HIPOALERGÉNICO -De 5 cm. x 10 m."},{"$f":"+'CAJON 14'!D21","v":1},{"$f":"+'CAJON 14'!F21","v":2},{"$f":"+'CAJON 14'!H21","v":2},{"$f":"+'CAJON 14'!J21","v":0},{"$f":"+'CAJON 14'!K21","v":0},{"$f":"+'CAJON 14'!L21","v":0},{"$f":"IF('CAJON 14'!M21<>\"\",'CAJON 14'!M21,\"\")","v":""},{"$f":"IF(+J143=\"\",Sit!$B$1,IF(TODAY()>=ghost!J143,+Sit!$B$2,IF(TODAY()>=ghost!J143-30,Sit!$B$3,Sit!$B$4)))","v":"sin fecha de caducidad"},{"$f":"IF(identificacion!$G$11=\"\",\"\",IF(identificacion!$G$11<15,+ghost!D143-ROUND(ghost!G143,0),IF(identificacion!$G$11>20,ghost!F143-ROUND(ghost!I143,0),ghost!E143-ROUND(ghost!H143,0))))","v":""},"No procede: falta nº de tripulantes",{"$f":"IF(identificacion!$G$11=\"\",\"\",IF(identificacion!$G$11<15,+ghost!D143,IF(identificacion!$G$11>20,ghost!F143,ghost!E143)))","v":""},"unidad",{"$f":"IF(identificacion!$G$11=\"\",\"\",IF(identificacion!$G$11<15,ROUND(ghost!G143,0),IF(identificacion!$G$11>20,ROUND(ghost!I143,0),ROUND(ghost!H143,0))))","v":""},{"$f":"+'Consulta de caducidades'!G148","v":0},"","142",null,"ESPARADRAPO HIPOALERGÉNICO -De 5 cm. x 10 m."]
[14,null,{"$f":"CONCATENATE('CAJON 14'!A21,\" \",'CAJON 14'!C22)","v":"-ESPARADRAPO HIPOALERGÉNICO -De 10 cm. x 10 m."},{"$f":"+'CAJON 14'!D22","v":1},{"$f":"+'CAJON 14'!F22","v":1},{"$f":"+'CAJON 14'!H22","v":1},{"$f":"+'CAJON 14'!J22","v":0},{"$f":"+'CAJON 14'!K22","v":0},{"$f":"+'CAJON 14'!L22","v":0},{"$f":"IF('CAJON 14'!M22<>\"\",'CAJON 14'!M22,\"\")","v":""},{"$f":"IF(+J144=\"\",Sit!$B$1,IF(TODAY()>=ghost!J144,+Sit!$B$2,IF(TODAY()>=ghost!J144-30,Sit!$B$3,Sit!$B$4)))","v":"sin fecha de caducidad"},{"$f":"IF(identificacion!$G$11=\"\",\"\",IF(identificacion!$G$11<15,+ghost!D144-ROUND(ghost!G144,0),IF(identificacion!$G$11>20,ghost!F144-ROUND(ghost!I144,0),ghost!E144-ROUND(ghost!H144,0))))","v":""},"No procede: falta nº de tripulantes",{"$f":"IF(identificacion!$G$11=\"\",\"\",IF(identificacion!$G$11<15,+ghost!D144,IF(identificacion!$G$11>20,ghost!F144,ghost!E144)))","v":""},"unidad",{"$f":"IF(identificacion!$G$11=\"\",\"\",IF(identificacion!$G$11<15,ROUND(ghost!G144,0),IF(identificacion!$G$11>20,ROUND(ghost!I144,0),ROUND(ghost!H144,0))))","v":""},{"$f":"+'Consulta de caducidades'!G149","v":0},"","143",null,"ESPARADRAPO HIPOALERGÉNICO -De 10 cm. x 10 m."]
[14,null,{"$f":"+'CAJON 14'!A23","v":"-GUANTES DESECHABLES DE VINILO. Caja con 100 unidades"},{"$f":"+'CAJON 14'!D23","v":1},{"$f":"+'CAJON 14'!F23","v":1},{"$f":"+'CAJON 14'!H23","v":1},{"$f":"+'CAJON 14'!J23","v":0},{"$f":"+'CAJON 14'!K23","v":0},{"$f":"+'CAJON 14'!L23","v":0},{"$f":"IF('CAJON 14'!M23<>\"\",'CAJON 14'!M23,\"\")","v":""},{"$f":"IF(+J145=\"\",Sit!$B$1,IF(TODAY()>=ghost!J145,+Sit!$B$2,IF(TODAY()>=ghost!J145-30,Sit!$B$3,Sit!$B$4)))","v":"sin fecha de caducidad"},{"$f":"IF(identificacion!$G$11=\"\",\"\",IF(identificacion!$G$11<15,+ghost!D145-ROUND(ghost!G145,0),IF(identificacion!$G$11>20,ghost!F145-ROUND(ghost!I145,0),ghost!E145-ROUND(ghost!H145,0))))","v":""},"No procede: falta nº de tripulantes",{"$f":"IF(identificacion!$G$11=\"\",\"\",IF(identificacion!$G$11<15,+ghost!D145,IF(identificacion!$G$11>20,ghost!F145,ghost!E145)))","v":""},"caja",{"$f":"IF(identificacion!$G$11=\"\",\"\",IF(identificacion!$G$11<15,ROUND(ghost!G145,0),IF(identificacion!$G$11>20,ROUND(ghost!I145,0),ROUND(ghost!H145,0))))","v":""},{"$f":"+'Consulta de caducidades'!G150","v":0},"","144",null,"GUANTES DESECHABLES DE VINILO. Caja con 100 unidades"]
[14,null,{"$f":"+'CAJON 14'!A24","v":"-GUANTES QUIRÚRGICOS ESTÉRILES del Núm. 8-9. Paquete individual por par"},{"$f":"+'CAJON 14'!D24","v":5},{"$f":"+'CAJON 14'!F24","v":7},{"$f":"+'CAJON 14'!H24","v":10},{"$f":"+'CAJON 14'!J24","v":0},{"$f":"+'CAJON 14'!K24","v":0},{"$f":"+'CAJON 14'!L24","v":0},{"$f":"IF('CAJON 14'!M24<>\"\",'CAJON 14'!M24,\"\")","v":""},{"$f":"IF(+J146=\"\",Sit!$B$1,IF(TODAY()>=ghost!J146,+Sit!$B$2,IF(TODAY()>=ghost!J146-30,Sit!$B$3,Sit!$B$4)))","v":"sin fecha de caducidad"},{"$f":"IF(identificacion!$G$11=\"\",\"\",IF(identificacion!$G$11<15,+ghost!D146-ROUND(ghost!G146,0),IF(identificacion!$G$11>20,ghost!F146-ROUND(ghost!I146,0),ghost!E146-ROUND(ghost!H146,0))))","v":""},"No procede: falta nº de tripulantes",{"$f":"IF(identificacion!$G$11=\"\",\"\",IF(identificacion!$G$11<15,+ghost!D146,IF(identificacion!$G$11>20,ghost!F146,ghost!E146)))","v":""},"pares",{"$f":"IF(identificacion!$G$11=\"\",\"\",IF(identificacion!$G$11<15,ROUND(ghost!G146,0),IF(identificacion!$G$11>20,ROUND(ghost!I146,0),ROUND(ghost!H146,0))))","v":""},{"$f":"+'Consulta de caducidades'!G151","v":0},"","145",null,"GUANTES QUIRÚRGICOS ESTÉRILES del Núm. 8-9. Paquete individual por par"]
[14,null,{"$f":"CONCATENATE('CAJON 14'!A25,\" \",'CAJON 14'!C25)","v":"-APÓSITOS AUTOADHESIVOS ESTÉRILES. Caja 5 unidades -De 6 cm. x 7 cm."},{"$f":"+'CAJON 14'!D25","v":2},{"$f":"+'CAJON 14'!F25","v":2},{"$f":"+'CAJON 14'!H25","v":3},{"$f":"+'CAJON 14'!J25","v":0},{"$f":"+'CAJON 14'!K25","v":0},{"$f":"+'CAJON 14'!L25","v":0},{"$f":"IF('CAJON 14'!M25<>\"\",'CAJON 14'!M25,\"\")","v":""},{"$f":"IF(+J147=\"\",Sit!$B$1,IF(TODAY()>=ghost!J147,+Sit!$B$2,IF(TODAY()>=ghost!J147-30,Sit!$B$3,Sit!$B$4)))","v":"sin fecha de caducidad"},{"$f":"IF(identificacion!$G$11=\"\",\"\",IF(identificacion!$G$11<15,+ghost!D147-ROUND(ghost!G147,0),IF(identificacion!$G$11>20,ghost!F147-ROUND(ghost!I147,0),ghost!E147-ROUND(ghost!H147,0))))","v":""},"No procede: falta nº de tripulantes",{"$f":"IF(identificacion!$G$11=\"\",\"\",IF(identificacion!$G$11<15,+ghost!D147,IF(identificacion!$G$11>20,ghost!F147,ghost!E147)))","v":""},"cajas",{"$f":"IF(identificacion!$G$11=\"\",\"\",IF(identificacion!$G$11<15,ROUND(ghost!G147,0),IF(identificacion!$G$11>20,ROUND(ghost!I147,0),ROUND(ghost!H147,0))))","v":""},{"$f":"+'Consulta de caducidades'!G152","v":0},"","146",null,"APÓSITOS AUTOADHESIVOS ESTÉRILES. Caja 5 unidades -De 6 cm. x 7 cm."]
[14,null,{"$f":"CONCATENATE('CAJON 14'!A25,\" \",'CAJON 14'!C26)","v":"-APÓSITOS AUTOADHESIVOS ESTÉRILES. Caja 5 unidades -De 8 cm. x 10 cm."},{"$f":"+'CAJON 14'!D26","v":2},{"$f":"+'CAJON 14'!F26","v":2},{"$f":"+'CAJON 14'!H26","v":3},{"$f":"+'CAJON 14'!J26","v":0},{"$f":"+'CAJON 14'!K26","v":0},{"$f":"+'CAJON 14'!L26","v":0},{"$f":"IF('CAJON 14'!M26<>\"\",'CAJON 14'!M26,\"\")","v":""},{"$f":"IF(+J148=\"\",Sit!$B$1,IF(TODAY()>=ghost!J148,+Sit!$B$2,IF(TODAY()>=ghost!J148-30,Sit!$B$3,Sit!$B$4)))","v":"sin fecha de caducidad"},{"$f":"IF(identificacion!$G$11=\"\",\"\",IF(identificacion!$G$11<15,+ghost!D148-ROUND(ghost!G148,0),IF(identificacion!$G$11>20,ghost!F148-ROUND(ghost!I148,0),ghost!E148-ROUND(ghost!H148,0))))","v":""},"No procede: falta nº de tripulantes",{"$f":"IF(identificacion!$G$11=\"\",\"\",IF(identificacion!$G$11<15,+ghost!D148,IF(identificacion!$G$11>20,ghost!F148,ghost!E148)))","v":""},"cajas",{"$f":"IF(identificacion!$G$11=\"\",\"\",IF(identificacion!$G$11<15,ROUND(ghost!G148,0),IF(identificacion!$G$11>20,ROUND(ghost!I148,0),ROUND(ghost!H148,0))))","v":""},{"$f":"+'Consulta de caducidades'!G153","v":0},"","147",null,"APÓSITOS AUTOADHESIVOS ESTÉRILES. Caja 5 unidades -De 8 cm. x 10 cm."]
[14,null,{"$f":"+'CAJON 14'!A27","v":"-APÓSITOS HIDROCOLOIDES ESTÉRILES. Caja con 3 unidades de 5 cm. x 5 cm."},{"$f":"+'CAJON 14'!D27","v":1},{"$f":"+'CAJON 14'!F27","v":1},{"$f":"+'CAJON 14'!H27","v":2},{"$f":"+'CAJON 14'!J27","v":0},{"$f":"+'CAJON 14'!K27","v":0},{"$f":"+'CAJON 14'!L27","v":0},{"$f":"IF('CAJON 14'!M27<>\"\",'CAJON 14'!M27,\"\")","v":""},{"$f":"IF(+J149=\"\",Sit!$B$1,IF(TODAY()>=ghost!J149,+Sit!$B$2,IF(TODAY()>=ghost!J149-30,Sit!$B$3,Sit!$B$4)))","v":"sin fecha de caducidad"},{"$f":"IF(identificacion!$G$11=\"\",\"\",IF(identificacion!$G$11<15,+ghost!D149-ROUND(ghost!G149,0),IF(identificacion!$G$11>20,ghost!F149-ROUND(ghost!I149,0),ghost!E149-ROUND(ghost!H149,0))))","v":""},"No procede: falta nº de tripulantes",{"$f":"IF(identificacion!$G$11=\"\",\"\",IF(identificacion!$G$11<15,+ghost!D149,IF(identificacion!$G$11>20,ghost!F149,ghost!E149)))","v":""},"caja",{"$f":"IF(identificacion!$G$11=\"\",\"\",IF(identificacion!$G$11<15,ROUND(ghost!G149,0),IF(identificacion!$G$11>20,ROUND(ghost!I149,0),ROUND(ghost!H149,0))))","v":""},{"$f":"+'Consulta de caducidades'!G154","v":0},"","148",null,"APÓSITOS HIDROCOLOIDES ESTÉRILES. Caja con 3 unidades de 5 cm. x 5 cm."]
[14,null,{"$f":"+'CAJON 14'!A28","v":"-APÓSITOS AUTOADHESIVOS DE FILM TRANSPARENTE (Poliuretano) HIPOALÉRGICOS.\n aprox. de 10 x 12,5 cm.   Caja de 10 unidades."},{"$f":"+'CAJON 14'!D28","v":1},{"$f":"+'CAJON 14'!F28","v":1},{"$f":"+'CAJON 14'!H28","v":2},{"$f":"+'CAJON 14'!J28","v":0},{"$f":"+'CAJON 14'!K28","v":0},{"$f":"+'CAJON 14'!L28","v":0},{"$f":"IF('CAJON 14'!M28<>\"\",'CAJON 14'!M28,\"\")","v":""},{"$f":"IF(+J150=\"\",Sit!$B$1,IF(TODAY()>=ghost!J150,+Sit!$B$2,IF(TODAY()>=ghost!J150-30,Sit!$B$3,Sit!$B$4)))","v":"sin fecha de caducidad"},{"$f":"IF(identificacion!$G$11=\"\",\"\",IF(identificacion!$G$11<15,+ghost!D150-ROUND(ghost!G150,0),IF(identificacion!$G$11>20,ghost!F150-ROUND(ghost!I150,0),ghost!E150-ROUND(ghost!H150,0))))","v":""},"No procede: falta nº de tripulantes",{"$f":"IF(identificacion!$G$11=\"\",\"\",IF(identificacion!$G$11<15,+ghost!D150,IF(identificacion!$G$11>20,ghost!F150,ghost!E150)))","v":""},"caja",{"$f":"IF(identificacion!$G$11=\"\",\"\",IF(identificacion!$G$11<15,ROUND(ghost!G150,0),IF(identificacion!$G$11>20,ROUND(ghost!I150,0),ROUND(ghost!H150,0))))","v":""},{"$f":"+'Consulta de caducidades'!G155","v":0},"","149",null,"APÓSITOS AUTOADHESIVOS DE FILM TRANSPARENTE (Poliuretano) HIPOALÉRGICOS aprox. de 10 x12,5 cm. Caja de 10 unidades."]
[14,null,{"$f":"CONCATENATE('CAJON 14'!A29,\" \",'CAJON 14'!C29)","v":"-GASAS GRASAS. Caja con 20 sobres -De 7 cm. x 9 cm."},{"$f":"+'CAJON 14'!D29","v":2},{"$f":"+'CAJON 14'!F29","v":3},{"$f":"+'CAJON 14'!H29","v":4},{"$f":"+'CAJON 14'!J29","v":0},{"$f":"+'CAJON 14'!K29","v":0},{"$f":"+'CAJON 14'!L29","v":0},{"$f":"IF('CAJON 14'!M29<>\"\",'CAJON 14'!M29,\"\")","v":""},{"$f":"IF(+J151=\"\",Sit!$B$1,IF(TODAY()>=ghost!J151,+Sit!$B$2,IF(TODAY()>=ghost!J151-30,Sit!$B$3,Sit!$B$4)))","v":"sin fecha de caducidad"},{"$f":"IF(identificacion!$G$11=\"\",\"\",IF(identificacion!$G$11<15,+ghost!D151-ROUND(ghost!G151,0),IF(identificacion!$G$11>20,ghost!F151-ROUND(ghost!I151,0),ghost!E151-ROUND(ghost!H151,0))))","v":""},"No procede: falta nº de tripulantes",{"$f":"IF(identificacion!$G$11=\"\",\"\",IF(identificacion!$G$11<15,+ghost!D151,IF(identificacion!$G$11>20,ghost!F151,ghost!E151)))","v":""},"cajas",{"$f":"IF(identificacion!$G$11=\"\",\"\",IF(identificacion!$G$11<15,ROUND(ghost!G151,0),IF(identificacion!$G$11>20,ROUND(ghost!I151,0),ROUND(ghost!H151,0))))","v":""},{"$f":"+'Consulta de caducidades'!G156","v":0},"","150",null,"GASAS GRASAS. Caja con 20 sobres -De 7 cm. x 9 cm."]
[14,null,{"$f":"CONCATENATE('CAJON 14'!A29,\" \",'CAJON 14'!C30)","v":"-GASAS GRASAS. Caja con 20 sobres -De 23 cm. x 14 cm."},{"$f":"+'CAJON 14'!D30","v":2},{"$f":"+'CAJON 14'!F30","v":3},{"$f":"+'CAJON 14'!H30","v":4},{"$f":"+'CAJON 14'!J30","v":0},{"$f":"+'CAJON 14'!K30","v":0},{"$f":"+'CAJON 14'!L30","v":0},{"$f":"IF('CAJON 14'!M30<>\"\",'CAJON 14'!M30,\"\")","v":""},{"$f":"IF(+J152=\"\",Sit!$B$1,IF(TODAY()>=ghost!J152,+Sit!$B$2,IF(TODAY()>=ghost!J152-30,Sit!$B$3,Sit!$B$4)))","v":"sin fecha de caducidad"},{"$f":"IF(identificacion!$G$11=\"\",\"\",IF(identificacion!$G$11<15,+ghost!D152-ROUND(ghost!G152,0),IF(identificacion!$G$11>20,ghost!F152-ROUND(ghost!I152,0),ghost!E152-ROUND(ghost!H152,0))))","v":""},"No procede: falta nº de tripulantes",{"$f":"IF(identificacion!$G$11=\"\",\"\",IF(identificacion!$G$11<15,+ghost!D152,IF(identificacion!$G$11>20,ghost!F152,ghost!E152)))","v":""},"cajas",{"$f":"IF(identificacion!$G$11=\"\",\"\",IF(identificacion!$G$11<15,ROUND(ghost!G152,0),IF(identificacion!$G$11>20,ROUND(ghost!I152,0),ROUND(ghost!H152,0))))","v":""},{"$f":"+'Consulta de caducidades'!G157","v":0},{"$f":"+J152","v":""},"151",null,"GASAS GRASAS. Caja con 20 sobres -De 23 cm. x 14 cm."]
[14,null,{"$f":"+'CAJON 14'!A31","v":"-APÓSITOS ADHESIVOS PLÁSTICOS. Rollo de 6 cm. x 1 m"},{"$f":"+'CAJON 14'!D31","v":2},{"$f":"+'CAJON 14'!F31","v":2},{"$f":"+'CAJON 14'!H31","v":3},{"$f":"+'CAJON 14'!J31","v":0},{"$f":"+'CAJON 14'!K31","v":0},{"$f":"+'CAJON 14'!L31","v":0},{"$f":"IF('CAJON 14'!M31<>\"\",'CAJON 14'!M31,\"\")","v":""},{"$f":"IF(+J153=\"\",Sit!$B$1,IF(TODAY()>=ghost!J153,+Sit!$B$2,IF(TODAY()>=ghost!J153-30,Sit!$B$3,Sit!$B$4)))","v":"sin fecha de caducidad"},{"$f":"IF(identificacion!$G$11=\"\",\"\",IF(identificacion!$G$11<15,+ghost!D153-ROUND(ghost!G153,0),IF(identificacion!$G$11>20,ghost!F153-ROUND(ghost!I153,0),ghost!E153-ROUND(ghost!H153,0))))","v":""},"No procede: falta nº de tripulantes",{"$f":"IF(identificacion!$G$11=\"\",\"\",IF(identificacion!$G$11<15,+ghost!D153,IF(identificacion!$G$11>20,ghost!F153,ghost!E153)))","v":""},"cajas",{"$f":"IF(identificacion!$G$11=\"\",\"\",IF(identificacion!$G$11<15,ROUND(ghost!G153,0),IF(identificacion!$G$11>20,ROUND(ghost!I153,0),ROUND(ghost!H153,0))))","v":""},{"$f":"+'Consulta de caducidades'!G158","v":0},"","152",null,"APÓSITOS ADHESIVOS PLÁSTICOS. Rollo de 6 cm. x 1 m"]
[14,null,{"$f":"+'CAJON 14'!A32","v":"-TAPONES EXPANSIBLES PARA SANGRADOS NASALES de 10 cm."},{"$f":"+'CAJON 14'!D32","v":5},{"$f":"+'CAJON 14'!F32","v":6},{"$f":"+'CAJON 14'!H32","v":8},{"$f":"+'CAJON 14'!J32","v":0},{"$f":"+'CAJON 14'!K32","v":0},{"$f":"+'CAJON 14'!L32","v":0},{"$f":"IF('CAJON 14'!M32<>\"\",'CAJON 14'!M32,\"\")","v":""},{"$f":"IF(+J154=\"\",Sit!$B$1,IF(TODAY()>=ghost!J154,+Sit!$B$2,IF(TODAY()>=ghost!J154-30,Sit!$B$3,Sit!$B$4)))","v":"sin fecha de caducidad"},{"$f":"IF(identificacion!$G$11=\"\",\"\",IF(identificacion!$G$11<15,+ghost!D154-ROUND(ghost!G154,0),IF(identificacion!$G$11>20,ghost!F154-ROUND(ghost!I154,0),ghost!E154-ROUND(ghost!H154,0))))","v":""},"No procede: falta nº de tripulantes",{"$f":"IF(identificacion!$G$11=\"\",\"\",IF(identificacion!$G$11<15,+ghost!D154,IF(identificacion!$G$11>20,ghost!F154,ghost!E154)))","v":""},"unidades",{"$f":"IF(identificacion!$G$11=\"\",\"\",IF(identificacion!$G$11<15,ROUND(ghost!G154,0),IF(identificacion!$G$11>20,ROUND(ghost!I154,0),ROUND(ghost!H154,0))))","v":""},{"$f":"+'Consulta de caducidades'!G159","v":0},"","153",null,"TAPONES EXPANSIBLES PARA SANGRADOS NASALES de 10 cm."]
[14,null,{"$f":"+'CAJON 14'!A33","v":"-MANTA PARA QUEMADOS Y SUPERVIVIENTES TERMO-AISLANTE Oro-plata"},{"$f":"+'CAJON 14'!D33","v":1},{"$f":"+'CAJON 14'!F33","v":1},{"$f":"+'CAJON 14'!H33","v":2},{"$f":"+'CAJON 14'!J33","v":0},{"$f":"+'CAJON 14'!K33","v":0},{"$f":"+'CAJON 14'!L33","v":0},{"$f":"IF('CAJON 14'!M33<>\"\",'CAJON 14'!M33,\"\")","v":""},{"$f":"IF(+J155=\"\",Sit!$B$1,IF(TODAY()>=ghost!J155,+Sit!$B$2,IF(TODAY()>=ghost!J155-30,Sit!$B$3,Sit!$B$4)))","v":"sin fecha de caducidad"},{"$f":"IF(identificacion!$G$11=\"\",\"\",IF(identificacion!$G$11<15,+ghost!D155-ROUND(ghost!G155,0),IF(identificacion!$G$11>20,ghost!F155-ROUND(ghost!I155,0),ghost!E155-ROUND(ghost!H155,0))))","v":""},"No procede: falta nº de tripulantes",{"$f":"IF(identificacion!$G$11=\"\",\"\",IF(identificacion!$G$11<15,+ghost!D155,IF(identificacion!$G$11>20,ghost!F155,ghost!E155)))","v":""},"unidad",{"$f":"IF(identificacion!$G$11=\"\",\"\",IF(identificacion!$G$11<15,ROUND(ghost!G155,0),IF(identificacion!$G$11>20,ROUND(ghost!I155,0),ROUND(ghost!H155,0))))","v":""},{"$f":"+'Consulta de caducidades'!G160","v":0},"","154",null,"MANTA PARA QUEMADOS Y SUPERVIVIENTES TERMO-AISLANTE Oro-plata"]
[14,null,{"$f":"+'CAJON 14'!A34","v":"-CEPILLO PARA UÑAS"},{"$f":"+'CAJON 14'!D34","v":2},{"$f":"+'CAJON 14'!F34","v":2},{"$f":"+'CAJON 14'!H34","v":2},{"$f":"+'CAJON 14'!J34","v":0},{"$f":"+'CAJON 14'!K34","v":0},{"$f":"+'CAJON 14'!L34","v":0},{"$f":"IF('CAJON 14'!M34<>\"\",'CAJON 14'!M34,\"\")","v":""},{"$f":"IF(+J156=\"\",Sit!$B$1,IF(TODAY()>=ghost!J156,+Sit!$B$2,IF(TODAY()>=ghost!J156-30,Sit!$B$3,Sit!$B$4)))","v":"sin fecha de caducidad"},{"$f":"IF(identificacion!$G$11=\"\",\"\",IF(identificacion!$G$11<15,+ghost!D156-ROUND(ghost!G156,0),IF(identificacion!$G$11>20,ghost!F156-ROUND(ghost!I156,0),ghost!E156-ROUND(ghost!H156,0))))","v":""},"No procede: falta nº de tripulantes",{"$f":"IF(identificacion!$G$11=\"\",\"\",IF(identificacion!$G$11<15,+ghost!D156,IF(identificacion!$G$11>20,ghost!F156,ghost!E156)))","v":""},"unidades",{"$f":"IF(identificacion!$G$11=\"\",\"\",IF(identificacion!$G$11<15,ROUND(ghost!G156,0),IF(identificacion!$G$11>20,ROUND(ghost!I156,0),ROUND(ghost!H156,0))))","v":""},{"$f":"+'Consulta de caducidades'!G161","v":0},"","155",null,"CEPILLO PARA UÑAS"]
[14,null,{"$f":"+'CAJON 14'!A35","v":"-MASCARILLAS"},{"$f":"+'CAJON 14'!D35","v":1},{"$f":"+'CAJON 14'!F35","v":1},{"$f":"+'CAJON 14'!H35","v":1},{"$f":"+'CAJON 14'!J35","v":0},{"$f":"+'CAJON 14'!K35","v":0},{"$f":"+'CAJON 14'!L35","v":0},{"$f":"IF('CAJON 14'!M35<>\"\",'CAJON 14'!M35,\"\")","v":""},{"$f":"IF(+J157=\"\",Sit!$B$1,IF(TODAY()>=ghost!J157,+Sit!$B$2,IF(TODAY()>=ghost!J157-30,Sit!$B$3,Sit!$B$4)))","v":"sin fecha de caducidad"},{"$f":"IF(identificacion!$G$11=\"\",\"\",IF(identificacion!$G$11<15,+ghost!D157-ROUND(ghost!G157,0),IF(identificacion!$G$11>20,ghost!F157-ROUND(ghost!I157,0),ghost!E157-ROUND(ghost!H157,0))))","v":""},"No procede: falta nº de tripulantes",{"$f":"IF(identificacion!$G$11=\"\",\"\",IF(identificacion!$G$11<15,+ghost!D157,IF(identificacion!$G$11>20,ghost!F157,ghost!E157)))","v":""},"caja",{"$f":"IF(identificacion!$G$11=\"\",\"\",IF(identificacion!$G$11<15,ROUND(ghost!G157,0),IF(identificacion!$G$11>20,ROUND(ghost!I157,0),ROUND(ghost!H157,0))))","v":""},{"$f":"+'Consulta de caducidades'!G162","v":0},"","156",null,"MASCARILLAS"]
[15,null,{"$f":"'CAJON 15'!A9","v":"-FÉRULAS DE ALUMINIO MALEABLE PARA DEDOS 2 cm. x 50 cm."},{"$f":"+'CAJON 15'!D9","v":2},{"$f":"+'CAJON 15'!F9","v":3},{"$f":"+'CAJON 15'!H9","v":4},{"$f":"+'CAJON 15'!J9","v":0},{"$f":"+'CAJON 15'!K9","v":0},{"$f":"+'CAJON 15'!L9","v":0},{"$f":"IF('CAJON 15'!M9<>\"\",'CAJON 15'!M9,\"\")","v":""},{"$f":"IF(+J158=\"\",Sit!$B$1,IF(TODAY()>=ghost!J158,+Sit!$B$2,IF(TODAY()>=ghost!J158-30,Sit!$B$3,Sit!$B$4)))","v":"sin fecha de caducidad"},{"$f":"IF(identificacion!$G$11=\"\",\"\",IF(identificacion!$G$11<15,+ghost!D158-ROUND(ghost!G158,0),IF(identificacion!$G$11>20,ghost!F158-ROUND(ghost!I158,0),ghost!E158-ROUND(ghost!H158,0))))","v":""},{"$f":"IF(L158=\"\",\"No procede: falta nº de tripulantes\",IF(L158=0,\"cantidad exigida\",IF(L158=1,CONCATENATE(\"falta \"& +L158 & \" unidad\"),IF(L158>1,CONCATENATE(\"faltan \"&+L158& \" unidades\"),IF(L158<0,\"dotación con excedentes\",\"Comprobar introducción de datos\")))))","v":"No procede: falta nº de tripulantes"},{"$f":"IF(identificacion!$G$11=\"\",\"\",IF(identificacion!$G$11<15,+ghost!D158,IF(identificacion!$G$11>20,ghost!F158,ghost!E158)))","v":""},"tiras",{"$f":"IF(identificacion!$G$11=\"\",\"\",IF(identificacion!$G$11<15,ROUND(ghost!G158,0),IF(identificacion!$G$11>20,ROUND(ghost!I158,0),ROUND(ghost!H158,0))))","v":""},{"$f":"+'Consulta de caducidades'!G163","v":0},"","157",null,"FÉRULAS DE ALUMINIO MALEABLE PARA DEDOS 2 cm. x 50 cm."]
[15,null,{"$f":"'CAJON 15'!A10","v":"-FÉRULAS HINCHABLES TRANSPARENTES. Juego con varios tamaños"},{"$f":"+'CAJON 15'!D10","v":1},{"$f":"+'CAJON 15'!F10","v":1},{"$f":"+'CAJON 15'!H10","v":1},{"$f":"+'CAJON 15'!J10","v":0},{"$f":"+'CAJON 15'!K10","v":0},{"$f":"+'CAJON 15'!L10","v":0},{"$f":"IF('CAJON 15'!M10<>\"\",'CAJON 15'!M10,\"\")","v":""},{"$f":"IF(+J159=\"\",Sit!$B$1,IF(TODAY()>=ghost!J159,+Sit!$B$2,IF(TODAY()>=ghost!J159-30,Sit!$B$3,Sit!$B$4)))","v":"sin fecha de caducidad"},{"$f":"IF(identificacion!$G$11=\"\",\"\",IF(identificacion!$G$11<15,+ghost!D159-ROUND(ghost!G159,0),IF(identificacion!$G$11>20,ghost!F159-ROUND(ghost!I159,0),ghost!E159-ROUND(ghost!H159,0))))","v":""},"No procede: falta nº de tripulantes",{"$f":"IF(identificacion!$G$11=\"\",\"\",IF(identificacion!$G$11<15,+ghost!D159,IF(identificacion!$G$11>20,ghost!F159,ghost!E159)))","v":""},"juego",{"$f":"IF(identificacion!$G$11=\"\",\"\",IF(identificacion!$G$11<15,ROUND(ghost!G159,0),IF(identificacion!$G$11>20,ROUND(ghost!I159,0),ROUND(ghost!H159,0))))","v":""},{"$f":"+'Consulta de caducidades'!G164","v":0},"","158",null,"FÉRULAS HINCHABLES TRANSPARENTES. Juego con varios tamaños"]
[15,null,{"$f":"'CAJON 15'!A11","v":"-FÉRULA DE KRAMER 100 x 10 cm."},{"$f":"+'CAJON 15'!D11","v":1},{"$f":"+'CAJON 15'!F11","v":1},{"$f":"+'CAJON 15'!H11","v":1},{"$f":"+'CAJON 15'!J11","v":0},{"$f":"+'CAJON 15'!K11","v":0},{"$f":"+'CAJON 15'!L11","v":0},{"$f":"IF('CAJON 15'!M11<>\"\",'CAJON 15'!M11,\"\")","v":""},{"$f":"IF(+J160=\"\",Sit!$B$1,IF(TODAY()>=ghost!J160,+Sit!$B$2,IF(TODAY()>=ghost!J160-30,Sit!$B$3,Sit!$B$4)))","v":"sin fecha de caducidad"},{"$f":"IF(identificacion!$G$11=\"\",\"\",IF(identificacion!$G$11<15,+ghost!D160-ROUND(ghost!G160,0),IF(identificacion!$G$11>20,ghost!F160-ROUND(ghost!I160,0),ghost!E160-ROUND(ghost!H160,0))))","v":""},"No procede: falta nº de tripulantes",{"$f":"IF(identificacion!$G$11=\"\",\"\",IF(identificacion!$G$11<15,+ghost!D160,IF(identificacion!$G$11>20,ghost!F160,ghost!E160)))","v":""},"unidad",{"$f":"IF(identificacion!$G$11=\"\",\"\",IF(identificacion!$G$11<15,ROUND(ghost!G160,0),IF(identificacion!$G$11>20,ROUND(ghost!I160,0),ROUND(ghost!H160,0))))","v":""},{"$f":"+'Consulta de caducidades'!G165","v":0},"","159",null,"FÉRULA DE KRAMER 100. x 10 cm."]
[15,null,{"$f":"'CAJON 15'!A12","v":"-BOTELLA DE ORINA (HOMBRES)"},{"$f":"+'CAJON 15'!D12","v":1},{"$f":"+'CAJON 15'!F12","v":1},{"$f":"+'CAJON 15'!H12","v":1},{"$f":"+'CAJON 15'!J12","v":0},{"$f":"+'CAJON 15'!K12","v":0},{"$f":"+'CAJON 15'!L12","v":0},{"$f":"IF('CAJON 15'!M12<>\"\",'CAJON 15'!M12,\"\")","v":""},{"$f":"IF(+J161=\"\",Sit!$B$1,IF(TODAY()>=ghost!J161,+Sit!$B$2,IF(TODAY()>=ghost!J161-30,Sit!$B$3,Sit!$B$4)))","v":"sin fecha de caducidad"},{"$f":"IF(identificacion!$G$11=\"\",\"\",IF(identificacion!$G$11<15,+ghost!D161-ROUND(ghost!G161,0),IF(identificacion!$G$11>20,ghost!F161-ROUND(ghost!I161,0),ghost!E161-ROUND(ghost!H161,0))))","v":""},"No procede: falta nº de tripulantes",{"$f":"IF(identificacion!$G$11=\"\",\"\",IF(identificacion!$G$11<15,+ghost!D161,IF(identificacion!$G$11>20,ghost!F161,ghost!E161)))","v":""},"unidad",{"$f":"IF(identificacion!$G$11=\"\",\"\",IF(identificacion!$G$11<15,ROUND(ghost!G161,0),IF(identificacion!$G$11>20,ROUND(ghost!I161,0),ROUND(ghost!H161,0))))","v":""},{"$f":"+'Consulta de caducidades'!G166","v":0},"","160",null,"BOTELLA DE ORINA (HOMBRES)"]
[15,null,{"$f":"'CAJON 15'!A13","v":"-CUÑA (MUJERES)"},{"$f":"+'CAJON 15'!D13","v":1},{"$f":"+'CAJON 15'!F13","v":1},{"$f":"+'CAJON 15'!H13","v":1},{"$f":"+'CAJON 15'!J13","v":0},{"$f":"+'CAJON 15'!K13","v":0},{"$f":"+'CAJON 15'!L13","v":0},{"$f":"IF('CAJON 15'!M13<>\"\",'CAJON 15'!M13,\"\")","v":""},{"$f":"IF(+J162=\"\",Sit!$B$1,IF(TODAY()>=ghost!J162,+Sit!$B$2,IF(TODAY()>=ghost!J162-30,Sit!$B$3,Sit!$B$4)))","v":"sin fecha de caducidad"},{"$f":"IF(identificacion!$G$11=\"\",\"\",IF(identificacion!$G$11<15,+ghost!D162-ROUND(ghost!G162,0),IF(identificacion!$G$11>20,ghost!F162-ROUND(ghost!I162,0),ghost!E162-ROUND(ghost!H162,0))))","v":""},"No procede: falta nº de tripulantes",{"$f":"IF(identificacion!$G$11=\"\",\"\",IF(identificacion!$G$11<15,+ghost!D162,IF(identificacion!$G$11>20,ghost!F162,ghost!E162)))","v":""},"unidad",{"$f":"IF(identificacion!$G$11=\"\",\"\",IF(identificacion!$G$11<15,ROUND(ghost!G162,0),IF(identificacion!$G$11>20,ROUND(ghost!I162,0),ROUND(ghost!H162,0))))","v":""},{"$f":"+'Consulta de caducidades'!G167","v":0},"","161",null,"CUÑA (MUJERES)"]
[15,null,{"$f":"'CAJON 15'!A14","v":"-BOLSA PARA AGUA CALIENTE 2 litros"},{"$f":"+'CAJON 15'!D14","v":1},{"$f":"+'CAJON 15'!F14","v":1},{"$f":"+'CAJON 15'!H14","v":1},{"$f":"+'CAJON 15'!J14","v":0},{"$f":"+'CAJON 15'!K14","v":0},{"$f":"+'CAJON 15'!L14","v":0},{"$f":"IF('CAJON 15'!M14<>\"\",'CAJON 15'!M14,\"\")","v":""},{"$f":"IF(+J163=\"\",Sit!$B$1,IF(TODAY()>=ghost!J163,+Sit!$B$2,IF(TODAY()>=ghost!J163-30,Sit!$B$3,Sit!$B$4)))","v":"sin fecha de caducidad"},{"$f":"IF(identificacion!$G$11=\"\",\"\",IF(identificacion!$G$11<15,+ghost!D163-ROUND(ghost!G163,0),IF(identificacion!$G$11>20,ghost!F163-ROUND(ghost!I163,0),ghost!E163-ROUND(ghost!H163,0))))","v":""},"No procede: falta nº de tripulantes",{"$f":"IF(identificacion!$G$11=\"\",\"\",IF(identificacion!$G$11<15,+ghost!D163,IF(identificacion!$G$11>20,ghost!F163,ghost!E163)))","v":""},"unidad",{"$f":"IF(identificacion!$G$11=\"\",\"\",IF(identificacion!$G$11<15,ROUND(ghost!G163,0),IF(identificacion!$G$11>20,ROUND(ghost!I163,0),ROUND(ghost!H163,0))))","v":""},{"$f":"+'Consulta de caducidades'!G168","v":0},"","162",null,"BOLSA PARA AGUA CALIENTE 2 litros"]
[15,null,{"$f":"'CAJON 15'!A15","v":"-BOLSA DE HIELO"},{"$f":"+'CAJON 15'!D15","v":1},{"$f":"+'CAJON 15'!F15","v":1},{"$f":"+'CAJON 15'!H15","v":1},{"$f":"+'CAJON 15'!J15","v":0},{"$f":"+'CAJON 15'!K15","v":0},{"$f":"+'CAJON 15'!L15","v":0},{"$f":"IF('CAJON 15'!M15<>\"\",'CAJON 15'!M15,\"\")","v":""},{"$f":"IF(+J164=\"\",Sit!$B$1,IF(TODAY()>=ghost!J164,+Sit!$B$2,IF(TODAY()>=ghost!J164-30,Sit!$B$3,Sit!$B$4)))","v":"sin fecha de caducidad"},{"$f":"IF(identificacion!$G$11=\"\",\"\",IF(identificacion!$G$11<15,+ghost!D164-ROUND(ghost!G164,0),IF(identificacion!$G$11>20,ghost!F164-ROUND(ghost!I164,0),ghost!E164-ROUND(ghost!H164,0))))","v":""},"No procede: falta nº de tripulantes",{"$f":"IF(identificacion!$G$11=\"\",\"\",IF(identificacion!$G$11<15,+ghost!D164,IF(identificacion!$G$11>20,ghost!F164,ghost!E164)))","v":""},"unidad",{"$f":"IF(identificacion!$G$11=\"\",\"\",IF(identificacion!$G$11<15,ROUND(ghost!G164,0),IF(identificacion!$G$11>20,ROUND(ghost!I164,0),ROUND(ghost!H164,0))))","v":""},{"$f":"+'Consulta de caducidades'!G169","v":0},"","163",null,"BOLSA DE HIELO"]
[15,null,{"$f":"'CAJON 15'!A16","v":"-SACO MORTUORIO PARA CADÁVER (corta duración)"},{"$f":"+'CAJON 15'!D16","v":1},{"$f":"+'CAJON 15'!F16","v":1},{"$f":"+'CAJON 15'!H16","v":1},{"$f":"+'CAJON 15'!J16","v":0},{"$f":"+'CAJON 15'!K16","v":0},{"$f":"+'CAJON 15'!L16","v":0},{"$f":"IF('CAJON 15'!M16<>\"\",'CAJON 15'!M16,\"\")","v":""},{"$f":"IF(+J165=\"\",Sit!$B$1,IF(TODAY()>=ghost!J165,+Sit!$B$2,IF(TODAY()>=ghost!J165-30,Sit!$B$3,Sit!$B$4)))","v":"sin fecha de caducidad"},{"$f":"IF(identificacion!$G$11=\"\",\"\",IF(identificacion!$G$11<15,+ghost!D165-ROUND(ghost!G165,0),IF(identificacion!$G$11>20,ghost!F165-ROUND(ghost!I165,0),ghost!E165-ROUND(ghost!H165,0))))","v":""},"No procede: falta nº de tripulantes",{"$f":"IF(identificacion!$G$11=\"\",\"\",IF(identificacion!$G$11<15,+ghost!D165,IF(identificacion!$G$11>20,ghost!F165,ghost!E165)))","v":""},"unidad",{"$f":"IF(identificacion!$G$11=\"\",\"\",IF(identificacion!$G$11<15,ROUND(ghost!G165,0),IF(identificacion!$G$11>20,ROUND(ghost!I165,0),ROUND(ghost!H165,0))))","v":""},{"$f":"+'Consulta de caducidades'!G170","v":0},"","164",null,"SACO MORTUORIO PARA CADÁVER (corta duración)"]
["FC",null,{"$f":"+'FUERA CAJONES'!A10","v":"-APARATO DE REANIMACIÓN MANUAL (AMBÚ)"},{"$f":"+'FUERA CAJONES'!D10","v":1},{"$f":"+'FUERA CAJONES'!F10","v":1},{"$f":"+'FUERA CAJONES'!H10","v":1},{"$f":"+'FUERA CAJONES'!J10","v":0},{"$f":"+'FUERA CAJONES'!K10","v":0},{"$f":"+'FUERA CAJONES'!L10","v":0},{"$f":"IF('FUERA CAJONES'!M10<>\"\",'FUERA CAJONES'!M10,\"\")","v":""},{"$f":"IF(+J166=\"\",Sit!$B$1,IF(TODAY()>=ghost!J166,+Sit!$B$2,IF(TODAY()>=ghost!J166-30,Sit!$B$3,Sit!$B$4)))","v":"sin fecha de caducidad"},{"$f":"IF(identificacion!$G$11=\"\",\"\",IF(identificacion!$G$11<15,+ghost!D166-ROUND(ghost!G166,0),IF(identificacion!$G$11>20,ghost!F166-ROUND(ghost!I166,0),ghost!E166-ROUND(ghost!H166,0))))","v":""},"No procede: falta nº de tripulantes",{"$f":"IF(identificacion!$G$11=\"\",\"\",IF(identificacion!$G$11<15,+ghost!D166,IF(identificacion!$G$11>20,ghost!F166,ghost!E166)))","v":""},"unidad",{"$f":"IF(identificacion!$G$11=\"\",\"\",IF(identificacion!$G$11<15,ROUND(ghost!G166,0),IF(identificacion!$G$11>20,ROUND(ghost!I166,0),ROUND(ghost!H166,0))))","v":""},{"$f":"+'Consulta de caducidades'!G171","v":0},"","165",null,"APARATO DE REANIMACIÓN MANUAL (AMBÚ)"]
["FC",null,{"$f":"+'FUERA CAJONES'!A11","v":"-APARATO DE OXIGENOTERAPIA"},{"$f":"+'FUERA CAJONES'!D11","v":1},{"$f":"+'FUERA CAJONES'!F11","v":1},{"$f":"+'FUERA CAJONES'!H11","v":1},{"$f":"+'FUERA CAJONES'!J11","v":0},{"$f":"+'FUERA CAJONES'!K11","v":0},{"$f":"+'FUERA CAJONES'!L11","v":0},{"$f":"IF('FUERA CAJONES'!M11<>\"\",'FUERA CAJONES'!M11,\"\")","v":""},{"$f":"IF(+J167=\"\",Sit!$B$1,IF(TODAY()>=ghost!J167,+Sit!$B$2,IF(TODAY()>=ghost!J167-30,Sit!$B$3,Sit!$B$4)))","v":"sin fecha de caducidad"},{"$f":"IF(identificacion!$G$11=\"\",\"\",IF(identificacion!$G$11<15,+ghost!D167-ROUND(ghost!G167,0),IF(identificacion!$G$11>20,ghost!F167-ROUND(ghost!I167,0),ghost!E167-ROUND(ghost!H167,0))))","v":""},"No procede: falta nº de tripulantes",{"$f":"IF(identificacion!$G$11=\"\",\"\",IF(identificacion!$G$11<15,+ghost!D167,IF(identificacion!$G$11>20,ghost!F167,ghost!E167)))","v":""},"unidad",{"$f":"IF(identificacion!$G$11=\"\",\"\",IF(identificacion!$G$11<15,ROUND(ghost!G167,0),IF(identificacion!$G$11>20,ROUND(ghost!I167,0),ROUND(ghost!H167,0))))","v":""},{"$f":"+'Consulta de caducidades'!G172","v":0},"","166",null,"APARATO DE OXIGENOTERAPIA"]
["FC",null,{"$f":"+'FUERA CAJONES'!A12","v":"-CÁNULA PARA REANIMACIÓN BOCA A BOCA. TUBO DE GUEDEL. Tamaño 3"},{"$f":"+'FUERA CAJONES'!D12","v":1},{"$f":"+'FUERA CAJONES'!F12","v":1},{"$f":"+'FUERA CAJONES'!H12","v":1},{"$f":"+'FUERA CAJONES'!J12","v":0},{"$f":"+'FUERA CAJONES'!K12","v":0},{"$f":"+'FUERA CAJONES'!L12","v":0},{"$f":"IF('FUERA CAJONES'!M12<>\"\",'FUERA CAJONES'!M12,\"\")","v":""},{"$f":"IF(+J168=\"\",Sit!$B$1,IF(TODAY()>=ghost!J168,+Sit!$B$2,IF(TODAY()>=ghost!J168-30,Sit!$B$3,Sit!$B$4)))","v":"sin fecha de caducidad"},{"$f":"IF(identificacion!$G$11=\"\",\"\",IF(identificacion!$G$11<15,+ghost!D168-ROUND(ghost!G168,0),IF(identificacion!$G$11>20,ghost!F168-ROUND(ghost!I168,0),ghost!E168-ROUND(ghost!H168,0))))","v":""},"No procede: falta nº de tripulantes",{"$f":"IF(identificacion!$G$11=\"\",\"\",IF(identificacion!$G$11<15,+ghost!D168,IF(identificacion!$G$11>20,ghost!F168,ghost!E168)))","v":""},"unidad",{"$f":"IF(identificacion!$G$11=\"\",\"\",IF(identificacion!$G$11<15,ROUND(ghost!G168,0),IF(identificacion!$G$11>20,ROUND(ghost!I168,0),ROUND(ghost!H168,0))))","v":""},{"$f":"+'Consulta de caducidades'!G173","v":0},"","167",null,"CÁNULA PARA REANIMACIÓN BOCA A BOCA. TUBO DE GUEDEL. Tamaño 3"]
["FC",null,{"$f":"+'FUERA CAJONES'!A13","v":"-CÁNULA PARA REANIMACIÓN BOCA A BOCA. TUBO DE GUEDEL. Tamaño 4"},{"$f":"+'FUERA CAJONES'!D13","v":1},{"$f":"+'FUERA CAJONES'!F13","v":1},{"$f":"+'FUERA CAJONES'!H13","v":1},{"$f":"+'FUERA CAJONES'!J13","v":0},{"$f":"+'FUERA CAJONES'!K13","v":0},{"$f":"+'FUERA CAJONES'!L13","v":0},{"$f":"IF('FUERA CAJONES'!M13<>\"\",'FUERA CAJONES'!M13,\"\")","v":""},{"$f":"IF(+J169=\"\",Sit!$B$1,IF(TODAY()>=ghost!J169,+Sit!$B$2,IF(TODAY()>=ghost!J169-30,Sit!$B$3,Sit!$B$4)))","v":"sin fecha de caducidad"},{"$f":"IF(identificacion!$G$11=\"\",\"\",IF(identificacion!$G$11<15,+ghost!D169-ROUND(ghost!G169,0),IF(identificacion!$G$11>20,ghost!F169-ROUND(ghost!I169,0),ghost!E169-ROUND(ghost!H169,0))))","v":""},{"$f":"IF(L169=\"\",\"No procede: falta nº de tripulantes\",IF(L169=0,\"cantidad exigida\",IF(L169=1,CONCATENATE(\"falta \"& +L169 & \" unidad\"),IF(L169>1,CONCATENATE(\"faltan \"&+L169& \" unidades\"),IF(L169<0,\"dotación con excedentes\",\"Comprobar introducción de datos\")))))","v":"No procede: falta nº de tripulantes"},{"$f":"IF(identificacion!$G$11=\"\",\"\",IF(identificacion!$G$11<15,+ghost!D169,IF(identificacion!$G$11>20,ghost!F169,ghost!E169)))","v":""},"unidad",{"$f":"IF(identificacion!$G$11=\"\",\"\",IF(identificacion!$G$11<15,ROUND(ghost!G169,0),IF(identificacion!$G$11>20,ROUND(ghost!I169,0),ROUND(ghost!H169,0))))","v":""},{"$f":"+'Consulta de caducidades'!G174","v":0},"","168",null,"CÁNULA PARA REANIMACIÓN BOCA A BOCA. TUBO DE GUEDEL. Tamaño 4"]
["FC",null,{"$f":"+'FUERA CAJONES'!A14","v":"2. COLCHÓN DE MOLDEO AL VACÍO"},{"$f":"+'FUERA CAJONES'!D14","v":1},{"$f":"+'FUERA CAJONES'!F14","v":1},{"$f":"+'FUERA CAJONES'!H14","v":1},{"$f":"+'FUERA CAJONES'!J14","v":0},{"$f":"+'FUERA CAJONES'!K14","v":0},{"$f":"+'FUERA CAJONES'!L14","v":0},{"$f":"IF('FUERA CAJONES'!M14<>\"\",'FUERA CAJONES'!M14,\"\")","v":""},{"$f":"IF(+J170=\"\",Sit!$B$1,IF(TODAY()>=ghost!J170,+Sit!$B$2,IF(TODAY()>=ghost!J170-30,Sit!$B$3,Sit!$B$4)))","v":"sin fecha de caducidad"},{"$f":"IF(identificacion!$G$11=\"\",\"\",IF(identificacion!$G$11<15,+ghost!D170-ROUND(ghost!G170,0),IF(identificacion!$G$11>20,ghost!F170-ROUND(ghost!I170,0),ghost!E170-ROUND(ghost!H170,0))))","v":""},"No procede: falta nº de tripulantes",{"$f":"IF(identificacion!$G$11=\"\",\"\",IF(identificacion!$G$11<15,+ghost!D170,IF(identificacion!$G$11>20,ghost!F170,ghost!E170)))","v":""},"unidad",{"$f":"IF(identificacion!$G$11=\"\",\"\",IF(identificacion!$G$11<15,ROUND(ghost!G170,0),IF(identificacion!$G$11>20,ROUND(ghost!I170,0),ROUND(ghost!H170,0))))","v":""},{"$f":"+'Consulta de caducidades'!G175","v":0},"","169",null,"COLCHÓN DE MOLDEO AL VACÍO"]
["FC",null,{"$f":"+'FUERA CAJONES'!A15","v":"3. TABLERO ESPINAL CON INMOVILIZACIÓN LATERAL DE CABEZA-CUELLO"},{"$f":"+'FUERA CAJONES'!D15","v":1},{"$f":"+'FUERA CAJONES'!F15","v":1},{"$f":"+'FUERA CAJONES'!H15","v":1},{"$f":"+'FUERA CAJONES'!J15","v":0},{"$f":"+'FUERA CAJONES'!K15","v":0},{"$f":"+'FUERA CAJONES'!L15","v":0},{"$f":"IF('FUERA CAJONES'!M15<>\"\",'FUERA CAJONES'!M15,\"\")","v":""},{"$f":"IF(+J171=\"\",Sit!$B$1,IF(TODAY()>=ghost!J171,+Sit!$B$2,IF(TODAY()>=ghost!J171-30,Sit!$B$3,Sit!$B$4)))","v":"sin fecha de caducidad"},{"$f":"IF(identificacion!$G$11=\"\",\"\",IF(identificacion!$G$11<15,+ghost!D171-ROUND(ghost!G171,0),IF(identificacion!$G$11>20,ghost!F171-ROUND(ghost!I171,0),ghost!E171-ROUND(ghost!H171,0))))","v":""},"No procede: falta nº de tripulantes",{"$f":"IF(identificacion!$G$11=\"\",\"\",IF(identificacion!$G$11<15,+ghost!D171,IF(identificacion!$G$11>20,ghost!F171,ghost!E171)))","v":""},"unidad",{"$f":"IF(identificacion!$G$11=\"\",\"\",IF(identificacion!$G$11<15,ROUND(ghost!G171,0),IF(identificacion!$G$11>20,ROUND(ghost!I171,0),ROUND(ghost!H171,0))))","v":""},{"$f":"+'Consulta de caducidades'!G176","v":0},"","170",null,"TABLERO ESPINAL CON INMOVILIZACIÓN LATERAL DE CABEZA-CUELLO"]
["FC",null,{"$f":"+'FUERA CAJONES'!A16","v":"4. COLLAR CERVICAL PARA INMOVILIZACIÓN RÍGIDO Y REGULABLE"},{"$f":"+'FUERA CAJONES'!D16","v":1},{"$f":"+'FUERA CAJONES'!F16","v":1},{"$f":"+'FUERA CAJONES'!H16","v":1},{"$f":"+'FUERA CAJONES'!J16","v":0},{"$f":"+'FUERA CAJONES'!K16","v":0},{"$f":"+'FUERA CAJONES'!L16","v":0},{"$f":"IF('FUERA CAJONES'!M16<>\"\",'FUERA CAJONES'!M16,\"\")","v":""},{"$f":"IF(+J172=\"\",Sit!$B$1,IF(TODAY()>=ghost!J172,+Sit!$B$2,IF(TODAY()>=ghost!J172-30,Sit!$B$3,Sit!$B$4)))","v":"sin fecha de caducidad"},{"$f":"IF(identificacion!$G$11=\"\",\"\",IF(identificacion!$G$11<15,+ghost!D172-ROUND(ghost!G172,0),IF(identificacion!$G$11>20,ghost!F172-ROUND(ghost!I172,0),ghost!E172-ROUND(ghost!H172,0))))","v":""},"No procede: falta nº de tripulantes",{"$f":"IF(identificacion!$G$11=\"\",\"\",IF(identificacion!$G$11<15,+ghost!D172,IF(identificacion!$G$11>20,ghost!F172,ghost!E172)))","v":""},"unidad",{"$f":"IF(identificacion!$G$11=\"\",\"\",IF(identificacion!$G$11<15,ROUND(ghost!G172,0),IF(identificacion!$G$11>20,ROUND(ghost!I172,0),ROUND(ghost!H172,0))))","v":""},{"$f":"+'Consulta de caducidades'!G177","v":0},"","171",null,"COLLAR CERVICAL PARA INMOVILIZACIÓN RÍGIDO Y REGULABLE"]
["FC",null,{"$f":"+'FUERA CAJONES'!A17","v":"5. CONTENEDOR DE RESIDUOS BIOSANITARIOS PARA OBJETOS CORTANTES Y PUNZANTES\n     de 1 litro (f)"},{"$f":"+'FUERA CAJONES'!D17","v":1},{"$f":"+'FUERA CAJONES'!F17","v":1},{"$f":"+'FUERA CAJONES'!H17","v":1},{"$f":"+'FUERA CAJONES'!J17","v":0},{"$f":"+'FUERA CAJONES'!K17","v":0},{"$f":"+'FUERA CAJONES'!L17","v":0},{"$f":"IF('FUERA CAJONES'!M17<>\"\",'FUERA CAJONES'!M17,\"\")","v":""},{"$f":"IF(+J173=\"\",Sit!$B$1,IF(TODAY()>=ghost!J173,+Sit!$B$2,IF(TODAY()>=ghost!J173-30,Sit!$B$3,Sit!$B$4)))","v":"sin fecha de caducidad"},{"$f":"IF(identificacion!$G$11=\"\",\"\",IF(identificacion!$G$11<15,+ghost!D173-ROUND(ghost!G173,0),IF(identificacion!$G$11>20,ghost!F173-ROUND(ghost!I173,0),ghost!E173-ROUND(ghost!H173,0))))","v":""},"No procede: falta nº de tripulantes",{"$f":"IF(identificacion!$G$11=\"\",\"\",IF(identificacion!$G$11<15,+ghost!D173,IF(identificacion!$G$11>20,ghost!F173,ghost!E173)))","v":""},"unidad",{"$f":"IF(identificacion!$G$11=\"\",\"\",IF(identificacion!$G$11<15,ROUND(ghost!G173,0),IF(identificacion!$G$11>20,ROUND(ghost!I173,0),ROUND(ghost!H173,0))))","v":""},{"$f":"+'Consulta de caducidades'!G178","v":0},"","172",null,"CONTENEDOR DE RESIDUOS BIOSANITARIOS PARA OBJETOS CORTANTES Y PUNZANTES de 1 litro (f)",null,"(f) Para la retirada de estos contenedores debera contactarse con las instalaciones de recepción autorizadas en cada puerto"]
["FC",null,{"$f":"+'FUERA CAJONES'!A18","v":"6. DESINFECTANTE DE AGUA (LEJÍA SIN DETERGENTE)\n     Botella de 1 litro apta para desinfección de agua de bebida."},{"$f":"+'FUERA CAJONES'!D18","v":3},{"$f":"+'FUERA CAJONES'!F18","v":4},{"$f":"+'FUERA CAJONES'!H18","v":5},{"$f":"+'FUERA CAJONES'!J18","v":0},{"$f":"+'FUERA CAJONES'!K18","v":0},{"$f":"+'FUERA CAJONES'!L18","v":0},{"$f":"IF('FUERA CAJONES'!M18<>\"\",'FUERA CAJONES'!M18,\"\")","v":""},{"$f":"IF(+J174=\"\",Sit!$B$1,IF(TODAY()>=ghost!J174,+Sit!$B$2,IF(TODAY()>=ghost!J174-30,Sit!$B$3,Sit!$B$4)))","v":"sin fecha de caducidad"},{"$f":"IF(identificacion!$G$11=\"\",\"\",IF(identificacion!$G$11<15,+ghost!D174-ROUND(ghost!G174,0),IF(identificacion!$G$11>20,ghost!F174-ROUND(ghost!I174,0),ghost!E174-ROUND(ghost!H174,0))))","v":""},"No procede: falta nº de tripulantes",{"$f":"IF(identificacion!$G$11=\"\",\"\",IF(identificacion!$G$11<15,+ghost!D174,IF(identificacion!$G$11>20,ghost!F174,ghost!E174)))","v":""},"envases",{"$f":"IF(identificacion!$G$11=\"\",\"\",IF(identificacion!$G$11<15,ROUND(ghost!G174,0),IF(identificacion!$G$11>20,ROUND(ghost!I174,0),ROUND(ghost!H174,0))))","v":""},{"$f":"+'Consulta de caducidades'!G179","v":0},"","173",null,"DESINFECTANTE DE AGUA (LEJÍA SIN DETERGENTE) Botella de 1 litro apta para desinfección de agua de bebida"]

{"sheet":"Instrucciones","index":2,"n_rows":0,"n_cols":0,"rows_kept":0,"cut":false,"hidden":false,"merged":[]}

{"sheet":"Consulta de caducidades","index":3,"n_rows":186,"n_cols":9,"rows_kept":186,"cut":false,"hidden":false,"merged":[[185,1,185,6],[180,1,180,6],[181,1,181,6],[182,1,182,6],[183,1,183,6],[184,1,184,6],[1,0,1,2],[0,0,0,2],[2,0,2,2],[3,0,3,2],[4,1,4,6]]}
[{"$f":"IF(+identificacion!$D$3<>\"\",CONCATENATE(+identificacion!$D$3),\"\")","v":""},null,null,null,null,null,"Fecha del Documento de Control"]
[{"$f":"CONCATENATE(\"Matrícula: \",+identificacion!D4,\"  -     \",\"N.I.B.: \",+identificacion!H4)","v":"Matrícula:   -     N.I.B.: "},null,null,null,null,null,{"$f":"IF(+identificacion!F10=\"\",\"\",+identificacion!F10)","v":""}]
[{"$f":"IF(+identificacion!$F$5<>\"\",+identificacion!$F$5,\"\")","v":""},null,null,null,null,null,"Fecha de impresión"]
[{"$f":"IF(+identificacion!$D$6<>\"\",CONCATENATE(identificacion!$D$6,\", \",+DAY(identificacion!$F$10), \"/\", MONTH(identificacion!$F$10),\"/\", YEAR(identificacion!$F$10) ),\"\")","v":""},null,null,null,null,null,{"$f":"TODAY()","v":"2016-05-26"}]
[null,"CONSULTA DEL ESTADO DEL BOTIQUIN  A"]
[null,"CAJON","PRINCIPIO ACTIVO / PRODUCTO - presentación","Estado de Caducidad","fecha caducidad","Estado de la dotación","Nº de unidades a REPONER"]
[null,{"$f":"+ghost!A2","v":1},{"$f":"+ghost!C2","v":"EPINEFRINA - 1 mg. jeringa precargada 1ml."},{"$f":"+ghost!K2","v":"sin fecha de caducidad"},{"$f":"+ghost!J2","v":""},{"$f":"+ghost!M2","v":"No procede: falta nº de tripulantes"},null,null,{"$f":"+ghost!N2","v":""}]
[null,{"$f":"+ghost!A3","v":1},{"$f":"+ghost!C3","v":"NITROGLICERINA - 0,8 mg. 30 comp."},{"$f":"+ghost!K3","v":"sin fecha de caducidad"},{"$f":"+ghost!J3","v":""},{"$f":"+ghost!M3","v":"No procede: falta nº de tripulantes"},null,null,{"$f":"+ghost!N3","v":""}]
[null,{"$f":"+ghost!A4","v":1},{"$f":"+ghost!C4","v":"FUROSEMIDA - 20 mg. 5 ampollas 2 ml."},{"$f":"+ghost!K4","v":"sin fecha de caducidad"},{"$f":"+ghost!J4","v":""},{"$f":"+ghost!M4","v":"No procede: falta nº de tripulantes"},null,null,{"$f":"+ghost!N4","v":""}]
[null,{"$f":"+ghost!A5","v":1},{"$f":"+ghost!C5","v":"HIDROCLOROTIAZIDA - 50 mg. 20 comp."},{"$f":"+ghost!K5","v":"sin fecha de caducidad"},{"$f":"+ghost!J5","v":""},{"$f":"+ghost!M5","v":"No procede: falta nº de tripulantes"},null,null,{"$f":"+ghost!N5","v":""}]
[null,{"$f":"+ghost!A6","v":1},{"$f":"+ghost!C6","v":"ENOXAPARINA - 80 mg. 2 jeringas precargadas 0,8 ml."},{"$f":"+ghost!K6","v":"sin fecha de caducidad"},{"$f":"+ghost!J6","v":""},{"$f":"+ghost!M6","v":"No procede: falta nº de tripulantes"},null,null,{"$f":"+ghost!N6","v":""}]
[null,{"$f":"+ghost!A7","v":1},{"$f":"+ghost!C7","v":"METILERGOMETRINA (a) - 0,2 mg. 3 ampollas 1 ml."},{"$f":"+ghost!K7","v":"sin fecha de caducidad"},{"$f":"+ghost!J7","v":""},{"$f":"+ghost!M7","v":"No procede: falta nº de tripulantes"},null,null,{"$f":"+ghost!N7","v":""}]
[null,{"$f":"+ghost!A8","v":1},{"$f":"+ghost!C8","v":"GELATINA HEMOSTÁTICA - 10 esponjas 200 x 70 x 0,5 mm."},{"$f":"+ghost!K8","v":"sin fecha de caducidad"},{"$f":"+ghost!J8","v":""},{"$f":"+ghost!M8","v":"No procede: falta nº de tripulantes"},null,null,{"$f":"+ghost!N8","v":""}]
[null,{"$f":"+ghost!A9","v":1},{"$f":"+ghost!C9","v":"ATENOLOL - 50 mg. 30 comp."},{"$f":"+ghost!K9","v":"sin fecha de caducidad"},{"$f":"+ghost!J9","v":""},{"$f":"+ghost!M9","v":"No procede: falta nº de tripulantes"},null,null,{"$f":"+ghost!N9","v":""}]
[null,{"$f":"+ghost!A10","v":1},{"$f":"+ghost!C10","v":"CAPTOPRIL - 25 mg.  60 comp."},{"$f":"+ghost!K10","v":"sin fecha de caducidad"},{"$f":"+ghost!J10","v":""},{"$f":"+ghost!M10","v":"No procede: falta nº de tripulantes"},null,null,{"$f":"+ghost!N10","v":""}]
[null,{"$f":"+ghost!A11","v":2},{"$f":"+ghost!C11","v":"ALGELDRATO + \nHIDRÓXIDO DE MAGNESIO - 600/300 mg. 40 comp."},{"$f":"+ghost!K11","v":"sin fecha de caducidad"},{"$f":"+ghost!J11","v":""},{"$f":"+ghost!M11","v":"No procede: falta nº de tripulantes"},null,null,{"$f":"+ghost!N11","v":""}]
[null,{"$f":"+ghost!A12","v":2},{"$f":"+ghost!C12","v":"OMEPRAZOL - 20 mg.  28 cápsulas"},{"$f":"+ghost!K12","v":"sin fecha de caducidad"},{"$f":"+ghost!J12","v":""},{"$f":"+ghost!M12","v":"No procede: falta nº de tripulantes"},null,null,{"$f":"+ghost!N12","v":""}]
[null,{"$f":"+ghost!A13","v":2},{"$f":"+ghost!C13","v":"RANITIDINA - 50 mg.  5 ampollas de 5 ml."},{"$f":"+ghost!K13","v":"sin fecha de caducidad"},{"$f":"+ghost!J13","v":""},{"$f":"+ghost!M13","v":"No procede: falta nº de tripulantes"},null,null,{"$f":"+ghost!N13","v":""}]
[null,{"$f":"+ghost!A14","v":2},{"$f":"+ghost!C14","v":"METOCLOPRAMIDA - 10 mg.  30 comp. "},{"$f":"+ghost!K14","v":"sin fecha de caducidad"},{"$f":"+ghost!J14","v":""},{"$f":"+ghost!M14","v":"No procede: falta nº de tripulantes"},null,null,{"$f":"+ghost!N14","v":""}]
[null,{"$f":"+ghost!A15","v":2},{"$f":"+ghost!C15","v":"METOCLOPRAMIDA - 10 mg. 12 ampollas 2 ml."},{"$f":"+ghost!K15","v":"sin fecha de caducidad"},{"$f":"+ghost!J15","v":""},{"$f":"+ghost!M15","v":"No procede: falta nº de tripulantes"},null,null,{"$f":"+ghost!N15","v":""}]
[null,{"$f":"+ghost!A16","v":2},{"$f":"+ghost!C16","v":"LACTULOSA - 3,33 g. / 5ml soluc. 200 ml."},{"$f":"+ghost!K16","v":"sin fecha de caducidad"},{"$f":"+ghost!J16","v":""},{"$f":"+ghost!M16","v":"No procede: falta nº de tripulantes"},null,null,{"$f":"+ghost!N16","v":""}]
[null,{"$f":"+ghost!A17","v":2},{"$f":"+ghost!C17","v":"LAURILSULFATO SÓDICO, ACETATO + SODIO, CITRATO, DIHIDRATO - 4 canuletas rectales 5 ml."},{"$f":"+ghost!K17","v":"sin fecha de caducidad"},{"$f":"+ghost!J17","v":""},{"$f":"+ghost!M17","v":"No procede: falta nº de tripulantes"},null,null,{"$f":"+ghost!N17","v":""}]
[null,{"$f":"+ghost!A18","v":2},{"$f":"+ghost!C18","v":"LOPERAMIDA - 2 mg. 20 cápsulas"},{"$f":"+ghost!K18","v":"sin fecha de caducidad"},{"$f":"+ghost!J18","v":""},{"$f":"+ghost!M18","v":"No procede: falta nº de tripulantes"},null,null,{"$f":"+ghost!N18","v":""}]
[null,{"$f":"+ghost!A19","v":2},{"$f":"+ghost!C19","v":"SIMETICONA - 120 mg.  40 comp. ó cápsulas"},{"$f":"+ghost!K19","v":"sin fecha de caducidad"},{"$f":"+ghost!J19","v":""},{"$f":"+ghost!M19","v":"No procede: falta nº de tripulantes"},null,null,{"$f":"+ghost!N19","v":""}]
[null,{"$f":"+ghost!A20","v":2},{"$f":"+ghost!C20","v":"RUSCOGENINA + TRIMEBUTINA - Pomada rectal 30 g."},{"$f":"+ghost!K20","v":"sin fecha de caducidad"},{"$f":"+ghost!J20","v":""},{"$f":"+ghost!M20","v":"No procede: falta nº de tripulantes"},null,null,{"$f":"+ghost!N20","v":""}]
[null,{"$f":"+ghost!A21","v":2},{"$f":"+ghost!C21","v":"CARBON ACTIVADO - Granulado 25 g."},{"$f":"+ghost!K21","v":"sin fecha de caducidad"},{"$f":"+ghost!J21","v":""},{"$f":"+ghost!M21","v":"No procede: falta nº de tripulantes"},null,null,{"$f":"+ghost!N21","v":""}]
[null,{"$f":"+ghost!A22","v":3},{"$f":"+ghost!C22","v":"PARACETAMOL - 1 g.  40 comp."},{"$f":"+ghost!K22","v":"sin fecha de caducidad"},{"$f":"+ghost!J22","v":""},{"$f":"+ghost!M22","v":"No procede: falta nº de tripulantes"},null,null,{"$f":"+ghost!N22","v":""}]
[null,{"$f":"+ghost!A23","v":3},{"$f":"+ghost!C23","v":"ÁCIDO ACETILSALICÍTICO - 100 mg.  30 comp."},{"$f":"+ghost!K23","v":"sin fecha de caducidad"},{"$f":"+ghost!J23","v":""},{"$f":"+ghost!M23","v":"No procede: falta nº de tripulantes"},null,null,{"$f":"+ghost!N23","v":""}]
[null,{"$f":"+ghost!A24","v":3},{"$f":"+ghost!C24","v":"IBUPROFENO - 600 mg.  40 comp."},{"$f":"+ghost!K24","v":"sin fecha de caducidad"},{"$f":"+ghost!J24","v":""},{"$f":"+ghost!M24","v":"No procede: falta nº de tripulantes"},null,null,{"$f":"+ghost!N24","v":""}]
[null,{"$f":"+ghost!A25","v":3},{"$f":"+ghost!C25","v":"DICLOFENACO SÓDICO - 50 mg. 40 comp."},{"$f":"+ghost!K25","v":"sin fecha de caducidad"},{"$f":"+ghost!J25","v":""},{"$f":"+ghost!M25","v":"No procede: falta nº de tripulantes"},null,null,{"$f":"+ghost!N25","v":""}]
[null,{"$f":"+ghost!A26","v":3},{"$f":"+ghost!C26","v":"DICLOFENACO SÓDICO - 75 mg.  6 ampollas"},{"$f":"+ghost!K26","v":"sin fecha de caducidad"},{"$f":"+ghost!J26","v":""},{"$f":"+ghost!M26","v":"No procede: falta nº de tripulantes"},null,null,{"$f":"+ghost!N26","v":""}]
[null,{"$f":"+ghost!A27","v":3},{"$f":"+ghost!C27","v":"DICLOFENACO SÓDICO - 1% gel tópico  60 g."},{"$f":"+ghost!K27","v":"sin fecha de caducidad"},{"$f":"+ghost!J27","v":""},{"$f":"+ghost!M27","v":"No procede: falta nº de tripulantes"}]
[null,{"$f":"+ghost!A28","v":3},{"$f":"+ghost!C28","v":"METAMIZOL - 575 mg.  20 cápsulas"},{"$f":"+ghost!K28","v":"sin fecha de caducidad"},{"$f":"+ghost!J28","v":""},{"$f":"+ghost!M28","v":"No procede: falta nº de tripulantes"},null,null,{"$f":"+ghost!N28","v":""}]
[null,{"$f":"+ghost!A29","v":3},{"$f":"+ghost!C29","v":"METAMIZOL - 2 g.  5 ampollas "},{"$f":"+ghost!K29","v":"sin fecha de caducidad"},{"$f":"+ghost!J29","v":""},{"$f":"+ghost!M29","v":"No procede: falta nº de tripulantes"},null,null,{"$f":"+ghost!N29","v":""}]
[null,{"$f":"+ghost!A30","v":3},{"$f":"+ghost!C30","v":"CLORURO MÓRFICO (b) - 1% ampollas 10 mg"},{"$f":"+ghost!K30","v":"sin fecha de caducidad"},{"$f":"+ghost!J30","v":""},{"$f":"+ghost!M30","v":"No procede: falta nº de tripulantes"},null,null,{"$f":"+ghost!N30","v":""}]
[null,{"$f":"+ghost!A31","v":3},{"$f":"+ghost!C31","v":"TRAMADOL CLORHIDRATO - 50 mg.  20 cápsulas "},{"$f":"+ghost!K31","v":"sin fecha de caducidad"},{"$f":"+ghost!J31","v":""},{"$f":"+ghost!M31","v":"No procede: falta nº de tripulantes"},null,null,{"$f":"+ghost!N31","v":""}]
[null,{"$f":"+ghost!A32","v":3},{"$f":"+ghost!C32","v":"TRAMADOL CLORHIDRATO - 100 mg.  5 ampollas"},{"$f":"+ghost!K32","v":"sin fecha de caducidad"},{"$f":"+ghost!J32","v":""},{"$f":"+ghost!M32","v":"No procede: falta nº de tripulantes"},null,null,{"$f":"+ghost!N32","v":""}]
[null,{"$f":"+ghost!A33","v":3},{"$f":"+ghost!C33","v":"BUTILESCOPOLAMINA, BROMURO - 10 mg.  60 comp. "},{"$f":"+ghost!K33","v":"sin fecha de caducidad"},{"$f":"+ghost!J33","v":""},{"$f":"+ghost!M33","v":"No procede: falta nº de tripulantes"},null,null,{"$f":"+ghost!N33","v":""}]
[null,{"$f":"+ghost!A34","v":3},{"$f":"+ghost!C34","v":"BUTILESCOPOLAMINA, BROMURO - 20 mg.  6 ampollas  1 ml."},{"$f":"+ghost!K34","v":"sin fecha de caducidad"},{"$f":"+ghost!J34","v":""},{"$f":"+ghost!M34","v":"No procede: falta nº de tripulantes"},null,null,{"$f":"+ghost!N34","v":""}]
[null,{"$f":"+ghost!A35","v":3},{"$f":"+ghost!C35","v":"NALOXONA - 0,4 mg.  10 ampollas"},{"$f":"+ghost!K35","v":"sin fecha de caducidad"},{"$f":"+ghost!J35","v":""},{"$f":"+ghost!M35","v":"No procede: falta nº de tripulantes"},null,null,{"$f":"+ghost!N35","v":""}]
[null,{"$f":"+ghost!A36","v":4},{"$f":"+ghost!C36","v":"LORAZEPAM - 1 mg.  25 comp."},{"$f":"+ghost!K36","v":"sin fecha de caducidad"},{"$f":"+ghost!J36","v":""},{"$f":"+ghost!M36","v":"No procede: falta nº de tripulantes"},null,null,{"$f":"+ghost!N36","v":""}]
[null,{"$f":"+ghost!A37","v":4},{"$f":"+ghost!C37","v":"DIAZEPAM - 10 mg.  25 comp."},{"$f":"+ghost!K37","v":"sin fecha de caducidad"},{"$f":"+ghost!J37","v":""},{"$f":"+ghost!M37","v":"No procede: falta nº de tripulantes"},null,null,{"$f":"+ghost!N37","v":""}]
[null,{"$f":"+ghost!A38","v":4},{"$f":"+ghost!C38","v":"DIAZEPAM - 10 mg.  6 ampollas"},{"$f":"+ghost!K38","v":"sin fecha de caducidad"},{"$f":"+ghost!J38","v":""},{"$f":"+ghost!M38","v":"No procede: falta nº de tripulantes"},null,null,{"$f":"+ghost!N38","v":""}]
[null,{"$f":"+ghost!A39","v":4},{"$f":"+ghost!C39","v":"HALOPERIDOL - 2 mg/ml gotas 30 ml"},{"$f":"+ghost!K39","v":"sin fecha de caducidad"},{"$f":"+ghost!J39","v":""},{"$f":"+ghost!M39","v":"No procede: falta nº de tripulantes"},null,null,{"$f":"+ghost!N39","v":""}]
[null,{"$f":"+ghost!A40","v":4},{"$f":"+ghost!C40","v":"HALOPERIDOL - 5 mg.  5 ampollas"},{"$f":"+ghost!K40","v":"sin fecha de caducidad"},{"$f":"+ghost!J40","v":""},{"$f":"+ghost!M40","v":"No procede: falta nº de tripulantes"},null,null,{"$f":"+ghost!N40","v":""}]
[null,{"$f":"+ghost!A41","v":4},{"$f":"+ghost!C41","v":"SULPIRIDA - 50 mg.  30 cápsulas"},{"$f":"+ghost!K41","v":"sin fecha de caducidad"},{"$f":"+ghost!J41","v":""},{"$f":"+ghost!M41","v":"No procede: falta nº de tripulantes"}]
[null,{"$f":"+ghost!A42","v":4},{"$f":"+ghost!C42","v":"SULPIRIDA - 100 mg.  12 ampollas de 2 ml."},{"$f":"+ghost!K42","v":"sin fecha de caducidad"},{"$f":"+ghost!J42","v":""},{"$f":"+ghost!M42","v":"No procede: falta nº de tripulantes"}]
[null,{"$f":"+ghost!A43","v":4},{"$f":"+ghost!C43","v":"DIMENHIDRINATO - 50 mg. 12 comp."},{"$f":"+ghost!K43","v":"sin fecha de caducidad"},{"$f":"+ghost!J43","v":""},{"$f":"+ghost!M43","v":"No procede: falta nº de tripulantes"},null,null,{"$f":"+ghost!N43","v":""}]
[null,{"$f":"+ghost!A44","v":4},{"$f":"+ghost!C44","v":"BIPERIDENO - 5 mg.  5 ampollas"},{"$f":"+ghost!K44","v":"sin fecha de caducidad"},{"$f":"+ghost!J44","v":""},{"$f":"+ghost!M44","v":"No procede: falta nº de tripulantes"},null,null,{"$f":"+ghost!N44","v":""}]
[null,{"$f":"+ghost!A45","v":5},{"$f":"+ghost!C45","v":"CETIRIZINA - 10 mg.  20 comp."},{"$f":"+ghost!K45","v":"sin fecha de caducidad"},{"$f":"+ghost!J45","v":""},{"$f":"+ghost!M45","v":"No procede: falta nº de tripulantes"},null,null,{"$f":"+ghost!N45","v":""}]
[null,{"$f":"+ghost!A46","v":5},{"$f":"+ghost!C46","v":"DEXCLORFENIRAMINA - 5 mg.  5 ampollas  1 ml."},{"$f":"+ghost!K46","v":"sin fecha de caducidad"},{"$f":"+ghost!J46","v":""},{"$f":"+ghost!M46","v":"No procede: falta nº de tripulantes"}]
[null,{"$f":"+ghost!A47","v":5},{"$f":"+ghost!C47","v":"METILPREDNISOLONA - 16 mg.  30 comp."},{"$f":"+ghost!K47","v":"sin fecha de caducidad"},{"$f":"+ghost!J47","v":""},{"$f":"+ghost!M47","v":"No procede: falta nº de tripulantes"},null,null,{"$f":"+ghost!N47","v":""}]
[null,{"$f":"+ghost!A48","v":5},{"$f":"+ghost!C48","v":"METILPREDNISOLONA - 40 mg.  3 ampollas"},{"$f":"+ghost!K48","v":"sin fecha de caducidad"},{"$f":"+ghost!J48","v":""},{"$f":"+ghost!M48","v":"No procede: falta nº de tripulantes"},null,null,{"$f":"+ghost!N48","v":""}]
[null,{"$f":"+ghost!A49","v":6},{"$f":"+ghost!C49","v":"SALBUTAMOL - 100 MCG/ puls. 20 AERO 200"},{"$f":"+ghost!K49","v":"sin fecha de caducidad"},{"$f":"+ghost!J49","v":""},{"$f":"+ghost!M49","v":"No procede: falta nº de tripulantes"},null,null,{"$f":"+ghost!N49","v":""}]
[null,{"$f":"+ghost!A50","v":6},{"$f":"+ghost!C50","v":"DEXTROMETORFANO BROMHIDRATO - 15 mg.  20 comp."},{"$f":"+ghost!K50","v":"sin fecha de caducidad"},{"$f":"+ghost!J50","v":""},{"$f":"+ghost!M50","v":"No procede: falta nº de tripulantes"},null,null,{"$f":"+ghost!N50","v":""}]
[null,{"$f":"+ghost!A51","v":6},{"$f":"+ghost!C51","v":"ACETILCISTEÍNA - 600 mg.  30 sobres"},{"$f":"+ghost!K51","v":"sin fecha de caducidad"},{"$f":"+ghost!J51","v":""},{"$f":"+ghost!M51","v":"No procede: falta nº de tripulantes"},null,null,{"$f":"+ghost!N51","v":""}]
[null,{"$f":"+ghost!A52","v":7},{"$f":"+ghost!C52","v":"TOBRAMICINA - 0,3% colirio 5 ml."},{"$f":"+ghost!K52","v":"sin fecha de caducidad"},{"$f":"+ghost!J52","v":""},{"$f":"+ghost!M52","v":"No procede: falta nº de tripulantes"},null,null,{"$f":"+ghost!N52","v":""}]
[null,{"$f":"+ghost!A53","v":7},{"$f":"+ghost!C53","v":"TOBRAMICINA - 0,3% ungüento 3,5 g."},{"$f":"+ghost!K53","v":"sin fecha de caducidad"},{"$f":"+ghost!J53","v":""},{"$f":"+ghost!M53","v":"No procede: falta nº de tripulantes"},null,null,{"$f":"+ghost!N53","v":""}]
[null,{"$f":"+ghost!A54","v":7},{"$f":"+ghost!C54","v":"DICLOFENACO SÓDICO - 0,1% colirio  30 monodosis, 0,3 ml."},{"$f":"+ghost!K54","v":"sin fecha de caducidad"},{"$f":"+ghost!J54","v":""},{"$f":"+ghost!M54","v":"No procede: falta nº de tripulantes"},null,null,{"$f":"+ghost!N54","v":""}]
[null,{"$f":"+ghost!A55","v":7},{"$f":"+ghost!C55","v":"OXIBUPROCAÍNA - 0,2% colirio  10 ml."},{"$f":"+ghost!K55","v":"sin fecha de caducidad"},{"$f":"+ghost!J55","v":""},{"$f":"+ghost!M55","v":"No procede: falta nº de tripulantes"},null,null,{"$f":"+ghost!N55","v":""}]
[null,{"$f":"+ghost!A56","v":7},{"$f":"+ghost!C56","v":"FLUORESCEÍNA 2% - 2% colirio  1 frasco  10 ml."},{"$f":"+ghost!K56","v":"sin fecha de caducidad"},{"$f":"+ghost!J56","v":""},{"$f":"+ghost!M56","v":"No procede: falta nº de tripulantes"},null,null,{"$f":"+ghost!N56","v":""}]
[null,{"$f":"+ghost!A57","v":7},{"$f":"+ghost!C57","v":"TIMOLOL - 0,25% colirio 3 ml."},{"$f":"+ghost!K57","v":"sin fecha de caducidad"},{"$f":"+ghost!J57","v":""},{"$f":"+ghost!M57","v":"No procede: falta nº de tripulantes"},null,null,{"$f":"+ghost!N57","v":""}]
[null,{"$f":"+ghost!A58","v":7},{"$f":"+ghost!C58","v":"CICLOPENTOLATO - 1% colirio 5 ml."},{"$f":"+ghost!K58","v":"sin fecha de caducidad"},{"$f":"+ghost!J58","v":""},{"$f":"+ghost!M58","v":"No procede: falta nº de tripulantes"},null,null,{"$f":"+ghost!N58","v":""}]
[null,{"$f":"+ghost!A59","v":7},{"$f":"+ghost!C59","v":"HIDROCLORURO FENILEFRINA - Colirio 1,25 mg.  10 ml."},{"$f":"+ghost!K59","v":"sin fecha de caducidad"},{"$f":"+ghost!J59","v":""},{"$f":"+ghost!M59","v":"No procede: falta nº de tripulantes"},null,null,{"$f":"+ghost!N59","v":""}]
[null,{"$f":"+ghost!A60","v":7},{"$f":"+ghost!C60","v":"NEOMICINA      +\nPOLIMIXINA B   +\nFLUOCINOLONA - Gotas oído 10 ml. Por 1 ml.: Neomicina Sulfato 3,5 mg. Polimixina B Sulfato 10.000 UI y Fluocinolona. Acetónido 0,25 mg."},{"$f":"+ghost!K60","v":"sin fecha de caducidad"},{"$f":"+ghost!J60","v":""},{"$f":"+ghost!M60","v":"No procede: falta nº de tripulantes"},null,null,{"$f":"+ghost!N60","v":""}]
[null,{"$f":"+ghost!A61","v":7},{"$f":"+ghost!C61","v":"HEXETIDINA - 0,1% solución 200 ml."},{"$f":"+ghost!K61","v":"sin fecha de caducidad"},{"$f":"+ghost!J61","v":""},{"$f":"+ghost!M61","v":"No procede: falta nº de tripulantes"},null,null,{"$f":"+ghost!N61","v":""}]
[null,{"$f":"+ghost!A62","v":8},{"$f":"+ghost!C62","v":"AMOXICILINA - 1 g. 30 comp. ranurados"},{"$f":"+ghost!K62","v":"sin fecha de caducidad"},{"$f":"+ghost!J62","v":""},{"$f":"+ghost!M62","v":"No procede: falta nº de tripulantes"},null,null,{"$f":"+ghost!N62","v":""}]
[null,{"$f":"+ghost!A63","v":8},{"$f":"+ghost!C63","v":"AMOXICILINA + CLAVULÁNICO - 875/125 mg.  30 sobres ó comp."},{"$f":"+ghost!K63","v":"sin fecha de caducidad"},{"$f":"+ghost!J63","v":""},{"$f":"+ghost!M63","v":"No procede: falta nº de tripulantes"},null,null,{"$f":"+ghost!N63","v":""}]
[null,{"$f":"+ghost!A64","v":8},{"$f":"+ghost!C64","v":"DOXICICLINA - 100 mg.  30 cápsulas"},{"$f":"+ghost!K64","v":"sin fecha de caducidad"},{"$f":"+ghost!J64","v":""},{"$f":"+ghost!M64","v":"No procede: falta nº de tripulantes"},null,null,{"$f":"+ghost!N64","v":""}]
[null,{"$f":"+ghost!A65","v":8},{"$f":"+ghost!C65","v":"AZITROMICINA - 500 mg.  3 comp."},{"$f":"+ghost!K65","v":"sin fecha de caducidad"},{"$f":"+ghost!J65","v":""},{"$f":"+ghost!M65","v":"No procede: falta nº de tripulantes"},null,null,{"$f":"+ghost!N65","v":""}]
[null,{"$f":"+ghost!A66","v":8},{"$f":"+ghost!C66","v":"CEFTRIAXONA - Vial de 1 g."},{"$f":"+ghost!K66","v":"sin fecha de caducidad"},{"$f":"+ghost!J66","v":""},{"$f":"+ghost!M66","v":"No procede: falta nº de tripulantes"},null,null,{"$f":"+ghost!N66","v":""}]
[null,{"$f":"+ghost!A67","v":8},{"$f":"+ghost!C67","v":"GENTAMICINA - Vial de 240 mg."},{"$f":"+ghost!K67","v":"sin fecha de caducidad"},{"$f":"+ghost!J67","v":""},{"$f":"+ghost!M67","v":"No procede: falta nº de tripulantes"},null,null,{"$f":"+ghost!N67","v":""}]
[null,{"$f":"+ghost!A68","v":8},{"$f":"+ghost!C68","v":"METRONIDAZOL - 250 mg.  20 comp."},{"$f":"+ghost!K68","v":"sin fecha de caducidad"},{"$f":"+ghost!J68","v":""},{"$f":"+ghost!M68","v":"No procede: falta nº de tripulantes"},null,null,{"$f":"+ghost!N68","v":""}]
[null,{"$f":"+ghost!A69","v":8},{"$f":"+ghost!C69","v":"MEBENDAZOL - 100 mg.  6 comp."},{"$f":"+ghost!K69","v":"sin fecha de caducidad"},{"$f":"+ghost!J69","v":""},{"$f":"+ghost!M69","v":"No procede: falta nº de tripulantes"},null,null,{"$f":"+ghost!N69","v":""}]
[null,{"$f":"+ghost!A70","v":8},{"$f":"+ghost!C70","v":"CIPROFLOXACINO - 500 mg.  20 comp."},{"$f":"+ghost!K70","v":"sin fecha de caducidad"},{"$f":"+ghost!J70","v":""},{"$f":"+ghost!M70","v":"No procede: falta nº de tripulantes"},null,null,{"$f":"+ghost!N70","v":""}]
[null,{"$f":"+ghost!A71","v":8},{"$f":"+ghost!C71","v":"TOXOIDE TETÁNICO +\nTOXOIDE DIFTÉRICO  (c) - 20/2 UI, jeringa precargada 0,5 ml."},{"$f":"+ghost!K71","v":"sin fecha de caducidad"},{"$f":"+ghost!J71","v":""},{"$f":"+ghost!M71","v":"No procede: falta nº de tripulantes"},null,null,{"$f":"+ghost!N71","v":""}]
[null,{"$f":"+ghost!A72","v":8},{"$f":"+ghost!C72","v":"GAMMAGLOBULINA ANTITETÁNICA (c) - 500 UI. (jeringa precargada) 2ml."},{"$f":"+ghost!K72","v":"sin fecha de caducidad"},{"$f":"+ghost!J72","v":""},{"$f":"+ghost!M72","v":"No procede: falta nº de tripulantes"},null,null,{"$f":"+ghost!N72","v":""}]
[null,{"$f":"+ghost!A73","v":8},{"$f":"+ghost!C73","v":"ARTESUNATO  (d) - ampollas"},{"$f":"+ghost!K73","v":"sin fecha de caducidad"},{"$f":"+ghost!J73","v":""},{"$f":"+ghost!M73","v":"No procede: falta nº de tripulantes"},null,null,{"$f":"+ghost!N73","v":""}]
[null,{"$f":"+ghost!A74","v":8},{"$f":"+ghost!C74","v":"DIHIDROARTEMISININA + PIPERAQUINA    (d) - 320/40 mg.  12 comp."},{"$f":"+ghost!K74","v":"sin fecha de caducidad"},{"$f":"+ghost!J74","v":""},{"$f":"+ghost!M74","v":"No procede: falta nº de tripulantes"},null,null,{"$f":"+ghost!N74","v":""}]
[null,{"$f":"+ghost!A75","v":9},{"$f":"+ghost!C75","v":"CLORURO DE ETILO - 100% aerosol 100 g."},{"$f":"+ghost!K75","v":"sin fecha de caducidad"},{"$f":"+ghost!J75","v":""},{"$f":"+ghost!M75","v":"No procede: falta nº de tripulantes"},null,null,{"$f":"+ghost!N75","v":""}]
[null,{"$f":"+ghost!A76","v":9},{"$f":"+ghost!C76","v":"LIDOCAÍNA - 2% miniplasco de 10 ml."},{"$f":"+ghost!K76","v":"sin fecha de caducidad"},{"$f":"+ghost!J76","v":""},{"$f":"+ghost!M76","v":"No procede: falta nº de tripulantes"},null,null,{"$f":"+ghost!N76","v":""}]
[null,{"$f":"+ghost!A77","v":10},{"$f":"+ghost!C77","v":"MUPIROCINA - 2% crema  30 g."},{"$f":"+ghost!K77","v":"sin fecha de caducidad"},{"$f":"+ghost!J77","v":""},{"$f":"+ghost!M77","v":"No procede: falta nº de tripulantes"},null,null,{"$f":"+ghost!N77","v":""}]
[null,{"$f":"+ghost!A78","v":10},{"$f":"+ghost!C78","v":"CLOBETASONA - 0,05% crema  30 g."},{"$f":"+ghost!K78","v":"sin fecha de caducidad"},{"$f":"+ghost!J78","v":""},{"$f":"+ghost!M78","v":"No procede: falta nº de tripulantes"},null,null,{"$f":"+ghost!N78","v":""}]
[null,{"$f":"+ghost!A79","v":10},{"$f":"+ghost!C79","v":"KETOCONAZOL - 2% crema.  Tubo 30 g."},{"$f":"+ghost!K79","v":"sin fecha de caducidad"},{"$f":"+ghost!J79","v":""},{"$f":"+ghost!M79","v":"No procede: falta nº de tripulantes"},null,null,{"$f":"+ghost!N79","v":""}]
[null,{"$f":"+ghost!A80","v":10},{"$f":"+ghost!C80","v":"SULFADIAZINA ARGÉNTICA - 1% crema. Tubo 50 g."},{"$f":"+ghost!K80","v":"sin fecha de caducidad"},{"$f":"+ghost!J80","v":""},{"$f":"+ghost!M80","v":"No procede: falta nº de tripulantes"}]
[null,{"$f":"+ghost!A81","v":10},{"$f":"+ghost!C81","v":"PERMETRINA -  Gel - loción al 1,5% 125 ml."},{"$f":"+ghost!K81","v":"sin fecha de caducidad"},{"$f":"+ghost!J81","v":""},{"$f":"+ghost!M81","v":"No procede: falta nº de tripulantes"}]
[null,{"$f":"+ghost!A82","v":10},{"$f":"+ghost!C82","v":"VASELINA - Pomada 25 g."},{"$f":"+ghost!K82","v":"sin fecha de caducidad"},{"$f":"+ghost!J82","v":""},{"$f":"+ghost!M82","v":"No procede: falta nº de tripulantes"},null,null,{"$f":"+ghost!N82","v":""}]
[null,{"$f":"+ghost!A83","v":11},{"$f":"+ghost!C83","v":"-ESTETOSCOPIO"},{"$f":"+ghost!K83","v":"sin fecha de caducidad"},{"$f":"+ghost!J83","v":""},{"$f":"+ghost!M83","v":"No procede: falta nº de tripulantes"},null,null,{"$f":"+ghost!N83","v":""}]
[null,{"$f":"+ghost!A84","v":11},{"$f":"+ghost!C84","v":"-TENSIÓMETRO DIGITAL HOMOLOGADO"},{"$f":"+ghost!K84","v":"sin fecha de caducidad"},{"$f":"+ghost!J84","v":""},{"$f":"+ghost!M84","v":"No procede: falta nº de tripulantes"},null,null,{"$f":"+ghost!N84","v":""}]
[null,{"$f":"+ghost!A85","v":11},{"$f":"+ghost!C85","v":"-PULSIOXIMETRO con pilas"},{"$f":"+ghost!K85","v":"sin fecha de caducidad"},{"$f":"+ghost!J85","v":""},{"$f":"+ghost!M85","v":"No procede: falta nº de tripulantes"},null,null,{"$f":"+ghost!N85","v":""}]
[null,{"$f":"+ghost!A86","v":11},{"$f":"+ghost!C86","v":"-TERMÓMETRO CLÍNICO DIGITAL"},{"$f":"+ghost!K86","v":"sin fecha de caducidad"},{"$f":"+ghost!J86","v":""},{"$f":"+ghost!M86","v":"No procede: falta nº de tripulantes"},null,null,{"$f":"+ghost!N86","v":""}]
[null,{"$f":"+ghost!A87","v":11},{"$f":"+ghost!C87","v":"-HOJAS DE TEMPERATURA"},{"$f":"+ghost!K87","v":"sin fecha de caducidad"},{"$f":"+ghost!J87","v":""},{"$f":"+ghost!M87","v":"No procede: falta nº de tripulantes"},null,null,{"$f":"+ghost!N87","v":""}]
[null,{"$f":"+ghost!A88","v":11},{"$f":"+ghost!C88","v":"-FICHAS MÉDICAS DE EVACUACIÓN"},{"$f":"+ghost!K88","v":"sin fecha de caducidad"},{"$f":"+ghost!J88","v":""},{"$f":"+ghost!M88","v":"No procede: falta nº de tripulantes"},null,null,{"$f":"+ghost!N88","v":""}]
[null,{"$f":"+ghost!A89","v":11},{"$f":"+ghost!C89","v":"-ETIQUETAS INFORMATIVAS PARA EVACUACIÓN DE ENFERMOS"},{"$f":"+ghost!K89","v":"sin fecha de caducidad"},{"$f":"+ghost!J89","v":""},{"$f":"+ghost!M89","v":"No procede: falta nº de tripulantes"},null,null,{"$f":"+ghost!N89","v":""}]
[null,{"$f":"+ghost!A90","v":11},{"$f":"+ghost!C90","v":"-SOBRES PARA INFORMACIÓN MÉDICA CONFIDENCIAL"},{"$f":"+ghost!K90","v":"sin fecha de caducidad"},{"$f":"+ghost!J90","v":""},{"$f":"+ghost!M90","v":"No procede: falta nº de tripulantes"},null,null,{"$f":"+ghost!N90","v":""}]
[null,{"$f":"+ghost!A91","v":11},{"$f":"+ghost!C91","v":"-HOJA DE REGISTRO DE ADMINISTRACIÓN DE FÁRMACOS A BORDO"},{"$f":"+ghost!K91","v":"sin fecha de caducidad"},{"$f":"+ghost!J91","v":""},{"$f":"+ghost!M91","v":"No procede: falta nº de tripulantes"},null,null,{"$f":"+ghost!N91","v":""}]
[null,{"$f":"+ghost!A92","v":11},{"$f":"+ghost!C92","v":"-GUÍA SANITARIA A BORDO"},{"$f":"+ghost!K92","v":"sin fecha de caducidad"},{"$f":"+ghost!J92","v":""},{"$f":"+ghost!M92","v":"No procede: falta nº de tripulantes"},null,null,{"$f":"+ghost!N92","v":""}]
[null,{"$f":"+ghost!A93","v":11},{"$f":"+ghost!C93","v":"-LINTERNA DE BOLSILLO CON FILTRO AZUL Y CON PILAS DE REPUESTO"},{"$f":"+ghost!K93","v":"sin fecha de caducidad"},{"$f":"+ghost!J93","v":""},{"$f":"+ghost!M93","v":"No procede: falta nº de tripulantes"},null,null,{"$f":"+ghost!N93","v":""}]
[null,{"$f":"+ghost!A94","v":11},{"$f":"+ghost!C94","v":"-LENTE DE AUMENTO IRROMPIBLE CON MANGO"},{"$f":"+ghost!K94","v":"sin fecha de caducidad"},{"$f":"+ghost!J94","v":""},{"$f":"+ghost!M94","v":"No procede: falta nº de tripulantes"},null,null,{"$f":"+ghost!N94","v":""}]
[null,{"$f":"+ghost!A95","v":11},{"$f":"+ghost!C95","v":"-TIRAS DE ORINA COLORIMÉTRICAS MULTITEST 8 PARÁMETROS MINIMO. Caja 100 uds."},{"$f":"+ghost!K95","v":"sin fecha de caducidad"},{"$f":"+ghost!J95","v":""},{"$f":"+ghost!M95","v":"No procede: falta nº de tripulantes"},null,null,{"$f":"+ghost!N95","v":""}]
[null,{"$f":"+ghost!A96","v":11},{"$f":"+ghost!C96","v":"-TIRAS REACTIVAS PARA ANÁLISIS DE GLUCOSA EN SANGRE. Caja con 50 tiras"},{"$f":"+ghost!K96","v":"sin fecha de caducidad"},{"$f":"+ghost!J96","v":""},{"$f":"+ghost!M96","v":"No procede: falta nº de tripulantes"},null,null,{"$f":"+ghost!N96","v":""}]
[null,{"$f":"+ghost!A97","v":11},{"$f":"+ghost!C97","v":"-RECIPIENTE ESTÉRIL PARA MUESTRAS DE ORINA"},{"$f":"+ghost!K97","v":"sin fecha de caducidad"},{"$f":"+ghost!J97","v":""},{"$f":"+ghost!M97","v":"No procede: falta nº de tripulantes"}]
[null,{"$f":"+ghost!A98","v":11},{"$f":"+ghost!C98","v":"-TEST RÁPIDO PARA PALUDISMO (d)"},{"$f":"+ghost!K98","v":"sin fecha de caducidad"},{"$f":"+ghost!J98","v":""},{"$f":"+ghost!M98","v":"No procede: falta nº de tripulantes"}]
[null,{"$f":"+ghost!A99","v":11},{"$f":"+ghost!C99","v":"-GAFAS INTEGRALES DE PROTECCIÓN FRENTE A RIESGO BIOLÓGICO"},{"$f":"+ghost!K99","v":"sin fecha de caducidad"},{"$f":"+ghost!J99","v":""},{"$f":"+ghost!M99","v":"No procede: falta nº de tripulantes"},null,null,{"$f":"+ghost!N99","v":""}]
[null,{"$f":"+ghost!A100","v":11},{"$f":"+ghost!C100","v":"-MASCARILLAS DE PROTECCIÓN FRENTE A RIESGO BIOLÓGICO tipo FFP2"},{"$f":"+ghost!K100","v":"sin fecha de caducidad"},{"$f":"+ghost!J100","v":""},{"$f":"+ghost!M100","v":"No procede: falta nº de tripulantes"},null,null,{"$f":"+ghost!N100","v":""}]
[null,{"$f":"+ghost!A101","v":12},{"$f":"+ghost!C101","v":"-GRAPADORAS DESECHABLES PARA SUTURA. Caja con 12 grapadoras de 5 grapas."},{"$f":"+ghost!K101","v":"sin fecha de caducidad"},{"$f":"+ghost!J101","v":""},{"$f":"+ghost!M101","v":"No procede: falta nº de tripulantes"},null,null,{"$f":"+ghost!N101","v":""}]
[null,{"$f":"+ghost!A102","v":12},{"$f":"+ghost!C102","v":"-TIJERAS QUITA-GRAPAS"},{"$f":"+ghost!K102","v":"sin fecha de caducidad"},{"$f":"+ghost!J102","v":""},{"$f":"+ghost!M102","v":"No procede: falta nº de tripulantes"},null,null,{"$f":"+ghost!N102","v":""}]
[null,{"$f":"+ghost!A103","v":12},{"$f":"+ghost!C103","v":"-SUTURAS CUTÁNEAS ESTÉRILES 6mm x 102 mm, 5U/paquete"},{"$f":"+ghost!K103","v":"sin fecha de caducidad"},{"$f":"+ghost!J103","v":""},{"$f":"+ghost!M103","v":"No procede: falta nº de tripulantes"},null,null,{"$f":"+ghost!N103","v":""}]
[null,{"$f":"+ghost!A104","v":12},{"$f":"+ghost!C104","v":"-SUTURAS NO ABSORBIBLE de 3 CEROS (000), CON AGUJA. Paquete individual"},{"$f":"+ghost!K104","v":"sin fecha de caducidad"},{"$f":"+ghost!J104","v":""},{"$f":"+ghost!M104","v":"No procede: falta nº de tripulantes"},null,null,{"$f":"+ghost!N104","v":""}]
[null,{"$f":"+ghost!A105","v":12},{"$f":"+ghost!C105","v":"-BANDA ELÁSTICA DE VELCRO O COMPRESOR DE GOMA ELÁSTICA"},{"$f":"+ghost!K105","v":"sin fecha de caducidad"},{"$f":"+ghost!J105","v":""},{"$f":"+ghost!M105","v":"No procede: falta nº de tripulantes"},null,null,{"$f":"+ghost!N105","v":""}]
[null,{"$f":"+ghost!A106","v":12},{"$f":"+ghost!C106","v":"-BISTURÍES DESECHABLES CON MANGO del Núm. 15 Paquetes individuales estériles"},{"$f":"+ghost!K106","v":"sin fecha de caducidad"},{"$f":"+ghost!J106","v":""},{"$f":"+ghost!M106","v":"No procede: falta nº de tripulantes"},null,null,{"$f":"+ghost!N106","v":""}]
[null,{"$f":"+ghost!A107","v":12},{"$f":"+ghost!C107","v":"-CAJA PARA INSTRUMENTAL DE ACERO INOXIDABLE de 20x10x5 cm. (aprox.)"},{"$f":"+ghost!K107","v":"sin fecha de caducidad"},{"$f":"+ghost!J107","v":""},{"$f":"+ghost!M107","v":"No procede: falta nº de tripulantes"},null,null,{"$f":"+ghost!N107","v":""}]
[null,{"$f":"+ghost!A108","v":12},{"$f":"+ghost!C108","v":"-TIJERA RECTA AGUDA"},{"$f":"+ghost!K108","v":"sin fecha de caducidad"},{"$f":"+ghost!J108","v":""},{"$f":"+ghost!M108","v":"No procede: falta nº de tripulantes"},null,null,{"$f":"+ghost!N108","v":""}]
[null,{"$f":"+ghost!A109","v":12},{"$f":"+ghost!C109","v":"-TIJERA RECTA ROMA"},{"$f":"+ghost!K109","v":"sin fecha de caducidad"},{"$f":"+ghost!J109","v":""},{"$f":"+ghost!M109","v":"No procede: falta nº de tripulantes"},null,null,{"$f":"+ghost!N109","v":""}]
[null,{"$f":"+ghost!A110","v":12},{"$f":"+ghost!C110","v":"-PINZAS DE DISECCIÓN RECTAS SIN DIENTES"},{"$f":"+ghost!K110","v":"sin fecha de caducidad"},{"$f":"+ghost!J110","v":""},{"$f":"+ghost!M110","v":"No procede: falta nº de tripulantes"},null,null,{"$f":"+ghost!N110","v":""}]
[null,{"$f":"+ghost!A111","v":12},{"$f":"+ghost!C111","v":"-PINZAS HEMOSTÁTICAS RECTAS CON DIENTES"},{"$f":"+ghost!K111","v":"sin fecha de caducidad"},{"$f":"+ghost!J111","v":""},{"$f":"+ghost!M111","v":"No procede: falta nº de tripulantes"},null,null,{"$f":"+ghost!N111","v":""}]
[null,{"$f":"+ghost!A112","v":12},{"$f":"+ghost!C112","v":"-PINZAS PORTAAGUJAS DE SUTURA Tipo «MAYO»"},{"$f":"+ghost!K112","v":"sin fecha de caducidad"},{"$f":"+ghost!J112","v":""},{"$f":"+ghost!M112","v":"No procede: falta nº de tripulantes"},null,null,{"$f":"+ghost!N112","v":""}]
[null,{"$f":"+ghost!A113","v":12},{"$f":"+ghost!C113","v":"-ESTUCHE PARA INFUSIÓN RECTAL"},{"$f":"+ghost!K113","v":"sin fecha de caducidad"},{"$f":"+ghost!J113","v":""},{"$f":"+ghost!M113","v":"No procede: falta nº de tripulantes"},null,null,{"$f":"+ghost!N113","v":""}]
[null,{"$f":"+ghost!A114","v":12},{"$f":"+ghost!C114","v":"-SONDA URINARIA núm. 16"},{"$f":"+ghost!K114","v":"sin fecha de caducidad"},{"$f":"+ghost!J114","v":""},{"$f":"+ghost!M114","v":"No procede: falta nº de tripulantes"},null,null,{"$f":"+ghost!N114","v":""}]
[null,{"$f":"+ghost!A115","v":12},{"$f":"+ghost!C115","v":"-LUBRICANTE UROLÓGICO"},{"$f":"+ghost!K115","v":"sin fecha de caducidad"},{"$f":"+ghost!J115","v":""},{"$f":"+ghost!M115","v":"No procede: falta nº de tripulantes"}]
[null,{"$f":"+ghost!A116","v":12},{"$f":"+ghost!C116","v":"-MAQUINILLAS DE AFEITAR DESECHABLES"},{"$f":"+ghost!K116","v":"sin fecha de caducidad"},{"$f":"+ghost!J116","v":""},{"$f":"+ghost!M116","v":"No procede: falta nº de tripulantes"},null,null,{"$f":"+ghost!N116","v":""}]
[null,{"$f":"+ghost!A117","v":12},{"$f":"+ghost!C117","v":"-BATEA ARRIÑONADA CON SOLAPA DE ACERO INOXIDABLE de 25 cm."},{"$f":"+ghost!K117","v":"sin fecha de caducidad"},{"$f":"+ghost!J117","v":""},{"$f":"+ghost!M117","v":"No procede: falta nº de tripulantes"},null,null,{"$f":"+ghost!N117","v":""}]
[null,{"$f":"+ghost!A118","v":12},{"$f":"+ghost!C118","v":"-IMPERDIBLES DE SEGURIDAD DE ACERO INOXIDABLE. Varios tamaños"},{"$f":"+ghost!K118","v":"sin fecha de caducidad"},{"$f":"+ghost!J118","v":""},{"$f":"+ghost!M118","v":"No procede: falta nº de tripulantes"},null,null,{"$f":"+ghost!N118","v":""}]
[null,{"$f":"+ghost!A119","v":12},{"$f":"+ghost!C119","v":"-LANCETAS. Caja con 50 unidades"},{"$f":"+ghost!K119","v":"sin fecha de caducidad"},{"$f":"+ghost!J119","v":""},{"$f":"+ghost!M119","v":"No procede: falta nº de tripulantes"},null,null,{"$f":"+ghost!N119","v":""}]
[null,{"$f":"+ghost!A120","v":12},{"$f":"+ghost!C120","v":"-BASTONCILLOS CON TORUNDA DE ALGODÓN PARA LIMPIEZA"},{"$f":"+ghost!K120","v":"sin fecha de caducidad"},{"$f":"+ghost!J120","v":""},{"$f":"+ghost!M120","v":"No procede: falta nº de tripulantes"},null,null,{"$f":"+ghost!N120","v":""}]
[null,{"$f":"+ghost!A121","v":12},{"$f":"+ghost!C121","v":"-JERINGAS CON AGUJAS DESHECHABLES PARA INYECCIÓN INTRAMUSCULAR -De 5 cc"},{"$f":"+ghost!K121","v":"sin fecha de caducidad"},{"$f":"+ghost!J121","v":""},{"$f":"+ghost!M121","v":"No procede: falta nº de tripulantes"},null,null,{"$f":"+ghost!N121","v":""}]
[null,{"$f":"+ghost!A122","v":12},{"$f":"+ghost!C122","v":"-JERINGAS CON AGUJAS DESHECHABLES PARA INYECCIÓN INTRAMUSCULAR -De 10 cc"},{"$f":"+ghost!K122","v":"sin fecha de caducidad"},{"$f":"+ghost!J122","v":""},{"$f":"+ghost!M122","v":"No procede: falta nº de tripulantes"},null,null,{"$f":"+ghost!N122","v":""}]
[null,{"$f":"+ghost!A123","v":12},{"$f":"+ghost!C123","v":"-AGUJAS PARA INYECTABLES -Intramuscular (largas)"},{"$f":"+ghost!K123","v":"sin fecha de caducidad"},{"$f":"+ghost!J123","v":""},{"$f":"+ghost!M123","v":"No procede: falta nº de tripulantes"},null,null,{"$f":"+ghost!N123","v":""}]
[null,{"$f":"+ghost!A124","v":13},{"$f":"+ghost!C124","v":"CL. SÓDICO + CL. POTÁSICO + GLUCOSA + BICARBONATO SÓDICO - 5 sobres para disolución. Por sobre:\nCL Sódico 3,5 g., CL Potásico 1,5 g.,\nGlucosa 20 g., Bicarbonato Sódico 2,5 g."},{"$f":"+ghost!K124","v":"sin fecha de caducidad"},{"$f":"+ghost!J124","v":""},{"$f":"+ghost!M124","v":"No procede: falta nº de tripulantes"},null,null,{"$f":"+ghost!N124","v":""}]
[null,{"$f":"+ghost!A125","v":13},{"$f":"+ghost!C125","v":"SUERO SALINO FISIOLÓGICO al 0,9% - Solución 500 ml."},{"$f":"+ghost!K125","v":"sin fecha de caducidad"},{"$f":"+ghost!J125","v":""},{"$f":"+ghost!M125","v":"No procede: falta nº de tripulantes"},null,null,{"$f":"+ghost!N125","v":""}]
[null,{"$f":"+ghost!A126","v":13},{"$f":"+ghost!C126","v":"COMPLEJO VITAMÍNICO B - 10 ampollas 2 ml."},{"$f":"+ghost!K126","v":"sin fecha de caducidad"},{"$f":"+ghost!J126","v":""},{"$f":"+ghost!M126","v":"No procede: falta nº de tripulantes"},null,null,{"$f":"+ghost!N126","v":""}]
[null,{"$f":"+ghost!A127","v":13},{"$f":"+ghost!C127","v":"TIAMINA (VITAMINA B1) - 100 mg.  6 ampollas  1 ml."},{"$f":"+ghost!K127","v":"sin fecha de caducidad"},{"$f":"+ghost!J127","v":""},{"$f":"+ghost!M127","v":"No procede: falta nº de tripulantes"},null,null,{"$f":"+ghost!N127","v":""}]
[null,{"$f":"+ghost!A128","v":13},{"$f":"+ghost!C128","v":"SISTEMA DE PERFUSIÓN ESTÉRIL DESECHABLE CON CÁMARA DE GOTEO"},{"$f":"+ghost!K128","v":"sin fecha de caducidad"},{"$f":"+ghost!J128","v":""},{"$f":"+ghost!M128","v":"No procede: falta nº de tripulantes"},null,null,{"$f":"+ghost!N128","v":""}]
[null,{"$f":"+ghost!A129","v":13},{"$f":"+ghost!C129","v":"AGUJAS PARA PERFUSIÓN"},{"$f":"+ghost!K129","v":"sin fecha de caducidad"},{"$f":"+ghost!J129","v":""},{"$f":"+ghost!M129","v":"No procede: falta nº de tripulantes"}]
[null,{"$f":"+ghost!A130","v":13},{"$f":"+ghost!C130","v":"PISTOLA DE INYECCIÓN INTRAÓSEA PARA ADULTOS. Sistema BIG, color azul, calibre 15G"},{"$f":"+ghost!K130","v":"sin fecha de caducidad"},{"$f":"+ghost!J130","v":""},{"$f":"+ghost!M130","v":"No procede: falta nº de tripulantes"},null,null,{"$f":"+ghost!N130","v":""}]
[null,{"$f":"+ghost!A131","v":14},{"$f":"+ghost!C131","v":"-POVIDONA 10%  10 unidosis  5 ml."},{"$f":"+ghost!K131","v":"sin fecha de caducidad"},{"$f":"+ghost!J131","v":""},{"$f":"+ghost!M131","v":"No procede: falta nº de tripulantes"},null,null,{"$f":"+ghost!N131","v":""}]
[null,{"$f":"+ghost!A132","v":14},{"$f":"+ghost!C132","v":"-CLORHEXIDINA AL 5 %. Solución 500 ml"},{"$f":"+ghost!K132","v":"sin fecha de caducidad"},{"$f":"+ghost!J132","v":""},{"$f":"+ghost!M132","v":"No procede: falta nº de tripulantes"},null,null,{"$f":"+ghost!N132","v":""}]
[null,{"$f":"+ghost!A133","v":14},{"$f":"+ghost!C133","v":"-ALCOHOL DE 70°. Solución 250 ml"},{"$f":"+ghost!K133","v":"sin fecha de caducidad"},{"$f":"+ghost!J133","v":""},{"$f":"+ghost!M133","v":"No procede: falta nº de tripulantes"},null,null,{"$f":"+ghost!N133","v":""}]
[null,{"$f":"+ghost!A134","v":14},{"$f":"+ghost!C134","v":"-AGUA OXIGENADA. Solución de 10 volúmenes 500 ml"},{"$f":"+ghost!K134","v":"sin fecha de caducidad"},{"$f":"+ghost!J134","v":""},{"$f":"+ghost!M134","v":"No procede: falta nº de tripulantes"},null,null,{"$f":"+ghost!N134","v":""}]
[null,{"$f":"+ghost!A135","v":14},{"$f":"+ghost!C135","v":"-SOLUCIÓN ANTISÉPTICA para higiene de manos Frasco 50 ml."},{"$f":"+ghost!K135","v":"sin fecha de caducidad"},{"$f":"+ghost!J135","v":""},{"$f":"+ghost!M135","v":"No procede: falta nº de tripulantes"},null,null,{"$f":"+ghost!N135","v":""}]
[null,{"$f":"+ghost!A136","v":14},{"$f":"+ghost!C136","v":"-VENDAS ELÁSTICAS -De 5 cm. x 4 m."},{"$f":"+ghost!K136","v":"sin fecha de caducidad"},{"$f":"+ghost!J136","v":""},{"$f":"+ghost!M136","v":"No procede: falta nº de tripulantes"},null,null,{"$f":"+ghost!N136","v":""}]
[null,{"$f":"+ghost!A137","v":14},{"$f":"+ghost!C137","v":"-VENDAS ELÁSTICAS -De 7 cm. x 4 m."},{"$f":"+ghost!K137","v":"sin fecha de caducidad"},{"$f":"+ghost!J137","v":""},{"$f":"+ghost!M137","v":"No procede: falta nº de tripulantes"},null,null,{"$f":"+ghost!N137","v":""}]
[null,{"$f":"+ghost!A138","v":14},{"$f":"+ghost!C138","v":"-VENDAS ELÁSTICAS -De 10 cm. x 4 m."},{"$f":"+ghost!K138","v":"sin fecha de caducidad"},{"$f":"+ghost!J138","v":""},{"$f":"+ghost!M138","v":"No procede: falta nº de tripulantes"},null,null,{"$f":"+ghost!N138","v":""}]
[null,{"$f":"+ghost!A139","v":14},{"$f":"+ghost!C139","v":"-VENDAS DE GASA TUBULARES PARA DEDOS CON APLICADOR. (Rollo)"},{"$f":"+ghost!K139","v":"sin fecha de caducidad"},{"$f":"+ghost!J139","v":""},{"$f":"+ghost!M139","v":"No procede: falta nº de tripulantes"},null,null,{"$f":"+ghost!N139","v":""}]
[null,{"$f":"+ghost!A140","v":14},{"$f":"+ghost!C140","v":"-GASAS ESTÉRILES de 20 cm. x 20 cm. caja con 100 unidades"},{"$f":"+ghost!K140","v":"sin fecha de caducidad"},{"$f":"+ghost!J140","v":""},{"$f":"+ghost!M140","v":"No procede: falta nº de tripulantes"},null,null,{"$f":"+ghost!N140","v":""}]
[null,{"$f":"+ghost!A141","v":14},{"$f":"+ghost!C141","v":"-ALGODÓN HIDRÓFILO. Paquete de 500 g"},{"$f":"+ghost!K141","v":"sin fecha de caducidad"},{"$f":"+ghost!J141","v":""},{"$f":"+ghost!M141","v":"No procede: falta nº de tripulantes"},null,null,{"$f":"+ghost!N141","v":""}]
[null,{"$f":"+ghost!A142","v":14},{"$f":"+ghost!C142","v":"-CABESTRILLO O VENDA TRIANGULAR"},{"$f":"+ghost!K142","v":"sin fecha de caducidad"},{"$f":"+ghost!J142","v":""},{"$f":"+ghost!M142","v":"No procede: falta nº de tripulantes"},null,null,{"$f":"+ghost!N142","v":""}]
[null,{"$f":"+ghost!A143","v":14},{"$f":"+ghost!C143","v":"-ESPARADRAPO HIPOALERGÉNICO -De 5 cm. x 10 m."},{"$f":"+ghost!K143","v":"sin fecha de caducidad"},{"$f":"+ghost!J143","v":""},{"$f":"+ghost!M143","v":"No procede: falta nº de tripulantes"},null,null,{"$f":"+ghost!N143","v":""}]
[null,{"$f":"+ghost!A144","v":14},{"$f":"+ghost!C144","v":"-ESPARADRAPO HIPOALERGÉNICO -De 10 cm. x 10 m."},{"$f":"+ghost!K144","v":"sin fecha de caducidad"},{"$f":"+ghost!J144","v":""},{"$f":"+ghost!M144","v":"No procede: falta nº de tripulantes"},null,null,{"$f":"+ghost!N144","v":""}]
[null,{"$f":"+ghost!A145","v":14},{"$f":"+ghost!C145","v":"-GUANTES DESECHABLES DE VINILO. Caja con 100 unidades"},{"$f":"+ghost!K145","v":"sin fecha de caducidad"},{"$f":"+ghost!J145","v":""},{"$f":"+ghost!M145","v":"No procede: falta nº de tripulantes"},null,null,{"$f":"+ghost!N145","v":""}]
[null,{"$f":"+ghost!A146","v":14},{"$f":"+ghost!C146","v":"-GUANTES QUIRÚRGICOS ESTÉRILES del Núm. 8-9. Paquete individual por par"},{"$f":"+ghost!K146","v":"sin fecha de caducidad"},{"$f":"+ghost!J146","v":""},{"$f":"+ghost!M146","v":"No procede: falta nº de tripulantes"},null,null,{"$f":"+ghost!N146","v":""}]
[null,{"$f":"+ghost!A147","v":14},{"$f":"+ghost!C147","v":"-APÓSITOS AUTOADHESIVOS ESTÉRILES. Caja 5 unidades -De 6 cm. x 7 cm."},{"$f":"+ghost!K147","v":"sin fecha de caducidad"},{"$f":"+ghost!J147","v":""},{"$f":"+ghost!M147","v":"No procede: falta nº de tripulantes"},null,null,{"$f":"+ghost!N147","v":""}]
[null,{"$f":"+ghost!A148","v":14},{"$f":"+ghost!C148","v":"-APÓSITOS AUTOADHESIVOS ESTÉRILES. Caja 5 unidades -De 8 cm. x 10 cm."},{"$f":"+ghost!K148","v":"sin fecha de caducidad"},{"$f":"+ghost!J148","v":""},{"$f":"+ghost!M148","v":"No procede: falta nº de tripulantes"},null,null,{"$f":"+ghost!N148","v":""}]
[null,{"$f":"+ghost!A149","v":14},{"$f":"+ghost!C149","v":"-APÓSITOS HIDROCOLOIDES ESTÉRILES. Caja con 3 unidades de 5 cm. x 5 cm."},{"$f":"+ghost!K149","v":"sin fecha de caducidad"},{"$f":"+ghost!J149","v":""},{"$f":"+ghost!M149","v":"No procede: falta nº de tripulantes"},null,null,{"$f":"+ghost!N149","v":""}]
[null,{"$f":"+ghost!A150","v":14},{"$f":"+ghost!C150","v":"-APÓSITOS AUTOADHESIVOS DE FILM TRANSPARENTE (Poliuretano) HIPOALÉRGICOS.\n aprox. de 10 x 12,5 cm.   Caja de 10 unidades."},{"$f":"+ghost!K150","v":"sin fecha de caducidad"},{"$f":"+ghost!J150","v":""},{"$f":"+ghost!M150","v":"No procede: falta nº de tripulantes"},null,null,{"$f":"+ghost!N150","v":""}]
[null,{"$f":"+ghost!A151","v":14},{"$f":"+ghost!C151","v":"-GASAS GRASAS. Caja con 20 sobres -De 7 cm. x 9 cm."},{"$f":"+ghost!K151","v":"sin fecha de caducidad"},{"$f":"+ghost!J151","v":""},{"$f":"+ghost!M151","v":"No procede: falta nº de tripulantes"},null,null,{"$f":"+ghost!N151","v":""}]
[null,{"$f":"+ghost!A152","v":14},{"$f":"+ghost!C152","v":"-GASAS GRASAS. Caja con 20 sobres -De 23 cm. x 14 cm."},{"$f":"+ghost!K152","v":"sin fecha de caducidad"},{"$f":"+ghost!J152","v":""},{"$f":"+ghost!M152","v":"No procede: falta nº de tripulantes"}]
[null,{"$f":"+ghost!A153","v":14},{"$f":"+ghost!C153","v":"-APÓSITOS ADHESIVOS PLÁSTICOS. Rollo de 6 cm. x 1 m"},{"$f":"+ghost!K153","v":"sin fecha de caducidad"},{"$f":"+ghost!J153","v":""},{"$f":"+ghost!M153","v":"No procede: falta nº de tripulantes"},null,null,{"$f":"+ghost!N153","v":""}]
[null,{"$f":"+ghost!A154","v":14},{"$f":"+ghost!C154","v":"-TAPONES EXPANSIBLES PARA SANGRADOS NASALES de 10 cm."},{"$f":"+ghost!K154","v":"sin fecha de caducidad"},{"$f":"+ghost!J154","v":""},{"$f":"+ghost!M154","v":"No procede: falta nº de tripulantes"},null,null,{"$f":"+ghost!N154","v":""}]
[null,{"$f":"+ghost!A155","v":14},{"$f":"+ghost!C155","v":"-MANTA PARA QUEMADOS Y SUPERVIVIENTES TERMO-AISLANTE Oro-plata"},{"$f":"+ghost!K155","v":"sin fecha de caducidad"},{"$f":"+ghost!J155","v":""},{"$f":"+ghost!M155","v":"No procede: falta nº de tripulantes"},null,null,{"$f":"+ghost!N155","v":""}]
[null,{"$f":"+ghost!A156","v":14},{"$f":"+ghost!C156","v":"-CEPILLO PARA UÑAS"},{"$f":"+ghost!K156","v":"sin fecha de caducidad"},{"$f":"+ghost!J156","v":""},{"$f":"+ghost!M156","v":"No procede: falta nº de tripulantes"},null,null,{"$f":"+ghost!N156","v":""}]
[null,{"$f":"+ghost!A157","v":14},{"$f":"+ghost!C157","v":"-MASCARILLAS"},{"$f":"+ghost!K157","v":"sin fecha de caducidad"},{"$f":"+ghost!J157","v":""},{"$f":"+ghost!M157","v":"No procede: falta nº de tripulantes"},null,null,{"$f":"+ghost!N157","v":""}]
[null,{"$f":"+ghost!A158","v":15},{"$f":"+ghost!C158","v":"-FÉRULAS DE ALUMINIO MALEABLE PARA DEDOS 2 cm. x 50 cm."},{"$f":"+ghost!K158","v":"sin fecha de caducidad"},{"$f":"+ghost!J158","v":""},{"$f":"+ghost!M158","v":"No procede: falta nº de tripulantes"},null,null,{"$f":"+ghost!N158","v":""}]
[null,{"$f":"+ghost!A159","v":15},{"$f":"+ghost!C159","v":"-FÉRULAS HINCHABLES TRANSPARENTES. Juego con varios tamaños"},{"$f":"+ghost!K159","v":"sin fecha de caducidad"},{"$f":"+ghost!J159","v":""},{"$f":"+ghost!M159","v":"No procede: falta nº de tripulantes"},null,null,{"$f":"+ghost!N159","v":""}]
[null,{"$f":"+ghost!A160","v":15},{"$f":"+ghost!C160","v":"-FÉRULA DE KRAMER 100 x 10 cm."},{"$f":"+ghost!K160","v":"sin fecha de caducidad"},{"$f":"+ghost!J160","v":""},{"$f":"+ghost!M160","v":"No procede: falta nº de tripulantes"},null,null,{"$f":"+ghost!N160","v":""}]
[null,{"$f":"+ghost!A161","v":15},{"$f":"+ghost!C161","v":"-BOTELLA DE ORINA (HOMBRES)"},{"$f":"+ghost!K161","v":"sin fecha de caducidad"},{"$f":"+ghost!J161","v":""},{"$f":"+ghost!M161","v":"No procede: falta nº de tripulantes"},null,null,{"$f":"+ghost!N161","v":""}]
[null,{"$f":"+ghost!A162","v":15},{"$f":"+ghost!C162","v":"-CUÑA (MUJERES)"},{"$f":"+ghost!K162","v":"sin fecha de caducidad"},{"$f":"+ghost!J162","v":""},{"$f":"+ghost!M162","v":"No procede: falta nº de tripulantes"},null,null,{"$f":"+ghost!N162","v":""}]
[null,{"$f":"+ghost!A163","v":15},{"$f":"+ghost!C163","v":"-BOLSA PARA AGUA CALIENTE 2 litros"},{"$f":"+ghost!K163","v":"sin fecha de caducidad"},{"$f":"+ghost!J163","v":""},{"$f":"+ghost!M163","v":"No procede: falta nº de tripulantes"},null,null,{"$f":"+ghost!N163","v":""}]
[null,{"$f":"+ghost!A164","v":15},{"$f":"+ghost!C164","v":"-BOLSA DE HIELO"},{"$f":"+ghost!K164","v":"sin fecha de caducidad"},{"$f":"+ghost!J164","v":""},{"$f":"+ghost!M164","v":"No procede: falta nº de tripulantes"},null,null,{"$f":"+ghost!N164","v":""}]
[null,{"$f":"+ghost!A165","v":15},{"$f":"+ghost!C165","v":"-SACO MORTUORIO PARA CADÁVER (corta duración)"},{"$f":"+ghost!K165","v":"sin fecha de caducidad"},{"$f":"+ghost!J165","v":""},{"$f":"+ghost!M165","v":"No procede: falta nº de tripulantes"},null,null,{"$f":"+ghost!N165","v":""}]
[null,{"$f":"+ghost!A166","v":"FC"},{"$f":"+ghost!C166","v":"-APARATO DE REANIMACIÓN MANUAL (AMBÚ)"},{"$f":"+ghost!K166","v":"sin fecha de caducidad"},{"$f":"+ghost!J166","v":""},{"$f":"+ghost!M166","v":"No procede: falta nº de tripulantes"},null,null,{"$f":"+ghost!N166","v":""}]
[null,{"$f":"+ghost!A167","v":"FC"},{"$f":"+ghost!C167","v":"-APARATO DE OXIGENOTERAPIA"},{"$f":"+ghost!K167","v":"sin fecha de caducidad"},{"$f":"+ghost!J167","v":""},{"$f":"+ghost!M167","v":"No procede: falta nº de tripulantes"},null,null,{"$f":"+ghost!N167","v":""}]
[null,{"$f":"+ghost!A168","v":"FC"},{"$f":"+ghost!C168","v":"-CÁNULA PARA REANIMACIÓN BOCA A BOCA. TUBO DE GUEDEL. Tamaño 3"},{"$f":"+ghost!K168","v":"sin fecha de caducidad"},{"$f":"+ghost!J168","v":""},{"$f":"+ghost!M168","v":"No procede: falta nº de tripulantes"},null,null,{"$f":"+ghost!N168","v":""}]
[null,{"$f":"+ghost!A169","v":"FC"},{"$f":"+ghost!C169","v":"-CÁNULA PARA REANIMACIÓN BOCA A BOCA. TUBO DE GUEDEL. Tamaño 4"},{"$f":"+ghost!K169","v":"sin fecha de caducidad"},{"$f":"+ghost!J169","v":""},{"$f":"+ghost!M169","v":"No procede: falta nº de tripulantes"}]
[null,{"$f":"+ghost!A170","v":"FC"},{"$f":"+ghost!C170","v":"2. COLCHÓN DE MOLDEO AL VACÍO"},{"$f":"+ghost!K170","v":"sin fecha de caducidad"},{"$f":"+ghost!J170","v":""},{"$f":"+ghost!M170","v":"No procede: falta nº de tripulantes"},null,null,{"$f":"+ghost!N170","v":""}]
[null,{"$f":"+ghost!A171","v":"FC"},{"$f":"+ghost!C171","v":"3. TABLERO ESPINAL CON INMOVILIZACIÓN LATERAL DE CABEZA-CUELLO"},{"$f":"+ghost!K171","v":"sin fecha de caducidad"},{"$f":"+ghost!J171","v":""},{"$f":"+ghost!M171","v":"No procede: falta nº de tripulantes"},null,null,{"$f":"+ghost!N171","v":""}]
[null,{"$f":"+ghost!A172","v":"FC"},{"$f":"+ghost!C172","v":"4. COLLAR CERVICAL PARA INMOVILIZACIÓN RÍGIDO Y REGULABLE"},{"$f":"+ghost!K172","v":"sin fecha de caducidad"},{"$f":"+ghost!J172","v":""},{"$f":"+ghost!M172","v":"No procede: falta nº de tripulantes"},null,null,{"$f":"+ghost!N172","v":""}]
[null,{"$f":"+ghost!A173","v":"FC"},{"$f":"+ghost!C173","v":"5. CONTENEDOR DE RESIDUOS BIOSANITARIOS PARA OBJETOS CORTANTES Y PUNZANTES\n     de 1 litro (f)"},{"$f":"+ghost!K173","v":"sin fecha de caducidad"},{"$f":"+ghost!J173","v":""},{"$f":"+ghost!M173","v":"No procede: falta nº de tripulantes"},null,null,{"$f":"+ghost!N173","v":""}]
[null,{"$f":"+ghost!A174","v":"FC"},{"$f":"+ghost!C174","v":"6. DESINFECTANTE DE AGUA (LEJÍA SIN DETERGENTE)\n     Botella de 1 litro apta para desinfección de agua de bebida."},{"$f":"+ghost!K174","v":"sin fecha de caducidad"},{"$f":"+ghost!J174","v":""},{"$f":"+ghost!M174","v":"No procede: falta nº de tripulantes"},null,null,{"$f":"+ghost!N174","v":""}]
[]
[null,"(a) Solo obligatorio si van mujeres a bordo "]
[null,"(b) Este medicamento debe conservarse bajo custodia del capitán o responsable de botiquín"]
[null,"(c) Precisa conservación en nevera."]
[null,"(d) Solo deben llevarlo los buques que frecuenten o faenen en zonas palúdicas. "]
[null,"(e) Hasta completar dosis mínima de 950 mg."]
[null,"(f) Para la retirada de estos contenedores debera contactarse con las instalaciones de recepción autorizadas en cada puerto"]

{"sheet":"CAJON 1","index":4,"n_rows":22,"n_cols":13,"rows_kept":22,"cut":false,"hidden":false,"merged":[[0,0,0,1],[1,0,1,1],[2,0,2,1],[3,0,3,1],[4,0,4,12],[19,0,19,12],[5,0,5,12],[18,0,18,12],[6,0,7,0],[6,1,7,1],[6,2,7,2],[6,9,6,11],[6,12,7,12],[6,3,6,8],[7,3,7,4],[7,5,7,6],[7,7,7,8]]}
[{"$f":"IF(+identificacion!$D$3<>\"\",CONCATENATE(+identificacion!$D$3),\"\")","v":""}]
[{"$f":"CONCATENATE(\"Matrícula: \",+identificacion!D4,\"  -     \",\"N.I.B.: \",+identificacion!H4)","v":"Matrícula:   -     N.I.B.: "}]
[{"$f":"IF(+identificacion!$F$5<>\"\",+identificacion!$F$5,\"\")","v":""}]
[{"$f":"IF(+identificacion!$D$6<>\"\",CONCATENATE(identificacion!$D$6,\", \",+DAY(identificacion!$F$10), \"/\", MONTH(identificacion!$F$10),\"/\", YEAR(identificacion!$F$10) ),\"\")","v":""}]
["REVISIÓN DEL BOTIQUÍN  A"]
["CAJÓN 1: Aparato Cardiovascular y antihemorrágicos"]
["CÓDIGO ATC","PRINCIPIO ACTIVO","PRESENTACIÓN","Cantidad Exigida",null,null,null,null,null,"Cantidad a Bordo",null,null,"CADUCIDAD"]
[null,null,null,"< 15 Tripulantes",null,"15-20 Tripulantes",null,"> 20 Tripulantes",null,"< 15 Tripulantes","15-20 Tr.","> 20 Tripulantes"]
["C01CA24","EPINEFRINA","1 mg. jeringa precargada 1ml.",2,"unidades",3,"unidades",4,"unidades"]
["C01DA","NITROGLICERINA","0,8 mg. 30 comp.",1,"caja",1,"caja",1,"caja"]
["C03CA01","FUROSEMIDA","20 mg. 5 ampollas 2 ml.",1,"caja",1,"caja",1,"caja"]
["C03AA03","HIDROCLOROTIAZIDA","50 mg. 20 comp.",1,"caja",2,"cajas",2,"cajas"]
["B01AB05","ENOXAPARINA","80 mg. 2 jeringas precargadas 0,8 ml.",3,"envases",4,"envases",4,"envases"]
["G02AB01","METILERGOMETRINA (a)","0,2 mg. 3 ampollas 1 ml.",1,"caja",1,"caja",1,"caja"]
["B05AA","GELATINA HEMOSTÁTICA","10 esponjas 200 x 70 x 0,5 mm.",1,"caja",2,"cajas",2,"cajas"]
["C07AB03","ATENOLOL","50 mg. 30 comp.",1,"caja",2,"cajas",2,"cajas"]
["C09AA01","CAPTOPRIL","25 mg.  60 comp.",1,"caja",1,"caja",1,"caja"]
[]
["(a) Solo obligatorio si van mujeres a bordo "]
["Firma y Sello del responsable de la revisión"]
[null,"Firma del responsable de sanitario a bordo"]
[null,{"$f":"IF(+identificacion!$H$7<>\"\",+identificacion!$H$7,\"\")","v":""}]

{"sheet":"CAJON 2","index":5,"n_rows":23,"n_cols":13,"rows_kept":23,"cut":false,"hidden":false,"merged":[[5,0,5,12],[6,1,7,1],[6,9,6,11],[0,0,0,1],[1,0,1,1],[2,0,2,1],[3,0,3,1],[4,0,4,12],[20,0,20,12],[11,1,12,1],[6,12,7,12],[6,3,6,8],[11,0,12,0],[7,7,7,8],[7,3,7,4],[6,2,7,2],[6,0,7,0],[7,5,7,6]]}
[{"$f":"IF(+identificacion!$D$3<>\"\",CONCATENATE(+identificacion!$D$3),\"\")","v":""}]
[{"$f":"CONCATENATE(\"Matrícula: \",+identificacion!D4,\"  -     \",\"N.I.B.: \",+identificacion!H4)","v":"Matrícula:   -     N.I.B.: "}]
[{"$f":"IF(+identificacion!$F$5<>\"\",+identificacion!$F$5,\"\")","v":""}]
[{"$f":"IF(+identificacion!$D$6<>\"\",CONCATENATE(identificacion!$D$6,\", \",+DAY(identificacion!$F$10), \"/\", MONTH(identificacion!$F$10),\"/\", YEAR(identificacion!$F$10) ),\"\")","v":""}]
["REVISIÓN DEL BOTIQUÍN  A"]
["CAJÓN 2: Aparato Digestivo"]
["CÓDIGO ATC","PRINCIPIO ACTIVO","PRESENTACIÓN","Cantidad Exigida",null,null,null,null,null,"Cantidad a Bordo",null,null,"CADUCIDAD"]
[null,null,null,"< 15 Tripulantes",null,"15-20 Tripulantes",null,"> 20 Tripulantes",null,"< 15 Tripulantes","15-20 Tr.","> 20 Tripulantes"]
["A02AD01","ALGELDRATO + \nHIDRÓXIDO DE MAGNESIO","600/300 mg. 40 comp.",3,"cajas",4,"cajas",4,"cajas"]
["A02BC01","OMEPRAZOL","20 mg.  28 cápsulas",2,"cajas",3,"cajas",3,"cajas"]
["A02BA02","RANITIDINA","50 mg.  5 ampollas de 5 ml.",1,"caja",1,"caja",1,"caja"]
["A03FA01","METOCLOPRAMIDA","10 mg.  30 comp. ",1,"caja",1,"caja",2,"cajas"]
[null,null,"10 mg. 12 ampollas 2 ml.",1,"caja",1,"caja",1,"caja"]
["A06AD11","LACTULOSA","3,33 g. / 5ml soluc. 200 ml.",1,"envase",1,"envase",2,"envases"]
["A06AG","LAURILSULFATO SÓDICO, ACETATO + SODIO, CITRATO, DIHIDRATO","4 canuletas rectales 5 ml.",1,"caja",1,"caja",2,"cajas"]
["A07DA03","LOPERAMIDA","2 mg. 20 cápsulas",1,"caja",1,"caja",2,"cajas"]
["A03AX13","SIMETICONA","120 mg.  40 comp. ó cápsulas",1,"caja",1,"caja",2,"cajas"]
["C05AX","RUSCOGENINA + TRIMEBUTINA","Pomada rectal 30 g.",2,"tubos",2,"tubos",3,"tubos"]
["A07BA01","CARBON ACTIVADO","Granulado 25 g.",3,"envases",4,"envases",5,"envases"]
[]
["Firma y Sello del responsable de la revisión"]
[null,"Firma del responsable de sanitario a bordo"]
[null,{"$f":"IF(+identificacion!$H$7<>\"\",+identificacion!$H$7,\"\")","v":""}]

{"sheet":"CAJON 3","index":6,"n_rows":27,"n_cols":13,"rows_kept":27,"cut":false,"hidden":false,"merged":[[24,0,24,12],[6,3,6,8],[7,5,7,6],[7,7,7,8],[6,0,7,0],[6,1,7,1],[6,2,7,2],[6,9,6,11],[7,3,7,4],[11,0,13,0],[11,1,13,1],[23,0,23,12],[6,12,7,12],[19,0,20,0],[19,1,20,1],[0,0,0,1],[1,0,1,1],[2,0,2,1],[3,0,3,1],[4,0,4,12],[5,0,5,12],[14,1,15,1],[14,0,15,0],[17,1,18,1],[17,0,18,0]]}
[{"$f":"IF(+identificacion!$D$3<>\"\",CONCATENATE(+identificacion!$D$3),\"\")","v":""}]
[{"$f":"CONCATENATE(\"Matrícula: \",+identificacion!D4,\"  -     \",\"N.I.B.: \",+identificacion!H4)","v":"Matrícula:   -     N.I.B.: "}]
[{"$f":"IF(+identificacion!$F$5<>\"\",+identificacion!$F$5,\"\")","v":""}]
[{"$f":"IF(+identificacion!$D$6<>\"\",CONCATENATE(identificacion!$D$6,\", \",+DAY(identificacion!$F$10), \"/\", MONTH(identificacion!$F$10),\"/\", YEAR(identificacion!$F$10) ),\"\")","v":""}]
["REVISIÓN DEL BOTIQUÍN  A"]
["CAJÓN 3: Analgésicos, antipiréticos, antiinflamatorios y espasmolíticos"]
["CÓDIGO ATC","PRINCIPIO ACTIVO","PRESENTACIÓN","Cantidad Exigida",null,null,null,null,null,"Cantidad a Bordo",null,null,"CADUCIDAD"]
[null,null,null,"< 15 Tripulantes",null,"15-20 Tripulantes",null,"> 20 Tripulantes",null,"< 15 Tripulantes","15-20 Tr.","> 20 Tripulantes"]
["N02BE01","PARACETAMOL","1 g.  40 comp.",2,"cajas",3,"cajas",3,"cajas"]
["N02BA01","ÁCIDO ACETILSALICÍTICO","100 mg.  30 comp.",1,"caja",1,"caja",1,"caja"]
["M01AE01","IBUPROFENO","600 mg.  40 comp.",2,"cajas",2,"cajas",3,"cajas"]
["M01AB05","DICLOFENACO SÓDICO","50 mg. 40 comp.",1,"caja",1,"caja",2,"cajas"]
[null,null,"75 mg.  6 ampollas",2,"cajas",2,"cajas",2,"cajas"]
[null,null,"1% gel tópico  60 g.",1,"envase",2,"envases",2,"envases"]
["N02BB02","METAMIZOL","575 mg.  20 cápsulas",1,"caja",2,"cajas",2,"cajas"]
[null,null,"2 g.  5 ampollas ",1,"caja",1,"caja",1,"caja"]
["N02AA01","CLORURO MÓRFICO (b)","1% ampollas 10 mg",2,"ampollas",3,"ampollas",4,"ampollas"]
["N02AX02","TRAMADOL CLORHIDRATO","50 mg.  20 cápsulas ",1,"envase",2,"envases",2,"envases"]
[null,null,"100 mg.  5 ampollas",1,"caja",2,"cajas",2,"cajas"]
["A03BB","BUTILESCOPOLAMINA, BROMURO","10 mg.  60 comp. ",1,"caja",2,"cajas",3,"cajas"]
[null,null,"20 mg.  6 ampollas  1 ml.",1,"caja",2,"cajas",3,"cajas"]
["V03AB15","NALOXONA","0,4 mg.  10 ampollas",1,"caja",1,"caja",1,"caja"]
[]
["(b) Este medicamento debe conservarse bajo custodia del capitán o responsable de botiquín"]
["Firma y Sello del responsable de la revisión"]
[null,"Firma del responsable de sanitario a bordo"]
[null,{"$f":"IF(+identificacion!$H$7<>\"\",+identificacion!$H$7,\"\")","v":""}]

{"sheet":"CAJON 4","index":7,"n_rows":21,"n_cols":13,"rows_kept":21,"cut":false,"hidden":false,"merged":[[0,0,0,1],[18,0,18,12],[9,1,10,1],[9,0,10,0],[6,9,6,11],[6,12,7,12],[11,1,12,1],[4,0,4,12],[5,0,5,12],[7,3,7,4],[6,1,7,1],[1,0,1,1],[2,0,2,1],[11,0,12,0],[7,7,7,8],[3,0,3,1],[6,3,6,8],[13,0,14,0],[13,1,14,1],[6,2,7,2],[6,0,7,0],[7,5,7,6]]}
[{"$f":"IF(+identificacion!$D$3<>\"\",CONCATENATE(+identificacion!$D$3),\"\")","v":""}]
[{"$f":"CONCATENATE(\"Matrícula: \",+identificacion!D4,\"  -     \",\"N.I.B.: \",+identificacion!H4)","v":"Matrícula:   -     N.I.B.: "}]
[{"$f":"IF(+identificacion!$F$5<>\"\",+identificacion!$F$5,\"\")","v":""}]
[{"$f":"IF(+identificacion!$D$6<>\"\",CONCATENATE(identificacion!$D$6,\", \",+DAY(identificacion!$F$10), \"/\", MONTH(identificacion!$F$10),\"/\", YEAR(identificacion!$F$10) ),\"\")","v":""}]
["REVISIÓN DEL BOTIQUÍN  A"]
["CAJÓN 4: Sistema nervioso"]
["CÓDIGO ATC","PRINCIPIO ACTIVO","PRESENTACIÓN","Cantidad Exigida",null,null,null,null,null,"Cantidad a Bordo",null,null,"CADUCIDAD"]
[null,null,null,"< 15 Tripulantes",null,"15-20 Tripulantes",null,"> 20 Tripulantes",null,"< 15 Tripulantes","15-20 Tr.","> 20 Tripulantes"]
["N05BA06","LORAZEPAM","1 mg.  25 comp.",1,"caja",2,"cajas",2,"cajas"]
["N05BA01","DIAZEPAM","10 mg.  25 comp.",1,"caja",1,"caja",2,"cajas"]
[null,null,"10 mg.  6 ampollas",1,"caja",1,"caja",1,"caja"]
["N05AD01","HALOPERIDOL","2 mg/ml gotas 30 ml",1,"caja",1,"caja",1,"caja"]
[null,null,"5 mg.  5 ampollas",1,"caja",1,"caja",1,"caja"]
["N05AL01","SULPIRIDA","50 mg.  30 cápsulas",1,"caja",1,"caja",1,"caja"]
[null,null,"100 mg.  12 ampollas de 2 ml.",1,"caja",1,"caja",1,"caja"]
["R06AA","DIMENHIDRINATO","50 mg. 12 comp.",2,"cajas",2,"cajas",3,"cajas"]
["N04AA02","BIPERIDENO","5 mg.  5 ampollas",1,"caja",1,"caja",1,"caja"]
[]
["Firma y Sello del responsable de la revisión"]
[null,"Firma del responsable de sanitario a bordo"]
[null,{"$f":"IF(+identificacion!$H$7<>\"\",+identificacion!$H$7,\"\")","v":""}]

{"sheet":"CAJON 5","index":8,"n_rows":16,"n_cols":13,"rows_kept":16,"cut":false,"hidden":false,"merged":[[7,5,7,6],[7,7,7,8],[13,0,13,12],[10,0,11,0],[10,1,11,1],[0,0,0,1],[4,0,4,12],[5,0,5,12],[6,0,7,0],[6,1,7,1],[6,2,7,2],[1,0,1,1],[2,0,2,1],[3,0,3,1],[6,12,7,12],[6,3,6,8],[6,9,6,11],[7,3,7,4]]}
[{"$f":"IF(+identificacion!$D$3<>\"\",CONCATENATE(+identificacion!$D$3),\"\")","v":""}]
[{"$f":"CONCATENATE(\"Matrícula: \",+identificacion!D4,\"  -     \",\"N.I.B.: \",+identificacion!H4)","v":"Matrícula:   -     N.I.B.: "}]
[{"$f":"IF(+identificacion!$F$5<>\"\",+identificacion!$F$5,\"\")","v":""}]
[{"$f":"IF(+identificacion!$D$6<>\"\",CONCATENATE(identificacion!$D$6,\", \",+DAY(identificacion!$F$10), \"/\", MONTH(identificacion!$F$10),\"/\", YEAR(identificacion!$F$10) ),\"\")","v":""}]
["REVISIÓN DEL BOTIQUÍN  A"]
["CAJÓN 5: Antialérgicos y antianafilácticos"]
["CÓDIGO ATC","PRINCIPIO ACTIVO","PRESENTACIÓN","Cantidad Exigida",null,null,null,null,null,"Cantidad a Bordo",null,null,"CADUCIDAD"]
[null,null,null,"< 15 Tripulantes",null,"15-20 Tripulantes",null,"> 20 Tripulantes",null,"< 15 Tripulantes","15-20 Tr.","> 20 Tripulantes"]
["R06AE07","CETIRIZINA","10 mg.  20 comp.",1,"caja",1,"caja",2,"cajas"]
["R06AB02","DEXCLORFENIRAMINA","5 mg.  5 ampollas  1 ml.",1,"envase",1,"envase",2,"envases"]
["H02AB04","METILPREDNISOLONA","16 mg.  30 comp.",2,"cajas",2,"cajas",2,"cajas"]
[null,null,"40 mg.  3 ampollas",1,"caja",1,"caja",2,"cajas"]
[]
["Firma y Sello del responsable de la revisión"]
[null,"Firma del responsable de sanitario a bordo"]
[null,{"$f":"IF(+identificacion!$H$7<>\"\",+identificacion!$H$7,\"\")","v":""}]

{"sheet":"CAJON 6","index":9,"n_rows":15,"n_cols":13,"rows_kept":15,"cut":false,"hidden":false,"merged":[[7,3,7,4],[7,5,7,6],[7,7,7,8],[12,0,12,12],[0,0,0,1],[4,0,4,12],[5,0,5,12],[6,0,7,0],[6,1,7,1],[6,2,7,2],[1,0,1,1],[2,0,2,1],[3,0,3,1],[6,12,7,12],[6,3,6,8],[6,9,6,11]]}
[{"$f":"IF(+identificacion!$D$3<>\"\",CONCATENATE(+identificacion!$D$3),\"\")","v":""}]
[{"$f":"CONCATENATE(\"Matrícula: \",+identificacion!D4,\"  -     \",\"N.I.B.: \",+identificacion!H4)","v":"Matrícula:   -     N.I.B.: "}]
[{"$f":"IF(+identificacion!$F$5<>\"\",+identificacion!$F$5,\"\")","v":""}]
[{"$f":"IF(+identificacion!$D$6<>\"\",CONCATENATE(identificacion!$D$6,\", \",+DAY(identificacion!$F$10), \"/\", MONTH(identificacion!$F$10),\"/\", YEAR(identificacion!$F$10) ),\"\")","v":""}]
["REVISIÓN DEL BOTIQUÍN  A"]
["CAJÓN 6: Aparato respiratorio"]
["CÓDIGO ATC","PRINCIPIO ACTIVO","PRESENTACIÓN","Cantidad Exigida",null,null,null,null,null,"Cantidad a Bordo",null,null,"CADUCIDAD"]
[null,null,null,"< 15 Tripulantes",null,"15-20 Tripulantes",null,"> 20 Tripulantes",null,"< 15 Tripulantes","15-20 Tr.","> 20 Tripulantes"]
["R03CC02","SALBUTAMOL","100 MCG/ puls. 20 AERO 200",1,"envase",1,"envase",2,"envases"]
["R05DA09","DEXTROMETORFANO BROMHIDRATO","15 mg.  20 comp.",1,"caja",2,"cajas",2,"cajas"]
["R05CB01","ACETILCISTEÍNA","600 mg.  30 sobres",1,"caja",1,"caja",2,"cajas"]
[]
["Firma y Sello del responsable de la revisión"]
[null,"Firma del responsable de sanitario a bordo"]
[null,{"$f":"IF(+identificacion!$H$7<>\"\",+identificacion!$H$7,\"\")","v":""}]

{"sheet":"CAJON 7","index":10,"n_rows":22,"n_cols":13,"rows_kept":22,"cut":false,"hidden":false,"merged":[[7,5,7,6],[7,7,7,8],[19,0,19,12],[8,1,9,1],[8,0,9,0],[0,0,0,1],[4,0,4,12],[5,0,5,12],[6,0,7,0],[6,1,7,1],[6,2,7,2],[1,0,1,1],[2,0,2,1],[3,0,3,1],[6,12,7,12],[6,3,6,8],[6,9,6,11],[7,3,7,4]]}
[{"$f":"IF(+identificacion!$D$3<>\"\",CONCATENATE(+identificacion!$D$3),\"\")","v":""}]
[{"$f":"CONCATENATE(\"Matrícula: \",+identificacion!D4,\"  -     \",\"N.I.B.: \",+identificacion!H4)","v":"Matrícula:   -     N.I.B.: "}]
[{"$f":"IF(+identificacion!$F$5<>\"\",+identificacion!$F$5,\"\")","v":""}]
[{"$f":"IF(+identificacion!$D$6<>\"\",CONCATENATE(identificacion!$D$6,\", \",+DAY(identificacion!$F$10), \"/\", MONTH(identificacion!$F$10),\"/\", YEAR(identificacion!$F$10) ),\"\")","v":""}]
["REVISIÓN DEL BOTIQUÍN  A"]
["CAJÓN 7: Ojos, oído, boca y garganta"]
["CÓDIGO ATC","PRINCIPIO ACTIVO","PRESENTACIÓN","Cantidad Exigida",null,null,null,null,null,"Cantidad a Bordo",null,null,"CADUCIDAD"]
[null,null,null,"< 15 Tripulantes",null,"15-20 Tripulantes",null,"> 20 Tripulantes",null,"< 15 Tripulantes","15-20 Tr.","> 20 Tripulantes"]
["S01AA12","TOBRAMICINA","0,3% colirio 5 ml.",2,"envases",2,"envases",2,"envases"]
[null,null,"0,3% ungüento 3,5 g.",2,"envases",2,"envases",2,"envases"]
["S01BC03","DICLOFENACO SÓDICO","0,1% colirio  30 monodosis, 0,3 ml.",2,"envases",2,"envases",2,"envases"]
["S01JA","OXIBUPROCAÍNA","0,2% colirio  10 ml.",2,"envases",2,"envases",2,"envases"]
["S01JA01","FLUORESCEÍNA 2%","2% colirio  1 frasco  10 ml.",2,"envases",2,"envases",2,"envases"]
["S01ED01","TIMOLOL","0,25% colirio 3 ml.",1,"envase",1,"envase",1,"envase"]
["S01FA","CICLOPENTOLATO","1% colirio 5 ml.",1,"envase",1,"envase",1,"envase"]
["S01GA","HIDROCLORURO FENILEFRINA","Colirio 1,25 mg.  10 ml.",1,"envase",1,"envase",1,"envase"]
["S02CA","NEOMICINA      +\nPOLIMIXINA B   +\nFLUOCINOLONA","Gotas oído 10 ml. Por 1 ml.: Neomicina Sulfato 3,5 mg. Polimixina B Sulfato 10.000 UI y Fluocinolona. Acetónido 0,25 mg.",1,"envase",1,"envase",2,"envases"]
["A01AB","HEXETIDINA","0,1% solución 200 ml.",2,"envases",3,"envases",4,"envases"]
[]
["Firma y Sello del responsable de la revisión"]
[null,"Firma del responsable de sanitario a bordo"]
[null,{"$f":"IF(+identificacion!$H$7<>\"\",+identificacion!$H$7,\"\")","v":""}]

{"sheet":"CAJON 8","index":11,"n_rows":26,"n_cols":13,"rows_kept":26,"cut":false,"hidden":false,"merged":[[23,0,23,12],[6,3,6,8],[7,5,7,6],[7,3,7,4],[22,0,22,12],[5,0,5,12],[6,12,7,12],[6,9,6,11],[7,7,7,8],[0,0,0,1],[1,0,1,1],[2,0,2,1],[3,0,3,1],[4,0,4,12],[6,0,7,0],[6,1,7,1],[6,2,7,2]]}
[{"$f":"IF(+identificacion!$D$3<>\"\",CONCATENATE(+identificacion!$D$3),\"\")","v":""}]
[{"$f":"CONCATENATE(\"Matrícula: \",+identificacion!D4,\"  -     \",\"N.I.B.: \",+identificacion!H4)","v":"Matrícula:   -     N.I.B.: "}]
[{"$f":"IF(+identificacion!$F$5<>\"\",+identificacion!$F$5,\"\")","v":""}]
[{"$f":"IF(+identificacion!$D$6<>\"\",CONCATENATE(identificacion!$D$6,\", \",+DAY(identificacion!$F$10), \"/\", MONTH(identificacion!$F$10),\"/\", YEAR(identificacion!$F$10) ),\"\")","v":""}]
["REVISIÓN DEL BOTIQUÍN  A"]
["CAJÓN 8: Antibióticos y antiinfecciosos"]
["CÓDIGO ATC","PRINCIPIO ACTIVO","PRESENTACIÓN","Cantidad Exigida",null,null,null,null,null,"Cantidad a Bordo",null,null,"CADUCIDAD"]
[null,null,null,"< 15 Tripulantes",null,"15-20 Tripulantes",null,"> 20 Tripulantes",null,"< 15 Tripulantes","15-20 Tr.","> 20 Tripulantes"]
["J01CA04","AMOXICILINA","1 g. 30 comp. ranurados",3,"cajas",4,"cajas",5," cajas"]
["J01CR","AMOXICILINA + CLAVULÁNICO","875/125 mg.  30 sobres ó comp.",3,"cajas",3,"cajas",4," cajas"]
["J01AA02","DOXICICLINA","100 mg.  30 cápsulas",1,"caja",2,"cajas",2,"cajas"]
["J01FA10","AZITROMICINA","500 mg.  3 comp.",5,"cajas",5,"cajas",5,"cajas"]
["J01DD04","CEFTRIAXONA","Vial de 1 g.",5,"viales",5,"viales",5,"viales"]
["J01GB03","GENTAMICINA","Vial de 240 mg.",4,"viales",4,"viales",4,"viales"]
["J01XD01","METRONIDAZOL","250 mg.  20 comp.",1,"caja",1,"caja",1,"caja"]
["P02CA01","MEBENDAZOL","100 mg.  6 comp.",1,"caja",2,"cajas",4,"cajas"]
["J01MA02","CIPROFLOXACINO","500 mg.  20 comp.",1,"caja",1,"caja",1,"caja"]
["J07AM01","TOXOIDE TETÁNICO +\nTOXOIDE DIFTÉRICO  (c)","20/2 UI, jeringa precargada 0,5 ml.",5,"unidades",6,"unidades",7,"unidades"]
["J06BB02","GAMMAGLOBULINA ANTITETÁNICA (c)","500 UI. (jeringa precargada) 2ml.",5,"viales",6,"viales",7,"viales"]
["P01BE03","ARTESUNATO  (d)","ampollas",950,"mg. (e)",950,"mg. (e)",950,"mg. (e)"]
["P01BF","DIHIDROARTEMISININA + PIPERAQUINA    (d)","320/40 mg.  12 comp.",2,"cajas",3,"cajas",3,"cajas"]
[]
[" (c) Precisa conservación en nevera.    (d) Solo deben llevarlo los buques que frecuenten o faenen en zonas palúdicas.    (e) Hasta completar dosis mínima de 950 mg."]
["Firma y Sello del responsable de la revisión"]
[null,"Firma del responsable de sanitario a bordo"]
[null,{"$f":"IF(+identificacion!$H$7<>\"\",+identificacion!$H$7,\"\")","v":""}]

{"sheet":"CAJON 9","index":12,"n_rows":14,"n_cols":13,"rows_kept":14,"cut":false,"hidden":false,"merged":[[0,0,0,1],[6,3,6,8],[7,3,7,4],[7,5,7,6],[7,7,7,8],[1,0,1,1],[2,0,2,1],[3,0,3,1],[11,0,11,12],[4,0,4,12],[5,0,5,12],[6,0,7,0],[6,1,7,1],[6,2,7,2],[6,9,6,11],[6,12,7,12]]}
[{"$f":"IF(+identificacion!$D$3<>\"\",CONCATENATE(+identificacion!$D$3),\"\")","v":""}]
[{"$f":"CONCATENATE(\"Matrícula: \",+identificacion!D4,\"  -     \",\"N.I.B.: \",+identificacion!H4)","v":"Matrícula:   -     N.I.B.: "}]
[{"$f":"IF(+identificacion!$F$5<>\"\",+identificacion!$F$5,\"\")","v":""}]
[{"$f":"IF(+identificacion!$D$6<>\"\",CONCATENATE(identificacion!$D$6,\", \",+DAY(identificacion!$F$10), \"/\", MONTH(identificacion!$F$10),\"/\", YEAR(identificacion!$F$10) ),\"\")","v":""}]
["REVISIÓN DEL BOTIQUÍN  A"]
["CAJÓN 9: Anestésicos Locales"]
["CÓDIGO ATC","PRINCIPIO ACTIVO","PRESENTACIÓN","Cantidad Exigida",null,null,null,null,null,"Cantidad a Bordo",null,null,"CADUCIDAD"]
[null,null,null,"< 15 Tripulantes",null,"15-20 Tripulantes",null,"> 20 Tripulantes",null,"< 15 Tripulantes","15-20 Tr.","> 20 Tripulantes"]
["N01BX01","CLORURO DE ETILO","100% aerosol 100 g.",1,"envase",1,"envase",2,"envases"]
["N01BB02","LIDOCAÍNA","2% miniplasco de 10 ml.",3,"viales",4,"viales",5,"viales"]
[]
["Firma y Sello del responsable de la revisión"]
[null,"Firma del responsable de sanitario a bordo"]
[null,{"$f":"IF(+identificacion!$H$7<>\"\",+identificacion!$H$7,\"\")","v":""}]

{"sheet":"CAJON 10","index":13,"n_rows":18,"n_cols":13,"rows_kept":18,"cut":false,"hidden":false,"merged":[[15,0,15,12],[6,3,6,8],[3,0,3,1],[0,0,0,1],[6,9,6,11],[6,12,7,12],[7,3,7,4],[7,5,7,6],[7,7,7,8],[1,0,1,1],[2,0,2,1],[4,0,4,12],[5,0,5,12],[6,0,7,0],[6,1,7,1],[6,2,7,2]]}
[{"$f":"IF(+identificacion!$D$3<>\"\",CONCATENATE(+identificacion!$D$3),\"\")","v":""}]
[{"$f":"CONCATENATE(\"Matrícula: \",+identificacion!D4,\"  -     \",\"N.I.B.: \",+identificacion!H4)","v":"Matrícula:   -     N.I.B.: "}]
[{"$f":"IF(+identificacion!$F$5<>\"\",+identificacion!$F$5,\"\")","v":""}]
[{"$f":"IF(+identificacion!$D$6<>\"\",CONCATENATE(identificacion!$D$6,\", \",+DAY(identificacion!$F$10), \"/\", MONTH(identificacion!$F$10),\"/\", YEAR(identificacion!$F$10) ),\"\")","v":""}]
["REVISIÓN DEL BOTIQUÍN  A"]
["CAJÓN 10: Uso dermatológico "]
["CÓDIGO ATC","PRINCIPIO ACTIVO","PRESENTACIÓN","Cantidad Exigida",null,null,null,null,null,"Cantidad a Bordo",null,null,"CADUCIDAD"]
[null,null,null,"< 15 Tripulantes",null,"15-20 Tripulantes",null,"> 20 Tripulantes",null,"< 15 Tripulantes","15-20 Tr.","> 20 Tripulantes"]
["D06AX09","MUPIROCINA","2% crema  30 g.",4,"envases",6,"envases",8,"envases"]
["D07AB","CLOBETASONA","0,05% crema  30 g.",2,"envases",3,"envases",4,"envases"]
["D01AC08","KETOCONAZOL","2% crema.  Tubo 30 g.",2,"envases",3,"envases",4,"envases"]
["D06BA","SULFADIAZINA ARGÉNTICA","1% crema. Tubo 50 g.",2,"envases",3,"envases",4,"envases"]
["P03AC04","PERMETRINA"," Gel - loción al 1,5% 125 ml.",2,"envases",3,"envases",4,"envases"]
["D02AC91","VASELINA","Pomada 25 g.",1,"envase",1,"envase",1,"envase"]
[]
["Firma y Sello del responsable de la revisión"]
[null,"Firma del responsable de sanitario a bordo"]
[null,{"$f":"IF(+identificacion!$H$7<>\"\",+identificacion!$H$7,\"\")","v":""}]

{"sheet":"CAJON 11","index":14,"n_rows":31,"n_cols":13,"rows_kept":31,"cut":false,"hidden":false,"merged":[[0,0,0,1],[1,0,1,1],[2,0,2,1],[3,0,3,1],[17,0,17,2],[8,0,8,2],[9,0,9,2],[4,0,4,12],[5,0,5,12],[6,9,6,11],[6,12,7,12],[6,3,6,8],[7,5,7,6],[7,7,7,8],[7,3,7,4],[15,0,15,2],[6,0,7,2],[10,0,10,2],[11,0,11,2],[12,0,12,2],[13,0,13,2],[14,0,14,2],[18,0,18,2],[16,0,16,2],[28,0,28,12],[21,0,21,2],[20,0,20,2],[19,0,19,2],[22,0,22,2],[23,0,23,2],[24,0,24,2],[25,0,25,2],[27,0,27,12]]}
[{"$f":"IF(+identificacion!$D$3<>\"\",CONCATENATE(+identificacion!$D$3),\"\")","v":""}]
[{"$f":"CONCATENATE(\"Matrícula: \",+identificacion!D4,\"  -     \",\"N.I.B.: \",+identificacion!H4)","v":"Matrícula:   -     N.I.B.: "}]
[{"$f":"IF(+identificacion!$F$5<>\"\",+identificacion!$F$5,\"\")","v":""}]
[{"$f":"IF(+identificacion!$D$6<>\"\",CONCATENATE(identificacion!$D$6,\", \",+DAY(identificacion!$F$10), \"/\", MONTH(identificacion!$F$10),\"/\", YEAR(identificacion!$F$10) ),\"\")","v":""}]
["REVISIÓN DEL BOTIQUÍN  A"]
["CAJÓN 11: Material de examen médico y control de utilización del botiquín"]
["Tipo de material",null,null,"Cantidad Exigida",null,null,null,null,null,"Cantidad a Bordo",null,null,"CADUCIDAD"]
[null,null,null,"< 15 Tripulantes",null,"15-20 Tripulantes",null,"> 20 Tripulantes",null,"< 15 Tripulantes","15-20 Tr.","> 20 Tripulantes"]
["-ESTETOSCOPIO",null,null,1,"unidad",1,"unidad",1,"unidad"]
["-TENSIÓMETRO DIGITAL HOMOLOGADO",null,null,1,"unidad",1,"unidad",1,"unidad"]
["-PULSIOXIMETRO con pilas",null,null,1,"unidad",1,"unidad",1,"unidad"]
["-TERMÓMETRO CLÍNICO DIGITAL",null,null,2,"unidades",2,"unidades",2,"unidades"]
["-HOJAS DE TEMPERATURA",null,null,25,"hojas",25,"hojas",25,"hojas"]
["-FICHAS MÉDICAS DE EVACUACIÓN",null,null,15,"fichas",15,"fichas",15,"fichas"]
["-ETIQUETAS INFORMATIVAS PARA EVACUACIÓN DE ENFERMOS",null,null,15,"etiquetas",15,"etiquetas",15,"etiquetas"]
["-SOBRES PARA INFORMACIÓN MÉDICA CONFIDENCIAL",null,null,15,"sobres",15,"sobres",15,"sobres"]
["-HOJA DE REGISTRO DE ADMINISTRACIÓN DE FÁRMACOS A BORDO",null,null,1,"unidad",1,"unidad",1,"unidad"]
["-GUÍA SANITARIA A BORDO",null,null,1,"unidad",1,"unidad",1,"unidad"]
["-LINTERNA DE BOLSILLO CON FILTRO AZUL Y CON PILAS DE REPUESTO",null,null,1,"unidad",1,"unidad",1,"unidad"]
["-LENTE DE AUMENTO IRROMPIBLE CON MANGO",null,null,1,"unidad",1,"unidad",1,"unidad"]
["-TIRAS DE ORINA COLORIMÉTRICAS MULTITEST 8 PARÁMETROS MINIMO. Caja 100 uds.",null,null,1,"caja",1,"caja",1,"caja"]
["-TIRAS REACTIVAS PARA ANÁLISIS DE GLUCOSA EN SANGRE. Caja con 50 tiras",null,null,1,"unidad",1,"unidad",1,"unidad"]
["-RECIPIENTE ESTÉRIL PARA MUESTRAS DE ORINA",null,null,2,"unidades",3,"unidades",4,"unidades"]
["-TEST RÁPIDO PARA PALUDISMO (d)",null,null,20,"unidades",20,"unidades",20,"unidades"]
["-GAFAS INTEGRALES DE PROTECCIÓN FRENTE A RIESGO BIOLÓGICO",null,null,2,"unidades",2,"unidades",2,"unidades"]
["-MASCARILLAS DE PROTECCIÓN FRENTE A RIESGO BIOLÓGICO tipo FFP2",null,null,10,"unidades",10,"unidades",10,"unidades"]
[]
["(d) Solo deben llevarlo los buques que frecuenten o faenen en zonas palúdicas"]
["Firma y Sello del responsable de la revisión"]
[null,"Firma del responsable de sanitario a bordo"]
[null,{"$f":"IF(+identificacion!$H$7<>\"\",+identificacion!$H$7,\"\")","v":""}]

{"sheet":"CAJON 12","index":15,"n_rows":34,"n_cols":13,"rows_kept":34,"cut":false,"hidden":false,"merged":[[28,0,29,1],[21,0,21,2],[12,0,12,2],[14,0,14,2],[22,0,22,2],[8,0,8,2],[9,0,9,2],[10,0,10,2],[11,0,11,2],[20,0,20,2],[13,0,13,2],[4,0,4,12],[5,0,5,12],[6,0,7,2],[6,9,6,11],[6,3,6,8],[7,3,7,4],[7,5,7,6],[7,7,7,8],[6,12,7,12],[32,3,32,12],[0,0,0,1],[1,0,1,1],[2,0,2,1],[3,0,3,1],[30,0,30,1],[24,0,24,2],[25,0,25,2],[26,0,26,2],[15,0,15,2],[16,0,16,2],[17,0,17,2],[18,0,18,2],[23,0,23,2],[19,0,19,2],[27,0,27,2]]}
[{"$f":"IF(+identificacion!$D$3<>\"\",CONCATENATE(+identificacion!$D$3),\"\")","v":""}]
[{"$f":"CONCATENATE(\"Matrícula: \",+identificacion!D4,\"  -     \",\"N.I.B.: \",+identificacion!H4)","v":"Matrícula:   -     N.I.B.: "}]
[{"$f":"IF(+identificacion!$F$5<>\"\",+identificacion!$F$5,\"\")","v":""}]
[{"$f":"IF(+identificacion!$D$6<>\"\",CONCATENATE(identificacion!$D$6,\", \",+DAY(identificacion!$F$10), \"/\", MONTH(identificacion!$F$10),\"/\", YEAR(identificacion!$F$10) ),\"\")","v":""}]
["REVISIÓN DEL BOTIQUÍN  A"]
["CAJÓN 12: Instrumental médico y material de inyección y sutura"]
["Tipo de material",null,null,"Cantidad Exigida",null,null,null,null,null,"Cantidad a Bordo",null,null,"CADUCIDAD"]
[null,null,null,"< 15 Tripulantes",null,"15-20 Tripulantes",null,"> 20 Tripulantes",null,"< 15 Tripulantes","15-20 Tr.","> 20 Tripulantes"]
["-GRAPADORAS DESECHABLES PARA SUTURA. Caja con 12 grapadoras de 5 grapas.",null,null,1,"caja",1,"caja",1,"caja"]
["-TIJERAS QUITA-GRAPAS",null,null,2,"unidades",3,"unidades",3,"unidades"]
["-SUTURAS CUTÁNEAS ESTÉRILES 6mm x 102 mm, 5U/paquete",null,null,2,"paquetes",3,"paquetes",4,"paquetes"]
["-SUTURAS NO ABSORBIBLE de 3 CEROS (000), CON AGUJA. Paquete individual",null,null,3,"unidades",4,"unidades",5,"unidades"]
["-BANDA ELÁSTICA DE VELCRO O COMPRESOR DE GOMA ELÁSTICA",null,null,1,"unidad",1,"unidad",1,"unidad"]
["-BISTURÍES DESECHABLES CON MANGO del Núm. 15 Paquetes individuales estériles",null,null,5,"unidades",7,"unidades",10,"unidades"]
["-CAJA PARA INSTRUMENTAL DE ACERO INOXIDABLE de 20x10x5 cm. (aprox.)",null,null,1,"unidad",1,"unidad",1,"unidad"]
["-TIJERA RECTA AGUDA",null,null,1,"unidad",1,"unidad",1,"unidad"]
["-TIJERA RECTA ROMA",null,null,1,"unidad",1,"unidad",1,"unidad"]
["-PINZAS DE DISECCIÓN RECTAS SIN DIENTES",null,null,1,"unidad",1,"unidad",1,"unidad"]
["-PINZAS HEMOSTÁTICAS RECTAS CON DIENTES",null,null,1,"unidad",1,"unidad",1,"unidad"]
["-PINZAS PORTAAGUJAS DE SUTURA Tipo «MAYO»",null,null,1,"unidad",1,"unidad",1,"unidad"]
["-ESTUCHE PARA INFUSIÓN RECTAL",null,null,1,"unidad",1,"unidad",1,"unidad"]
["-SONDA URINARIA núm. 16",null,null,1,"unidad",1,"unidad",1,"unidad"]
["-LUBRICANTE UROLÓGICO",null,null,1,"envase",1,"envase",1,"envase"]
["-MAQUINILLAS DE AFEITAR DESECHABLES",null,null,5,"unidades",7,"unidades",10,"unidades"]
["-BATEA ARRIÑONADA CON SOLAPA DE ACERO INOXIDABLE de 25 cm.",null,null,1,"unidad",1,"unidad",1,"unidad"]
["-IMPERDIBLES DE SEGURIDAD DE ACERO INOXIDABLE. Varios tamaños",null,null,10,"unidades",10,"unidades",10,"unidades"]
["-LANCETAS. Caja con 50 unidades",null,null,1,"caja",1,"caja",1,"caja"]
["-BASTONCILLOS CON TORUNDA DE ALGODÓN PARA LIMPIEZA",null,null,1,"caja",1,"caja",1,"caja"]
["-JERINGAS CON AGUJAS DESHECHABLES PARA INYECCIÓN INTRAMUSCULAR",null,"-De 5 cc",10,"unidades",15,"unidades",20,"unidades"]
[null,null,"-De 10 cc",3,"unidades",4,"unidades",5,"unidades"]
["-AGUJAS PARA INYECTABLES",null,"-Intramuscular (largas)",5,"unidades",8,"unidades",10,"unidades"]
[]
[null,"Firma del responsable de sanitario a bordo",null,"Firma y Sello del responsable de la revisión"]
[null,{"$f":"IF(+identificacion!$H$7<>\"\",+identificacion!$H$7,\"\")","v":""}]

{"sheet":"CAJON 13","index":16,"n_rows":19,"n_cols":13,"rows_kept":19,"cut":false,"hidden":false,"merged":[[16,0,16,12],[12,0,12,2],[14,0,14,2],[6,3,6,8],[2,0,2,1],[4,0,4,12],[5,0,5,12],[6,0,7,0],[6,1,7,1],[6,2,7,2],[3,0,3,1],[13,0,13,2],[0,0,0,1],[6,9,6,11],[6,12,7,12],[7,3,7,4],[7,5,7,6],[7,7,7,8],[1,0,1,1]]}
[{"$f":"IF(+identificacion!$D$3<>\"\",CONCATENATE(+identificacion!$D$3),\"\")","v":""}]
[{"$f":"CONCATENATE(\"Matrícula: \",+identificacion!D4,\"  -     \",\"N.I.B.: \",+identificacion!H4)","v":"Matrícula:   -     N.I.B.: "}]
[{"$f":"IF(+identificacion!$F$5<>\"\",+identificacion!$F$5,\"\")","v":""}]
[{"$f":"IF(+identificacion!$D$6<>\"\",CONCATENATE(identificacion!$D$6,\", \",+DAY(identificacion!$F$10), \"/\", MONTH(identificacion!$F$10),\"/\", YEAR(identificacion!$F$10) ),\"\")","v":""}]
["REVISIÓN DEL BOTIQUÍN  A"]
["CAJÓN 13: Rehidratación, aporte calórico, sueros y vitaminas"]
["CÓDIGO ATC","PRINCIPIO ACTIVO","PRESENTACIÓN","Cantidad Exigida",null,null,null,null,null,"Cantidad a Bordo",null,null,"CADUCIDAD"]
[null,null,null,"< 15 Tripulantes",null,"15-20 Tripulantes",null,"> 20 Tripulantes",null,"< 15 Tripulantes","15-20 Tr.","> 20 Tripulantes"]
["B05ZB","CL. SÓDICO + CL. POTÁSICO + GLUCOSA + BICARBONATO SÓDICO","5 sobres para disolución. Por sobre:\nCL Sódico 3,5 g., CL Potásico 1,5 g.,\nGlucosa 20 g., Bicarbonato Sódico 2,5 g.",1,"caja",2,"cajas",2,"cajas"]
["B05XA03","SUERO SALINO FISIOLÓGICO al 0,9%","Solución 500 ml.",10,"frascos",10,"frascos",10,"frascos"]
["A11EB","COMPLEJO VITAMÍNICO B","10 ampollas 2 ml.",1,"caja",2,"cajas",2,"cajas"]
["A11DA","TIAMINA (VITAMINA B1)","100 mg.  6 ampollas  1 ml.",2,"cajas",3,"cajas",4,"cajas"]
["SISTEMA DE PERFUSIÓN ESTÉRIL DESECHABLE CON CÁMARA DE GOTEO",null,null,10,"unidades",10,"unidades",10,"unidades"]
["AGUJAS PARA PERFUSIÓN",null,null,10,"unidades",10,"unidades",10,"unidades"]
["PISTOLA DE INYECCIÓN INTRAÓSEA PARA ADULTOS. Sistema BIG, color azul, calibre 15G",null,null,1,"unidad",2,"unidades",2,"unidades"]
[]
["Firma y Sello del responsable de la revisión"]
[null,"Firma del responsable de sanitario a bordo"]
[null,{"$f":"IF(+identificacion!$H$7<>\"\",+identificacion!$H$7,\"\")","v":""}]

{"sheet":"CAJON 14","index":17,"n_rows":37,"n_cols":13,"rows_kept":37,"cut":false,"hidden":false,"merged":[[33,0,33,2],[34,0,34,2],[31,0,31,2],[32,0,32,2],[35,2,35,12],[26,0,26,2],[30,0,30,2],[24,0,25,1],[28,0,29,1],[10,1,10,2],[11,1,11,2],[23,0,23,2],[20,0,21,1],[12,0,12,1],[13,0,15,1],[19,0,19,2],[22,0,22,2],[18,0,18,2],[16,0,16,2],[17,0,17,2],[27,0,27,2],[0,0,0,1],[8,1,8,2],[9,1,9,2],[4,0,4,12],[5,0,5,12],[6,0,7,2],[6,3,6,8],[7,3,7,4],[7,5,7,6],[7,7,7,8],[6,9,6,11],[6,12,7,12],[1,0,1,1],[2,0,2,1],[3,0,3,1]]}
[{"$f":"IF(+identificacion!$D$3<>\"\",CONCATENATE(+identificacion!$D$3),\"\")","v":""}]
[{"$f":"CONCATENATE(\"Matrícula: \",+identificacion!D4,\"  -     \",\"N.I.B.: \",+identificacion!H4)","v":"Matrícula:   -     N.I.B.: "}]
[{"$f":"IF(+identificacion!$F$5<>\"\",+identificacion!$F$5,\"\")","v":""}]
[{"$f":"IF(+identificacion!$D$6<>\"\",CONCATENATE(identificacion!$D$6,\", \",+DAY(identificacion!$F$10), \"/\", MONTH(identificacion!$F$10),\"/\", YEAR(identificacion!$F$10) ),\"\")","v":""}]
["REVISIÓN DEL BOTIQUÍN  A"]
["CAJÓN 14: Antisépticos y material de cura"]
["Tipo de material",null,null,"Cantidad Exigida",null,null,null,null,null,"Cantidad a Bordo",null,null,"CADUCIDAD"]
[null,null,null,"< 15 Tripulantes",null,"15-20 Tripulantes",null,"> 20 Tripulantes",null,"< 15 Tripulantes","15-20 Tr.","> 20 Tripulantes"]
["D08AG02","-POVIDONA 10%  10 unidosis  5 ml.",null,5,"envases",6,"envases",7,"envases"]
["D08AC","-CLORHEXIDINA AL 5 %. Solución 500 ml",null,1,"envase",1,"envase",1,"envase"]
["D08AJ","-ALCOHOL DE 70°. Solución 250 ml",null,1,"envase",2,"envases",2,"envases"]
["D08AX","-AGUA OXIGENADA. Solución de 10 volúmenes 500 ml",null,1,"envase",2,"envases",2,"envases"]
["-SOLUCIÓN ANTISÉPTICA para higiene de manos",null,"Frasco 50 ml.",2,"envases",2,"envases",2,"envases"]
["-VENDAS ELÁSTICAS",null,"-De 5 cm. x 4 m.",5,"unidades",6,"unidades",7,"unidades"]
[null,null,"-De 7 cm. x 4 m.",5,"unidades",6,"unidades",7,"unidades"]
[null,null,"-De 10 cm. x 4 m.",3,"unidades",4,"unidades",5,"unidades"]
["-VENDAS DE GASA TUBULARES PARA DEDOS CON APLICADOR. (Rollo)",null,null,1,"caja",1,"caja",1,"caja"]
["-GASAS ESTÉRILES de 20 cm. x 20 cm. caja con 100 unidades",null,null,2,"cajas",2,"cajas",3,"cajas"]
["-ALGODÓN HIDRÓFILO. Paquete de 500 g",null,null,1,"paquete",1,"paquete",2,"paquetes"]
["-CABESTRILLO O VENDA TRIANGULAR",null,null,1,"unidad",1,"unidad",1,"unidad"]
["-ESPARADRAPO HIPOALERGÉNICO",null,"-De 5 cm. x 10 m.",1,"unidad",2,"unidades",2,"unidades"]
[null,null,"-De 10 cm. x 10 m.",1,"unidad",1,"unidad",1,"unidad"]
["-GUANTES DESECHABLES DE VINILO. Caja con 100 unidades",null,null,1,"caja",1,"caja",1,"caja"]
["-GUANTES QUIRÚRGICOS ESTÉRILES del Núm. 8-9. Paquete individual por par",null,null,5,"pares",7,"pares",10,"pares"]
["-APÓSITOS AUTOADHESIVOS ESTÉRILES. Caja 5 unidades",null,"-De 6 cm. x 7 cm.",2,"cajas",2,"cajas",3,"cajas"]
[null,null,"-De 8 cm. x 10 cm.",2,"cajas",2,"cajas",3,"cajas"]
["-APÓSITOS HIDROCOLOIDES ESTÉRILES. Caja con 3 unidades de 5 cm. x 5 cm.",null,null,1,"caja",1,"caja",2,"cajas"]
["-APÓSITOS AUTOADHESIVOS DE FILM TRANSPARENTE (Poliuretano) HIPOALÉRGICOS.\n aprox. de 10 x 12,5 cm.   Caja de 10 unidades.",null,null,1,"caja",1,"caja",2,"cajas"]
["-GASAS GRASAS. Caja con 20 sobres",null,"-De 7 cm. x 9 cm.",2,"cajas",3,"cajas",4,"cajas"]
[null,null,"-De 23 cm. x 14 cm.",2,"cajas",3,"cajas",4,"cajas"]
["-APÓSITOS ADHESIVOS PLÁSTICOS. Rollo de 6 cm. x 1 m",null,null,2,"cajas",2,"cajas",3,"cajas"]
["-TAPONES EXPANSIBLES PARA SANGRADOS NASALES de 10 cm.",null,null,5,"unidades",6,"unidades",8,"unidades"]
["-MANTA PARA QUEMADOS Y SUPERVIVIENTES TERMO-AISLANTE Oro-plata",null,null,1,"unidad",1,"unidad",2,"unidades"]
["-CEPILLO PARA UÑAS",null,null,2,"unidades",2,"unidades",2,"unidades"]
["-MASCARILLAS",null,null,1,"caja",1,"caja",1,"caja"]
[null,"Firma del responsable de sanitario a bordo","Firma y Sello del responsable de la revisión"]
[null,{"$f":"IF(+identificacion!$H$7<>\"\",+identificacion!$H$7,\"\")","v":""}]

{"sheet":"CAJON 15","index":18,"n_rows":20,"n_cols":13,"rows_kept":20,"cut":false,"hidden":false,"merged":[[17,0,17,12],[6,12,7,12],[6,3,6,8],[7,3,7,4],[7,5,7,6],[7,7,7,8],[9,0,9,2],[15,0,15,2],[12,0,12,2],[13,0,13,2],[11,0,11,2],[8,0,8,2],[14,0,14,2],[5,0,5,12],[6,0,7,2],[6,9,6,11],[10,0,10,2],[0,0,0,1],[1,0,1,1],[2,0,2,1],[3,0,3,1],[4,0,4,12]]}
[{"$f":"IF(+identificacion!$D$3<>\"\",CONCATENATE(+identificacion!$D$3),\"\")","v":""}]
[{"$f":"CONCATENATE(\"Matrícula: \",+identificacion!D4,\"  -     \",\"N.I.B.: \",+identificacion!H4)","v":"Matrícula:   -     N.I.B.: "}]
[{"$f":"IF(+identificacion!$F$5<>\"\",+identificacion!$F$5,\"\")","v":""}]
[{"$f":"IF(+identificacion!$D$6<>\"\",CONCATENATE(identificacion!$D$6,\", \",+DAY(identificacion!$F$10), \"/\", MONTH(identificacion!$F$10),\"/\", YEAR(identificacion!$F$10) ),\"\")","v":""}]
["REVISIÓN DEL BOTIQUÍN  A"]
["CAJÓN 15: Férulas y otro material médico general"]
["Tipo de material",null,null,"Cantidad Exigida",null,null,null,null,null,"Cantidad a Bordo",null,null,"CADUCIDAD"]
[null,null,null,"< 15 Tripulantes",null,"15-20 Tripulantes",null,"> 20 Tripulantes",null,"< 15 Tripulantes","15-20 Tr.","> 20 Tripulantes"]
["-FÉRULAS DE ALUMINIO MALEABLE PARA DEDOS 2 cm. x 50 cm.",null,null,2,"tiras",3,"tiras",4,"tiras"]
["-FÉRULAS HINCHABLES TRANSPARENTES. Juego con varios tamaños",null,null,1,"juego",1,"juego",1,"juego"]
["-FÉRULA DE KRAMER 100 x 10 cm.",null,null,1,"unidad",1,"unidad",1,"unidad"]
["-BOTELLA DE ORINA (HOMBRES)",null,null,1,"unidad",1,"unidad",1,"unidad"]
["-CUÑA (MUJERES)",null,null,1,"unidad",1,"unidad",1,"unidad"]
["-BOLSA PARA AGUA CALIENTE 2 litros",null,null,1,"unidad",1,"unidad",1,"unidad"]
["-BOLSA DE HIELO",null,null,1,"unidad",1,"unidad",1,"unidad"]
["-SACO MORTUORIO PARA CADÁVER (corta duración)",null,null,1,"unidad",1,"unidad",1,"unidad"]
[]
["Firma y Sello del responsable de la revisión"]
[null,"Firma del responsable de sanitario a bordo"]
[null,{"$f":"IF(+identificacion!$H$7<>\"\",+identificacion!$H$7,\"\")","v":""}]

{"sheet":"FUERA CAJONES","index":19,"n_rows":22,"n_cols":13,"rows_kept":22,"cut":false,"hidden":false,"merged":[[0,0,0,1],[6,12,7,12],[9,0,9,2],[4,0,4,12],[5,0,5,12],[6,0,7,2],[1,0,1,1],[2,0,2,1],[3,0,3,1],[6,9,6,11],[6,3,6,8],[7,3,7,4],[7,5,7,6],[7,7,7,8],[8,0,8,12],[19,0,19,12],[11,0,11,2],[14,0,14,2],[13,0,13,2],[10,0,10,2],[12,0,12,2],[15,0,15,2],[16,0,16,2],[17,0,17,2]]}
[{"$f":"IF(+identificacion!$D$3<>\"\",CONCATENATE(+identificacion!$D$3),\"\")","v":""}]
[{"$f":"CONCATENATE(\"Matrícula: \",+identificacion!D4,\"  -     \",\"N.I.B.: \",+identificacion!H4)","v":"Matrícula:   -     N.I.B.: "}]
[{"$f":"IF(+identificacion!$F$5<>\"\",+identificacion!$F$5,\"\")","v":""}]
[{"$f":"IF(+identificacion!$D$6<>\"\",CONCATENATE(identificacion!$D$6,\", \",+DAY(identificacion!$F$10), \"/\", MONTH(identificacion!$F$10),\"/\", YEAR(identificacion!$F$10) ),\"\")","v":""}]
["REVISIÓN DEL BOTIQUÍN  A"]
["OTRO MATERIAL FUERA DE CAJONES"]
["Tipo de material",null,null,"Cantidad Exigida",null,null,null,null,null,"Cantidad a Bordo",null,null,"CADUCIDAD"]
[null,null,null,"< 15 Tripulantes",null,"15-20 Tripulantes",null,"> 20 Tripulantes",null,"< 15 Tripulantes","15-20 Tr.","> 20 Tripulantes"]
["1. MALETÍN CON EQUIPO DE REANIMACIÓN"]
["-APARATO DE REANIMACIÓN MANUAL (AMBÚ)",null,null,1,"unidad",1,"unidad",1,"unidad"]
["-APARATO DE OXIGENOTERAPIA",null,null,1,"unidad",1,"unidad",1,"unidad"]
["-CÁNULA PARA REANIMACIÓN BOCA A BOCA. TUBO DE GUEDEL. Tamaño 3",null,null,1,"unidad",1,"unidad",1,"unidad"]
["-CÁNULA PARA REANIMACIÓN BOCA A BOCA. TUBO DE GUEDEL. Tamaño 4",null,null,1,"unidad",1,"unidad",1,"unidad"]
["2. COLCHÓN DE MOLDEO AL VACÍO",null,null,1,"unidad",1,"unidad",1,"unidad"]
["3. TABLERO ESPINAL CON INMOVILIZACIÓN LATERAL DE CABEZA-CUELLO",null,null,1,"unidad",1,"unidad",1,"unidad"]
["4. COLLAR CERVICAL PARA INMOVILIZACIÓN RÍGIDO Y REGULABLE",null,null,1,"unidad",1,"unidad",1,"unidad"]
["5. CONTENEDOR DE RESIDUOS BIOSANITARIOS PARA OBJETOS CORTANTES Y PUNZANTES\n     de 1 litro (f)",null,null,1,"unidad",1,"unidad",1,"unidad"]
["6. DESINFECTANTE DE AGUA (LEJÍA SIN DETERGENTE)\n     Botella de 1 litro apta para desinfección de agua de bebida.",null,null,3,"envases",4,"envases",5,"envases"]
["(f) Para la retirada de estos contenedores debera contactarse con las instalaciones de recepción autorizadas en cada puerto"]
["Firma y Sello del responsable de la revisión"]
[null,"Firma del responsable de sanitario a bordo"]
[null,{"$f":"IF(+identificacion!$H$7<>\"\",+identificacion!$H$7,\"\")","v":""}]

{"sheet":"Sit","index":20,"n_rows":4,"n_cols":5,"rows_kept":4,"cut":false,"hidden":true,"merged":[]}
[null,"sin fecha de caducidad",null,null,""]
[null,"CADUCADO"]
[null,"PROXIMO A CADUCAR"]
[null,"EN FECHA"]